Workbook

Sheet START

Sheet Instructions
D2: 2020
X4: Yes | Y4: Consolidated Information
X5: No
W7: Type of Entities Range: | X7: Parent Municipality
X8: Consolidated Information
W17: MTREF Range: | X17: 2008
X18: 2009
X19: 2010
X20: 2011
X21: 2012
X22: 2013
X23: 2014
X24: 2015
X25: 2016
X26: 2017
X27: 2018
X28: 2019
X29: 2020
X30: 2021
X31: 2022
W33: MTREF Linked: | X33: 8
W34: MTREF: | X34: =INDEX(X17:X31,X33,1) -> 2015
W36: Fin Year: | X36: =MTREF&"/"&RIGHT(MTREF,2)+1 -> 2015/16

Sheet Template names (hidden)
A1: Common sheet headings
A2: Head1 | B2: =HLOOKUP(MTREF,Headings,2) -> 2013/14 | C2: Prior year -1
A3: Head1A | B3: =HLOOKUP(MTREF,Headings,3) -> 2012/13 | C3: Prior year -2
A4: Head1B | B4: =HLOOKUP(MTREF,Headings,4) -> 2011/12 | C4: Prior year -3
A5: Head2 | B5: =HLOOKUP(MTREF,Headings,5) -> Current Year 2014/15 | C5: Year in which budget is being prepared
A6: Head2A | B6: =HLOOKUP(MTREF,Headings,6) -> 2014/15 | C6: Year in which budget is being prepared
A7: Head3 | B7: =HLOOKUP(MTREF,Headings,7) -> 2015/16 Medium Term Revenue & Expenditure Framework | C7: MTREF name
A8: Head4 | B8: LTFS | C8: Long term financial strategy
A9: Head5 | B9: Audited Outcome
A10: Head5A | B10: Outcome
A11: Head5B | B11: Pre-audit outcome
A12: Head6 | B12: Original Budget
A13: Head7 | B13: Adjusted Budget
A14: Head8 | B14: Full Year Forecast
A15: Head9 | B15: =HLOOKUP(MTREF,Headings,8) -> Budget Year 2015/16 | C15: 1st year of MTREF | D15: Year1
A16: Head10 | B16: =HLOOKUP(MTREF,Headings,9) -> Budget Year +1 2016/17 | C16: 2nd year of MTREF | D16: Year2
A17: Head11 | B17: =HLOOKUP(MTREF,Headings,10) -> Budget Year +2 2017/18 | C17: 3rd year of MTREF | D17: Year3
A18: Head12 | B18: =HLOOKUP(MTREF,Headings,11) -> Forecast 2018/19 | C18: 1st yr of long term forecast | D18: Year4
A19: Head13 | B19: =HLOOKUP(MTREF,Headings,12) -> Forecast 2019/20 | C19: Next yr of long term forecast | D19: Year5
A20: Head14 | B20: =HLOOKUP(MTREF,Headings,13) -> Forecast 2020/21 | C20: Next yr of long term forecast | D20: Year6
A21: Head15 | B21: =HLOOKUP(MTREF,Headings,14) -> Forecast 2021/22 | C21: Next yr of long term forecast | D21: Year7
A22: Head16 | B22: =HLOOKUP(MTREF,Headings,15) -> Forecast 2022/23 | C22: Next yr of long term forecast | D22: Year8
A23: Head17 | B23: =HLOOKUP(MTREF,Headings,16) -> Forecast 2023/24 | C23: Next yr of long term forecast | D23: Year9
A24: Head18 | B24: =HLOOKUP(MTREF,Headings,17) -> Forecast 2024/25 | C24: Next yr of long term forecast | D24: Year10
A25: Head19 | B25: =HLOOKUP(MTREF,Headings,18) -> Forecast 2025/26 | C25: Next yr of long term forecast | D25: Year11
A26: Head20 | B26: =HLOOKUP(MTREF,Headings,19) -> Forecast 2026/27 | C26: Next yr of long term forecast | D26: Year12
A27: Head21 | B27: =HLOOKUP(MTREF,Headings,20) -> Forecast 2027/28 | C27: Next yr of long term forecast | D27: Year13
A28: Head22 | B28: =HLOOKUP(MTREF,Headings,21) -> Forecast 2028/29 | C28: Next yr of long term forecast | D28: Year14
A29: Head23 | B29: =HLOOKUP(MTREF,Headings,22) -> Forecast 2029/30 | C29: Next yr of long term forecast | D29: Year15
A30: Head24 | B30: Description
A31: Head25
A32: Head26 | B32: Vote Description
A33: Head27 | B33: Ref
A34: Head27a | B34: References
A35: Head28 | B35: Surplus/(Deficit) for the year | D35: Result
A36: Head29 | B36: =HLOOKUP(MTREF,Headings,23) -> Annual target 2015/16
A37: Head30 | B37: =HLOOKUP(MTREF,Headings,24) -> Revised target 2015/16
A38: Head31 | B38: Quarter ended 30 September
A39: Head32 | B39: Quarter ended 31 December
A40: Head33 | B40: Quarter ended 31 March
A41: Head34 | B41: Quarter ended 30 June
A42: Head35 | B42: Variance explanation
A43: Head36 | B43: YTD Actual 31 Dec
A44: Head37 | B44: YTD Budget 31 Dec
A45: Head38 | B45: Monthly actual
A46: Head39 | B46: YTD actual
A47: Head40 | B47: YTD budget
A48: Head41 | B48: YTD variance
A49: Head42 | B49: Surplus/ (Deficit) for the yr/period
A50: Head43 | B50: =Head3&" Summary" -> 2015/16 Medium Term Revenue & Expenditure Framework Summary
A51: Head44 | B51: 2001 Census
A52: Head45 | B52: 2011 Census
A53: Head46 | B53: - Adjustments Budget - January 2007
A54: Head47 | B54: Previous target year to complete
A55: Head48 | B55: Present value
A56: Head49
A57: Head50 | B57: Other Adjusts.
A58: Head51 | B58: Accum. Funds
A59: Head52 | B59: Multi-year capital
A60: Head53 | B60: Unfore. Unavoid.
A61: Head54 | B61: Prior Adjusted
A62: Head55 | B62: Nat. or Prov. Govt
A63: Head56 | B63: Total Adjusts.
A64: SFPerf1 | B64: Budgeted Financial Performance
A65: SFPerf2 | B65: Forecast Financial Performance
A66: SFPos1 | B66: Budgeted Financial Position
A67: SFPos2 | B67: Forecast Financial Position
A68: Cash1 | B68: Budget Cash Flow
A69: Cash2 | B69: Forecast Cash Flow
A70: RandM | B70: Expenditure includes repairs & maintenance of R'000
A71: Depart1 | B71: Department 1 - | D71: DEP1
A72: Depart2 | B72: Department 2 - | D72: DEP2
A73: Depart3 | B73: Department 3 - | D73: DEP3
A74: Depart4 | B74: Department 4 - | D74: DEP4
A75: Depart5 | B75: Department 5 - | D75: DEP5
A76: Depart6 | B76: Department 6 - | D76: DEP6
A77: Depart7 | B77: Department 7 - | D77: DEP7
A78: Depart8 | B78: Department 8 - | D78: DEP8
A79: Depart9 | B79: Department 9 - | D79: DEP9
A80: Depart10 | B80: Department 10 - | D80: DEP10
A81: Depart11 | B81: Department 11 - | D81: DEP11
A82: Depart12 | B82: Department 12 - | D82: DEP12
A83: Depart13 | B83: Department 13 - | D83: DEP13
A84: Depart14 | B84: Department 14 - | D84: DEP14
A87: Base year of forecast column selection names
A88: Choose | B88: ACT
B89: APP
B90: ADJ
A92: Standard nomenclature
A93: Muni | B93: ='Lookup and lists'!B28 -> KZN225 Msunduzi
A94: Municipal Entities | B94: 1 | C94: Type of report: | D94: 1
A95: =IF((MuniEntities=1)*(MuniType=2),"YES","NO") -> NO | B95: Does this municipality have entities (consolidated budget and entity budgets required)? YES/NO
A96: Entity 1 | B96: (Pty) Ltd Example 1 - Municipal entity - | D96: Ent1
A97: Entity 2 | B97: (Pty) Ltd Example 2 - Municipal entity - | D97: Ent2
A98: Entity 3 | B98: Municipal Entity Example 3 | D98: Ent3
A99: Budget approval tables | C99: Chart x-ref | D99: Sch/Tab/Ch | E99: Alternative for municipalities without entities | F99: Alternative for municipalities without entities
B100: =IF(Consolques="YES",E100,F100) -> Table A1 Budget Summary | D100: Table A1 | E100: =D100&"Consolidated Budget Summary" -> Table A1 Consolidated Budget Summary | F100: =D100&"Budget Summary" -> Table A1 Budget Summary
B101: Table A2 Budgeted Financial Performance (revenue and expenditure by standard classification) | C101: Charts 5, 6 | D101: Table A2 | E101: =D101&"Consolidated Budgeted Financial Performance (revenue and expenditure by standard classification)" -> Table A2 Consolidated Budgeted Financial Performance (revenue and expenditure by standard classification) | F101: =D101&"Budgeted Financial Performance (revenue and expenditure by standard classification)" -> Table A2 Budgeted Financial Performance (revenue and expenditure by standard classification)
B102: Table A3 Budgeted Financial Performance (revenue and expenditure by municipal vote) | D102: Table A3 | E102: =D102&"Consolidated Budgeted Financial Performance (revenue and expenditure by municipal vote)" -> Table A3 Consolidated Budgeted Financial Performance (revenue and expenditure by municipal vote) | F102: =D102&"Budgeted Financial Performance (revenue and expenditure by municipal vote)" -> Table A3 Budgeted Financial Performance (revenue and expenditure by municipal vote)
B103: Table A4 Budgeted Financial Performance (revenue and expenditure) | C103: Charts 1, 2, 3, 4 | D103: Table A4 | E103: =D103&"Consolidated Budgeted Financial Performance (revenue and expenditure)" -> Table A4 Consolidated Budgeted Financial Performance (revenue and expenditure) | F103: =D103&"Budgeted Financial Performance (revenue and expenditure)" -> Table A4 Budgeted Financial Performance (revenue and expenditure)
B104: Table A5 Budgeted Capital Expenditure by vote, standard classification and funding | C104: Charts 7, 8, 9, 10, 20 | D104: Table A5 | E104: =D104&"Consolidated Budgeted Capital Expenditure by vote, standard classification and funding" -> Table A5 Consolidated Budgeted Capital Expenditure by vote, standard classification and funding | F104: =D104&"Budgeted Capital Expenditure by vote, standard classification and funding" -> Table A5 Budgeted Capital Expenditure by vote, standard classification and funding
B105: Table A6 Budgeted Financial Position | D105: Table A6 | E105: =D105&"Consolidated Budgeted Financial Position" -> Table A6 Consolidated Budgeted Financial Position | F105: =D105&"Budgeted Financial Position" -> Table A6 Budgeted Financial Position
B106: Table A7 Budgeted Cash Flows | D106: Table A7 | E106: =D106&"Consolidated Budgeted Cash Flows" -> Table A7 Consolidated Budgeted Cash Flows | F106: =D106&"Budgeted Cash Flows" -> Table A7 Budgeted Cash Flows
B107: Table A8 Cash backed reserves/accumulated surplus reconciliation | D107: Table A8 | E107: =D107&"Consolidated Cash backed reserves/accumulated surplus reconciliation" -> Table A8 Consolidated Cash backed reserves/accumulated surplus reconciliation | F107: =D107&"Cash backed reserves/accumulated surplus reconciliation" -> Table A8 Cash backed reserves/accumulated surplus reconciliation
B108: Table A9 Asset Management | D108: Table A9 | E108: =D108&"Consolidated Asset Management" -> Table A9 Consolidated Asset Management | F108: =D108&"Asset Management" -> Table A9 Asset Management
B109: Table A10 Basic service delivery measurement | D109: Table A10 | E109: =D109&"Consolidated basic service delivery measurement" -> Table A10 Consolidated basic service delivery measurement | F109: =D109&"Basic service delivery measurement" -> Table A10 Basic service delivery measurement
A110: Supportinging Tables to the Budget Approval Tables | C110: =$C$99 -> Chart x-ref | D110: =$D$99 -> Sch/Tab/Ch
A111: Supporting Table SA1 | B111: =A111&" Supportinging detail to 'Budgeted Financial Performance'" -> Supporting Table SA1 Supportinging detail to 'Budgeted Financial Performance'
A112: Supporting Table SA2 | B112: =IF(Consolques="YES",E112,F112) -> Supporting Table SA2 Matrix Financial Performance Budget (revenue source/expenditure type and dept.) | E112: =A112&"Consolidated Matrix Financial Performance Budget (revenue source/expenditure type & dept.)" -> Supporting Table SA2 Consolidated Matrix Financial Performance Budget (revenue source/expenditure type & dept.) | F112: =A112&"Matrix Financial Performance Budget (revenue source/expenditure type and dept.)" -> Supporting Table SA2 Matrix Financial Performance Budget (revenue source/expenditure type and dept.)
A113: Supporting Table SA3 | B113: =A113&"Supportinging detail to 'Budgeted Financial Position'" -> Supporting Table SA3 Supportinging detail to 'Budgeted Financial Position'
A114: Supporting Table SA4 | B114: =A114&"Reconciliation of IDP strategic objectives and budget (revenue)" -> Supporting Table SA4 Reconciliation of IDP strategic objectives and budget (revenue) | C114: Chart 11
A115: Supporting Table SA5 | B115: =A115&"Reconciliation of IDP strategic objectives and budget (operating expenditure)" -> Supporting Table SA5 Reconciliation of IDP strategic objectives and budget (operating expenditure) | C115: Chart 12
A116: Supporting Table SA6 | B116: =A116&"Reconciliation of IDP strategic objectives and budget (capital expenditure)" -> Supporting Table SA6 Reconciliation of IDP strategic objectives and budget (capital expenditure) | C116: Chart 13
A117: Supporting Table SA7 | B117: =A117&" Measureable performance objectives" -> Supporting Table SA7 Measureable performance objectives
A118: Supporting Table SA8 | B118: =A118&" Performance indicators and benchmarks" -> Supporting Table SA8 Performance indicators and benchmarks | C118: Chts 15-19
A119: Supporting Table SA9 | B119: =A119&" Social, economic and demographic statistics and assumptions" -> Supporting Table SA9 Social, economic and demographic statistics and assumptions
A120: Supporting Table SA10 | B120: =A120&" Funding measurement" -> Supporting Table SA10 Funding measurement | C120: Chart 14
A121: Supporting Table SA11 | B121: =A121&" Property rates summary" -> Supporting Table SA11 Property rates summary
A122: Supporting Table SA12a | B122: =A122&" Property rates by category (current year)" -> Supporting Table SA12a Property rates by category (current year)
A123: Supporting Table SA12b | B123: =A123&" Property rates by category (budget year)" -> Supporting Table SA12b Property rates by category (budget year)
A124: Supporting Table SA13a | B124: =A124&" Service Tariffs by category" -> Supporting Table SA13a Service Tariffs by category
A125: Supporting Table SA13b | B125: =A125&" Service Tariffs by category - explanatory" -> Supporting Table SA13b Service Tariffs by category - explanatory
A126: Supporting Table SA14 | B126: =A126&" Household bills" -> Supporting Table SA14 Household bills
A127: Supporting Table SA15 | B127: =A127&" Investment particulars by type" -> Supporting Table SA15 Investment particulars by type
A128: Supporting Table SA16 | B128: =A128&" Investment particulars by maturity" -> Supporting Table SA16 Investment particulars by maturity
A129: Supporting Table SA17 | B129: =A129&" Borrowing" -> Supporting Table SA17 Borrowing
A130: Supporting Table SA18 | B130: =A130&" Transfers and grant receipts" -> Supporting Table SA18 Transfers and grant receipts
A131: Supporting Table SA19 | B131: =A131&" Expenditure on transfers and grant programme" -> Supporting Table SA19 Expenditure on transfers and grant programme
A132: Supporting Table SA20 | B132: =A132&" Reconciliation of transfers, grant receipts and unspent funds" -> Supporting Table SA20 Reconciliation of transfers, grant receipts and unspent funds
A133: Supporting Table SA21 | B133: =A133&" Transfers and grants made by the municipality" -> Supporting Table SA21 Transfers and grants made by the municipality
A134: Supporting Table SA22 | B134: =A134&" Summary councillor and staff benefits" -> Supporting Table SA22 Summary councillor and staff benefits
A135: Supporting Table SA23 | B135: =A135&" Salaries, allowances & benefits (political office bearers/councillors/senior managers)" -> Supporting Table SA23 Salaries, allowances & benefits (political office bearers/councillors/senior managers)
A136: Supporting Table SA24 | B136: =A136&" Summary of personnel numbers" -> Supporting Table SA24 Summary of personnel numbers
A137: Supporting Table SA25 | B137: =IF(Consolques="YES",E137,F137) -> Supporting Table SA25 Budgeted monthly revenue and expenditure | E137: =A137&" Consolidated budgeted monthly revenue and expenditure" -> Supporting Table SA25 Consolidated budgeted monthly revenue and expenditure | F137: =A137&" Budgeted monthly revenue and expenditure" -> Supporting Table SA25 Budgeted monthly revenue and expenditure
A138: Supporting Table SA26 | B138: Supporting Table SA26 Budgeted monthly revenue and expenditure (municipal vote) | E138: =A138&" Consolidated budgeted monthly revenue and expenditure (municipal vote)" -> Supporting Table SA26 Consolidated budgeted monthly revenue and expenditure (municipal vote) | F138: =A138&" Budgeted monthly revenue and expenditure (municipal vote)" -> Supporting Table SA26 Budgeted monthly revenue and expenditure (municipal vote)
A139: Supporting Table SA27 | B139: Supporting Table SA27 Budgeted monthly revenue and expenditure (standard classification) | E139: =A139&" Consolidated budgeted monthly revenue and expenditure (standard classification)" -> Supporting Table SA27 Consolidated budgeted monthly revenue and expenditure (standard classification) | F139: =A139&" Budgeted monthly revenue and expenditure (standard classification)" -> Supporting Table SA27 Budgeted monthly revenue and expenditure (standard classification)
A140: Supporting Table SA28 | B140: Supporting Table SA28 Budgeted monthly capital expenditure (municipal vote) | E140: =A140&" Consolidated budgeted monthly capital expenditure (municipal vote)" -> Supporting Table SA28 Consolidated budgeted monthly capital expenditure (municipal vote) | F140: =A140&" Budgeted monthly capital expenditure (municipal vote)" -> Supporting Table SA28 Budgeted monthly capital expenditure (municipal vote)
A141: Supporting Table SA29 | B141: Supporting Table SA29 Budgeted monthly capital expenditure (standard classification) | E141: =A141&" Consolidated budgeted monthly capital expenditure (standard classification)" -> Supporting Table SA29 Consolidated budgeted monthly capital expenditure (standard classification) | F141: =A141&" Budgeted monthly capital expenditure (standard classification)" -> Supporting Table SA29 Budgeted monthly capital expenditure (standard classification)
A142: Supporting Table SA30 | B142: Supporting Table SA30 Budgeted monthly cash flow | E142: =A142&" Consolidated budgeted monthly cash flow" -> Supporting Table SA30 Consolidated budgeted monthly cash flow | F142: =A142&" Budgeted monthly cash flow" -> Supporting Table SA30 Budgeted monthly cash flow
A143: Supporting Table SA31 | B143: NOT REQUIRED - municipality does not have entities | E143: =A143&" Aggregated entity budget" -> Supporting Table SA31 Aggregated entity budget | F143: NOT REQUIRED - municipality does not have entities
A144: Supporting Table SA32 | B144: =A144&" List of external mechanisms" -> Supporting Table SA32 List of external mechanisms
A145: Supporting Table SA33 | B145: =A145&" Contracts having future budgetary implications" -> Supporting Table SA33 Contracts having future budgetary implications
A146: Supporting Table SA34a | B146: =IF(Consolques="YES",E146,F146) -> Supporting Table SA34a Capital expenditure on new assets by asset class | E146: =A146&" Consolidated capital expenditure on new assets by asset class" -> Supporting Table SA34a Consolidated capital expenditure on new assets by asset class | F146: =A146&" Capital expenditure on new assets by asset class" -> Supporting Table SA34a Capital expenditure on new assets by asset class
A147: Supporting Table SA34b | B147: Supporting Table SA34b Capital expenditure on the renewal of existing assets by asset class | E147: =A147&" Consolidated capital expenditure on existing assets by asset class" -> Supporting Table SA34b Consolidated capital expenditure on existing assets by asset class | F147: =A147&" Capital expenditure on the renewal of existing assets by asset class" -> Supporting Table SA34b Capital expenditure on the renewal of existing assets by asset class
A148: Supporting Table SA34c | B148: Supporting Table SA34c Repairs and maintenance expenditure by asset class | E148: =A148&" Consolidated repairs and maintenance by asset class" -> Supporting Table SA34c Consolidated repairs and maintenance by asset class | F148: =A148&" Repairs and maintenance expenditure by asset class" -> Supporting Table SA34c Repairs and maintenance expenditure by asset class
A149: Supporting Table SA34d | B149: =IF(Consolques="YES",E149,F149) -> Supporting Table SA34d Depreciation by asset class | E149: =A149&" Consolidated Depreciation by asset class" -> Supporting Table SA34d Consolidated Depreciation by asset class | F149: =A149&" Depreciation by asset class" -> Supporting Table SA34d Depreciation by asset class
A150: Supporting Table SA35 | B150: Supporting Table SA35 Future financial implications of the capital budget | E150: =A150&" Consolidated future financial implications of the capital budget" -> Supporting Table SA35 Consolidated future financial implications of the capital budget | F150: =A150& " Future financial implications of the capital budget" -> Supporting Table SA35 Future financial implications of the capital budget
A151: Supporting Table SA36 | B151: Supporting Table SA36 Detailed capital budget | E151: =A151&" Consolidated detailed capital budget" -> Supporting Table SA36 Consolidated detailed capital budget | F151: =A151& " Detailed capital budget" -> Supporting Table SA36 Detailed capital budget
A152: Supporting Table SA37 | B152: Supporting Table SA37 Projects delayed from previous financial year/s | E152: =A152&" Consolidated projects delayed from previous financial year/s" -> Supporting Table SA37 Consolidated projects delayed from previous financial year/s | F152: =A152& " Projects delayed from previous financial year/s" -> Supporting Table SA37 Projects delayed from previous financial year/s
A154: Budget Charts | B154: Charts | C154: Cross reference
A155: Chart A1 | B155: =A155&"Revenue by Municipal Vote" -> Chart A1 Revenue by Municipal Vote
A156: Chart A2 | B156: =A156&"Expenditure by Municipal Vote" -> Chart A2 Expenditure by Municipal Vote
A157: Chart A3 | B157: =A157&"Revenue by Standard Classification" -> Chart A3 Revenue by Standard Classification | C157: A2
A158: Chart A4 | B158: =A158&"Expenditure by Standard Classification" -> Chart A4 Expenditure by Standard Classification | C158: A2
A159: Chart A5 | B159: =A159&"Revenue by Major Source (refer 'Minor' source for 'Other Revenue' allocation" -> Chart A5 Revenue by Major Source (refer 'Minor' source for 'Other Revenue' allocation | C159: A3
A160: Chart A6 | B160: =A160&"Revenue by Minor Source (Other)" -> Chart A6 Revenue by Minor Source (Other) | C160: A3
A161: Chart A7 | B161: =A161&"Expenditure by Major Type" -> Chart A7 Expenditure by Major Type | C161: A3
A162: Chart A8 | B162: =A162&"Expenditure by Minor Type (Other)" -> Chart A8 Expenditure by Minor Type (Other) | C162: A3
A163: Chart A9 | B163: =A163&"Capital Expenditure by Municipal Vote/Appropriation (Major)" -> Chart A9 Capital Expenditure by Municipal Vote/Appropriation (Major) | C163: A5
A164: Chart A10 | B164: =A164&"Capital Expenditure by Municipal Vote/Appropriation (Minor)" -> Chart A10 Capital Expenditure by Municipal Vote/Appropriation (Minor) | C164: A5
A165: Chart A11 | B165: =A164&"Capital Expenditure by Standard Classification" -> Chart A10 Capital Expenditure by Standard Classification | C165: A5
A166: Chart A12 | B166: =A166&"Capital expenditure performance trend" -> Chart A12 Capital expenditure performance trend | C166: A5
A167: Chart A13 | B167: =A167&"Capital funding by Source" -> Chart A13 Capital funding by Source | C167: A5
A168: Chart A14 | B168: =A168&"Cash flow trend" -> Chart A14 Cash flow trend | C168: A7
A169: Chart A15 | B169: =A169&"IDP Strategic Objective - Revenue" -> Chart A15 IDP Strategic Objective - Revenue | C169: Table A4
A170: Chart A16 | B170: =A170&"IDP Strategic Objective - Expenditure" -> Chart A16 IDP Strategic Objective - Expenditure | C170: Table A5
A171: Chart A17 | B171: =A171&"IDP Strategic Objective - Capital Expenditure" -> Chart A17 IDP Strategic Objective - Capital Expenditure | C171: Table A6
A172: Chart A18 | B172: =A172&"Debt (borrowing to Total Revenue)" -> Chart A18 Debt (borrowing to Total Revenue) | C172: Table A8
A173: Chart A19 | B173: =A173&"Debtors' trend analysis" -> Chart A19 Debtors' trend analysis | C173: Table A8
A174: Chart A20 | B174: =A174&"Distribution losses" -> Chart A20 Distribution losses | C174: Table A8
A175: Chart A21 | B175: =A175&"Borrowed funding of capital expenditure" -> Chart A21 Borrowed funding of capital expenditure | C175: Table A8
A176: Chart A22 | B176: =A176&"Expenditure analysis (% of Revenue)" -> Chart A22 Expenditure analysis (% of Revenue) | C176: Table A8
A177: Chart A23 | B177: =A177&"Increases in service charges" -> Chart A23 Increases in service charges | C177: Table A10

Sheet Lookup and lists (hidden)
A1: Description | B1: 2007 | C1: 2008 | D1: 2009 | E1: 2010 | F1: 2011 | G1: 2012 | H1: 2013 | I1: 2014 | J1: 2015 | K1: 2016 | L1: 2017 | M1: 2018 | N1: 2019 | O1: 2020 | Q1: Lists | Y1: Grants: | Z1: National - opex | AA1: Provincial - opex | AB1: National - capex | AC1: Provincial - capex
A2: ='Template names'!C2 -> Prior year -1 | B2: 2005/06 | C2: 2006/07 | D2: 2007/08 | E2: =E1-2&"/"&RIGHT(E1,2)-1 -> 2008/9 | F2: 2009/10 | G2: 2010/11 | H2: 2011/12 | I2: 2012/13 | J2: 2013/14 | K2: 2014/15 | L2: 2015/16 | M2: 2016/17 | N2: 2017/18 | O2: 2018/19 | Q2: Yes | R2: <1 | S2: <4 | T2: Market | U2: Land & impr. | V2: Yes | W2: Uniform | X2: Yrs | Z2: Local Government Equitable Share | AA2: Health subsidy | AB2: Municipal Infrastructure Grant (MIG) | AC2: Agriculture
A3: ='Template names'!C3 -> Prior year -2 | B3: 2004/05 | C3: 2005/06 | D3: 2006/07 | E3: =E1-3&"/"&RIGHT(E1,2)-2 -> 2007/8 | F3: 2008/9 | G3: 2009/10 | H3: 2010/11 | I3: 2011/12 | J3: 2012/13 | K3: 2013/14 | L3: 2014/15 | M3: 2015/16 | N3: 2016/17 | O3: 2017/18 | Q3: No | R3: 1 | S3: 4 | T3: Dep.Replace | U3: Land only | V3: No | W3: Variable | X3: Mths | Z3: RSC Levy Replacement | AA3: Ambulance subsidy | AB3: Public Transport and Systems | AC3: Education
A4: ='Template names'!C4 -> Prior year -3 | B4: 2003/04 | C4: 2004/05 | D4: 2005/06 | E4: =E1-4&"/"&RIGHT(E1,2)-3 -> 2006/7 | F4: 2007/8 | G4: 2008/9 | H4: 2009/10 | I4: 2010/11 | J4: 2011/12 | K4: 2012/13 | L4: 2013/14 | M4: 2014/15 | N4: 2015/16 | O4: 2016/17 | R4: 2 | S4: 5 | T4: Other | U4: Other | Z4: Finance Management | AA4: Housing | AB4: Rural Transport Services and Infrastructure | AC4: Health
A5: ='Template names'!C5 -> Year in which budget is being prepared | B5: Current Year 2006/07 | C5: Current Year 2007/08 | D5: Current Year 2008/09 | E5: ="Current Year "& E1-1&"/"&RIGHT(E1,2) -> Current Year 2009/10 | F5: Current Year 2010/11 | G5: Current Year 2011/12 | H5: Current Year 2012/13 | I5: Current Year 2013/14 | J5: Current Year 2014/15 | K5: Current Year 2015/16 | L5: Current Year 2016/17 | M5: Current Year 2017/18 | N5: Current Year 2018/19 | O5: Current Year 2019/20 | R5: 3 | S5: 6 | Z5: Municipal Systems Improvement | AA5: Sport and Recreation | AB5: Regional Bulk Infrastructure | AC5: Housing and Local Government
A6: ='Template names'!C6 -> Year in which budget is being prepared | B6: 2006/07 | C6: 2007/08 | D6: 2008/09 | E6: =E1-1&"/"&RIGHT(E1,2) -> 2009/10 | F6: 2010/11 | G6: 2011/12 | H6: 2012/13 | I6: 2013/14 | J6: 2014/15 | K6: 2015/16 | L6: 2016/17 | M6: 2017/18 | N6: 2018/19 | O6: 2019/20 | R6: 4 | S6: 6-10 | Z6: Water Services Operating Subsidy | AB6: Rural Households Infrastructure | AC6: Other Departments
A7: ='Template names'!C7 -> MTREF name | B7: 2007/08 Medium Term Revenue & Expenditure Framework | C7: 2008/09 Medium Term Revenue & Expenditure Framework | D7: 2009/10 Medium Term Revenue & Expenditure Framework | E7: =E1&"/"&RIGHT(E1,2)+1&" Medium Term Revenue & Expenditure Framework" -> 2010/11 Medium Term Revenue & Expenditure Framework | F7: 2011/12 Medium Term Revenue & Expenditure Framework | G7: 2012/13 Medium Term Revenue & Expenditure Framework | H7: 2013/14 Medium Term Revenue & Expenditure Framework | I7: 2014/15 Medium Term Revenue & Expenditure Framework | J7: 2015/16 Medium Term Revenue & Expenditure Framework | K7: 2016/17 Medium Term Revenue & Expenditure Framework | L7: 2017/18 Medium Term Revenue & Expenditure Framework | M7: 2018/19 Medium Term Revenue & Expenditure Framework | N7: 2019/20 Medium Term Revenue & Expenditure Framework | O7: 2020/21 Medium Term Revenue & Expenditure Framework | R7: 5 | S7: >10 | Z7: Energy Efficiency and Demand Management | AB7: Neighbourhood Development Partnership | AC7: Public Works, Roads, Transport
A8: ='Template names'!C15 -> 1st year of MTREF | B8: Budget Year 2007/08 | C8: Budget Year 2008/09 | D8: Budget Year 2009/10 | E8: ="Budget Year "&E1&"/"&RIGHT(E1,2)+1 -> Budget Year 2010/11 | F8: Budget Year 2011/12 | G8: Budget Year 2012/13 | H8: Budget Year 2013/14 | I8: Budget Year 2014/15 | J8: Budget Year 2015/16 | K8: Budget Year 2016/17 | L8: Budget Year 2017/18 | M8: Budget Year 2018/19 | N8: Budget Year 2019/20 | O8: Budget Year 2020/21 | R8: >5 | Z8: Integrated National Electrification Programme | AB8: 2010 FIFA World Cup Stadiums Development | AC8: Sport and Recreation
A9: ='Template names'!C16 -> 2nd year of MTREF | B9: Budget Year +1 2008/09 | C9: Budget Year +1 2009/10 | D9: Budget Year +1 2010/11 | E9: ="Budget Year +1 "&E1+1&"/"&RIGHT(E1,2)+2 -> Budget Year +1 2011/12 | F9: Budget Year +1 2012/13 | G9: Budget Year +1 2013/14 | H9: Budget Year +1 2014/15 | I9: Budget Year +1 2015/16 | J9: Budget Year +1 2016/17 | K9: Budget Year +1 2017/18 | L9: Budget Year +1 2018/19 | M9: Budget Year +1 2019/20 | N9: Budget Year +1 2020/21 | O9: Budget Year +1 2021/22 | Z9: Municipal Drought Relief
A10: ='Template names'!C17 -> 3rd year of MTREF | B10: Budget Year +2 2009/10 | C10: Budget Year +2 2010/11 | D10: Budget Year +2 2011/12 | E10: ="Budget Year +2 "&E1+2&"/"&RIGHT(E1,2)+3 -> Budget Year +2 2012/13 | F10: Budget Year +2 2013/14 | G10: Budget Year +2 2014/15 | H10: Budget Year +2 2015/16 | I10: Budget Year +2 2016/17 | J10: Budget Year +2 2017/18 | K10: Budget Year +2 2018/19 | L10: Budget Year +2 2019/20 | M10: Budget Year +2 2020/21 | N10: Budget Year +2 2021/22 | O10: Budget Year +2 2022/23 | Z10: 2010 FIFA World Cup Operating
A11: ='Template names'!C18 -> 1st yr of long term forecast | B11: Forecast 2010/11 | C11: Forecast 2011/12 | D11: Forecast 2012/13 | E11: ="Forecast "&E1+3&"/"&RIGHT(E1,2)+4 -> Forecast 2013/14 | F11: Forecast 2014/15 | G11: Forecast 2015/16 | H11: Forecast 2016/17 | I11: Forecast 2017/18 | J11: Forecast 2018/19 | K11: Forecast 2019/20 | L11: Forecast 2020/21 | M11: Forecast 2021/22 | N11: Forecast 2022/23 | O11: Forecast 2023/24 | Z11: Electricity Demand Side Management
A12: ='Template names'!C19 -> Next yr of long term forecast | B12: Forecast 2011/12 | C12: Forecast 2012/13 | D12: Forecast 2013/14 | E12: ="Forecast "&E1+4&"/"&RIGHT(E1,2)+5 -> Forecast 2014/15 | F12: Forecast 2015/16 | G12: Forecast 2016/17 | H12: Forecast 2017/18 | I12: Forecast 2018/19 | J12: Forecast 2019/20 | K12: Forecast 2020/21 | L12: Forecast 2021/22 | M12: Forecast 2022/23 | N12: Forecast 2023/24 | O12: Forecast 2024/25 | Z12: EPWP Incentive
A13: ='Template names'!C20 -> Next yr of long term forecast | B13: Forecast 2012/13 | C13: Forecast 2013/14 | D13: Forecast 2014/15 | E13: ="Forecast "&E1+5&"/"&RIGHT(E1,2)+6 -> Forecast 2015/16 | F13: Forecast 2016/17 | G13: Forecast 2017/18 | H13: Forecast 2018/19 | I13: Forecast 2019/20 | J13: Forecast 2020/21 | K13: Forecast 2021/22 | L13: Forecast 2022/23 | M13: Forecast 2023/24 | N13: Forecast 2024/25 | O13: Forecast 2025/26
A14: ='Template names'!C21 -> Next yr of long term forecast | B14: Forecast 2013/14 | C14: Forecast 2014/15 | D14: Forecast 2015/16 | E14: ="Forecast "&E1+6&"/"&RIGHT(E1,2)+7 -> Forecast 2016/17 | F14: Forecast 2017/18 | G14: Forecast 2018/19 | H14: Forecast 2019/20 | I14: Forecast 2020/21 | J14: Forecast 2021/22 | K14: Forecast 2022/23 | L14: Forecast 2023/24 | M14: Forecast 2024/25 | N14: Forecast 2025/26 | O14: Forecast 2026/27 | Z14: Asset Class | AA14: Asset sub-class
A15: ='Template names'!C22 -> Next yr of long term forecast | B15: Forecast 2014/15 | C15: Forecast 2015/16 | D15: Forecast 2016/17 | E15: ="Forecast "&E1+7&"/"&RIGHT(E1,2)+8 -> Forecast 2017/18 | F15: Forecast 2018/19 | G15: Forecast 2019/20 | H15: Forecast 2020/21 | I15: Forecast 2021/22 | J15: Forecast 2022/23 | K15: Forecast 2023/24 | L15: Forecast 2024/25 | M15: Forecast 2025/26 | N15: Forecast 2026/27 | O15: Forecast 2027/28
A16: ='Template names'!C23 -> Next yr of long term forecast | B16: Forecast 2015/16 | C16: Forecast 2016/17 | D16: Forecast 2017/18 | E16: ="Forecast "&E1+8&"/"&RIGHT(E1,2)+9 -> Forecast 2018/19 | F16: Forecast 2019/20 | G16: Forecast 2020/21 | H16: Forecast 2021/22 | I16: Forecast 2022/23 | J16: Forecast 2023/24 | K16: Forecast 2024/25 | L16: Forecast 2025/26 | M16: Forecast 2026/27 | N16: Forecast 2027/28 | O16: Forecast 2028/29 | Z16: Infrastructure - Road transport | AA16: Roads, Pavements & Bridges
A17: ='Template names'!C24 -> Next yr of long term forecast | B17: Forecast 2016/17 | C17: Forecast 2017/18 | D17: Forecast 2018/19 | E17: ="Forecast "&E1+9&"/"&RIGHT(E1,2)+10 -> Forecast 2019/20 | F17: Forecast 2020/21 | G17: Forecast 2021/22 | H17: Forecast 2022/23 | I17: Forecast 2023/24 | J17: Forecast 2024/25 | K17: Forecast 2025/26 | L17: Forecast 2026/27 | M17: Forecast 2027/28 | N17: Forecast 2028/29 | O17: Forecast 2029/30 | Z17: Infrastructure - Electricity | AA17: Storm water
A18: ='Template names'!C25 -> Next yr of long term forecast | B18: Forecast 2017/18 | C18: Forecast 2018/19 | D18: Forecast 2019/20 | E18: ="Forecast "&E1+10&"/"&RIGHT(E1,2)+11 -> Forecast 2020/21 | F18: Forecast 2021/22 | G18: Forecast 2022/23 | H18: Forecast 2023/24 | I18: Forecast 2024/25 | J18: Forecast 2025/26 | K18: Forecast 2026/27 | L18: Forecast 2027/28 | M18: Forecast 2028/29 | N18: Forecast 2029/30 | O18: Forecast 2030/31 | Z18: Infrastructure - Water | AA18: Generation
A19: ='Template names'!C26 -> Next yr of long term forecast | B19: Forecast 2018/19 | C19: Forecast 2019/20 | D19: Forecast 2020/21 | E19: ="Forecast "&E1+11&"/"&RIGHT(E1,2)+12 -> Forecast 2021/22 | F19: Forecast 2022/23 | G19: Forecast 2023/24 | H19: Forecast 2024/25 | I19: Forecast 2025/26 | J19: Forecast 2026/27 | K19: Forecast 2027/28 | L19: Forecast 2028/29 | M19: Forecast 2029/30 | N19: Forecast 2030/31 | O19: Forecast 2031/32 | Z19: Infrastructure - Sanitation | AA19: Transmission & Reticulation
A20: ='Template names'!C27 -> Next yr of long term forecast | B20: Forecast 2019/20 | C20: Forecast 2020/21 | D20: Forecast 2021/22 | E20: ="Forecast "&E1+12&"/"&RIGHT(E1,2)+13 -> Forecast 2022/23 | F20: Forecast 2023/24 | G20: Forecast 2024/25 | H20: Forecast 2025/26 | I20: Forecast 2026/27 | J20: Forecast 2027/28 | K20: Forecast 2028/29 | L20: Forecast 2029/30 | M20: Forecast 2030/31 | N20: Forecast 2031/32 | O20: Forecast 2032/33 | Z20: Infrastructure - Other | AA20: Street Lighting
A21: ='Template names'!C28 -> Next yr of long term forecast | B21: Forecast 2020/21 | C21: Forecast 2021/22 | D21: Forecast 2022/23 | E21: ="Forecast "&E1+13&"/"&RIGHT(E1,2)+14 -> Forecast 2023/24 | F21: Forecast 2024/25 | G21: Forecast 2025/26 | H21: Forecast 2026/27 | I21: Forecast 2027/28 | J21: Forecast 2028/29 | K21: Forecast 2029/30 | L21: Forecast 2030/31 | M21: Forecast 2031/32 | N21: Forecast 2032/33 | O21: Forecast 2033/34 | Z21: Community | AA21: Dams & Reservoirs
A22: ='Template names'!C29 -> Next yr of long term forecast | B22: Forecast 2021/22 | C22: Forecast 2022/23 | D22: Forecast 2023/24 | E22: ="Forecast "&E1+14&"/"&RIGHT(E1,2)+15 -> Forecast 2024/25 | F22: Forecast 2025/26 | G22: Forecast 2026/27 | H22: Forecast 2027/28 | I22: Forecast 2028/29 | J22: Forecast 2029/30 | K22: Forecast 2030/31 | L22: Forecast 2031/32 | M22: Forecast 2032/33 | N22: Forecast 2033/34 | O22: Forecast 2034/35 | Z22: Heritage Assets | AA22: Water purification
A23: Adjustments Budget | B23: Annual target 2007/08 | C23: Annual target 2008/09 | D23: Annual target 2009/10 | E23: ="Annual target " & E1&"/"&RIGHT(E1,2)+1 -> Annual target 2010/11 | F23: Annual target 2011/12 | G23: Annual target 2012/13 | H23: Annual target 2013/14 | I23: Annual target 2014/15 | J23: Annual target 2015/16 | K23: Annual target 2016/17 | L23: Annual target 2017/18 | M23: Annual target 2018/19 | N23: Annual target 2019/20 | O23: Annual target 2020/21 | Z23: Investment Properties | AA23: Reticulation
A24: =A23 -> Adjustments Budget | B24: Revised target 2007/08 | C24: Revised target 2008/09 | D24: Revised target 2009/10 | E24: ="Revised target "& E1&"/"&RIGHT(E1,2)+1 -> Revised target 2010/11 | F24: Revised target 2011/12 | G24: Revised target 2012/13 | H24: Revised target 2013/14 | I24: Revised target 2014/15 | J24: Revised target 2015/16 | K24: Revised target 2016/17 | L24: Revised target 2017/18 | M24: Revised target 2018/19 | N24: Revised target 2019/20 | O24: Revised target 2020/21 | Z24: Other Assets | AA24: Sewerage purification
A25: NOTE: This sheet should not be directly amended - select headings from sheet 'S' | Z25: Agricultural assets | AA25: Waste Management
Z26: Biological assets | AA26: Transportation
A27: Name link | B27: 95 | Z27: Intangibles | AA27: Gas
A28: Name of Muni | B28: =INDEX(B29:B307,B27,1) -> KZN225 Msunduzi | Z28: Other | AA28: Parks & gardens
B29: Choose name from list | C29: Set name on 'Instructions' sheet | AA29: Sportsfields & stadia
B30: BUF Buffalo City | C30: EC EASTERN CAPE | AA30: Swimming pools
B31: NMA Nelson Mandela Bay | C31: EC EASTERN CAPE | AA31: Community halls
B32: EC101 Camdeboo | C32: EC EASTERN CAPE | AA32: Libraries
B33: EC102 Blue Crane Route | C33: EC EASTERN CAPE | AA33: Recreational facilities
B34: EC103 Ikwezi | C34: EC EASTERN CAPE | AA34: Fire, safety & emergency
B35: EC104 Makana | C35: EC EASTERN CAPE | AA35: Security and policing
B36: EC105 Ndlambe | C36: EC EASTERN CAPE | AA36: Buses
B37: EC106 Sundays River Valley | C37: EC EASTERN CAPE | AA37: Clinics
B38: EC107 Baviaans | C38: EC EASTERN CAPE | AA38: Museums & Art Galleries
B39: EC108 Kouga | C39: EC EASTERN CAPE | AA39: Cemeteries
B40: EC109 Kou-Kamma | C40: EC EASTERN CAPE | AA40: Social rental housing
B41: DC10 Cacadu | C41: EC EASTERN CAPE | AA41: Buildings
B42: EC121 Mbhashe | C42: EC EASTERN CAPE | AA42: Housing development
B43: EC122 Mnquma | C43: EC EASTERN CAPE | AA43: General vehicles
B44: EC123 Great Kei | C44: EC EASTERN CAPE | AA44: Specialised vehicles - Refuse
B45: EC124 Amahlathi | C45: EC EASTERN CAPE | AA45: Specialised vehicles - Fire
B46: EC126 Ngqushwa | C46: EC EASTERN CAPE | AA46: Specialised vehicles - Conservancy
B47: EC127 Nkonkobe | C47: EC EASTERN CAPE | AA47: Specialised vehicles - Ambulances
B48: EC128 Nxuba | C48: EC EASTERN CAPE | AA48: Plant & equipment
B49: DC12 Amathole | C49: EC EASTERN CAPE | AA49: Computers - hardware/equipment
B50: EC131 Inxuba Yethemba | C50: EC EASTERN CAPE | AA50: Furniture and other office equipment
B51: EC132 Tsolwana | C51: EC EASTERN CAPE | AA51: Abattoirs
B52: EC133 Inkwanca | C52: EC EASTERN CAPE | AA52: Markets
B53: EC134 Lukhanji | C53: EC EASTERN CAPE | AA53: Civic Land and Buildings
B54: EC135 Intsika Yethu | C54: EC EASTERN CAPE | AA54: Other Buildings
B55: EC136 Emalahleni (EC) | C55: EC EASTERN CAPE | AA55: Other Land
B56: EC137 Engcobo | C56: EC EASTERN CAPE | AA56: Surplus Assets - (Investment or Inventory)
B57: EC138 Sakhisizwe | C57: EC EASTERN CAPE | AA57: Computers - software & programming
B58: DC13 Chris Hani | C58: EC EASTERN CAPE | AA58: Other
B59: EC141 Elundini | C59: EC EASTERN CAPE
B60: EC142 Senqu | C60: EC EASTERN CAPE | Z60: SA16 - Investments
B61: EC143 Maletswai | C61: EC EASTERN CAPE | Z61: Security | AA61: Interest rate
B62: EC144 Gariep | C62: EC EASTERN CAPE | Z62: Yes | AA62: Fixed
B63: DC14 Joe Gqabi | C63: EC EASTERN CAPE | Z63: No | AA63: Variable
B64: EC153 Ngquza Hills | C64: EC EASTERN CAPE
B65: EC154 Port St Johns | C65: EC EASTERN CAPE
B66: EC155 Nyandeni | C66: EC EASTERN CAPE | Z66: SA36, SA37 - Capital projects
B67: EC156 Mhlontlo | C67: EC EASTERN CAPE | Z67: Yes
B68: EC157 King Sabata Dalindyebo | C68: EC EASTERN CAPE | Z68: No
B69: DC15 O .R. Tambo | C69: EC EASTERN CAPE
B70: EC441 Matatiele | C70: EC EASTERN CAPE
B71: EC442 Umzimvubu | C71: EC EASTERN CAPE
B72: EC443 Mbizana | C72: EC EASTERN CAPE
B73: EC444 Ntabankulu | C73: EC EASTERN CAPE
B74: DC44 Alfred Nzo | C74: EC EASTERN CAPE
B75: MAN Mangaung | C75: FS FREE STATE
B76: FS161 Letsemeng | C76: FS FREE STATE
B77: FS162 Kopanong | C77: FS FREE STATE
B78: FS163 Mohokare | C78: FS FREE STATE
B79: FS164 Naledi (Fs) | C79: FS FREE STATE
B80: DC16 Xhariep | C80: FS FREE STATE
B81: FS181 Masilonyana | C81: FS FREE STATE
B82: FS182 Tokologo | C82: FS FREE STATE
B83: FS183 Tswelopele | C83: FS FREE STATE
B84: FS184 Matjhabeng | C84: FS FREE STATE
B85: FS185 Nala | C85: FS FREE STATE
B86: DC18 Lejweleputswa | C86: FS FREE STATE
B87: FS191 Setsoto | C87: FS FREE STATE
B88: FS192 Dihlabeng | C88: FS FREE STATE
B89: FS193 Nketoana | C89: FS FREE STATE
B90: FS194 Maluti-a-Phofung | C90: FS FREE STATE
B91: FS195 Phumelela | C91: FS FREE STATE
B92: FS196 Mantsopa | C92: FS FREE STATE
B93: DC19 Thabo Mofutsanyana | C93: FS FREE STATE
B94: FS201 Moqhaka | C94: FS FREE STATE
B95: FS203 Ngwathe | C95: FS FREE STATE
B96: FS204 Metsimaholo | C96: FS FREE STATE
B97: FS205 Mafube | C97: FS FREE STATE
B98: DC20 Fezile Dabi | C98: FS FREE STATE
B99: EKU Ekurhuleni Metro | C99: GT GAUTENG
B100: JHB City Of Johannesburg | C100: GT GAUTENG
B101: TSH City Of Tshwane | C101: GT GAUTENG
B102: GT421 Emfuleni | C102: GT GAUTENG
B103: GT422 Midvaal | C103: GT GAUTENG
B104: GT423 Lesedi | C104: GT GAUTENG
B105: DC42 Sedibeng | C105: GT GAUTENG
B106: GT481 Mogale City | C106: GT GAUTENG
B107: GT482 Randfontein | C107: GT GAUTENG
B108: GT483 Westonaria | C108: GT GAUTENG
B109: GT484 Merafong City | C109: GT GAUTENG
B110: DC48 West Rand | C110: GT GAUTENG
B111: ETH eThekwini | C111: KZN KWAZULU-NATAL
B112: KZN211 Vulamehlo | C112: KZN KWAZULU-NATAL
B113: KZN212 Umdoni | C113: KZN KWAZULU-NATAL
B114: KZN213 Umzumbe | C114: KZN KWAZULU-NATAL
B115: KZN214 uMuziwabantu | C115: KZN KWAZULU-NATAL
B116: KZN215 Ezinqoleni | C116: KZN KWAZULU-NATAL
B117: KZN216 Hibiscus Coast | C117: KZN KWAZULU-NATAL
B118: DC21 Ugu | C118: KZN KWAZULU-NATAL
B119: KZN221 uMshwathi | C119: KZN KWAZULU-NATAL
B120: KZN222 uMngeni | C120: KZN KWAZULU-NATAL
B121: KZN223 Mpofana | C121: KZN KWAZULU-NATAL
B122: KZN224 Impendle | C122: KZN KWAZULU-NATAL
B123: KZN225 Msunduzi | C123: KZN KWAZULU-NATAL
B124: KZN226 Mkhambathini | C124: KZN KWAZULU-NATAL
B125: KZN227 Richmond | C125: KZN KWAZULU-NATAL
B126: DC22 uMgungundlovu | C126: KZN KWAZULU-NATAL
B127: KZN232 Emnambithi/Ladysmith | C127: KZN KWAZULU-NATAL
B128: KZN233 Indaka | C128: KZN KWAZULU-NATAL
B129: KZN234 Umtshezi | C129: KZN KWAZULU-NATAL
B130: KZN235 Okhahlamba | C130: KZN KWAZULU-NATAL
B131: KZN236 Imbabazane | C131: KZN KWAZULU-NATAL
B132: DC23 Uthukela | C132: KZN KWAZULU-NATAL
B133: KZN241 Endumeni | C133: KZN KWAZULU-NATAL
B134: KZN242 Nquthu | C134: KZN KWAZULU-NATAL
B135: KZN244 Msinga | C135: KZN KWAZULU-NATAL
B136: KZN245 Umvoti | C136: KZN KWAZULU-NATAL
B137: DC24 Umzinyathi | C137: KZN KWAZULU-NATAL
B138: KZN252 Newcastle | C138: KZN KWAZULU-NATAL
B139: KZN253 eMadlangeni | C139: KZN KWAZULU-NATAL
B140: KZN254 Dannhauser | C140: KZN KWAZULU-NATAL
B141: DC25 Amajuba | C141: KZN KWAZULU-NATAL
B142: KZN261 eDumbe | C142: KZN KWAZULU-NATAL
B143: KZN262 uPhongolo | C143: KZN KWAZULU-NATAL
B144: KZN263 Abaqulusi | C144: KZN KWAZULU-NATAL
B145: KZN265 Nongoma | C145: KZN KWAZULU-NATAL
B146: KZN266 Ulundi | C146: KZN KWAZULU-NATAL
B147: DC26 Zululand | C147: KZN KWAZULU-NATAL
B148: KZN271 Umhlabuyalingana | C148: KZN KWAZULU-NATAL
B149: KZN272 Jozini | C149: KZN KWAZULU-NATAL
B150: KZN273 The Big 5 False Bay | C150: KZN KWAZULU-NATAL
B151: KZN274 Hlabisa | C151: KZN KWAZULU-NATAL
B152: KZN275 Mtubatuba | C152: KZN KWAZULU-NATAL
B153: DC27 Umkhanyakude | C153: KZN KWAZULU-NATAL
B154: KZN281 Mfolozi | C154: KZN KWAZULU-NATAL
B155: KZN282 uMhlathuze | C155: KZN KWAZULU-NATAL
B156: KZN283 Ntambanana | C156: KZN KWAZULU-NATAL
B157: KZN284 uMlalazi | C157: KZN KWAZULU-NATAL
B158: KZN285 Mthonjaneni | C158: KZN KWAZULU-NATAL
B159: KZN286 Nkandla | C159: KZN KWAZULU-NATAL
B160: DC28 uThungulu | C160: KZN KWAZULU-NATAL
B161: KZN291 Mandeni | C161: KZN KWAZULU-NATAL
B162: KZN292 KwaDukuza | C162: KZN KWAZULU-NATAL
B163: KZN293 Ndwedwe | C163: KZN KWAZULU-NATAL
B164: KZN294 Maphumulo | C164: KZN KWAZULU-NATAL
B165: DC29 iLembe | C165: KZN KWAZULU-NATAL
B166: KZN431 Ingwe | C166: KZN KWAZULU-NATAL
B167: KZN432 Kwa Sani | C167: KZN KWAZULU-NATAL
B168: KZN433 Greater Kokstad | C168: KZN KWAZULU-NATAL
B169: KZN434 Ubuhlebezwe | C169: KZN KWAZULU-NATAL
B170: KZN435 Umzimkhulu | C170: KZN KWAZULU-NATAL
B171: DC43 Harry Gwala | C171: KZN KWAZULU-NATAL
B172: LIM331 Greater Giyani | C172: LIM LIMPOPO
B173: LIM332 Greater Letaba | C173: LIM LIMPOPO
B174: LIM333 Greater Tzaneen | C174: LIM LIMPOPO
B175: LIM334 Ba-Phalaborwa | C175: LIM LIMPOPO
B176: LIM335 Maruleng | C176: LIM LIMPOPO
B177: DC33 Mopani | C177: LIM LIMPOPO
B178: LIM341 Musina | C178: LIM LIMPOPO
B179: LIM342 Mutale | C179: LIM LIMPOPO
B180: LIM343 Thulamela | C180: LIM LIMPOPO
B181: LIM344 Makhado | C181: LIM LIMPOPO
B182: DC34 Vhembe | C182: LIM LIMPOPO
B183: LIM351 Blouberg | C183: LIM LIMPOPO
B184: LIM352 Aganang | C184: LIM LIMPOPO
B185: LIM353 Molemole | C185: LIM LIMPOPO
B186: LIM354 Polokwane | C186: LIM LIMPOPO
B187: LIM355 Lepelle-Nkumpi | C187: LIM LIMPOPO
B188: DC35 Capricorn | C188: LIM LIMPOPO
B189: LIM361 Thabazimbi | C189: LIM LIMPOPO
B190: LIM362 Lephalale | C190: LIM LIMPOPO
B191: LIM364 Mookgopong | C191: LIM LIMPOPO
B192: LIM365 Modimolle | C192: LIM LIMPOPO
B193: LIM366 Bela Bela | C193: LIM LIMPOPO
B194: LIM367 Mogalakwena | C194: LIM LIMPOPO
B195: DC36 Waterberg | C195: LIM LIMPOPO
B196: LIM471 Ephraim Mogale | C196: LIM LIMPOPO
B197: LIM472 Elias Motsoaledi | C197: LIM LIMPOPO
B198: LIM473 Makhuduthamaga | C198: LIM LIMPOPO
B199: LIM474 Fetakgomo | C199: LIM LIMPOPO
B200: LIM475 Greater Tubatse | C200: LIM LIMPOPO
... 108 more rows

Sheet Org structure
A1: Organisational Structure Votes | C1: Organisational Structure Sub-Votes | E1: Display Sub-Votes
A2: =B2&" - "&C2 -> Vote 1 - Vote 1 - Corporate Services | B2: Vote 1 | C2: Vote 1 - Corporate Services
A3: =B13&" - "& C13 -> Vote 2 - Vote 2 - Financial Management Area | B3: 1.1 | C3: 1.1 - Council and Committee Support | D3: =CONCATENATE(B3, " - ", C3) -> 1.1 - 1.1 - Council and Committee Support | E3: 1.1 - 1.1 - Council and Committee Support
A4: =B24&" - "&C24 -> Vote 3 - Vote 3 - Infrastructure Development, Service Delivery and Maintenance Management | B4: 1.2 | C4: 1.2 - Enterprise Wide Risk Management & Audit and Compliance | D4: 1.2 - 1.2 - Enterprise Wide Risk Management & Audit and Compliance | E4: 1.2 - 1.2 - Enterprise Wide Risk Management & Audit and Compliance
A5: =B35&" - "&C35 -> Vote 4 - Vote 4 - Sustainable Community Service Delivery Provision Management | B5: 1.3 | C5: 1.3 - Human Resources Management | D5: 1.3 - 1.3 - Human Resources Management | E5: 1.3 - 1.3 - Human Resources Management
A6: =B46&" - "&C46 -> Vote 5 - [NAME OF VOTE 5] | B6: 1.4 | C6: 1.4 - Legislative Compliance | D6: 1.4 - 1.4 - Legislative Compliance | E6: 1.4 - 1.4 - Legislative Compliance
A7: =B57&" - "&C57 -> Vote 6 - [NAME OF VOTE 6] | B7: 1.5 | C7: 1.5 - Local Economic Development Management | D7: 1.5 - 1.5 - Local Economic Development Management | E7: 1.5 - 1.5 - Local Economic Development Management
A8: =B68&" - "&C68 -> Vote 7 - [NAME OF VOTE 7] | B8: 1.6 | C8: 1.6 - Management Information Services | D8: 1.6 - 1.6 - Management Information Services | E8: 1.6 - 1.6 - Management Information Services
A9: =B79&" - "&C79 -> Vote 8 - [NAME OF VOTE 8] | B9: 1.7 | C9: 1.7 - Marketing and Public Relations Management | D9: 1.7 - 1.7 - Marketing and Public Relations Management | E9: 1.7 - 1.7 - Marketing and Public Relations Management
A10: =B90&" - "&C90 -> Vote 9 - [NAME OF VOTE 9] | B10: 1.8 | C10: [Name of sub-vote] | D10: 1.8 - [Name of sub-vote]
A11: =B101&" - "&C101 -> Vote 10 - [NAME OF VOTE 10] | B11: 1.9 | C11: [Name of sub-vote] | D11: 1.9 - [Name of sub-vote]
A12: =B112&" - "&C112 -> Vote 11 - [NAME OF VOTE 11] | B12: 1.10 | C12: [Name of sub-vote] | D12: 1.10 - [Name of sub-vote]
A13: =B123&" - "&C123 -> Vote 12 - [NAME OF VOTE 12] | B13: Vote 2 | C13: Vote 2 - Financial Management Area
A14: =B134&" - "&C134 -> Vote 13 - [NAME OF VOTE 13] | B14: 2.1 | C14: 2.1 - Budget & Treasury Management | D14: =CONCATENATE(B14, " - ", C14) -> 2.1 - 2.1 - Budget & Treasury Management | E14: 2.1 - 2.1 - Budget & Treasury Management
A15: =B145&" - "&C145 -> Vote 14 - [NAME OF VOTE 14] | B15: 2.2 | C15: 2.2 - Expenditure Management | D15: 2.2 - 2.2 - Expenditure Management | E15: 2.2 - 2.2 - Expenditure Management
A16: =B156&" - "&C156 -> Vote 15 - [NAME OF VOTE 15] | B16: 2.3 | C16: 2.3 - Financial Control and Cash Management | D16: 2.3 - 2.3 - Financial Control and Cash Management | E16: 2.3 - 2.3 - Financial Control and Cash Management
B17: 2.4 | C17: 2.4 - Revenue Management | D17: 2.4 - 2.4 - Revenue Management | E17: 2.4 - 2.4 - Revenue Management
B18: 2.5 | C18: 2.5 - Supply Chain Management | D18: 2.5 - 2.5 - Supply Chain Management | E18: 2.5 - 2.5 - Supply Chain Management
B19: 2.6 | C19: [Name of sub-vote] | D19: 2.6 - [Name of sub-vote]
B20: 2.7 | C20: [Name of sub-vote] | D20: 2.7 - [Name of sub-vote]
B21: 2.8 | C21: [Name of sub-vote] | D21: 2.8 - [Name of sub-vote]
B22: 2.9 | C22: [Name of sub-vote] | D22: 2.9 - [Name of sub-vote]
B23: 2.10 | C23: [Name of sub-vote] | D23: 2.10 - [Name of sub-vote]
B24: Vote 3 | C24: Vote 3 - Infrastructure Development, Service Delivery and Maintenance Management
B25: 3.1 | C25: 3.1- Electricity Distribution Management | D25: =CONCATENATE(B25, " - ", C25) -> 3.1 - 3.1- Electricity Distribution Management | E25: 3.1 - 3.1- Electricity Distribution Management
B26: 3.2 | C26: 3.2 - Human Settlement Development Management | D26: 3.2 - 3.2 - Human Settlement Development Management | E26: 3.2 - 3.2 - Human Settlement Development Management
B27: 3.3 | C27: 3.3 - Municipal Infrastructure Planning, Funding, Maintenance and Development Management | D27: 3.3 - 3.3 - Municipal Infrastructure Planning, Funding, Maintenance and Development Management | E27: 3.3 - 3.3 - Municipal Infrastructure Planning, Funding, Maintenance and Development Management
B28: 3.4 | C28: 3.4 - Roads and Stormwater | D28: 3.4 - 3.4 - Roads and Stormwater | E28: 3.4 - 3.4 - Roads and Stormwater
B29: 3.5 | C29: 3.5 - Waste Management | D29: 3.5 - 3.5 - Waste Management | E29: 3.5 - 3.5 - Waste Management
B30: 3.6 | C30: 3.6 - Water Distribution and Sanitation Management | D30: 3.6 - 3.6 - Water Distribution and Sanitation Management | E30: 3.6 - 3.6 - Water Distribution and Sanitation Management
B31: 3.7 | C31: [Name of sub-vote] | D31: 3.7 - [Name of sub-vote]
B32: 3.8 | C32: [Name of sub-vote] | D32: 3.8 - [Name of sub-vote]
B33: 3.9 | C33: [Name of sub-vote] | D33: 3.9 - [Name of sub-vote]
B34: 3.10 | C34: [Name of sub-vote] | D34: 3.10 - [Name of sub-vote]
B35: Vote 4 | C35: Vote 4 - Sustainable Community Service Delivery Provision Management
B36: 4.1 | C36: 4.1 - Community Services Provision Management | D36: =CONCATENATE(B36, " - ", C36) -> 4.1 - 4.1 - Community Services Provision Management | E36: 4.1 - Community Services Provision Management
B37: 4.2 | C37: 4.2 - Public Safety, Enforcement and Disaster Management | D37: 4.2 - 4.2 - Public Safety, Enforcement and Disaster Management | E37: 4.2 - Public Safety, Enforcement and Disaster Management
B38: 4.3 | C38: 4.3 - Regional Community Services Provision Management | D38: 4.3 - 4.3 - Regional Community Services Provision Management | E38: 4.3 - Regional Community Services Provision Management
B39: 4.4 | C39: [Name of sub-vote] | D39: 4.4 - [Name of sub-vote]
B40: 4.5 | C40: [Name of sub-vote] | D40: 4.5 - [Name of sub-vote]
B41: 4.6 | C41: [Name of sub-vote] | D41: 4.6 - [Name of sub-vote]
B42: 4.7 | C42: [Name of sub-vote] | D42: 4.7 - [Name of sub-vote]
B43: 4.8 | C43: [Name of sub-vote] | D43: 4.8 - [Name of sub-vote]
B44: 4.9 | C44: [Name of sub-vote] | D44: 4.9 - [Name of sub-vote]
B45: 4.10 | C45: [Name of sub-vote] | D45: 4.10 - [Name of sub-vote]
B46: Vote 5 | C46: [NAME OF VOTE 5]
B47: 5.1 | C47: [Name of sub-vote] | D47: =CONCATENATE(B47, " - ", C47) -> 5.1 - [Name of sub-vote] | E47: 5.1 - [Name of sub-vote]
B48: 5.2 | C48: [Name of sub-vote] | D48: 5.2 - [Name of sub-vote]
B49: 5.3 | C49: [Name of sub-vote] | D49: 5.3 - [Name of sub-vote]
B50: 5.4 | C50: [Name of sub-vote] | D50: 5.4 - [Name of sub-vote]
B51: 5.5 | C51: [Name of sub-vote] | D51: 5.5 - [Name of sub-vote]
B52: 5.6 | C52: [Name of sub-vote] | D52: 5.6 - [Name of sub-vote]
B53: 5.7 | C53: [Name of sub-vote] | D53: 5.7 - [Name of sub-vote]
B54: 5.8 | C54: [Name of sub-vote] | D54: 5.8 - [Name of sub-vote]
B55: 5.9 | C55: [Name of sub-vote] | D55: 5.9 - [Name of sub-vote]
B56: 5.10 | C56: [Name of sub-vote] | D56: 5.10 - [Name of sub-vote]
B57: Vote 6 | C57: [NAME OF VOTE 6]
B58: 6.1 | C58: [Name of sub-vote] | D58: =CONCATENATE(B58, " - ", C58) -> 6.1 - [Name of sub-vote] | E58: 6.1 - [Name of sub-vote]
B59: 6.2 | C59: [Name of sub-vote] | D59: 6.2 - [Name of sub-vote]
B60: 6.3 | C60: [Name of sub-vote] | D60: 6.3 - [Name of sub-vote]
B61: 6.4 | C61: [Name of sub-vote] | D61: 6.4 - [Name of sub-vote]
B62: 6.5 | C62: [Name of sub-vote] | D62: 6.5 - [Name of sub-vote]
B63: 6.6 | C63: [Name of sub-vote] | D63: 6.6 - [Name of sub-vote]
B64: 6.7 | C64: [Name of sub-vote] | D64: 6.7 - [Name of sub-vote]
B65: 6.8 | C65: [Name of sub-vote] | D65: 6.8 - [Name of sub-vote]
B66: 6.9 | C66: [Name of sub-vote] | D66: 6.9 - [Name of sub-vote]
B67: 6.10 | C67: [Name of sub-vote] | D67: 6.10 - [Name of sub-vote]
B68: Vote 7 | C68: [NAME OF VOTE 7]
B69: 7.1 | C69: [Name of sub-vote] | D69: =CONCATENATE(B69, " - ", C69) -> 7.1 - [Name of sub-vote] | E69: 7.1 - [Name of sub-vote]
B70: 7.2 | C70: [Name of sub-vote] | D70: 7.2 - [Name of sub-vote]
B71: 7.3 | C71: [Name of sub-vote] | D71: 7.3 - [Name of sub-vote]
B72: 7.4 | C72: [Name of sub-vote] | D72: 7.4 - [Name of sub-vote]
B73: 7.5 | C73: [Name of sub-vote] | D73: 7.5 - [Name of sub-vote]
B74: 7.6 | C74: [Name of sub-vote] | D74: 7.6 - [Name of sub-vote]
B75: 7.7 | C75: [Name of sub-vote] | D75: 7.7 - [Name of sub-vote]
B76: 7.8 | C76: [Name of sub-vote] | D76: 7.8 - [Name of sub-vote]
B77: 7.9 | C77: [Name of sub-vote] | D77: 7.9 - [Name of sub-vote]
B78: 7.10 | C78: [Name of sub-vote] | D78: 7.10 - [Name of sub-vote]
B79: Vote 8 | C79: [NAME OF VOTE 8]
B80: 8.1 | C80: [Name of sub-vote] | D80: =CONCATENATE(B80, " - ", C80) -> 8.1 - [Name of sub-vote] | E80: 8.1 - [Name of sub-vote]
B81: 8.2 | C81: [Name of sub-vote] | D81: 8.2 - [Name of sub-vote]
B82: 8.3 | C82: [Name of sub-vote] | D82: 8.3 - [Name of sub-vote]
B83: 8.4 | C83: [Name of sub-vote] | D83: 8.4 - [Name of sub-vote]
B84: 8.5 | C84: [Name of sub-vote] | D84: 8.5 - [Name of sub-vote]
B85: 8.6 | C85: [Name of sub-vote] | D85: 8.6 - [Name of sub-vote]
B86: 8.7 | C86: [Name of sub-vote] | D86: 8.7 - [Name of sub-vote]
B87: 8.8 | C87: [Name of sub-vote] | D87: 8.8 - [Name of sub-vote]
B88: 8.9 | C88: [Name of sub-vote] | D88: 8.9 - [Name of sub-vote]
B89: 8.10 | C89: [Name of sub-vote] | D89: 8.10 - [Name of sub-vote]
B90: Vote 9 | C90: [NAME OF VOTE 9]
B91: 9.1 | C91: [Name of sub-vote] | D91: =CONCATENATE(B91, " - ", C91) -> 9.1 - [Name of sub-vote] | E91: 9.1 - [Name of sub-vote]
B92: 9.2 | C92: [Name of sub-vote] | D92: 9.2 - [Name of sub-vote]
B93: 9.3 | C93: [Name of sub-vote] | D93: 9.3 - [Name of sub-vote]
B94: 9.4 | C94: [Name of sub-vote] | D94: 9.4 - [Name of sub-vote]
B95: 9.5 | C95: [Name of sub-vote] | D95: 9.5 - [Name of sub-vote]
B96: 9.6 | C96: [Name of sub-vote] | D96: 9.6 - [Name of sub-vote]
B97: 9.7 | C97: [Name of sub-vote] | D97: 9.7 - [Name of sub-vote]
B98: 9.8 | C98: [Name of sub-vote] | D98: 9.8 - [Name of sub-vote]
B99: 9.9 | C99: [Name of sub-vote] | D99: 9.9 - [Name of sub-vote]
B100: 9.10 | C100: [Name of sub-vote] | D100: 9.10 - [Name of sub-vote]
B101: Vote 10 | C101: [NAME OF VOTE 10]
B102: 10.1 | C102: [Name of sub-vote] | D102: =CONCATENATE(B102, " - ", C102) -> 10.1 - [Name of sub-vote] | E102: 10.1 - [Name of sub-vote]
B103: 10.2 | C103: [Name of sub-vote] | D103: 10.2 - [Name of sub-vote]
B104: 10.3 | C104: [Name of sub-vote] | D104: 10.3 - [Name of sub-vote]
B105: 10.4 | C105: [Name of sub-vote] | D105: 10.4 - [Name of sub-vote]
B106: 10.5 | C106: [Name of sub-vote] | D106: 10.5 - [Name of sub-vote]
B107: 10.6 | C107: [Name of sub-vote] | D107: 10.6 - [Name of sub-vote]
B108: 10.7 | C108: [Name of sub-vote] | D108: 10.7 - [Name of sub-vote]
B109: 10.8 | C109: [Name of sub-vote] | D109: 10.8 - [Name of sub-vote]
B110: 10.9 | C110: [Name of sub-vote] | D110: 10.9 - [Name of sub-vote]
B111: 10.10 | C111: [Name of sub-vote] | D111: 10.10 - [Name of sub-vote]
B112: Vote 11 | C112: [NAME OF VOTE 11]
B113: 11.1 | C113: [Name of sub-vote] | D113: =CONCATENATE(B113, " - ", C113) -> 11.1 - [Name of sub-vote] | E113: 11.1 - [Name of sub-vote]
B114: 11.2 | C114: [Name of sub-vote] | D114: 11.2 - [Name of sub-vote]
B115: 11.3 | C115: [Name of sub-vote] | D115: 11.3 - [Name of sub-vote]
B116: 11.4 | C116: [Name of sub-vote] | D116: 11.4 - [Name of sub-vote]
B117: 11.5 | C117: [Name of sub-vote] | D117: 11.5 - [Name of sub-vote]
B118: 11.6 | C118: [Name of sub-vote] | D118: 11.6 - [Name of sub-vote]
B119: 11.7 | C119: [Name of sub-vote] | D119: 11.7 - [Name of sub-vote]
B120: 11.8 | C120: [Name of sub-vote] | D120: 11.8 - [Name of sub-vote]
B121: 11.9 | C121: [Name of sub-vote] | D121: 11.9 - [Name of sub-vote]
B122: 11.10 | C122: [Name of sub-vote] | D122: 11.10 - [Name of sub-vote]
B123: Vote 12 | C123: [NAME OF VOTE 12]
B124: 12.1 | C124: [Name of sub-vote] | D124: =CONCATENATE(B124, " - ", C124) -> 12.1 - [Name of sub-vote] | E124: 12.1 - [Name of sub-vote]
B125: 12.2 | C125: [Name of sub-vote] | D125: 12.2 - [Name of sub-vote]
B126: 12.3 | C126: [Name of sub-vote] | D126: 12.3 - [Name of sub-vote]
B127: 12.4 | C127: [Name of sub-vote] | D127: 12.4 - [Name of sub-vote]
B128: 12.5 | C128: [Name of sub-vote] | D128: 12.5 - [Name of sub-vote]
B129: 12.6 | C129: [Name of sub-vote] | D129: 12.6 - [Name of sub-vote]
B130: 12.7 | C130: [Name of sub-vote] | D130: 12.7 - [Name of sub-vote]
B131: 12.8 | C131: [Name of sub-vote] | D131: 12.8 - [Name of sub-vote]
B132: 12.9 | C132: [Name of sub-vote] | D132: 12.9 - [Name of sub-vote]
B133: 12.10 | C133: [Name of sub-vote] | D133: 12.10 - [Name of sub-vote]
B134: Vote 13 | C134: [NAME OF VOTE 13]
B135: 13.1 | C135: [Name of sub-vote] | D135: =CONCATENATE(B135, " - ", C135) -> 13.1 - [Name of sub-vote] | E135: 13.1 - [Name of sub-vote]
B136: 13.2 | C136: [Name of sub-vote] | D136: 13.2 - [Name of sub-vote]
B137: 13.3 | C137: [Name of sub-vote] | D137: 13.3 - [Name of sub-vote]
B138: 13.4 | C138: [Name of sub-vote] | D138: 13.4 - [Name of sub-vote]
B139: 13.5 | C139: [Name of sub-vote] | D139: 13.5 - [Name of sub-vote]
B140: 13.6 | C140: [Name of sub-vote] | D140: 13.6 - [Name of sub-vote]
B141: 13.7 | C141: [Name of sub-vote] | D141: 13.7 - [Name of sub-vote]
B142: 13.8 | C142: [Name of sub-vote] | D142: 13.8 - [Name of sub-vote]
B143: 13.9 | C143: [Name of sub-vote] | D143: 13.9 - [Name of sub-vote]
B144: 13.10 | C144: [Name of sub-vote] | D144: 13.10 - [Name of sub-vote]
B145: Vote 14 | C145: [NAME OF VOTE 14]
B146: 14.1 | C146: [Name of sub-vote] | D146: =CONCATENATE(B146, " - ", C146) -> 14.1 - [Name of sub-vote] | E146: 14.1 - [Name of sub-vote]
B147: 14.2 | C147: [Name of sub-vote] | D147: 14.2 - [Name of sub-vote]
B148: 14.3 | C148: [Name of sub-vote] | D148: 14.3 - [Name of sub-vote]
B149: 14.4 | C149: [Name of sub-vote] | D149: 14.4 - [Name of sub-vote]
B150: 14.5 | C150: [Name of sub-vote] | D150: 14.5 - [Name of sub-vote]
B151: 14.6 | C151: [Name of sub-vote] | D151: 14.6 - [Name of sub-vote]
B152: 14.7 | C152: [Name of sub-vote] | D152: 14.7 - [Name of sub-vote]
B153: 14.8 | C153: [Name of sub-vote] | D153: 14.8 - [Name of sub-vote]
B154: 14.9 | C154: [Name of sub-vote] | D154: 14.9 - [Name of sub-vote]
B155: 14.10 | C155: [Name of sub-vote] | D155: 14.10 - [Name of sub-vote]
B156: Vote 15 | C156: [NAME OF VOTE 15]
B157: 15.1 | C157: [Name of sub-vote] | D157: =CONCATENATE(B157, " - ", C157) -> 15.1 - [Name of sub-vote] | E157: 15.1 - [Name of sub-vote]
B158: 15.2 | C158: [Name of sub-vote] | D158: 15.2 - [Name of sub-vote]
B159: 15.3 | C159: [Name of sub-vote] | D159: 15.3 - [Name of sub-vote]
B160: 15.4 | C160: [Name of sub-vote] | D160: 15.4 - [Name of sub-vote]
B161: 15.5 | C161: [Name of sub-vote] | D161: 15.5 - [Name of sub-vote]
B162: 15.6 | C162: [Name of sub-vote] | D162: 15.6 - [Name of sub-vote]
B163: 15.7 | C163: [Name of sub-vote] | D163: 15.7 - [Name of sub-vote]
B164: 15.8 | C164: [Name of sub-vote] | D164: 15.8 - [Name of sub-vote]
B165: 15.9 | C165: [Name of sub-vote] | D165: 15.9 - [Name of sub-vote]
B166: 15.10 | C166: [Name of sub-vote] | D166: 15.10 - [Name of sub-vote]

Sheet Contacts
A1: =muni&" - "&" Contact Information" -> KZN225 Msunduzi - Contact Information
A3: A. GENERAL INFORMATION
A4: Municipality | B4: =muni -> KZN225 Msunduzi | C4: =IF(B4="Choose name from List","Set name on 'Instructions' sheet", "") -> 
A6: Grade | B6: 6 | C6: 1 Grade in terms of the Remuneration of Public Office Bearers Act.
A8: Province | B8: =IF(B4>" ",VLOOKUP(B4,'[4]Lookup and lists'!B29:C307,2, FALSE)," ") -> KZN KWAZULU-NATAL
A10: Web Address | B10: www.msunduzi.gov.za
A12: e-mail Address | B12: mxolisi.nkosi@msunduzi.gov.za
A14: B. CONTACT INFORMATION
A15: Postal address:
A16: P.O. Box | B16: 261
A17: City / Town | B17: Pietermaritzburg
A18: Postal Code | B18: 3200
A20: Street address
A21: Building | B21: Nyembezi
A22: Street No. & Name | B22: 341 Chruch street
A23: City / Town | B23: Pietermaritzburg
A24: Postal Code | B24: 3200
A26: General Contacts
A27: Telephone number | B27: 033 392 3000
A28: Fax number | B28: 033 3922 506
A30: C. POLITICAL LEADERSHIP
A31: Speaker: | C31: Secretary/PA to the Speaker:
A32: Name | B32: Babu Baijoo | C32: Name | D32: Nonhlanhla Mkhize
A33: Telephone number | B33: 033 392 2035 | C33: Telephone number | D33: 033 392 2541
A34: Cell number | B34: 083 780 0504 | C34: Cell number
A35: Fax number | B35: 033 392 2208 | C35: Fax number | D35: 033 392 2208
A36: E-mail address | B36: babu.baijoo@msunduzi.gov.za | C36: E-mail address | D36: nonhlanhla.mkhize@msunduzi.gov.za
A38: Mayor/Executive Mayor: | C38: Secretary/PA to the Mayor/Executive Mayor:
A39: Name | B39: Chris Ndlela | C39: Name | D39: Sandile Ngcobo
A40: Telephone number | B40: 033 392 2036/7 | C40: Telephone number | D40: 033 392 2006/7
A41: Cell number | B41: 082 611 7025 | C41: Cell number | D41: 071 098 3966
A42: Fax number | B42: 033 345 1637 | C42: Fax number | D42: 033 345 1637
A43: E-mail address | B43: sandile.ngcobo@msunduzi.gov.za | C43: E-mail address | D43: sandile.ngcobo@msunduzi.gov.za
A45: Deputy Mayor/Executive Mayor: | C45: Secretary/PA to the Deputy Mayor/Executive Mayor:
A46: Name | B46: Thobani Zuma | C46: Name | D46: Ashreena Jethoo
A47: Telephone number | B47: 033 392 2037/6 | C47: Telephone number | D47: 033 392 2037/6
A48: Cell number | B48: 072 629 9119 | C48: Cell number | D48: 082 524 8979
A49: Fax number | B49: 033 345 1637 | C49: Fax number | D49: 033 345 1637
A50: E-mail address | B50: ashreena.jethoo@msunduzi.gov.za | C50: E-mail address | D50: ashreena.jethoo@msunduzi.gov.za
A52: D. MANAGEMENT LEADERSHIP
A53: Municipal Manager: | C53: Secretary/PA to the Municipal Manager:
A54: Name | B54: Mxolisi Nkosi | C54: Name | D54: Rodelle Frank
A55: Telephone number | B55: 033 392 2002 | C55: Telephone number | D55: 033 392 2002
A56: Cell number | B56: 082 8066 788 | C56: Cell number
A57: Fax number | B57: 086 2047 309 | C57: Fax number | D57: 086 2047 309
A58: E-mail address | B58: mxolisi.nkosi@msunduzi.gov.za | C58: E-mail address | D58: rodelle.frank@msunduzi.gov.za
A60: Chief Financial Officer | C60: Secretary/PA to the Chief Financial Officer
A61: Name | B61: Nelisiwe Ngcobo | C61: Name | D61: Shomala Dhanilal
A62: Telephone number | B62: 033 392 2601 | C62: Telephone number | D62: 033 392 2601
A63: Cell number | B63: 0785440936 | C63: Cell number | D63: 083 570 7111
A64: Fax number | B64: 033 392 2506 | C64: Fax number | D64: 033 392 2506
A65: E-mail address | B65: nelisiwe.ngcobo@msunduzi.gov.za | C65: E-mail address | D65: shomala.dhanilal@msunduzi.gov.za
A67: Official responsible for submitting financial information
A68: Name | B68: Sifiso Khoza
A69: Telephone number | B69: 333922606
A70: Cell number | B70: 084 5813065
A71: Fax number | B71: 333922506
A72: E-mail address | B72: sifiso.khoza@msunduzi.gov.za
A73: Official responsible for submitting financial information
A74: Name | B74: Lesley Perumalsamy
A75: Telephone number | B75: 0333922235
A76: Cell number
A77: Fax number | B77: 333922506
A78: E-mail address | B78: lesley.perumalsamy@msunduzi.gov.za
A79: Official responsible for submitting financial information
A80: Name | B80: Siyabonga Vilakazi
A81: Telephone number | B81: 0333922213
A82: Cell number
A83: Fax number | B83: 033922213
A84: E-mail address | B84: siyabonga.vilakazi@msunduzi.gov.za

Sheet A1-Sum
A1: =muni&" - "&Approve1 -> KZN225 Msunduzi - Table A1 Budget Summary
A2: =desc -> Description | B2: =head1b -> 2011/12 | C2: =head1A -> 2012/13 | D2: =Head1 -> 2013/14 | E2: =Head2 -> Current Year 2014/15 | I2: =Head3 -> 2015/16 Medium Term Revenue & Expenditure Framework
A3: R thousands | B3: =Head5 -> Audited Outcome | C3: =Head5 -> Audited Outcome | D3: =Head5 -> Audited Outcome | E3: =Head6 -> Original Budget | F3: =Head7 -> Adjusted Budget | G3: =Head8 -> Full Year Forecast | H3: =Head5b -> Pre-audit outcome | I3: =Head9 -> Budget Year 2015/16 | J3: =Head10 -> Budget Year +1 2016/17 | K3: =Head11 -> Budget Year +2 2017/18
A4: Financial Performance
A5: Property rates | B5: ='A4-FinPerf RE'!C5+'A4-FinPerf RE'!C6 -> 536554628 | C5: ='A4-FinPerf RE'!D5+'A4-FinPerf RE'!D6 -> 625459450 | D5: ='A4-FinPerf RE'!E5+'A4-FinPerf RE'!E6 -> 625627208 | E5: ='A4-FinPerf RE'!F5+'A4-FinPerf RE'!F6 -> 698282768 | F5: ='A4-FinPerf RE'!G5+'A4-FinPerf RE'!G6 -> 698282768 | G5: ='A4-FinPerf RE'!H5+'A4-FinPerf RE'!H6 -> 698282768 | H5: ='A4-FinPerf RE'!I5+'A4-FinPerf RE'!I6 -> 698282768 | I5: ='A4-FinPerf RE'!J5+'A4-FinPerf RE'!J6 -> 784461752 | J5: ='A4-FinPerf RE'!K5+'A4-FinPerf RE'!K6 -> 828050391 | K5: ='A4-FinPerf RE'!L5+'A4-FinPerf RE'!L6 -> 869627239
A6: Service charges | B6: =SUM('A4-FinPerf RE'!C7:C11) -> 1678603419 | C6: =SUM('A4-FinPerf RE'!D7:D11) -> 1982478509 | D6: =SUM('A4-FinPerf RE'!E7:E11) -> 2073501239 | E6: =SUM('A4-FinPerf RE'!F7:F11) -> 2234124630 | F6: =SUM('A4-FinPerf RE'!G7:G11) -> 2234124630 | G6: =SUM('A4-FinPerf RE'!H7:H11) -> 2234124630 | H6: =SUM('A4-FinPerf RE'!I7:I11) -> 2234124630 | I6: =SUM('A4-FinPerf RE'!J7:J11) -> 2694541232 | J6: =SUM('A4-FinPerf RE'!K7:K11) -> 2984209079 | K6: =SUM('A4-FinPerf RE'!L7:L11) -> 3295959274
A7: Investment revenue | B7: ='A4-FinPerf RE'!C13 -> 25906640 | C7: ='A4-FinPerf RE'!D13 -> 34283812 | D7: ='A4-FinPerf RE'!E13 -> 43302650 | E7: ='A4-FinPerf RE'!F13 -> 32247000 | F7: ='A4-FinPerf RE'!G13 -> 32247000 | G7: ='A4-FinPerf RE'!H13 -> 32247000 | H7: ='A4-FinPerf RE'!I13 -> 32247000 | I7: ='A4-FinPerf RE'!J13 -> 33987999 | J7: ='A4-FinPerf RE'!K13 -> 35824000 | K7: ='A4-FinPerf RE'!L13 -> 37758496
A8: Transfers recognised - operational | B8: ='A4-FinPerf RE'!C19 -> 351598902 | C8: ='A4-FinPerf RE'!D19 -> 395621840 | D8: ='A4-FinPerf RE'!E19 -> 448121964 | E8: ='A4-FinPerf RE'!F19 -> 415372000 | F8: ='A4-FinPerf RE'!G19 -> 407504000 | G8: ='A4-FinPerf RE'!H19 -> 407504000 | H8: ='A4-FinPerf RE'!I19 -> 407504000 | I8: ='A4-FinPerf RE'!J19 -> 440652000 | J8: ='A4-FinPerf RE'!K19 -> 463799000 | K8: ='A4-FinPerf RE'!L19 -> 502985000
A9: Other own revenue | B9: ='A4-FinPerf RE'!C12+'A4-FinPerf RE'!C14+'A4-FinPerf RE'!C15+'A4-FinPerf RE'!C16+'A4-FinPerf RE'!C17+'A4-FinPerf RE'!C18+'A4-FinPerf RE'!C20+'A4-FinPerf RE'!C21 -> 137960589 | C9: ='A4-FinPerf RE'!D12+'A4-FinPerf RE'!D14+'A4-FinPerf RE'!D15+'A4-FinPerf RE'!D16+'A4-FinPerf RE'!D17+'A4-FinPerf RE'!D18+'A4-FinPerf RE'!D20+'A4-FinPerf RE'!D21 -> 172663305 | D9: ='A4-FinPerf RE'!E12+'A4-FinPerf RE'!E14+'A4-FinPerf RE'!E15+'A4-FinPerf RE'!E16+'A4-FinPerf RE'!E17+'A4-FinPerf RE'!E18+'A4-FinPerf RE'!E20+'A4-FinPerf RE'!E21 -> 293743272 | E9: ='A4-FinPerf RE'!F12+'A4-FinPerf RE'!F14+'A4-FinPerf RE'!F15+'A4-FinPerf RE'!F16+'A4-FinPerf RE'!F17+'A4-FinPerf RE'!F18+'A4-FinPerf RE'!F20+'A4-FinPerf RE'!F21 -> 190548579 | F9: ='A4-FinPerf RE'!G12+'A4-FinPerf RE'!G14+'A4-FinPerf RE'!G15+'A4-FinPerf RE'!G16+'A4-FinPerf RE'!G17+'A4-FinPerf RE'!G18+'A4-FinPerf RE'!G20+'A4-FinPerf RE'!G21 -> 188543306 | G9: ='A4-FinPerf RE'!H12+'A4-FinPerf RE'!H14+'A4-FinPerf RE'!H15+'A4-FinPerf RE'!H16+'A4-FinPerf RE'!H17+'A4-FinPerf RE'!H18+'A4-FinPerf RE'!H20+'A4-FinPerf RE'!H21 -> 188543306 | H9: ='A4-FinPerf RE'!I12+'A4-FinPerf RE'!I14+'A4-FinPerf RE'!I15+'A4-FinPerf RE'!I16+'A4-FinPerf RE'!I17+'A4-FinPerf RE'!I18+'A4-FinPerf RE'!I20+'A4-FinPerf RE'!I21 -> 188543306 | I9: ='A4-FinPerf RE'!J12+'A4-FinPerf RE'!J14+'A4-FinPerf RE'!J15+'A4-FinPerf RE'!J16+'A4-FinPerf RE'!J17+'A4-FinPerf RE'!J18+'A4-FinPerf RE'!J20+'A4-FinPerf RE'!J21 -> 211525690 | J9: ='A4-FinPerf RE'!K12+'A4-FinPerf RE'!K14+'A4-FinPerf RE'!K15+'A4-FinPerf RE'!K16+'A4-FinPerf RE'!K17+'A4-FinPerf RE'!K18+'A4-FinPerf RE'!K20+'A4-FinPerf RE'!K21 -> 208508190 | K9: ='A4-FinPerf RE'!L12+'A4-FinPerf RE'!L14+'A4-FinPerf RE'!L15+'A4-FinPerf RE'!L16+'A4-FinPerf RE'!L17+'A4-FinPerf RE'!L18+'A4-FinPerf RE'!L20+'A4-FinPerf RE'!L21 -> 218605657.5
A10: ='A4-FinPerf RE'!A22 -> Total Revenue (excluding capital transfers and contributions) | B10: =SUM(B5:B9) -> 2730624178 | C10: 3210506916 | D10: 3484296333 | E10: 3570574977 | F10: 3560701704 | G10: 3560701704 | H10: 3560701704 | I10: 4165168673 | J10: 4520390660 | K10: 4924935666
A11: Employee costs | B11: ='A4-FinPerf RE'!C25 -> 666197730 | C11: ='A4-FinPerf RE'!D25 -> 684336568 | D11: ='A4-FinPerf RE'!E25 -> 741537216 | E11: ='A4-FinPerf RE'!F25 -> 855887122 | F11: ='A4-FinPerf RE'!G25 -> 855887122 | G11: ='A4-FinPerf RE'!H25 -> 855887122 | H11: ='A4-FinPerf RE'!I25 -> 855887122 | I11: ='A4-FinPerf RE'!J25 -> 956535758 | J11: ='A4-FinPerf RE'!K25 -> 1009506318 | K11: ='A4-FinPerf RE'!L25 -> 1073537754
A12: Remuneration of councillors | B12: ='A4-FinPerf RE'!C26 -> 31426756 | C12: ='A4-FinPerf RE'!D26 -> 33421534 | D12: ='A4-FinPerf RE'!E26 -> 37099641 | E12: ='A4-FinPerf RE'!F26 -> 39272241 | F12: ='A4-FinPerf RE'!G26 -> 39272241 | G12: ='A4-FinPerf RE'!H26 -> 39272241 | H12: ='A4-FinPerf RE'!I26 -> 39272241 | I12: ='A4-FinPerf RE'!J26 -> 42350433 | J12: ='A4-FinPerf RE'!K26 -> 45658625 | K12: ='A4-FinPerf RE'!L26 -> 48124191
A13: Depreciation & asset impairment | B13: ='A4-FinPerf RE'!C28 -> 273673069 | C13: ='A4-FinPerf RE'!D28 -> 237152630 | D13: ='A4-FinPerf RE'!E28 -> 453332223 | E13: ='A4-FinPerf RE'!F28 -> 259469334 | F13: ='A4-FinPerf RE'!G28 -> 259469334 | G13: ='A4-FinPerf RE'!H28 -> 259469334 | H13: ='A4-FinPerf RE'!I28 -> 259469334 | I13: ='A4-FinPerf RE'!J28 -> 485745588 | J13: ='A4-FinPerf RE'!K28 -> 537857003 | K13: ='A4-FinPerf RE'!L28 -> 595059306
A14: Finance charges | B14: ='A4-FinPerf RE'!C29 -> 72134067 | C14: ='A4-FinPerf RE'!D29 -> 70966061 | D14: ='A4-FinPerf RE'!E29 -> 67174144 | E14: ='A4-FinPerf RE'!F29 -> 60738178 | F14: ='A4-FinPerf RE'!G29 -> 60738178 | G14: ='A4-FinPerf RE'!H29 -> 60738178 | H14: ='A4-FinPerf RE'!I29 -> 60738178 | I14: ='A4-FinPerf RE'!J29 -> 69489091 | J14: ='A4-FinPerf RE'!K29 -> 68312431 | K14: ='A4-FinPerf RE'!L29 -> 61719330
A15: Materials and bulk purchases | B15: ='A4-FinPerf RE'!C30+'A4-FinPerf RE'!C31 -> 1231392356 | C15: ='A4-FinPerf RE'!D30+'A4-FinPerf RE'!D31 -> 1389020693 | D15: ='A4-FinPerf RE'!E30+'A4-FinPerf RE'!E31 -> 1479802760 | E15: ='A4-FinPerf RE'!F30+'A4-FinPerf RE'!F31 -> 1504719770 | F15: ='A4-FinPerf RE'!G30+'A4-FinPerf RE'!G31 -> 1570370385 | G15: ='A4-FinPerf RE'!H30+'A4-FinPerf RE'!H31 -> 1570370385 | H15: ='A4-FinPerf RE'!I30+'A4-FinPerf RE'!I31 -> 1570370385 | I15: ='A4-FinPerf RE'!J30+'A4-FinPerf RE'!J31 -> 1766584531 | J15: ='A4-FinPerf RE'!K30+'A4-FinPerf RE'!K31 -> 1940725155 | K15: ='A4-FinPerf RE'!L30+'A4-FinPerf RE'!L31 -> 2129302084
A16: Transfers and grants | B16: ='A4-FinPerf RE'!C33 -> 4143827 | C16: ='A4-FinPerf RE'!D33 -> 4163848 | D16: ='A4-FinPerf RE'!E33 -> 4428810 | E16: ='A4-FinPerf RE'!F33 -> 5407870 | F16: ='A4-FinPerf RE'!G33 -> 5407870 | G16: ='A4-FinPerf RE'!H33 -> 5407870 | H16: ='A4-FinPerf RE'!I33 -> 5407870 | I16: ='A4-FinPerf RE'!J33 -> 134035335.2 | J16: ='A4-FinPerf RE'!K33 -> 156186831.3 | K16: ='A4-FinPerf RE'!L33 -> 181654770.8
A17: Other expenditure | B17: ='A4-FinPerf RE'!C27+'A4-FinPerf RE'!C32+'A4-FinPerf RE'!C34+'A4-FinPerf RE'!C35 -> 461238848.1 | C17: ='A4-FinPerf RE'!D27+'A4-FinPerf RE'!D32+'A4-FinPerf RE'!D34+'A4-FinPerf RE'!D35 -> 860438171.5 | D17: ='A4-FinPerf RE'!E27+'A4-FinPerf RE'!E32+'A4-FinPerf RE'!E34+'A4-FinPerf RE'!E35 -> 827839493.5 | E17: ='A4-FinPerf RE'!F27+'A4-FinPerf RE'!F32+'A4-FinPerf RE'!F34+'A4-FinPerf RE'!F35 -> 774760741.2 | F17: ='A4-FinPerf RE'!G27+'A4-FinPerf RE'!G32+'A4-FinPerf RE'!G34+'A4-FinPerf RE'!G35 -> 766055197.2 | G17: ='A4-FinPerf RE'!H27+'A4-FinPerf RE'!H32+'A4-FinPerf RE'!H34+'A4-FinPerf RE'!H35 -> 766055197.2 | H17: ='A4-FinPerf RE'!I27+'A4-FinPerf RE'!I32+'A4-FinPerf RE'!I34+'A4-FinPerf RE'!I35 -> 766055197.2 | I17: ='A4-FinPerf RE'!J27+'A4-FinPerf RE'!J32+'A4-FinPerf RE'!J34+'A4-FinPerf RE'!J35 -> 706958267 | J17: ='A4-FinPerf RE'!K27+'A4-FinPerf RE'!K32+'A4-FinPerf RE'!K34+'A4-FinPerf RE'!K35 -> 756644585 | K17: ='A4-FinPerf RE'!L27+'A4-FinPerf RE'!L32+'A4-FinPerf RE'!L34+'A4-FinPerf RE'!L35 -> 826849255.5
A18: ='A4-FinPerf RE'!A36 -> Total Expenditure | B18: =SUM(B11:B17) -> 2740206653 | C18: =SUM(C11:C17) -> 3279499506 | D18: 3611214288 | E18: 3500255256 | F18: 3557200327 | G18: 3557200327 | H18: 3557200327 | I18: 4161699003 | J18: 4514890948 | K18: 4916246691
A19: ='A4-FinPerf RE'!A38 -> Surplus/(Deficit) | B19: =B10-B18 -> -9582475.07 | C19: -68992589.52 | D19: -126917954.5 | E19: 70319721 | F19: 3501377 | G19: 3501377 | H19: 3501377 | I19: 3469670 | J19: 5499712 | K19: 8688974.944
A20: ='A4-FinPerf RE'!A39 -> Transfers recognised - capital | B20: ='A4-FinPerf RE'!C39 -> 149070068 | C20: ='A4-FinPerf RE'!D39 -> 170847866 | D20: ='A4-FinPerf RE'!E39 -> 246182649 | E20: ='A4-FinPerf RE'!F39 -> 293824000 | F20: ='A4-FinPerf RE'!G39 -> 314474000 | G20: ='A4-FinPerf RE'!H39 -> 314474000 | H20: ='A4-FinPerf RE'!I39 -> 314474000 | I20: ='A4-FinPerf RE'!J39 -> 489060000 | J20: ='A4-FinPerf RE'!K39 -> 466372000 | K20: ='A4-FinPerf RE'!L39 -> 480820000
A21: Contributions recognised - capital & contributed assets | B21: ='A4-FinPerf RE'!C40+'A4-FinPerf RE'!C41 -> 0 | C21: ='A4-FinPerf RE'!D40+'A4-FinPerf RE'!D41 -> 0 | D21: ='A4-FinPerf RE'!E40+'A4-FinPerf RE'!E41 -> 0 | E21: ='A4-FinPerf RE'!F40+'A4-FinPerf RE'!F41 -> 0 | F21: ='A4-FinPerf RE'!G40+'A4-FinPerf RE'!G41 -> 0 | G21: ='A4-FinPerf RE'!H40+'A4-FinPerf RE'!H41 -> 0 | H21: ='A4-FinPerf RE'!I40+'A4-FinPerf RE'!I41 -> 0 | I21: ='A4-FinPerf RE'!J40+'A4-FinPerf RE'!J41 -> 0 | J21: ='A4-FinPerf RE'!K40+'A4-FinPerf RE'!K41 -> 0 | K21: ='A4-FinPerf RE'!L40+'A4-FinPerf RE'!L41 -> 0
A22: ='A4-FinPerf RE'!A42 -> Surplus/(Deficit) after capital transfers & contributions | B22: =B19+SUM(B20:B21) -> 139487592.9 | C22: =C19+SUM(C20:C21) -> 101855276.5 | D22: 119264694.5 | E22: 364143721 | F22: 317975377 | G22: 317975377 | H22: 317975377 | I22: 492529670 | J22: 471871712 | K22: 489508974.9
A23: ='A4-FinPerf RE'!A47 -> Share of surplus/ (deficit) of associate | B23: ='A4-FinPerf RE'!C47 -> 0 | C23: ='A4-FinPerf RE'!D47 -> 0 | D23: ='A4-FinPerf RE'!E47 -> 0 | E23: ='A4-FinPerf RE'!F47 -> 0 | F23: ='A4-FinPerf RE'!G47 -> 0 | G23: ='A4-FinPerf RE'!H47 -> 0 | H23: ='A4-FinPerf RE'!I47 -> 0 | I23: ='A4-FinPerf RE'!J47 -> 0 | J23: ='A4-FinPerf RE'!K47 -> 0 | K23: ='A4-FinPerf RE'!L47 -> 0
A24: ='A4-FinPerf RE'!A48 -> Surplus/(Deficit) for the year | B24: =B22+B23 -> 139487592.9 | C24: =C22+C23 -> 101855276.5 | D24: 119264694.5 | E24: 364143721 | F24: 317975377 | G24: 317975377 | H24: 317975377 | I24: 492529670 | J24: 471871712 | K24: 489508974.9
A26: Capital expenditure & funds sources
A27: Capital expenditure | B27: ='A5-Capex'!C63 -> 358811250.1 | C27: ='A5-Capex'!D63 -> 401874668.6 | D27: ='A5-Capex'!E63 -> 363905624 | E27: ='A5-Capex'!F63 -> 597754000 | F27: ='A5-Capex'!G63 -> 704976004 | G27: ='A5-Capex'!H63 -> 704976004 | H27: ='A5-Capex'!I63 -> 704976004 | I27: ='A5-Capex'!J63 -> 709060000 | J27: ='A5-Capex'!K63 -> 636372000 | K27: ='A5-Capex'!L63 -> 600820000
A28: Transfers recognised - capital | B28: ='A5-Capex'!C70 -> 149070250.1 | C28: ='A5-Capex'!D70 -> 170848058 | D28: ='A5-Capex'!E70 -> 246183174 | E28: ='A5-Capex'!F70 -> 293824000 | F28: ='A5-Capex'!G70 -> 314474000 | G28: ='A5-Capex'!H70 -> 314474000 | H28: ='A5-Capex'!I70 -> 314474000 | I28: ='A5-Capex'!J70 -> 489060000 | J28: ='A5-Capex'!K70 -> 466372000 | K28: ='A5-Capex'!L70 -> 480820000
A29: ='A5-Capex'!A71 -> Public contributions & donations | B29: ='A5-Capex'!C71 -> 0 | C29: ='A5-Capex'!D71 -> 0 | D29: ='A5-Capex'!E71 -> 0 | E29: ='A5-Capex'!F71 -> 0 | F29: ='A5-Capex'!G71 -> 0 | G29: ='A5-Capex'!H71 -> 0 | H29: ='A5-Capex'!I71 -> 0 | I29: ='A5-Capex'!J71 -> 0 | J29: ='A5-Capex'!K71 -> 0 | K29: ='A5-Capex'!L71 -> 0
A30: ='A5-Capex'!A72 -> Borrowing | B30: ='A5-Capex'!C72 -> 0 | C30: ='A5-Capex'!D72 -> 0 | D30: ='A5-Capex'!E72 -> 0 | E30: ='A5-Capex'!F72 -> 100000000 | F30: ='A5-Capex'!G72 -> 100000000 | G30: ='A5-Capex'!H72 -> 100000000 | H30: ='A5-Capex'!I72 -> 100000000 | I30: ='A5-Capex'!J72 -> 100000000 | J30: ='A5-Capex'!K72 -> 50000000 | K30: ='A5-Capex'!L72 -> 0
A31: ='A5-Capex'!A73 -> Internally generated funds | B31: ='A5-Capex'!C73 -> 209741000 | C31: ='A5-Capex'!D73 -> 231026610.6 | D31: ='A5-Capex'!E73 -> 117722450 | E31: ='A5-Capex'!F73 -> 203930000 | F31: ='A5-Capex'!G73 -> 290502004 | G31: ='A5-Capex'!H73 -> 290502004 | H31: ='A5-Capex'!I73 -> 290502004 | I31: ='A5-Capex'!J73 -> 120000000 | J31: ='A5-Capex'!K73 -> 120000000 | K31: ='A5-Capex'!L73 -> 120000000
A32: Total sources of capital funds | B32: =SUM(B28:B31) -> 358811250.1 | C32: 401874668.6 | D32: 363905624 | E32: 597754000 | F32: 704976004 | G32: 704976004 | H32: 704976004 | I32: 709060000 | J32: 636372000 | K32: 600820000
A34: Financial position
A35: ='A6-FinPos'!A12 -> Total current assets | B35: ='A6-FinPos'!C12 -> 1938986777 | C35: ='A6-FinPos'!D12 -> 2354336184 | D35: ='A6-FinPos'!E12 -> 2648050711 | E35: ='A6-FinPos'!F12 -> 2605847957 | F35: ='A6-FinPos'!G12 -> 2759624857 | G35: ='A6-FinPos'!H12 -> 2759624857 | H35: ='A6-FinPos'!I12 -> 2759624857 | I35: ='A6-FinPos'!J12 -> 3132947231 | J35: ='A6-FinPos'!K12 -> 3274384076 | K35: ='A6-FinPos'!L12 -> 3404479083
A36: ='A6-FinPos'!A24 -> Total non current assets | B36: ='A6-FinPos'!C24 -> 6755215584 | C36: ='A6-FinPos'!D24 -> 6729999600 | D36: ='A6-FinPos'!E24 -> 6647607795 | E36: ='A6-FinPos'!F24 -> 7626733548 | F36: ='A6-FinPos'!G24 -> 7093273761 | G36: ='A6-FinPos'!H24 -> 7093273761 | H36: ='A6-FinPos'!I24 -> 7093273761 | I36: ='A6-FinPos'!J24 -> 7567964845 | J36: ='A6-FinPos'!K24 -> 7677387381 | K36: ='A6-FinPos'!L24 -> 7692424180
A37: ='A6-FinPos'!A34 -> Total current liabilities | B37: ='A6-FinPos'!C34 -> 760873230 | C37: ='A6-FinPos'!D34 -> 852653616 | D37: ='A6-FinPos'!E34 -> 928844582 | E37: ='A6-FinPos'!F34 -> 1082431996 | F37: ='A6-FinPos'!G34 -> 1424818340 | G37: ='A6-FinPos'!H34 -> 1424818340 | H37: ='A6-FinPos'!I34 -> 1424818340 | I37: ='A6-FinPos'!J34 -> 1378121655 | J37: ='A6-FinPos'!K34 -> 999627455.9 | K37: ='A6-FinPos'!L34 -> 640836201.5
A38: ='A6-FinPos'!A39 -> Total non current liabilities | B38: ='A6-FinPos'!C39 -> 886085229 | C38: ='A6-FinPos'!D39 -> 1077059759 | D38: ='A6-FinPos'!E39 -> 1118248243 | E38: ='A6-FinPos'!F39 -> 868989819.8 | F38: ='A6-FinPos'!G39 -> 868989819.8 | G38: ='A6-FinPos'!H39 -> 868989819.8 | H38: ='A6-FinPos'!I39 -> 868989819.8 | I38: ='A6-FinPos'!J39 -> 1261476151 | J38: ='A6-FinPos'!K39 -> 1297899735 | K38: ='A6-FinPos'!L39 -> 1291234372
A39: Community wealth/Equity | B39: ='A6-FinPos'!C48 -> 7047243902 | C39: ='A6-FinPos'!D48 -> 7154622409 | D39: ='A6-FinPos'!E48 -> 7248565681 | E39: ='A6-FinPos'!F48 -> 8281159689 | F39: ='A6-FinPos'!G48 -> 7559090459 | G39: ='A6-FinPos'!H48 -> 7559090459 | H39: ='A6-FinPos'!I48 -> 7559090459 | I39: ='A6-FinPos'!J48 -> 8061314271 | J39: ='A6-FinPos'!K48 -> 8654244266 | K39: ='A6-FinPos'!L48 -> 9164832689
A41: Cash flows
A42: Net cash from (used) operating | B42: ='A7-CFlow'!C17 -> 479044275 | C42: ='A7-CFlow'!D17 -> 499366738 | D42: ='A7-CFlow'!E17 -> 535378387 | E42: ='A7-CFlow'!F17 -> 576870582 | F42: ='A7-CFlow'!G17 -> 703471288.2 | G42: ='A7-CFlow'!H17 -> 703471288.2 | H42: ='A7-CFlow'!I17 -> 703471288.2 | I42: ='A7-CFlow'!J17 -> 706264494.2 | J42: ='A7-CFlow'!K17 -> 583347730.8 | K42: ='A7-CFlow'!L17 -> 595818795
A43: Net cash from (used) investing | B43: ='A7-CFlow'!C27 -> -214852451 | C43: ='A7-CFlow'!D27 -> -375050250 | D43: ='A7-CFlow'!E27 -> -384129692 | E43: ='A7-CFlow'!F27 -> -364442000 | F43: ='A7-CFlow'!G27 -> -636543403.6 | G43: ='A7-CFlow'!H27 -> -636543403.6 | H43: ='A7-CFlow'!I27 -> -636543403.6 | I43: ='A7-CFlow'!J27 -> -589505400 | J43: ='A7-CFlow'!K27 -> -555584340 | K43: ='A7-CFlow'!L27 -> -537676736.8
A44: Net cash from (used) financing | B44: ='A7-CFlow'!C36 -> 63596345 | C44: ='A7-CFlow'!D36 -> -27864075 | D44: ='A7-CFlow'!E36 -> -42042792 | E44: ='A7-CFlow'!F36 -> 57309000 | F44: ='A7-CFlow'!G36 -> 57309000 | G44: ='A7-CFlow'!H36 -> 57309000 | H44: ='A7-CFlow'!I36 -> 57309000 | I44: ='A7-CFlow'!J36 -> 55400242.67 | J44: ='A7-CFlow'!K36 -> 2522197.67 | K44: ='A7-CFlow'!L36 -> -48507070.56
A45: =LEFT('A7-CFlow'!A40,37) -> Cash/cash equivalents at the year end | B45: ='A7-CFlow'!C40 -> 621615314 | C45: ='A7-CFlow'!D40 -> 718067733 | D45: ='A7-CFlow'!E40 -> 827274195 | E45: ='A7-CFlow'!F40 -> 1097011582 | F45: ='A7-CFlow'!G40 -> 951510884.6 | G45: ='A7-CFlow'!H40 -> 951510884.6 | H45: ='A7-CFlow'!I40 -> 951510884.6 | I45: ='A7-CFlow'!J40 -> 1123670221 | J45: ='A7-CFlow'!K40 -> 1153955810 | K45: ='A7-CFlow'!L40 -> 1163590798
A47: Cash backing/surplus reconciliation
A48: ='A8-ResRecon'!A4 -> Cash and investments available | B48: ='A8-ResRecon'!C8 -> 626871246 | C48: ='A8-ResRecon'!D8 -> 723969313 | D48: ='A8-ResRecon'!E8 -> 834175097 | E48: ='A8-ResRecon'!F8 -> 876374514.2 | F48: ='A8-ResRecon'!G8 -> 1030151275 | G48: ='A8-ResRecon'!H8 -> 1030151275 | H48: ='A8-ResRecon'!I8 -> 1030151275 | I48: ='A8-ResRecon'!J8 -> 1131426585 | J48: ='A8-ResRecon'!K8 -> 1162178331 | K48: ='A8-ResRecon'!L8 -> 1172307493
A49: ='A8-ResRecon'!A10 -> Application of cash and investments | B49: ='A8-ResRecon'!C18 -> 58271603 | C49: ='A8-ResRecon'!D18 -> -132919723 | D49: ='A8-ResRecon'!E18 -> -275983056 | E49: ='A8-ResRecon'!F18 -> 31253419 | F49: ='A8-ResRecon'!G18 -> 309579762.7 | G49: ='A8-ResRecon'!H18 -> 309579762.7 | H49: ='A8-ResRecon'!I18 -> 309579762.7 | I49: ='A8-ResRecon'!J18 -> 381549521.9 | J49: ='A8-ResRecon'!K18 -> -48105825.35 | K49: ='A8-ResRecon'!L18 -> -477423844.5
A50: Balance - surplus (shortfall) | B50: =B48-B49 -> 568599643 | C50: =C48-C49 -> 856889036 | D50: 1110158153 | E50: 845121095.2 | F50: 720571511.9 | G50: 720571511.9 | H50: 720571511.9 | I50: 749877063.6 | J50: 1210284157 | K50: 1649731337
A52: Asset management
A53: Asset register summary (WDV) | B53: ='A9-Asset'!C65 -> 6746114307 | C53: ='A9-Asset'!D65 -> 6885363843 | D53: ='A9-Asset'!E65 -> 7048177109 | E53: ='A9-Asset'!F65 -> 7137911217 | F53: ='A9-Asset'!G65 -> 7084456354 | G53: ='A9-Asset'!H65 -> 7084456354 | H53: ='A9-Asset'!I65 -> 7379501707 | I53: ='A9-Asset'!I65 -> 7379501707 | J53: ='A9-Asset'!J65 -> 7485154980 | K53: ='A9-Asset'!K65 -> 7481740076
A54: ='A9-Asset'!A68 -> Depreciation & asset impairment | B54: ='A9-Asset'!C68 -> 273673069 | C54: ='A9-Asset'!D68 -> 237152630 | D54: ='A9-Asset'!E68 -> 453332223 | E54: ='A9-Asset'!F68 -> 259469334 | F54: ='A9-Asset'!G68 -> 259469334 | G54: ='A9-Asset'!H68 -> 259469334 | H54: ='A9-Asset'!I68 -> 485745588 | I54: ='A9-Asset'!I68 -> 485745588 | J54: ='A9-Asset'!J68 -> 537857003 | K54: ='A9-Asset'!K68 -> 595059306
A55: Renewal of Existing Assets | B55: ='A9-Asset'!C20 -> 251310868.8 | C55: ='A9-Asset'!D20 -> 291772313.9 | D55: ='A9-Asset'!E20 -> 189593508 | E55: ='A9-Asset'!F20 -> 289444439 | F55: ='A9-Asset'!G20 -> 316594439 | G55: ='A9-Asset'!H20 -> 316594439 | H55: ='A9-Asset'!H20 -> 316594439 | I55: ='A9-Asset'!I20 -> 636635670 | J55: ='A9-Asset'!J20 -> 536784000 | K55: ='A9-Asset'!K20 -> 514680650
A56: Repairs and Maintenance | B56: ='A9-Asset'!C69 -> 39509687 | C56: ='A9-Asset'!D69 -> 97782164 | D56: ='A9-Asset'!E69 -> 139060223 | E56: ='A9-Asset'!F69 -> 291357199.9 | F56: ='A9-Asset'!G69 -> 217917063.9 | G56: ='A9-Asset'!H69 -> 217917063.9 | H56: ='A9-Asset'!I69 -> 202126421.9 | I56: ='A9-Asset'!I69 -> 202126421.9 | J56: ='A9-Asset'!J69 -> 280975056.1 | K56: ='A9-Asset'!K69 -> 361657200.1
A58: Free services
A59: Cost of Free Basic Services provided | B59: ='A10-SerDel'!C59 -> 101531937.8 | C59: ='A10-SerDel'!D59 -> 107623854.1 | D59: ='A10-SerDel'!E59 -> 114081285.3 | E59: ='A10-SerDel'!F59 -> 120926162.5 | F59: ='A10-SerDel'!G59 -> 120926162.5 | G59: ='A10-SerDel'!H59 -> 120926162.5 | H59: ='A10-SerDel'!I59 -> 128181732.2 | I59: ='A10-SerDel'!I59 -> 128181732.2 | J59: ='A10-SerDel'!J59 -> 149587698.3 | K59: ='A10-SerDel'!K59 -> 174655427.8
A60: Revenue cost of free services provided | B60: ='A10-SerDel'!C78 -> 450471483.4 | C60: ='A10-SerDel'!D78 -> 477499772.4 | D60: ='A10-SerDel'!E78 -> 506149758.8 | E60: ='A10-SerDel'!F78 -> 536518744.3 | F60: ='A10-SerDel'!G78 -> 536655310.6 | G60: ='A10-SerDel'!H78 -> 536800070.9 | H60: ='A10-SerDel'!I78 -> 569008075.1 | I60: ='A10-SerDel'!I78 -> 569008075.1 | J60: ='A10-SerDel'!J78 -> 616996842.1 | K60: ='A10-SerDel'!K78 -> 670304737.2
A61: Households below minimum service level
A62: ='A10-SerDel'!A5 -> Water: | B62: ='A10-SerDel'!C14 -> 11156 | C62: ='A10-SerDel'!D14 -> 11156 | D62: ='A10-SerDel'!E14 -> 10654 | E62: ='A10-SerDel'!F14 -> 10418 | F62: ='A10-SerDel'!G14 -> 10418 | G62: ='A10-SerDel'!H14 -> 10418 | H62: ='A10-SerDel'!I14 -> 6404 | I62: ='A10-SerDel'!I14 -> 6404 | J62: ='A10-SerDel'!J14 -> 4794 | K62: ='A10-SerDel'!K14 -> 2795
A63: ='A10-SerDel'!A16 -> Sanitation/sewerage: | B63: ='A10-SerDel'!C26 -> 7137 | C63: ='A10-SerDel'!D26 -> 7137 | D63: ='A10-SerDel'!E26 -> 4877.29 | E63: ='A10-SerDel'!F26 -> 11424 | F63: ='A10-SerDel'!G26 -> 11424 | G63: ='A10-SerDel'!H26 -> 11424 | H63: ='A10-SerDel'!I26 -> 3377.29 | I63: ='A10-SerDel'!I26 -> 3377.29 | J63: ='A10-SerDel'!J26 -> 1277.29 | K63: ='A10-SerDel'!K26 -> 577.29
A64: ='A10-SerDel'!A28 -> Energy: | B64: ='A10-SerDel'!C35 -> 13119 | C64: ='A10-SerDel'!D35 -> 12667 | D64: ='A10-SerDel'!E35 -> 12667 | E64: ='A10-SerDel'!F35 -> 20983.71 | F64: ='A10-SerDel'!G35 -> 20983.71 | G64: ='A10-SerDel'!H35 -> 20983.71 | H64: ='A10-SerDel'!I35 -> 11400.3 | I64: ='A10-SerDel'!I35 -> 11400.3 | J64: ='A10-SerDel'!J35 -> 10260.27 | K64: ='A10-SerDel'!K35 -> 9234.243
A65: ='A10-SerDel'!A37 -> Refuse: | B65: ='A10-SerDel'!C45 -> 93993 | C65: ='A10-SerDel'!D45 -> 93993 | D65: ='A10-SerDel'!E45 -> 74083.29 | E65: ='A10-SerDel'!F45 -> 64310 | F65: ='A10-SerDel'!G45 -> 116873 | G65: ='A10-SerDel'!H45 -> 116873 | H65: ='A10-SerDel'!I45 -> 44393 | I65: ='A10-SerDel'!I45 -> 44393 | J65: ='A10-SerDel'!J45 -> 38393 | K65: ='A10-SerDel'!K45 -> 22556

Sheet A2-FinPerf SC
A1: =muni&" - "&Approve3 -> KZN225 Msunduzi - Table A2 Budgeted Financial Performance (revenue and expenditure by standard classification)
A2: ="Standard Classification "&desc -> Standard Classification Description | B2: =head27 -> Ref | C2: =head1b -> 2011/12 | D2: =head1A -> 2012/13 | E2: =Head1 -> 2013/14 | F2: =Head2 -> Current Year 2014/15 | I2: =Head3 -> 2015/16 Medium Term Revenue & Expenditure Framework
A3: R thousand | B3: 1 | C3: =Head5 -> Audited Outcome | D3: =Head5 -> Audited Outcome | E3: =Head5 -> Audited Outcome | F3: =Head6 -> Original Budget | G3: =Head7 -> Adjusted Budget | H3: =Head8 -> Full Year Forecast | I3: =Head9 -> Budget Year 2015/16 | J3: =Head10 -> Budget Year +1 2016/17 | K3: =Head11 -> Budget Year +2 2017/18
A4: Revenue - Standard
A5: Governance and administration | C5: =SUM(C6:C8) -> 884277948.7 | D5: =SUM(D6:D8) -> 964195663.6 | E5: 1351283283 | F5: 1152827408 | G5: 1169204011 | H5: 1169204011 | I5: 1240509532 | J5: 1302012707 | K5: 1383957310
A6: Executive and council | C6: =A2A!C6 -> 4164023.9 | D6: =A2A!D6 -> 5880346.09 | E6: =A2A!E6 -> 5798869.22 | F6: =A2A!F6 -> 0 | G6: =A2A!G6 -> 0 | H6: =A2A!H6 -> 0 | I6: =A2A!I6 -> 1600000 | J6: =A2A!J6 -> 1625000 | K6: =A2A!K6 -> 1700000
A7: Budget and treasury office | C7: =A2A!C9 -> 864518378.8 | D7: =A2A!D9 -> 928417408 | E7: =A2A!E9 -> 1328000385 | F7: =A2A!F9 -> 1149665247 | G7: =A2A!G9 -> 1161647832 | H7: =A2A!H9 -> 1161647832 | I7: =A2A!I9 -> 1228885444 | J7: =A2A!J9 -> 1290106501 | K7: =A2A!K9 -> 1371690919
A8: Corporate services | C8: =A2A!C10 -> 15595546.04 | D8: =A2A!D10 -> 29897909.57 | E8: =A2A!E10 -> 17484028.6 | F8: =A2A!F10 -> 3162161 | G8: =A2A!G10 -> 7556179.04 | H8: =A2A!H10 -> 7556179.04 | I8: =A2A!I10 -> 10024088 | J8: =A2A!J10 -> 10281206 | K8: =A2A!K10 -> 10566391.12
A9: Community and public safety | C9: =SUM(C10:C14) -> 50368526.57 | D9: =SUM(D10:D14) -> 73799598.59 | E9: 70090903.98 | F9: 13360640.79 | G9: 13360540.79 | H9: 13360540.79 | I9: 68651162 | J9: 69119810 | K9: 71058110.94
A10: Community and social services | C10: =A2A!C16 -> 22178578.52 | D10: =A2A!D16 -> 35434594.49 | E10: =A2A!E16 -> 20996688.3 | F10: =A2A!F16 -> 3249996.568 | G10: =A2A!G16 -> 3249996.568 | H10: =A2A!H16 -> 3249996.568 | I10: =A2A!I16 -> 31420979 | J10: =A2A!J16 -> 28799425 | K10: =A2A!K16 -> 30225207.95
A11: Sport and recreation | C11: =A2A!C25 -> 5971000 | D11: =A2A!D25 -> 7341859.27 | E11: =A2A!E25 -> 15616513.97 | F11: =A2A!F25 -> 728884.2022 | G11: =A2A!G25 -> 728884.2022 | H11: =A2A!H25 -> 728884.2022 | I11: =A2A!I25 -> 837973 | J11: =A2A!J25 -> 884995 | K11: =A2A!K25 -> 932784.73
A12: Public safety | C12: =A2A!C26 -> 5450265 | D12: =A2A!D26 -> 10434991.61 | E12: =A2A!E26 -> 8742201.48 | F12: =A2A!F26 -> 5827594.224 | G12: =A2A!G26 -> 5827494.224 | H12: =A2A!H26 -> 5827494.224 | I12: =A2A!I26 -> 21248091 | J12: =A2A!J26 -> 20322104 | K12: =A2A!K26 -> 21419497.62
A13: Housing | C13: =A2A!C32 -> 4123279.47 | D13: =A2A!D32 -> 5232700 | E13: =A2A!E32 -> 18135483.93 | F13: =A2A!F32 -> 3484523 | G13: =A2A!G32 -> 3484523 | H13: =A2A!H32 -> 3484523 | I13: =A2A!I32 -> 15112138 | J13: =A2A!J32 -> 19079524 | K13: =A2A!K32 -> 18445035.49
A14: Health | C14: =A2A!C33 -> 12645403.58 | D14: =A2A!D33 -> 15355453.22 | E14: =A2A!E33 -> 6600016.3 | F14: =A2A!F33 -> 69642.79882 | G14: =A2A!G33 -> 69642.79882 | H14: =A2A!H33 -> 69642.79882 | I14: =A2A!I33 -> 31981 | J14: =A2A!J33 -> 33762 | K14: =A2A!K33 -> 35585.148
A15: Economic and environmental services | C15: =SUM(C16:C18) -> 160260931.1 | D15: =SUM(D16:D18) -> 188806392.5 | E15: 162232433.8 | F15: 171598331.9 | G15: 175646331.9 | H15: 175646331.9 | I15: 472320174 | J15: 480288595 | K15: 491528025.1
A16: Planning and development | C16: =A2A!C38 -> 40952407.23 | D16: =A2A!D38 -> 44130598.59 | E16: =A2A!E38 -> 41717401.23 | F16: =A2A!F38 -> 7971530.875 | G16: =A2A!G38 -> 12019530.87 | H16: =A2A!H38 -> 12019530.87 | I16: =A2A!I38 -> 70134877 | J16: =A2A!J38 -> 79600582 | K16: =A2A!K38 -> 82279013.43
A17: Road transport | C17: =A2A!C42 -> 119308523.9 | D17: =A2A!D42 -> 144675793.9 | E17: =A2A!E42 -> 120515032.6 | F17: =A2A!F42 -> 163626801 | G17: =A2A!G42 -> 163626801 | H17: =A2A!H42 -> 163626801 | I17: =A2A!I42 -> 402185297 | J17: =A2A!J42 -> 400688013 | K17: =A2A!K42 -> 409249011.7
A18: Environmental protection | C18: =A2A!C48 -> 0 | D18: =A2A!D48 -> 0 | E18: =A2A!E48 -> 0 | F18: =A2A!F48 -> 0 | G18: =A2A!G48 -> 0 | H18: =A2A!H48 -> 0 | I18: =A2A!I48 -> 0 | J18: =A2A!J48 -> 0 | K18: =A2A!K48 -> 0
A19: Trading services | C19: =SUM(C20:C23) -> 1678603419 | D19: =SUM(D20:D23) -> 1982478509 | E19: 2073501239 | F19: 2437047384 | G19: 2437399608 | H19: 2437399608 | I19: 2844740463 | J19: =SUM(J20:J23) -> 3107787488 | K19: 3430170241
A20: Electricity | C20: =A2A!C53 -> 1212660157 | D20: =A2A!D53 -> 1401970761 | E20: =A2A!E53 -> 1486939403 | F20: =A2A!F53 -> 1700095496 | G20: =A2A!G53 -> 1700095496 | H20: =A2A!H53 -> 1700095496 | I20: =A2A!I53 -> 1908646756 | J20: =A2A!J53 -> 2129988400 | K20: =A2A!K53 -> 2384357963
A21: Water | C21: =A2A!C56 -> 288345314 | D21: =A2A!D56 -> 386419258 | E21: =A2A!E56 -> 380807209 | F21: =A2A!F56 -> 500521326.9 | G21: =A2A!G56 -> 500521326.9 | H21: =A2A!H56 -> 500521326.9 | I21: =A2A!I56 -> 689286540.7 | J21: =A2A!J56 -> 720935332.7 | K21: =A2A!K56 -> 774080941.9
A22: Waste water management | C22: =A2A!C59 -> 107506830 | D22: =A2A!D59 -> 120089290 | E22: =A2A!E59 -> 126300618 | F22: =A2A!F59 -> 149071154.9 | G22: =A2A!G59 -> 149071154.9 | H22: =A2A!H59 -> 149071154.9 | I22: =A2A!I59 -> 148037042.6 | J22: =A2A!J59 -> 154007671.4 | K22: =A2A!K59 -> 162918744
A23: Waste management | C23: =A2A!C63 -> 70091118 | D23: =A2A!D63 -> 73999200 | E23: =A2A!E63 -> 79454009 | F23: =A2A!F63 -> 87359405.89 | G23: =A2A!G63 -> 87711630 | H23: =A2A!H63 -> 87711630 | I23: =A2A!I63 -> 98770123.77 | J23: =A2A!J63 -> 102856083.9 | K23: =A2A!K63 -> 108812591.8
A24: Other | B24: 4 | C24: =A2A!C65 -> 106183420.6 | D24: =A2A!D65 -> 172074618.3 | E24: =A2A!E65 -> 73371122.2 | F24: =A2A!F65 -> 89565212.34 | G24: =A2A!G65 -> 79565212.34 | H24: =A2A!H65 -> 79565212.34 | I24: =A2A!I65 -> 28007342 | J24: =A2A!J65 -> 27554060 | K24: =A2A!K65 -> 29041979.24
A25: ="Total "&A4 -> Total Revenue - Standard | B25: 2 | C25: =C5+C9+C15+C19+C24 -> 2879694246 | D25: =D5+D9+D15+D19+D24 -> 3381354782 | E25: =E5+E9+E15+E19+E24 -> 3730478982 | F25: 3864398977 | G25: 3875175704 | H25: 3875175704 | I25: =I5+I9+I15+I19+I24 -> 4654228673 | J25: 4986762660 | K25: 5405755666
A27: Expenditure - Standard
A28: =A5 -> Governance and administration | C28: =SUM(C29:C31) -> 366310781.2 | D28: =SUM(D29:D31) -> 851295874 | E28: 693273613 | F28: 691419697.1 | G28: 682713697.1 | H28: 682713697.1 | I28: 499299674 | J28: 552587658.3 | K28: 616584960.3
A29: =A6 -> Executive and council | C29: =A2A!C75 -> 61303952.24 | D29: =A2A!D75 -> 65331699.73 | E29: =A2A!E75 -> 17389061.04 | F29: =A2A!F75 -> 384298097.2 | G29: =A2A!G75 -> 384298097.2 | H29: =A2A!H75 -> 384298097.2 | I29: =A2A!I75 -> 107609195.4 | J29: =A2A!J75 -> 116431566.8 | K29: =A2A!K75 -> 123036466.4
A30: Budget and treasury office | C30: =A2A!C78 -> 304380829 | D30: =A2A!D78 -> 785592012.8 | E30: =A2A!E78 -> 668376580.2 | F30: =A2A!F78 -> 200156953.2 | G30: =A2A!G78 -> 191450953.2 | H30: =A2A!H78 -> 191450953.2 | I30: =A2A!I78 -> 171967801.1 | J30: =A2A!J78 -> 204189524.5 | K30: =A2A!K78 -> 239724186.7
A31: Corporate services | C31: =A2A!C79 -> 626000 | D31: =A2A!D79 -> 372161.45 | E31: =A2A!E79 -> 7507971.79 | F31: =A2A!F79 -> 106964646.6 | G31: =A2A!G79 -> 106964646.6 | H31: =A2A!H79 -> 106964646.6 | I31: =A2A!I79 -> 219722677.6 | J31: =A2A!J79 -> 231966567 | K31: =A2A!K79 -> 253824307.2
A32: Community and public safety | C32: =SUM(C33:C37) -> 470097172 | D32: =SUM(D33:D37) -> 448319701.8 | E32: 572915750.5 | F32: 421741116.6 | G32: 421741116.6 | H32: 421741116.6 | I32: 494075214.9 | J32: 516111648.5 | K32: 546290874.7
A33: Community and social services | C33: =A2A!C85 -> 90933338.23 | D33: =A2A!D85 -> 89732859.64 | E33: =A2A!E85 -> 102565640.5 | F33: =A2A!F85 -> 99201792.43 | G33: =A2A!G85 -> 99201792.43 | H33: =A2A!H85 -> 99201792.43 | I33: =A2A!I85 -> 127546727 | J33: =A2A!J85 -> 130644040.4 | K33: =A2A!K85 -> 138441692.4
A34: Sport and recreation | C34: =A2A!C94 -> 104372740 | D34: =A2A!D94 -> 104649323.4 | E34: =A2A!E94 -> 120259856.3 | F34: =A2A!F94 -> 81357690.22 | G34: =A2A!G94 -> 81357690.22 | H34: =A2A!H94 -> 81357690.22 | I34: =A2A!I94 -> 107339429.6 | J34: =A2A!J94 -> 113184842.2 | K34: =A2A!K94 -> 120622441.7
A35: Public safety | C35: =A2A!C95 -> 185265255.7 | D35: =A2A!D95 -> 188045382 | E35: =A2A!E95 -> 266751410.7 | F35: =A2A!F95 -> 196317222.8 | G35: =A2A!G95 -> 196317222.8 | H35: =A2A!H95 -> 196317222.8 | I35: =A2A!I95 -> 203382102.4 | J35: =A2A!J95 -> 213194139.8 | K35: =A2A!K95 -> 224874401.1
A36: Housing | C36: =A2A!C101 -> 31956221.65 | D36: =A2A!D101 -> 31422320.55 | E36: =A2A!E101 -> 48486732.62 | F36: =A2A!F101 -> 25148724.46 | G36: =A2A!G101 -> 25148724.46 | H36: =A2A!H101 -> 25148724.46 | I36: =A2A!I101 -> 36389762.04 | J36: =A2A!J101 -> 38739889.31 | K36: =A2A!K101 -> 40818031.66
A37: Health | C37: =A2A!C102 -> 57569616.47 | D37: =A2A!D102 -> 34469816.14 | E37: =A2A!E102 -> 34852110.35 | F37: =A2A!F102 -> 19715686.71 | G37: =A2A!G102 -> 19715686.71 | H37: =A2A!H102 -> 19715686.71 | I37: =A2A!I102 -> 19417193.85 | J37: =A2A!J102 -> 20348736.79 | K37: =A2A!K102 -> 21534307.89
A38: Economic and environmental services | C38: =SUM(C39:C41) -> 454829537.3 | D38: =SUM(D39:D41) -> 351984783.7 | E38: 509355276 | F38: 462751167.4 | G38: 462751167.4 | H38: 462751167.4 | I38: 564150276.8 | J38: 603465532.7 | K38: 644862108
A39: Planning and development | C39: =A2A!C107 -> 62855197.39 | D39: =A2A!D107 -> 56980583.12 | E39: =A2A!E107 -> 81257999.89 | F39: =A2A!F107 -> 128289794.1 | G39: =A2A!G107 -> 128289794.1 | H39: =A2A!H107 -> 128289794.1 | I39: =A2A!I107 -> 110638260.1 | J39: =A2A!J107 -> 117042957.5 | K39: =A2A!K107 -> 124388208.1
A40: Road transport | C40: =A2A!C111 -> 391974339.9 | D40: =A2A!D111 -> 295004200.6 | E40: =A2A!E111 -> 428097276.1 | F40: =A2A!F111 -> 334461373.3 | G40: =A2A!G111 -> 334461373.3 | H40: =A2A!H111 -> 334461373.3 | I40: =A2A!I111 -> 453512016.7 | J40: =A2A!J111 -> 486422575.2 | K40: =A2A!K111 -> 520473899.9
A41: Environmental protection | C41: =A2A!C117 -> 0 | D41: =A2A!D117 -> 0 | E41: =A2A!E117 -> 0 | F41: =A2A!F117 -> 0 | G41: =A2A!G117 -> 0 | H41: =A2A!H117 -> 0 | I41: =A2A!I117 -> 0 | J41: =A2A!J117 -> 0 | K41: =A2A!K117 -> 0
A42: Trading services | C42: =SUM(C43:C46) -> 1402710957 | D42: =SUM(D43:D46) -> 1576052358 | E42: 1788736186 | F42: =SUM(F43:F46) -> 1893221474 | G42: 1958872545 | H42: 1958872545 | I42: 2562424667 | J42: 2798184967 | K42: =SUM(K43:K46) -> 3060605023
A43: Electricity | C43: =A2A!C122 -> 919409707.9 | D43: =A2A!D122 -> 1039360584 | E43: =A2A!E122 -> 1171050672 | F43: =A2A!F122 -> 1374093478 | G43: =A2A!G122 -> 1374093549 | H43: =A2A!H122 -> 1374093549 | I43: =A2A!I122 -> 1561556553 | J43: =A2A!J122 -> 1702299152 | K43: =A2A!K122 -> 1862190844
A44: Water | C44: =A2A!C125 -> 297924964 | D44: =A2A!D125 -> 333879941 | E44: =A2A!E125 -> 364843062.2 | F44: =A2A!F125 -> 406791068 | G44: =A2A!G125 -> 472442068 | H44: =A2A!H125 -> 472442068 | I44: =A2A!I125 -> 705930033.8 | J44: =A2A!J125 -> 775582222.6 | K44: =A2A!K125 -> 854972887
A45: Waste water management | C45: =A2A!C128 -> 116055284.6 | D45: =A2A!D128 -> 130627079.8 | E45: =A2A!E128 -> 177475540.6 | F45: =A2A!F128 -> 9620949.241 | G45: =A2A!G128 -> 9620949.241 | H45: =A2A!H128 -> 9620949.241 | I45: =A2A!I128 -> 186492162.6 | J45: =A2A!J128 -> 201457232.1 | K45: =A2A!K128 -> 217622315.7
A46: Waste management | C46: =A2A!C132 -> 69321000 | D46: =A2A!D132 -> 72184753.38 | E46: =A2A!E132 -> 75366911.67 | F46: =A2A!F132 -> 102715978.2 | G46: =A2A!G132 -> 102715978.2 | H46: =A2A!H132 -> 102715978.2 | I46: =A2A!I132 -> 108445918.1 | J46: =A2A!J132 -> 118846360.3 | K46: =A2A!K132 -> 125818976.3
A47: Other | B47: 4 | C47: =A2A!C134 -> 46258206 | D47: =A2A!D134 -> 51846787.71 | E47: =A2A!E134 -> 46933461.86 | F47: =A2A!F134 -> 31121801 | G47: =A2A!G134 -> 31121801 | H47: =A2A!H134 -> 31121801 | I47: =A2A!I134 -> 41749170.46 | J47: =A2A!J134 -> 44541141.39 | K47: =A2A!K134 -> 47903725.75
A48: ="Total "&A27 -> Total Expenditure - Standard | B48: 3 | C48: =C28+C32+C38+C42+C47 -> 2740206653 | D48: =D28+D32+D38+D42+D47 -> 3279499506 | E48: =E28+E32+E38+E42+E47 -> 3611214288 | F48: =F28+F32+F38+F42+F47 -> 3500255256 | G48: 3557200327 | H48: 3557200327 | I48: 4161699003 | J48: 4514890948 | K48: 4916246691
A49: =result -> Surplus/(Deficit) for the year | C49: =C25-C48 -> 139487592.9 | D49: =D25-D48 -> 101855276.5 | E49: 119264694.5 | F49: 364143721 | G49: 317975377 | H49: 317975377 | I49: 492529670 | J49: 471871712 | K49: 489508974.9
A50: =head27a -> References
A51: 1. Government Finance Statistics Functions and Sub-functions are standardised to assist the compilation of national and international accounts for comparison purposes
A52: 2. Total Revenue by standard classification must reconcile to Total Operating Revenue shown in Budgeted Financial Performance (revenue and expenditure)
A53: 3. Total Expenditure by Standard Classification must reconcile to Total Operating Expenditure shown in Budgeted Financial Performance (revenue and expenditure)
A54: 4. All amounts must be classified under a standard classification (modified GFS). The GFS function 'Other' is only for Abbatoirs, Air Transport, Markets and Tourism - and if used must be supported by footnotes. Nothing else may be placed under 'Other'. Assign associate share to relevant classification
A57: check oprev balance | C57: =C25-'A4-FinPerf RE'!C60 -> 0 | D57: =D25-'A4-FinPerf RE'!D60 -> 0 | E57: =E25-'A4-FinPerf RE'!E60 -> 0 | F57: =F25-'A4-FinPerf RE'!F60 -> 0 | G57: =G25-'A4-FinPerf RE'!G60 -> 0 | H57: =H25-'A4-FinPerf RE'!H60 -> 0 | I57: =I25-'A4-FinPerf RE'!J60 -> 0 | J57: =J25-'A4-FinPerf RE'!K60 -> 0 | K57: =K25-'A4-FinPerf RE'!L60 -> 0
A58: check opexp balance | C58: =C48-'A4-FinPerf RE'!C36 -> 0 | D58: =D48-'A4-FinPerf RE'!D36 -> 0 | E58: =E48-'A4-FinPerf RE'!E36 -> 0 | F58: =F48-'A4-FinPerf RE'!F36 -> 0 | G58: =G48-'A4-FinPerf RE'!G36 -> 0 | H58: =H48-'A4-FinPerf RE'!H36 -> 0 | I58: =I48-'A4-FinPerf RE'!J36 -> 0 | J58: =J48-'A4-FinPerf RE'!K36 -> 0 | K58: =K48-'A4-FinPerf RE'!L36 -> 0

Sheet A2A
A1: =muni&" - "&Approve3 -> KZN225 Msunduzi - Table A2 Budgeted Financial Performance (revenue and expenditure by standard classification)
A2: ="Standard Classification "&desc -> Standard Classification Description | B2: =head27 -> Ref | C2: =head1b -> 2011/12 | D2: =head1A -> 2012/13 | E2: =Head1 -> 2013/14 | F2: =Head2 -> Current Year 2014/15 | I2: =Head3 -> 2015/16 Medium Term Revenue & Expenditure Framework
A3: R thousand | B3: 1 | C3: =Head5 -> Audited Outcome | D3: =Head5 -> Audited Outcome | E3: =Head5 -> Audited Outcome | F3: =Head6 -> Original Budget | G3: =Head7 -> Adjusted Budget | H3: =Head8 -> Full Year Forecast | I3: =Head9 -> Budget Year 2015/16 | J3: =Head10 -> Budget Year +1 2016/17 | K3: =Head11 -> Budget Year +2 2017/18
A4: Revenue - Standard
A5: Municipal governance and administration | C5: =C6+C9+C10 -> 884277948.7 | D5: =D6+D9+D10 -> 964195663.6 | E5: =E6+E10+E9 -> 1351283283 | F5: 1152827408 | G5: 1169204011 | H5: 1169204011 | I5: 1240509532 | J5: 1302012707 | K5: =K6+K9+K10 -> 1383957310
A6: Executive and council | C6: =SUM(C7:C8) -> 4164023.9 | D6: =SUM(D7:D8) -> 5880346.09 | E6: =SUM(E7:E8) -> 5798869.22 | F6: =SUM(F7:F8) -> 0 | G6: 0 | H6: 0 | I6: 1600000 | J6: 1625000 | K6: 1700000
A7: Mayor and Council | C7: 936052.58 | D7: 1133478.79 | E7: 1598286.6 | F7: 0 | G7: 0 | H7: 0 | I7: 1600000 | J7: 1625000 | K7: 1700000
A8: Municipal Manager | C8: 3227971.32 | D8: 4746867.3 | E8: 4200582.62 | F8: 0 | G8: 0 | H8: 0 | I8: 0 | J8: 0 | K8: 0
A9: Budget and treasury office | C9: 864518378.8 | D9: 928417408 | E9: 1328000385 | F9: 1149665247 | G9: 1161647832 | H9: 1161647832 | I9: 1228885444 | J9: 1290106501 | K9: 1371690919
A10: Corporate services | C10: =SUM(C11:C14) -> 15595546.04 | D10: =SUM(D11:D14) -> 29897909.57 | E10: =SUM(E11:E14) -> 17484028.6 | F10: 3162161 | G10: 7556179.04 | H10: 7556179.04 | I10: 10024088 | J10: 10281206 | K10: 10566391.12
A11: Human Resources | C11: 4306501.3 | D11: 5291417.83 | E11: 4116233.25 | F11: 3158910 | G11: 3158910 | H11: 3158910 | I11: 5000355 | J11: 5256149 | K11: 5539981.046
A12: Information Technology | C12: 8883.13 | D12: 9724.52 | E12: 27602.31 | F12: 3251 | G12: 3251 | H12: 3251 | I12: 23633 | J12: 24952 | K12: 26299.408
A13: Property Services | C13: 4240000 | D13: 9452000 | E13: 8346175 | F13: 0 | G13: 0 | H13: 0 | I13: 0 | J13: 0 | K13: 0
A14: Other Admin | C14: 7040161.61 | D14: 15144767.22 | E14: 4994018.04 | F14: 0 | G14: 4394018.04 | H14: 4394018.04 | I14: 5000100 | J14: 5000105 | K14: 5000110.67
A15: Community and public safety | C15: =C16+C25+C26+C32+C33 -> 50368526.57 | D15: =D16+D25+D26+D32+D33 -> 73799598.59 | E15: =E16+E25+E26+E32+E33 -> 70090903.98 | F15: 13360640.79 | G15: 13360540.79 | H15: 13360540.79 | I15: 68651162 | J15: 69119810 | K15: 71058110.94
A16: Community and social services | C16: =SUM(C17:C24) -> 22178578.52 | D16: =SUM(D17:D24) -> 35434594.49 | E16: =SUM(E17:E24) -> 20996688.3 | F16: 3249996.568 | G16: 3249996.568 | H16: 3249996.568 | I16: 31420979 | J16: 28799425 | K16: 30225207.95
A17: Libraries and Archives | C17: 2462277.99 | D17: 8456844.04 | E17: 4758756.44 | F17: 595800 | G17: 595800 | H17: 595800 | I17: 23437000 | J17: 24678000 | K17: 25914000
A18: Museums & Art Galleries etc | C18: 696000 | D18: 723454.42 | E18: 705729.18 | F18: 0 | G18: 0 | H18: 0 | I18: 552000 | J18: 581000 | K18: 612000
A19: Community halls and Facilities | C19: 2452000 | D19: 9074020.77 | E19: 6259439.37 | F19: 1374738.888 | G19: 1374738.888 | H19: 1374738.888 | I19: 1499148 | J19: 1574497 | K19: 1659519.838
A20: Cemeteries & Crematoriums | C20: 9854300.53 | D20: 9197846.46 | E20: 2730733.91 | F20: 1192860.284 | G20: 1192860.284 | H20: 1192860.284 | I20: 1245000 | J20: 1307000 | K20: 1377578
A21: Child Care | D21: 0 | E21: 0 | F21: 0 | G21: 0 | H21: 0 | I21: 0 | J21: 0 | K21: 0
A22: Aged Care | C22: 0 | D22: 0 | E22: 0 | F22: 0 | G22: 0 | H22: 0 | I22: 0 | J22: 0 | K22: 0
A23: Other Community | C23: 6714000 | D23: 7982428.8 | E23: 6542029.4 | F23: 86597.39589 | G23: 86597.39589 | H23: 86597.39589 | I23: 4687831 | J23: 658928 | K23: 662110.112
A24: Other Social | C24: 0 | D24: 0 | E24: 0 | F24: 0 | G24: 0 | H24: 0 | I24: 0 | J24: 0 | K24: 0
A25: Sport and recreation | C25: 5971000 | D25: 7341859.27 | E25: 15616513.97 | F25: 728884.2022 | G25: 728884.2022 | H25: 728884.2022 | I25: 837973 | J25: 884995 | K25: 932784.73
A26: Public safety | C26: =SUM(C27:C31) -> 5450265 | D26: =SUM(D27:D31) -> 10434991.61 | E26: =SUM(E27:E31) -> 8742201.48 | F26: 5827594.224 | G26: 5827494.224 | H26: 5827494.224 | I26: 21248091 | J26: 20322104 | K26: 21419497.62
A27: Police | C27: 5075265 | D27: 9701858.54 | E27: 8072503.97 | F27: 5222614.784 | G27: 5222514.784 | H27: 5222514.784 | I27: 20604900 | J27: 19642961 | K27: 20703680.89
A28: Fire | C28: 375000 | D28: 733133.07 | E28: 669697.51 | F28: 594489.44 | G28: 594489.44 | H28: 594489.44 | I28: 632176 | J28: 667578 | K28: 703627.212
A29: Civil Defence | C29: 0 | D29: 0 | E29: 0 | F29: 10490 | G29: 10490 | H29: 10490 | I29: 11015 | J29: 11565 | K29: 12189.51
A30: Street Lighting | C30: 0 | D30: 0 | E30: 0 | F30: 0 | G30: 0 | H30: 0 | I30: 0 | J30: 0 | K30: 0
A31: Other | C31: 0 | D31: 0 | E31: 0 | F31: 0 | G31: 0 | H31: 0 | I31: 0 | J31: 0 | K31: 0
A32: Housing | C32: 4123279.47 | D32: 5232700 | E32: 18135483.93 | F32: 3484523 | G32: 3484523 | H32: 3484523 | I32: 15112138 | J32: 19079524 | K32: 18445035.49
A33: Health | C33: =SUM(C34:C36) -> 12645403.58 | D33: =SUM(D34:D36) -> 15355453.22 | E33: =SUM(E34:E36) -> 6600016.3 | F33: 69642.79882 | G33: 69642.79882 | H33: 69642.79882 | I33: 31981 | J33: 33762 | K33: 35585.148
A34: Clinics | C34: 3270839.16 | D34: 2970839.16 | E34: 5074000 | F34: 0 | G34: 0 | H34: 0 | I34: 0 | J34: 0 | K34: 0
A35: Ambulance | C35: 0 | D35: 0 | E35: 0 | F35: 0 | G35: 0 | H35: 0 | I35: 0 | J35: 0 | K35: 0
A36: Other | C36: 9374564.42 | D36: 12384614.06 | E36: 1526016.3 | F36: 69642.79882 | G36: 69642.79882 | H36: 69642.79882 | I36: 31981 | J36: 33762 | K36: 35585.148
A37: Economic and environmental services | C37: =C38+C42+C48 -> 160260931.1 | D37: =D38+D42+D48 -> 188806392.5 | E37: =E38+E42+E48 -> 162232433.8 | F37: 171598331.9 | G37: 175646331.9 | H37: 175646331.9 | I37: 472320174 | J37: 480288595 | K37: 491528025.1
A38: Planning and development | C38: =SUM(C39:C41) -> 40952407.23 | D38: =SUM(D39:D41) -> 44130598.59 | E38: =SUM(E39:E41) -> 41717401.23 | F38: 7971530.875 | G38: 12019530.87 | H38: 12019530.87 | I38: 70134877 | J38: 79600582 | K38: 82279013.43
A39: Economic Development/Planning | C39: 36328805 | D39: 38132209.36 | E39: 37588507.14 | F39: 4644478 | G39: 8692478 | H39: 8692478 | I39: 66766290 | J39: 76045078 | K39: 78531512.21
A40: Town Planning/Building enforcement | C40: 2920846.54 | D40: 3480463.59 | E40: 3565683.43 | F40: 2833470.875 | G40: 2833470.875 | H40: 2833470.875 | I40: 2764826 | J40: 2917933 | K40: 3075501.382
A41: Licensing & Regulation | C41: 1702755.69 | D41: 2517925.64 | E41: 563210.66 | F41: 493582 | G41: 493582 | H41: 493582 | I41: 603761 | J41: 637571 | K41: 671999.834
A42: Road transport | C42: =SUM(C43:C47) -> 119308523.9 | D42: =SUM(D43:D47) -> 144675793.9 | E42: =SUM(E43:E47) -> 120515032.6 | F42: 163626801 | G42: 163626801 | H42: 163626801 | I42: 402185297 | J42: 400688013 | K42: 409249011.7
A43: Roads | C43: 61458385.83 | D43: 82460753.97 | E43: 59543959.97 | F43: 63363083 | G43: 63363083 | H43: 63363083 | I43: 188634756 | J43: 196789495 | K43: 208981643.7
A44: Public Buses | C44: 51424757.15 | D44: 54518390 | E44: 55724694.62 | F44: 100263718 | G44: 100263718 | H44: 100263718 | I44: 213550541 | J44: 203898518 | K44: 200267368
A45: Parking Garages | C45: 470074.06 | D45: 493577.76 | E45: 0 | F45: 0 | G45: 0 | H45: 0 | I45: 0 | J45: 0 | K45: 0
A46: Vehicle Licensing and Testing | C46: 0 | D46: 0 | E46: 0 | F46: 0 | G46: 0 | H46: 0 | I46: 0 | J46: 0 | K46: 0
A47: Other | C47: 5955306.87 | D47: 7203072.21 | E47: 5246378 | F47: 0 | G47: 0 | H47: 0 | I47: 0 | J47: 0 | K47: 0
A48: Environmental protection | C48: =SUM(C49:C51) -> 0 | D48: =SUM(D49:D51) -> 0 | E48: 0 | F48: 0 | G48: 0 | H48: 0 | I48: 0 | J48: 0 | K48: 0
A49: Pollution Control
A50: Biodiversity & Landscape
A51: Other
A52: Trading services | C52: =C53+C56+C59+C63 -> 1678603419 | D52: =D53+D56+D59+D63 -> 1982478509 | E52: =E53+E56+E59+E63 -> 2073501239 | F52: 2437047384 | G52: 2437399608 | H52: 2437399608 | I52: 2844740463 | J52: 3107787488 | K52: =K53+K56+K59+K63 -> 3430170241
A53: Electricity | C53: =SUM(C54:C55) -> 1212660157 | D53: =SUM(D54:D55) -> 1401970761 | E53: =SUM(E54:E55) -> 1486939403 | F53: 1700095496 | G53: 1700095496 | H53: 1700095496 | I53: 1908646756 | J53: 2129988400 | K53: 2384357963
A54: Electricity Distribution | C54: 1212660157 | D54: 1401970761 | E54: 1486939403 | F54: 1700095496 | G54: 1700095496 | H54: 1700095496 | I54: =(1906675903+34512)+1936341.108 -> 1908646756 | J54: 2129988400 | K54: 2384357963
A55: Electricity Generation | D55: 0 | E55: 0 | F55: 0 | I55: 0 | J55: 0 | K55: 0
A56: Water | C56: =SUM(C57:C58) -> 288345314 | D56: =SUM(D57:D58) -> 386419258 | E56: =SUM(E57:E58) -> 380807209 | F56: 500521326.9 | G56: 500521326.9 | H56: 500521326.9 | I56: 689286540.7 | J56: 720935332.7 | K56: 774080941.9
A57: Water Distribution | C57: 288345314 | D57: 386419258 | E57: 380807209 | F57: 500521326.9 | G57: 500521326.9 | H57: 500521326.9 | I57: 689286540.7 | J57: =(656908389-74273953)+138300896.703473 -> 720935332.7 | K57: =(691106842.324-78284746)+161258845.556249 -> 774080941.9
A58: Water Storage | E58: 0 | I58: 0 | J58: 0 | K58: 0
A59: Waste water management | C59: =SUM(C60:C62) -> 107506830 | D59: =SUM(D60:D62) -> 120089290 | E59: =SUM(E60:E62) -> 126300618 | F59: 149071154.9 | G59: 149071154.9 | H59: 149071154.9 | I59: 148037042.6 | J59: 154007671.4 | K59: 162918744
A60: Sewerage | C60: 107506830 | D60: 120089290 | E60: 126300618 | F60: 149071154.9 | G60: 149071154.9 | H60: 149071154.9 | I60: 148037042.6 | J60: 154007671.4 | K60: 162918744
A61: Storm Water Management | C61: 0 | D61: 0 | E61: 0 | F61: 0 | I61: 0 | J61: 0 | K61: 0
A62: Public Toilets | D62: 0 | E62: 0 | F62: 0 | I62: 0 | J62: 0 | K62: 0
A63: Waste management | C63: =SUM(C64) -> 70091118 | D63: =SUM(D64) -> 73999200 | E63: =SUM(E64) -> 79454009 | F63: 87359405.89 | G63: 87711630 | H63: 87711630 | I63: 98770123.77 | J63: 102856083.9 | K63: 108812591.8
A64: Solid Waste | C64: 70091118 | D64: 73999200 | E64: 79454009 | F64: 87359405.89 | G64: 87711630 | H64: 87711630 | I64: 98770123.77 | J64: 102856083.9 | K64: 108812591.8
A65: Other | C65: =SUM(C66:C70) -> 106183420.6 | D65: =SUM(D66:D70) -> 172074618.3 | E65: =SUM(E66:E70) -> 73371122.2 | F65: 89565212.34 | G65: 79565212.34 | H65: 79565212.34 | I65: 28007342 | J65: 27554060 | K65: 29041979.24
A66: Air Transport | C66: 13530195.82 | D66: 29966209.39 | E66: 21588065.88 | F66: 5417843 | G66: 5417843 | H66: 5417843 | I66: 5963942 | J66: 6511604 | K66: 6863230.616
A67: Abattoirs | C67: 0 | D67: 0 | E67: 0 | F67: 0 | G67: 0 | H67: 0 | I67: 0 | J67: 0 | K67: 0
A68: Tourism | C68: 57215021.45 | D68: 67945075.21 | E68: 28253622 | F68: 64400083.34 | G68: 54400083.34 | H68: 54400083.34 | I68: 0 | J68: 0 | K68: 0
A69: Forestry | C69: 0 | D69: 0 | E69: 0 | F69: 0 | G69: 0 | H69: 0 | I69: 0 | J69: 0 | K69: 0
A70: Markets | C70: 35438203.3 | D70: 74163333.66 | E70: 23529434.32 | F70: 19747286 | G70: 19747286 | H70: 19747286 | I70: 22043400 | J70: 21042456 | K70: 22178748.62
A71: ="Total "&A4 -> Total Revenue - Standard | B71: 2 | C71: =C5+C15+C37+C52+C65 -> 2879694246 | D71: 3381354782 | E71: 3730478982 | F71: =F5+F15+F37+F52+F65 -> 3864398977 | G71: 3875175704 | H71: 3875175704 | I71: 4654228673 | J71: 4986762660 | K71: 5405755666
A73: Expenditure - Standard
A74: =A5 -> Municipal governance and administration | C74: =C75+C78+C79 -> 366310781.2 | D74: 851295874 | E74: =E75+E78+E79 -> 693273613 | F74: 691419697.1 | G74: 682713697.1 | H74: 682713697.1 | I74: 499299674 | J74: 552587658.3 | K74: 616584960.3
A75: =A6 -> Executive and council | C75: =SUM(C76:C77) -> 61303952.24 | D75: 65331699.73 | E75: =SUM(E76:E77) -> 17389061.04 | F75: 384298097.2 | G75: 384298097.2 | H75: 384298097.2 | I75: 107609195.4 | J75: 116431566.8 | K75: 123036466.4
A76: Mayor and Council | C76: 46892499.95 | D76: 50161749.95 | E76: 14666000.23 | F76: 343048464.8 | G76: 343048464.8 | H76: 343048464.8 | I76: 64850467.61 | J76: 72476385.54 | K76: 76544715.41
A77: Municipal Manager | C77: 14411452.29 | D77: 15169949.78 | E77: 2723060.81 | F77: 41249632.47 | G77: 41249632.47 | H77: 41249632.47 | I77: 42758727.74 | J77: 43955181.29 | K77: 46491750.95
A78: Budget and treasury office | C78: 304380829 | D78: 785592012.8 | E78: 668376580.2 | F78: 200156953.2 | G78: 191450953.2 | H78: 191450953.2 | I78: 171967801.1 | J78: 204189524.5 | K78: 239724186.7
A79: Corporate services | C79: =SUM(C80:C83) -> 626000 | D79: 372161.45 | E79: =SUM(E80:E83) -> 7507971.79 | F79: 106964646.6 | G79: 106964646.6 | H79: 106964646.6 | I79: 219722677.6 | J79: 231966567 | K79: 253824307.2
A80: Human Resources | C80: 626000 | D80: 372161.45 | E80: 6387632.21 | F80: 74317832.79 | G80: 74317832.79 | H80: 74317832.79 | I80: 189199616.9 | J80: 200376730.7 | K80: 220747883.5
A81: Information Technology | C81: 0 | D81: 0 | E81: 0 | F81: 24752270.32 | G81: 24752270.32 | H81: 24752270.32 | I81: 22150963.26 | J81: 23053181.23 | K81: 24340023.37
A82: Property Services | C82: 0 | D82: 0 | E82: 0 | F82: 0 | G82: 0 | H82: 0 | I82: 0 | J82: 0 | K82: 0
A83: Other Admin | C83: 9.313225746e-10 | D83: 9.313225746e-10 | E83: 1120339.58 | F83: 7894543.528 | G83: 7894543.528 | H83: 7894543.528 | I83: 8372097.46 | J83: 8536655.07 | K83: 8736400.271
A84: Community and public safety | C84: =C85+C94+C95+C101+C102 -> 470097172 | D84: 448319701.8 | E84: =E85+E94+E95+E101+E102 -> 572915750.5 | F84: 421741116.6 | G84: 421741116.6 | H84: 421741116.6 | I84: 494075214.9 | J84: 516111648.5 | K84: 546290874.7
A85: Community and social services | C85: =SUM(C86:C93) -> 90933338.23 | D85: 89732859.64 | E85: =SUM(E86:E93) -> 102565640.5 | F85: 99201792.43 | G85: 99201792.43 | H85: 99201792.43 | I85: 127546727 | J85: 130644040.4 | K85: 138441692.4
A86: Libraries and Archives | C86: 30152576.3 | D86: 32759437.44 | E86: 43213217.52 | F86: 48666495.62 | G86: 48666495.62 | H86: 48666495.62 | I86: 61863790.6 | J86: 65226299.8 | K86: 68848577.04
A87: Museums & Art Galleries etc | C87: 6073900.77 | D87: 5108275.85 | E87: 6212520.62 | F87: 3261979.684 | G87: 3261979.684 | H87: 3261979.684 | I87: 7018839.156 | J87: 7430786.349 | K87: 7835794.686
A88: Community halls and Facilities | C88: 23028216.86 | D88: 23092785.05 | E88: 20520191.91 | F88: 7791855.188 | G88: 7791855.188 | H88: 7791855.188 | I88: 18685966.27 | J88: 20229288.46 | K88: 21894530.38
A89: Cemeteries & Crematoriums | C89: 7139644.3 | D89: 7179825.57 | E89: 10104533.39 | F89: 6912030.625 | G89: 6912030.625 | H89: 6912030.625 | I89: 7599045.55 | J89: 8010702.228 | K89: 8538386.379
A90: Child Care | C90: 0 | D90: 0 | E90: 0 | F90: 0 | G90: 0 | H90: 0 | I90: 0 | J90: 0 | K90: 0
A91: Aged Care | C91: 0 | D91: 0 | E91: 0 | F91: 0 | G91: 0 | H91: 0 | I91: 0 | J91: 0 | K91: 0
A92: Other Community | C92: 24539000 | D92: 21592535.73 | E92: 22515177.04 | F92: 32569431.31 | G92: 32569431.31 | H92: 32569431.31 | I92: 32379085.45 | J92: 29746963.6 | K92: 31324403.92
A93: Other Social | C93: 0 | D93: 0 | E93: 0 | F93: 0 | G93: 0 | H93: 0 | I93: 0 | J93: 0 | K93: 0
A94: Sport and recreation | C94: 104372740 | D94: 104649323.4 | E94: 120259856.3 | F94: 81357690.22 | G94: 81357690.22 | H94: 81357690.22 | I94: 107339429.6 | J94: 113184842.2 | K94: 120622441.7
A95: Public safety | C95: =SUM(C96:C100) -> 185265255.7 | D95: 188045382 | E95: =SUM(E96:E100) -> 266751410.7 | F95: 196317222.8 | G95: 196317222.8 | H95: 196317222.8 | I95: 203382102.4 | J95: 213194139.8 | K95: 224874401.1
A96: Police | C96: 115401000 | D96: 113432285.1 | E96: 185308554.9 | F96: 121459655.7 | G96: 121459655.7 | H96: 121459655.7 | I96: 127485005.4 | J96: 133325599.9 | K96: 140508209
A97: Fire | C97: 62824351.71 | D97: 66133545.56 | E97: 72111540.23 | F97: 65810193.15 | G97: 65810193.15 | H97: 65810193.15 | I97: 67085431.02 | J97: 70419697.42 | K97: 74335469.93
A98: Civil Defence | C98: 7039904.02 | D98: 8479551.39 | E98: 9331315.58 | F98: 9047374.01 | G98: 9047374.01 | H98: 9047374.01 | I98: 8811665.983 | J98: 9448842.466 | K98: 10030722.14
A99: Street Lighting | C99: 0 | D99: 0 | E99: 0 | F99: 0 | G99: 0 | H99: 0 | I99: 0 | J99: 0 | K99: 0
A100: Other | C100: 0 | D100: 0 | E100: 0 | F100: 0 | G100: 0 | H100: 0 | I100: 0 | J100: 0 | K100: 0
A101: Housing | C101: 31956221.65 | D101: 31422320.55 | E101: 48486732.62 | F101: 25148724.46 | G101: 25148724.46 | H101: 25148724.46 | I101: 36389762.04 | J101: 38739889.31 | K101: 40818031.66
A102: Health | C102: =SUM(C103:C105) -> 57569616.47 | D102: 34469816.14 | E102: =SUM(E103:E105) -> 34852110.35 | F102: 19715686.71 | G102: 19715686.71 | H102: 19715686.71 | I102: 19417193.85 | J102: 20348736.79 | K102: 21534307.89
A103: Clinics | C103: 25193920.28 | D103: 3396552.06 | E103: 2489552.44 | F103: 407782.33 | G103: 407782.33 | H103: 407782.33 | I103: 2147394.129 | J103: 2259030.142 | K103: 2468600.81
A104: Ambulance | C104: 0 | D104: 0 | E104: 0 | F104: 0 | G104: 0 | H104: 0 | I104: 0 | J104: 0 | K104: 0
A105: Other | C105: 32375696.19 | D105: 31073264.08 | E105: 32362557.91 | F105: 19307904.38 | G105: 19307904.38 | H105: 19307904.38 | I105: 17269799.72 | J105: 18089706.65 | K105: 19065707.08
A106: Economic and environmental services | C106: =C107+C111+C117 -> 454829537.3 | D106: 351984783.7 | E106: =E107+E111+E117 -> 509355276 | F106: 462751167.4 | G106: 462751167.4 | H106: 462751167.4 | I106: 564150276.8 | J106: 603465532.7 | K106: 644862108
A107: Planning and development | C107: =SUM(C108:C110) -> 62855197.39 | D107: 56980583.12 | E107: =SUM(E108:E110) -> 81257999.89 | F107: 128289794.1 | G107: 128289794.1 | H107: 128289794.1 | I107: 110638260.1 | J107: 117042957.5 | K107: 124388208.1
A108: Economic Development/Planning | C108: 37908000 | D108: 31726710.54 | E108: 48904788.41 | F108: 100996891.7 | G108: 100996891.7 | H108: 100996891.7 | I108: 82245589.68 | J108: 87219110.09 | K108: 92950951.96
A109: Town Planning/Building enforcement | C109: 19399112.01 | D109: 18663683.4 | E109: 24656752.08 | F109: 22216364.19 | G109: 22216364.19 | H109: 22216364.19 | I109: 22614686.44 | J109: 23735888.37 | K109: 25010573.46
A110: Licensing & Regulation | C110: 5548085.38 | D110: 6590189.18 | E110: 7696459.4 | F110: 5076538.149 | G110: 5076538.149 | H110: 5076538.149 | I110: 5777983.984 | J110: 6087959.067 | K110: 6426682.667
A111: Road transport | C111: =SUM(C112:C116) -> 391974339.9 | D111: 295004200.6 | E111: =SUM(E112:E116) -> 428097276.1 | F111: 334461373.3 | G111: 334461373.3 | H111: 334461373.3 | I111: 453512016.7 | J111: 486422575.2 | K111: 520473899.9
A112: Roads | C112: 256976000 | D112: 243126175.7 | E112: 375059484.2 | F112: 40613585.15 | G112: 40613585.15 | H112: 40613585.15 | I112: 426440200.3 | J112: 457013499 | K112: 490770102.7
A113: Public Buses | C113: 130279000 | D113: 46853072.11 | E113: 48074417.13 | F113: 293679831.1 | G113: 293679831.1 | H113: 293679831.1 | I113: 12692810.38 | J113: 13637677.16 | K113: 14675592.62
A114: Parking Garages | C114: 0 | D114: 0 | E114: 0 | F114: 0 | G114: 0 | H114: 0 | I114: 0 | J114: 0 | K114: 0
A115: Vehicle Licensing and Testing | C115: 0 | D115: 0 | E115: 0 | F115: 0 | G115: 0 | H115: 0 | I115: 0 | J115: 0 | K115: 0
A116: Other | C116: 4719339.88 | D116: 5024952.74 | E116: 4963374.8 | F116: 167957.0457 | G116: 167957.0457 | H116: 167957.0457 | I116: 14379006.01 | J116: 15771399.05 | K116: 15028204.52
A117: Environmental protection | C117: =SUM(C118:C120) -> 0 | D117: 0 | E117: 0 | F117: 0 | G117: 0 | H117: 0 | I117: 0 | J117: 0 | K117: 0
A118: Pollution Control | E118: 0 | F118: 0 | G118: 0 | H118: 0 | I118: 0 | J118: 0 | K118: 0
A119: Biodiversity & Landscape | E119: 0 | F119: 0 | G119: 0 | H119: 0 | I119: 0 | J119: 0 | K119: 0
A120: Other | C120: 0 | E120: 0 | F120: 0 | G120: 0 | H120: 0 | I120: 0 | J120: 0 | K120: 0
A121: Trading services | C121: =C122+C125+C128+C132 -> 1402710957 | D121: =D122+D125+D128+D132 -> 1576052358 | E121: =E122+E125+E128+E132 -> 1788736186 | F121: 1893221474 | G121: 1958872545 | H121: 1958872545 | I121: 2562424667 | J121: 2798184967 | K121: 3060605023
A122: Electricity | C122: =SUM(C123:C124) -> 919409707.9 | D122: 1039360584 | E122: =SUM(E123:E124) -> 1171050672 | F122: 1374093478 | G122: 1374093549 | H122: 1374093549 | I122: 1561556553 | J122: 1702299152 | K122: 1862190844
A123: Electricity Distribution | C123: 919409707.9 | D123: 1039360584 | E123: 1171050672 | F123: 1374093478 | G123: 1374093549 | H123: 1374093549 | I123: 1561556553 | J123: 1702299152 | K123: 1862190844
A124: Electricity Generation | E124: 0 | I124: 0 | J124: 0 | K124: 0
A125: Water | C125: =SUM(C126:C127) -> 297924964 | D125: 333879941 | E125: =SUM(E126:E127) -> 364843062.2 | F125: 406791068 | G125: 472442068 | H125: 472442068 | I125: 705930033.8 | J125: 775582222.6 | K125: 854972887
A126: Water Distribution | C126: 297924964 | D126: 333879941 | E126: 364843062.2 | F126: 406791068 | G126: 472442068 | H126: 472442068 | I126: 705930033.8 | J126: =(637281325.854693)+138300896.703473 -> 775582222.6 | K126: =(693714041.424193)+161258845.556249 -> 854972887
A127: Water Storage | E127: 0 | I127: 0 | J127: 0 | K127: 0
A128: Waste water management | C128: =SUM(C129:C131) -> 116055284.6 | D128: 130627079.8 | E128: =SUM(E129:E131) -> 177475540.6 | F128: 9620949.241 | G128: 9620949.241 | H128: 9620949.241 | I128: 186492162.6 | J128: 201457232.1 | K128: 217622315.7
A129: Sewerage | C129: 116055284.6 | D129: 130627079.8 | E129: 177475540.6 | F129: 9620949.241 | G129: 9620949.241 | H129: 9620949.241 | I129: 186492162.6 | J129: 201457232.1 | K129: 217622315.7
A130: Storm Water Management | C130: 0 | D130: 0 | E130: 0 | F130: 0 | G130: 0 | H130: 0 | I130: 0 | J130: 0 | K130: 0
A131: Public Toilets | C131: 0 | D131: 0 | E131: 0 | F131: 0 | G131: 0 | H131: 0 | I131: 0 | J131: 0 | K131: 0
A132: Waste management | C132: =SUM(C133) -> 69321000 | D132: 72184753.38 | E132: =SUM(E133) -> 75366911.67 | F132: 102715978.2 | G132: 102715978.2 | H132: 102715978.2 | I132: 108445918.1 | J132: 118846360.3 | K132: 125818976.3
A133: Solid Waste | C133: 69321000 | D133: 72184753.38 | E133: 75366911.67 | F133: 102715978.2 | G133: 102715978.2 | H133: 102715978.2 | I133: 108445918.1 | J133: 118846360.3 | K133: 125818976.3
A134: Other | C134: =SUM(C135:C139) -> 46258206 | D134: 51846787.71 | E134: =SUM(E135:E139) -> 46933461.86 | F134: 31121801 | G134: 31121801 | H134: 31121801 | I134: 41749170.46 | J134: 44541141.39 | K134: 47903725.75
A135: Air Transport | C135: 1373438 | D135: 1458543 | E135: 15468923.36 | F135: 16549000 | G135: 16549000 | H135: 16549000 | I135: 13886566.74 | J135: 14564504.28 | K135: 15504605.31
A136: Abattoirs | C136: 0 | D136: 0 | E136: 0 | I136: 0 | J136: 0 | K136: 0
A137: Tourism | C137: 0 | D137: 0 | E137: 0 | I137: 0 | J137: 0 | K137: 0
A138: Forestry | C138: 11901599 | D138: 10941309 | E138: 16664.92 | F138: 45000 | G138: 45000 | H138: 45000 | I138: 23988 | J138: 25187 | K138: 26547.098
A139: =A70 -> Markets | C139: 32983169 | D139: 39446935.71 | E139: 31447873.58 | F139: 14527801 | G139: 14527801 | H139: 14527801 | I139: 27838615.72 | J139: 29951450.12 | K139: 32372573.35
A140: ="Total "&A73 -> Total Expenditure - Standard | B140: 3 | C140: =C74+C84+C106+C121+C134 -> 2740206653 | D140: 3279499506 | E140: 3611214288 | F140: 3500255256 | G140: 3557200327 | H140: 3557200327 | I140: =I74+I84+I106+I121+I134 -> 4161699003 | J140: 4514890948 | K140: 4916246691
A141: =result -> Surplus/(Deficit) for the year | C141: =C71-C140 -> 139487592.9 | D141: 101855276.5 | E141: =E71-E140 -> 119264694.5 | F141: 364143721 | G141: 317975377 | H141: 317975377 | I141: 492529670 | J141: 471871712 | K141: 489508974.9
A142: =head27a -> References
A143: 1. Government Finance Statistics Functions and Sub-functions are standardised to assist national and international accounts and comparison
A144: 2. Total Revenue by Standard Classification must reconcile to total operating revenue shown in Financial Performance (revenue and expenditure)
A145: 3. Total Expenditure by Standard Classification must reconcile to total operating expenditure shown in Financial Performance (revenue and expenditure)
A146: 4. All amounts must be classified under a Standard (modified GFS) classification. The GFS function 'Other' is only for Abbatoirs, Air Transport, Markets and Tourism - and if used must be supported by footnotes. Nothing else may be placed under 'Other'. Assign associate share to relevant classification
A149: check oprev balance | C149: =C71-'A4-FinPerf RE'!C60 -> 0 | D149: =D71-'A4-FinPerf RE'!D60 -> 0 | E149: =E71-'A4-FinPerf RE'!E60 -> 0 | F149: =F71-'A4-FinPerf RE'!F60 -> 0 | G149: =G71-'A4-FinPerf RE'!G60 -> 0 | H149: =H71-'A4-FinPerf RE'!H60 -> 0 | I149: =I71-'A4-FinPerf RE'!J60 -> 0 | J149: =J71-'A4-FinPerf RE'!K60 -> 0 | K149: =K71-'A4-FinPerf RE'!L60 -> 0
A150: check opexp balance | C150: =C140-'A4-FinPerf RE'!C36 -> 0 | D150: =D140-'A4-FinPerf RE'!D36 -> 0 | E150: =E140-'A4-FinPerf RE'!E36 -> 0 | F150: =F140-'A4-FinPerf RE'!F36 -> 0 | G150: =G140-'A4-FinPerf RE'!G36 -> 0 | H150: =H140-'A4-FinPerf RE'!H36 -> 0 | I150: =I140-'A4-FinPerf RE'!J36 -> 0 | J150: =J140-'A4-FinPerf RE'!K36 -> 0 | K150: =K140-'A4-FinPerf RE'!L36 -> 0

Sheet A3-FinPerf V
A1: =muni&" - "&Approve2 -> KZN225 Msunduzi - Table A3 Budgeted Financial Performance (revenue and expenditure by municipal vote)
A2: =Vdesc -> Vote Description | B2: =head27 -> Ref | C2: =head1b -> 2011/12 | D2: =head1A -> 2012/13 | E2: =Head1 -> 2013/14 | F2: =Head2 -> Current Year 2014/15 | I2: =Head3 -> 2015/16 Medium Term Revenue & Expenditure Framework | L2: =Head4 -> LTFS
A3: R thousand | C3: =Head5 -> Audited Outcome | D3: =Head5 -> Audited Outcome | E3: =Head5 -> Audited Outcome | F3: =Head6 -> Original Budget | G3: =Head7 -> Adjusted Budget | H3: =Head8 -> Full Year Forecast | I3: =Head9 -> Budget Year 2015/16 | J3: =Head10 -> Budget Year +1 2016/17 | K3: =Head11 -> Budget Year +2 2017/18 | L3: =Head12 -> Forecast 2018/19 | M3: =Head13 -> Forecast 2019/20 | N3: =Head14 -> Forecast 2020/21 | O3: =Head15 -> Forecast 2021/22 | P3: =Head16 -> Forecast 2022/23 | Q3: =Head17 -> Forecast 2023/24 | R3: =Head18 -> Forecast 2024/25 | S3: =Head19 -> Forecast 2025/26 | T3: =Head20 -> Forecast 2026/27 | U3: =Head21 -> Forecast 2027/28 | V3: =Head22 -> Forecast 2028/29 | W3: =Head23 -> Forecast 2029/30
A4: Revenue by Vote | B4: 1
A5: =A3A!A5 -> Vote 1 - Corporate Services | C5: =A3A!C5 -> 61413148.47 | D5: =A3A!D5 -> 104872953.3 | E5: =A3A!E5 -> 38363061.5 | F5: =A3A!F5 -> 311882146 | G5: =A3A!G5 -> 310156146 | H5: =A3A!H5 -> 310156146 | I5: =A3A!I5 -> 86560685 | J5: =A3A!J5 -> 76922822 | K5: =A3A!K5 -> 83271368
A6: =A3A!A16 -> Vote 2 - Financial Management Area | C6: =A3A!C16 -> 875469490.3 | D6: =A3A!D16 -> 926114475.7 | E6: =A3A!E16 -> 1213051299 | F6: =A3A!F16 -> 1077719479 | G6: =A3A!G16 -> 1077719479 | H6: =A3A!H16 -> 1077719479 | I6: =A3A!I16 -> 1466380936 | J6: =A3A!J16 -> 1505003437 | K6: =A3A!K16 -> 1600441952
A7: =A3A!A27 -> Vote 3 - Infrastructure Development, Service Delivery and Maintenance Management | C7: =A3A!C27 -> 1794119357 | D7: =A3A!D27 -> 2121037029 | E7: =A3A!E27 -> 2248333337 | F7: =A3A!F27 -> 2436060456 | G7: =A3A!G27 -> 2448525192 | H7: =A3A!H27 -> 2448525192 | I7: =A3A!I27 -> 2895143857 | J7: =A3A!J27 -> 3194454856 | K7: =A3A!K27 -> 3505160172
A8: =A3A!A38 -> Vote 4 - Sustainable Community Service Delivery Provision Management | C8: =A3A!C38 -> 148692250.7 | D8: =A3A!D38 -> 229330324.6 | E8: =A3A!E38 -> 230731285.2 | F8: =A3A!F38 -> 38736896 | G8: =A3A!G38 -> 38774887 | H8: =A3A!H38 -> 38774887 | I8: =A3A!I38 -> 206143195 | J8: =A3A!J38 -> 210381545 | K8: =A3A!K38 -> 216882174
A9: =A3A!A49 -> Vote 5 - [NAME OF VOTE 5] | C9: =A3A!C49 -> 0 | D9: =A3A!D49 -> 0 | E9: =A3A!E49 -> 0 | F9: =A3A!F49 -> 0 | G9: =A3A!G49 -> 0 | H9: =A3A!H49 -> 0 | I9: =A3A!I49 -> 0 | J9: =A3A!J49 -> 0 | K9: =A3A!K49 -> 0
A10: =A3A!A60 -> Vote 6 - [NAME OF VOTE 6] | C10: =A3A!C60 -> 0 | D10: =A3A!D60 -> 0 | E10: =A3A!E60 -> 0 | F10: =A3A!F60 -> 0 | G10: =A3A!G60 -> 0 | H10: =A3A!H60 -> 0 | I10: =A3A!I60 -> 0 | J10: =A3A!J60 -> 0 | K10: =A3A!K60 -> 0
A11: =A3A!A71 -> Vote 7 - [NAME OF VOTE 7] | C11: =A3A!C71 -> 0 | D11: =A3A!D71 -> 0 | E11: =A3A!E71 -> 0 | F11: =A3A!F71 -> 0 | G11: =A3A!G71 -> 0 | H11: =A3A!H71 -> 0 | I11: =A3A!I71 -> 0 | J11: =A3A!J71 -> 0 | K11: =A3A!K71 -> 0
A12: =A3A!A82 -> Vote 8 - [NAME OF VOTE 8] | C12: =A3A!C82 -> 0 | D12: =A3A!D82 -> 0 | E12: =A3A!E82 -> 0 | F12: =A3A!F82 -> 0 | G12: =A3A!G82 -> 0 | H12: =A3A!H82 -> 0 | I12: =A3A!I82 -> 0 | J12: =A3A!J82 -> 0 | K12: =A3A!K82 -> 0
A13: =A3A!A93 -> Vote 9 - [NAME OF VOTE 9] | C13: =A3A!C93 -> 0 | D13: =A3A!D93 -> 0 | E13: =A3A!E93 -> 0 | F13: =A3A!F93 -> 0 | G13: =A3A!G93 -> 0 | H13: =A3A!H93 -> 0 | I13: =A3A!I93 -> 0 | J13: =A3A!J93 -> 0 | K13: =A3A!K93 -> 0
A14: =A3A!A104 -> Vote 10 - [NAME OF VOTE 10] | C14: =A3A!C104 -> 0 | D14: =A3A!D104 -> 0 | E14: =A3A!E104 -> 0 | F14: =A3A!F104 -> 0 | G14: =A3A!G104 -> 0 | H14: =A3A!H104 -> 0 | I14: =A3A!I104 -> 0 | J14: =A3A!J104 -> 0 | K14: =A3A!K104 -> 0
A15: =A3A!A115 -> Vote 11 - [NAME OF VOTE 11] | C15: =A3A!C115 -> 0 | D15: =A3A!D115 -> 0 | E15: =A3A!E115 -> 0 | F15: =A3A!F115 -> 0 | G15: =A3A!G115 -> 0 | H15: =A3A!H115 -> 0 | I15: =A3A!I115 -> 0 | J15: =A3A!J115 -> 0 | K15: =A3A!K115 -> 0 | L15: =A5A!L115 -> 0
A16: =A3A!A126 -> Vote 12 - [NAME OF VOTE 12] | C16: =A3A!C126 -> 0 | D16: =A3A!D126 -> 0 | E16: =A3A!E126 -> 0 | F16: =A3A!F126 -> 0 | G16: =A3A!G126 -> 0 | H16: =A3A!H126 -> 0 | I16: =A3A!I126 -> 0 | J16: =A3A!J126 -> 0 | K16: =A3A!K126 -> 0 | L16: =A5A!L126 -> 0
A17: =A3A!A137 -> Vote 13 - [NAME OF VOTE 13] | C17: =A3A!C137 -> 0 | D17: =A3A!D137 -> 0 | E17: =A3A!E137 -> 0 | F17: =A3A!F137 -> 0 | G17: =A3A!G137 -> 0 | H17: =A3A!H137 -> 0 | I17: =A3A!I137 -> 0 | J17: =A3A!J137 -> 0 | K17: =A3A!K137 -> 0 | L17: =A5A!L137 -> 0
A18: =A3A!A148 -> Vote 14 - [NAME OF VOTE 14] | C18: =A3A!C148 -> 0 | D18: =A3A!D148 -> 0 | E18: =A3A!E148 -> 0 | F18: =A3A!F148 -> 0 | G18: =A3A!G148 -> 0 | H18: =A3A!H148 -> 0 | I18: =A3A!I148 -> 0 | J18: =A3A!J148 -> 0 | K18: =A3A!K148 -> 0 | L18: =A5A!L148 -> 0
A19: =A3A!A159 -> Vote 15 - [NAME OF VOTE 15] | C19: =A3A!C159 -> 0 | D19: =A3A!D159 -> 0 | E19: =A3A!E159 -> 0 | F19: =A3A!F159 -> 0 | G19: =A3A!G159 -> 0 | H19: =A3A!H159 -> 0 | I19: =A3A!I159 -> 0 | J19: =A3A!J159 -> 0 | K19: =A3A!K159 -> 0 | L19: =A5A!L159 -> 0
A20: Total Revenue by Vote | B20: 2 | C20: =SUM(C5:C19) -> 2879694246 | D20: =SUM(D5:D19) -> 3381354782 | E20: 3730478982 | F20: 3864398977 | G20: 3875175704 | H20: 3875175704 | I20: 4654228673 | J20: 4986762660 | K20: 5405755666
A22: Expenditure by Vote to be appropriated | B22: 1
A23: =A3A!A173 -> Vote 1 - Corporate Services | C23: =A3A!C173 -> 17599145.45 | D23: =A3A!D173 -> 84249412.03 | E23: =A3A!E173 -> 45800439.8 | F23: =A3A!F173 -> 263784721 | G23: =A3A!G173 -> 263784721 | H23: =A3A!H173 -> 263784721 | I23: =A3A!I173 -> 665551537 | J23: =A3A!J173 -> 703682108 | K23: =A3A!K173 -> 744330518
A24: =A3A!A184 -> Vote 2 - Financial Management Area | C24: =A3A!C184 -> 414773285.7 | D24: =A3A!D184 -> 571097155.9 | E24: =A3A!E184 -> 576386328.2 | F24: =A3A!F184 -> 481725097 | G24: =A3A!G184 -> 466342097 | H24: =A3A!H184 -> 466342097 | I24: =A3A!I184 -> 592671024.2 | J24: =A3A!J184 -> 640828630.9 | K24: =A3A!K184 -> 707968820.5
A25: =A3A!A195 -> Vote 3 - Infrastructure Development, Service Delivery and Maintenance Management | C25: =A3A!C195 -> 1783435506 | D25: =A3A!D195 -> 2020726538 | E25: =A3A!E195 -> 2585355464 | F25: =A3A!F195 -> 2273477196 | G25: =A3A!G195 -> 2339128196 | H25: =A3A!H195 -> 2339128196 | I25: =A3A!I195 -> 2568279059 | J25: =A3A!J195 -> 2745379513 | K25: =A3A!K195 -> 2937498143
A26: =A3A!A206 -> Vote 4 - Sustainable Community Service Delivery Provision Management | C26: =A3A!C206 -> 524398715.7 | D26: =A3A!D206 -> 603426399.8 | E26: =A3A!E206 -> 403672055.8 | F26: =A3A!F206 -> 481268242 | G26: =A3A!G206 -> 487945313 | H26: =A3A!H206 -> 487945313 | I26: =A3A!I206 -> 335197382.8 | J26: =A3A!J206 -> 425000696.1 | K26: =A3A!K206 -> 526449210
A27: =A3A!A217 -> Vote 5 - [NAME OF VOTE 5] | C27: =A3A!C217 -> 0 | D27: =A3A!D217 -> 0 | E27: =A3A!E217 -> 0 | F27: =A3A!F217 -> 0 | G27: =A3A!G217 -> 0 | H27: =A3A!H217 -> 0 | I27: =A3A!I217 -> 0 | J27: =A3A!J217 -> 0 | K27: =A3A!K217 -> 0
A28: =A3A!A228 -> Vote 6 - [NAME OF VOTE 6] | C28: =A3A!C228 -> 0 | D28: =A3A!D228 -> 0 | E28: =A3A!E228 -> 0 | F28: =A3A!F228 -> 0 | G28: =A3A!G228 -> 0 | H28: =A3A!H228 -> 0 | I28: =A3A!I228 -> 0 | J28: =A3A!J228 -> 0 | K28: =A3A!K228 -> 0
A29: =A3A!A239 -> Vote 7 - [NAME OF VOTE 7] | C29: =A3A!C239 -> 0 | D29: =A3A!D239 -> 0 | E29: =A3A!E239 -> 0 | F29: =A3A!F239 -> 0 | G29: =A3A!G239 -> 0 | H29: =A3A!H239 -> 0 | I29: =A3A!I239 -> 0 | J29: =A3A!J239 -> 0 | K29: =A3A!K239 -> 0
A30: =A3A!A250 -> Vote 8 - [NAME OF VOTE 8] | C30: =A3A!C250 -> 0 | D30: =A3A!D250 -> 0 | E30: =A3A!E250 -> 0 | F30: =A3A!F250 -> 0 | G30: =A3A!G250 -> 0 | H30: =A3A!H250 -> 0 | I30: =A3A!I250 -> 0 | J30: =A3A!J250 -> 0 | K30: =A3A!K250 -> 0
A31: =A3A!A261 -> Vote 9 - [NAME OF VOTE 9] | C31: =A3A!C261 -> 0 | D31: =A3A!D261 -> 0 | E31: =A3A!E261 -> 0 | F31: =A3A!F261 -> 0 | G31: =A3A!G261 -> 0 | H31: =A3A!H261 -> 0 | I31: =A3A!I261 -> 0 | J31: =A3A!J261 -> 0 | K31: =A3A!K261 -> 0
A32: =A3A!A272 -> Vote 10 - [NAME OF VOTE 10] | C32: =A3A!C272 -> 0 | D32: =A3A!D272 -> 0 | E32: =A3A!E272 -> 0 | F32: =A3A!F272 -> 0 | G32: =A3A!G272 -> 0 | H32: =A3A!H272 -> 0 | I32: =A3A!I272 -> 0 | J32: =A3A!J272 -> 0 | K32: =A3A!K272 -> 0
A33: =A3A!A283 -> Vote 11 - [NAME OF VOTE 11] | C33: =A3A!C283 -> 0 | D33: =A3A!D283 -> 0 | E33: =A3A!E283 -> 0 | F33: =A3A!F283 -> 0 | G33: =A3A!G283 -> 0 | H33: =A3A!H283 -> 0 | I33: =A3A!I283 -> 0 | J33: =A3A!J283 -> 0 | K33: =A3A!K283 -> 0 | L33: =A3A!L284 -> 0
A34: =A3A!A294 -> Vote 12 - [NAME OF VOTE 12] | C34: =A3A!C294 -> 0 | D34: =A3A!D294 -> 0 | E34: =A3A!E294 -> 0 | F34: =A3A!F294 -> 0 | G34: =A3A!G294 -> 0 | H34: =A3A!H294 -> 0 | I34: =A3A!I294 -> 0 | J34: =A3A!J294 -> 0 | K34: =A3A!K294 -> 0 | L34: =A3A!L295 -> 0
A35: =A3A!A305 -> Vote 13 - [NAME OF VOTE 13] | C35: =A3A!C305 -> 0 | D35: =A3A!D305 -> 0 | E35: =A3A!E305 -> 0 | F35: =A3A!F305 -> 0 | G35: =A3A!G305 -> 0 | H35: =A3A!H305 -> 0 | I35: =A3A!I305 -> 0 | J35: =A3A!J305 -> 0 | K35: =A3A!K305 -> 0 | L35: =A3A!L306 -> 0
A36: =A3A!A316 -> Vote 14 - [NAME OF VOTE 14] | C36: =A3A!C316 -> 0 | D36: =A3A!D316 -> 0 | E36: =A3A!E316 -> 0 | F36: =A3A!F316 -> 0 | G36: =A3A!G316 -> 0 | H36: =A3A!H316 -> 0 | I36: =A3A!I316 -> 0 | J36: =A3A!J316 -> 0 | K36: =A3A!K316 -> 0 | L36: =A3A!L317 -> 0
A37: =A3A!A327 -> Vote 15 - [NAME OF VOTE 15] | C37: =A3A!C327 -> 0 | D37: =A3A!D327 -> 0 | E37: =A3A!E327 -> 0 | F37: =A3A!F327 -> 0 | G37: =A3A!G327 -> 0 | H37: =A3A!H327 -> 0 | I37: =A3A!I327 -> 0 | J37: =A3A!J327 -> 0 | K37: =A3A!K327 -> 0 | L37: =A3A!L328 -> 0
A38: Total Expenditure by Vote | B38: 2 | C38: =SUM(C23:C37) -> 2740206653 | D38: =SUM(D23:D37) -> 3279499506 | E38: 3611214288 | F38: 3500255256 | G38: 3557200327 | H38: 3557200327 | I38: 4161699003 | J38: 4514890948 | K38: 4916246691 | L38: =SUM(L23:L29) -> 0 | M38: 0 | N38: 0 | O38: 0 | P38: 0 | Q38: 0 | R38: 0 | S38: 0 | T38: 0 | U38: 0 | V38: 0 | W38: 0
A39: =result -> Surplus/(Deficit) for the year | B39: 2 | C39: =C20-C38 -> 139487592.9 | D39: 101855276.5 | E39: 119264694.5 | F39: 364143721 | G39: 317975377 | H39: 317975377 | I39: 492529670 | J39: 471871712 | K39: 489508974.9 | L39: 0 | M39: 0 | N39: 0 | O39: 0 | P39: 0 | Q39: 0 | R39: 0 | S39: 0 | T39: 0 | U39: 0 | V39: 0 | W39: 0
A40: =head27a -> References
A41: 1. Insert 'Vote'; e.g. department, if different to standard classification structure
A42: 2. Must reconcile to Budgeted Financial Performance (revenue and expenditure)
A43: 3. Assign share in 'associate' to relevant Vote
A45: ="check "&A39 -> check Surplus/(Deficit) for the year | C45: =C39-A3A!C340 -> 0 | D45: =D39-A3A!D340 -> 0 | E45: =E39-A3A!E340 -> 0 | F45: =F39-A3A!F340 -> 0 | G45: =G39-A3A!G340 -> 0 | H45: =H39-A3A!H340 -> 0 | I45: =I39-A3A!I340 -> 0 | J45: =J39-A3A!J340 -> 0 | K45: =K39-A3A!K340 -> 0

Sheet A3A
A1: =muni&" - "&Approve2&"A" -> KZN225 Msunduzi - Table A3 Budgeted Financial Performance (revenue and expenditure by municipal vote)A
A2: =Vdesc -> Vote Description | B2: =head27 -> Ref | C2: =head1b -> 2011/12 | D2: =head1A -> 2012/13 | E2: =Head1 -> 2013/14 | F2: =Head2 -> Current Year 2014/15 | I2: =Head3 -> 2015/16 Medium Term Revenue & Expenditure Framework | L2: =Head4 -> LTFS
A3: R thousand | C3: =Head5 -> Audited Outcome | D3: =Head5 -> Audited Outcome | E3: =Head5 -> Audited Outcome | F3: =Head6 -> Original Budget | G3: =Head7 -> Adjusted Budget | H3: =Head8 -> Full Year Forecast | I3: =Head9 -> Budget Year 2015/16 | J3: =Head10 -> Budget Year +1 2016/17 | K3: =Head11 -> Budget Year +2 2017/18 | L3: =Head12 -> Forecast 2018/19 | M3: =Head13 -> Forecast 2019/20 | N3: =Head14 -> Forecast 2020/21 | O3: =Head15 -> Forecast 2021/22 | P3: =Head16 -> Forecast 2022/23 | Q3: =Head17 -> Forecast 2023/24 | R3: =Head18 -> Forecast 2024/25 | S3: =Head19 -> Forecast 2025/26 | T3: =Head20 -> Forecast 2026/27 | U3: =Head21 -> Forecast 2027/28 | V3: =Head22 -> Forecast 2028/29 | W3: =Head23 -> Forecast 2029/30
A4: Revenue by Vote | B4: 1
A5: Vote 1 - Corporate Services | C5: =SUM(C6:C15) -> 61413148.47 | D5: =SUM(D6:D15) -> 104872953.3 | E5: =SUM(E6:E15) -> 38363061.5 | F5: 311882146 | G5: =SUM(G6:G15) -> 310156146 | H5: 310156146 | I5: 86560685 | J5: 76922822 | K5: 83271368
A6: 1.1 - Council and Committee Support | C6: 869432.28 | D6: 1937469.06 | E6: 22186352.48 | F6: 2623 | G6: 2623 | H6: 2623 | I6: 0 | J6: 0 | K6: 0
A7: 1.2 - Enterprise Wide Risk Management & Audit and Compliance | C7: 940772 | D7: 0 | E7: 0 | I7: 0 | J7: 0 | K7: 0
A8: 1.3 - Human Resources Management | C8: 4306501.3 | D8: 5291417.83 | E8: 3258313.42 | F8: 2625 | G8: 2625 | H8: 2625 | I8: 3896825 | J8: 4090866 | K8: 4311773
A9: 1.4 - Legislative Compliance | C9: 424822.49 | D9: 537439.02 | E9: 761173.93 | F9: 653539 | G9: 673539 | H9: 673539 | I9: 797588 | J9: 859046 | K9: 1221634
A10: 1.5 - Local Economic Development Management | C10: 16263739.45 | D10: 19606790.94 | E10: 8105834.24 | F10: 13702778 | G10: 13702778 | H10: 13702778 | I10: 21373243.25 | J10: 9193637 | K10: 9021065
A11: 1.6 - Management Information Services | C11: 3169677.65 | D11: 3336502.79 | E11: 221957.31 | F11: 3696956 | G11: 3696956 | H11: 3696956 | I11: 2388284.75 | J11: 2403816 | K11: 2424007
A12: 1.7 - Marketing and Public Relations Management | C12: 35438203.3 | D12: 74163333.66 | E12: 3829430.12 | F12: 293823625 | G12: 292077625 | H12: 292077625 | I12: 58104744 | J12: 60375457 | K12: 66292889
A13: ='Org structure'!E10 -> 0
A14: ='Org structure'!E11 -> 0
A15: ='Org structure'!E12 -> 0
A16: Vote 2 - Financial Management Area | C16: =SUM(C17:C26) -> 875469490.3 | D16: =SUM(D17:D26) -> 926114475.7 | E16: =SUM(E17:E26) -> 1213051299 | F16: 1077719479 | G16: 1077719479 | H16: 1077719479 | I16: 1466380936 | J16: 1505003437 | K16: 1600441952
A17: 2.1 - Budget & Treasury Management | C17: 1925775.71 | D17: 3586132.33 | E17: 1963540.21 | F17: 2246130 | G17: 2246130 | H17: 2246130 | I17: 2088972 | J17: 2130751.4 | K17: 2194673.98
A18: 2.2 - Expenditure Management | C18: 600757.41 | D18: 698831.33 | E18: 1026362.32 | F18: 0 | G18: 0 | H18: 0 | I18: 89018 | J18: 93495 | K18: 98544
A19: 2.3 - Financial Control and Cash Management | C19: 2324548.51 | D19: 3352627.91 | E19: 0 | F19: 2230190 | G19: 2230190 | H19: 2230190 | I19: 0 | J19: 0 | K19: 0
A20: 2.4 - Revenue Management | C20: 870350419.2 | D20: 917638355.9 | E20: 1209599035 | F20: 1072993000 | G20: 1072993000 | H20: 1072993000 | I20: 1463722871 | J20: 1502272232 | K20: 1597614399
A21: 2.5 - Supply Chain Management | C21: 267989.54 | D21: 838528.22 | E21: 462361.47 | F21: 250159 | G21: 250159 | H21: 250159 | I21: 480075 | J21: 506959 | K21: 534335
A22: ='Org structure'!E19 -> 0
A23: ='Org structure'!E20 -> 0
A24: ='Org structure'!E21 -> 0
A25: ='Org structure'!E22 -> 0
A26: ='Org structure'!E23 -> 0
A27: Vote 3 - Infrastructure Development, Service Delivery and Maintenance Management | C27: =SUM(C28:C37) -> 1794119357 | D27: 2121037029 | E27: =SUM(E28:E37) -> 2248333337 | F27: 2436060456 | G27: 2448525192 | H27: 2448525192 | I27: 2895143857 | J27: 3194454856 | K27: 3505160172
A28: 3.1 - Electricity distribution Management | C28: 1212660157 | D28: 1401970761 | E28: 1514509640 | F28: 1628543010 | G28: 1633433102 | H28: 1633433102 | I28: =(1892056898+36544505)+1936341.108 -> 1930537744 | J28: =((2023626901)--45829213.6000004)+2385572.245056 -> 2071841687 | K28: =((2227502753)--45763141.4840002)+3017748.88999584 -> 2276283643
A29: 3.2 - Human Settlement Development Management | C29: 3613652.97 | D29: 5175025.29 | E29: 17397848.74 | F29: 0 | G29: 0 | H29: 0 | I29: 5786311 | J29: 6110352 | K29: 6440311
A30: 3.3 - Municipal Infrastructure Planning, Funding, Maintenance and Development Management | C30: 12089913.21 | D30: 13047209.14 | E30: 5475283.62 | F30: 93581990 | G30: 101581001 | H30: 101581001 | I30: 7456097 | J30: 10077318 | K30: 11271074
A31: 3.4 - Roads and Stormwater | C31: 99812453.48 | D31: 116336513.2 | E31: 118920819.3 | F31: 108394521 | G31: 107949283 | H31: 107949283 | I31: 126046486 | J31: 155350638 | K31: 155433326
A32: 3.5 - Waste Management | C32: 70091036 | D32: 77999520 | E32: 84921745.14 | F32: 92116819 | G32: 92137690 | H32: 92137690 | I32: 102030912.8 | J32: 123840002.9 | K32: 161957642.4
A33: 3.6 - Water Distribution and Sanitation Management | C33: 395852144 | D33: 506508000 | E33: 507108000 | F33: 513424116 | G33: 513424116 | H33: 513424116 | I33: =((579286832+20834512)+118611403.6908)+4553558.64 -> 723286306.3 | J33: =((662790000+20834512)+138300896.703473)+5309449.37424 -> 827234858.1 | K33: =((702490000+20834512+3000000)+161258845.556249)+6190817.97036384 -> 893774175.5
A34: ='Org structure'!E31 -> 0
A35: ='Org structure'!E32 -> 0
A36: ='Org structure'!E33 -> 0
A37: ='Org structure'!E34 -> 0
A38: Vote 4 - Sustainable Community Service Delivery Provision Management | C38: =SUM(C39:C48) -> 148692250.7 | D38: 229330324.6 | E38: =SUM(E39:E48) -> 230731285.2 | F38: 38736896 | G38: 38774887 | H38: 38774887 | I38: 206143195 | J38: 210381545 | K38: 216882174
A39: 4.1 - Community Services Provision Management | C39: 48675690.51 | D39: 98687871.51 | E39: 99133789.34 | F39: 4597 | G39: 4597 | H39: 4597 | I39: 93896309 | J39: 94097179 | K39: 94318427
A40: 4.2 - Public Safety, Enforcement and Disaster Management | C40: 69524382.26 | D40: 81006167.25 | E40: 89794073.01 | F40: 6827494 | G40: 6827494 | H40: 6827494 | I40: 19079598 | J40: 20144271 | K40: 21232062
A41: 4.3 - Regional Community Services Provision Management | C41: 30492177.92 | D41: 49636285.83 | E41: 41803422.89 | F41: 31904805 | G41: 31942796 | H41: 31942796 | I41: 93167288 | J41: 96140095 | K41: 101331685
A42: ='Org structure'!E39 -> 0
A43: ='Org structure'!E40 -> 0
A44: ='Org structure'!E41 -> 0
A45: ='Org structure'!E42 -> 0
A46: ='Org structure'!E43 -> 0
A47: ='Org structure'!E44 -> 0
A48: ='Org structure'!E45 -> 0
A49: ='Org structure'!A6 -> Vote 5 - [NAME OF VOTE 5] | C49: =SUM(C50:C59) -> 0 | D49: =SUM(D50:D59) -> 0 | E49: 0 | F49: 0 | G49: 0 | H49: 0 | I49: 0 | J49: 0 | K49: 0
A50: ='Org structure'!E47 -> 5.1 - [Name of sub-vote]
A51: ='Org structure'!E48 -> 0
A52: ='Org structure'!E49 -> 0
A53: ='Org structure'!E50 -> 0
A54: ='Org structure'!E51 -> 0
A55: ='Org structure'!E52 -> 0
A56: ='Org structure'!E53 -> 0
A57: ='Org structure'!E54 -> 0
A58: ='Org structure'!E55 -> 0
A59: ='Org structure'!E56 -> 0
A60: ='Org structure'!A7 -> Vote 6 - [NAME OF VOTE 6] | C60: =SUM(C61:C70) -> 0 | D60: =SUM(D61:D70) -> 0 | E60: 0 | F60: 0 | G60: 0 | H60: 0 | I60: 0 | J60: 0 | K60: 0
A61: ='Org structure'!E58 -> 6.1 - [Name of sub-vote]
A62: ='Org structure'!E59 -> 0
A63: ='Org structure'!E60 -> 0
A64: ='Org structure'!E61 -> 0
A65: ='Org structure'!E62 -> 0
A66: ='Org structure'!E63 -> 0
A67: ='Org structure'!E64 -> 0
A68: ='Org structure'!E65 -> 0
A69: ='Org structure'!E66 -> 0
A70: ='Org structure'!E67 -> 0
A71: ='Org structure'!A8 -> Vote 7 - [NAME OF VOTE 7] | C71: =SUM(C72:C81) -> 0 | D71: 0 | E71: 0 | F71: 0 | G71: 0 | H71: 0 | I71: 0 | J71: 0 | K71: 0
A72: ='Org structure'!E69 -> 7.1 - [Name of sub-vote]
A73: ='Org structure'!E70 -> 0
A74: ='Org structure'!E71 -> 0
A75: ='Org structure'!E72 -> 0
A76: ='Org structure'!E73 -> 0
A77: ='Org structure'!E74 -> 0
A78: ='Org structure'!E75 -> 0
A79: ='Org structure'!E76 -> 0
A80: ='Org structure'!E77 -> 0
A81: ='Org structure'!E78 -> 0
A82: ='Org structure'!A9 -> Vote 8 - [NAME OF VOTE 8] | C82: =SUM(C83:C92) -> 0 | D82: =SUM(D83:D92) -> 0 | E82: 0 | F82: 0 | G82: 0 | H82: 0 | I82: 0 | J82: 0 | K82: 0
A83: ='Org structure'!E80 -> 8.1 - [Name of sub-vote]
A84: ='Org structure'!E81 -> 0
A85: ='Org structure'!E82 -> 0
A86: ='Org structure'!E83 -> 0
A87: ='Org structure'!E84 -> 0
A88: ='Org structure'!E85 -> 0
A89: ='Org structure'!E86 -> 0
A90: ='Org structure'!E87 -> 0
A91: ='Org structure'!E88 -> 0
A92: ='Org structure'!E89 -> 0
A93: ='Org structure'!A10 -> Vote 9 - [NAME OF VOTE 9] | C93: =SUM(C94:C103) -> 0 | D93: =SUM(D94:D103) -> 0 | E93: 0 | F93: 0 | G93: 0 | H93: 0 | I93: 0 | J93: 0 | K93: 0
A94: ='Org structure'!E91 -> 9.1 - [Name of sub-vote]
A95: ='Org structure'!E92 -> 0
A96: ='Org structure'!E93 -> 0
A97: ='Org structure'!E94 -> 0
A98: ='Org structure'!E95 -> 0
A99: ='Org structure'!E96 -> 0
A100: ='Org structure'!E97 -> 0
A101: ='Org structure'!E98 -> 0
A102: ='Org structure'!E99 -> 0
A103: ='Org structure'!E100 -> 0
A104: ='Org structure'!A11 -> Vote 10 - [NAME OF VOTE 10] | C104: =SUM(C105:C114) -> 0 | D104: =SUM(D105:D114) -> 0 | E104: 0 | F104: 0 | G104: 0 | H104: 0 | I104: 0 | J104: 0 | K104: 0
A105: ='Org structure'!E102 -> 10.1 - [Name of sub-vote]
A106: ='Org structure'!E103 -> 0
A107: ='Org structure'!E104 -> 0
A108: ='Org structure'!E105 -> 0
A109: ='Org structure'!E106 -> 0
A110: ='Org structure'!E107 -> 0
A111: ='Org structure'!E108 -> 0
A112: ='Org structure'!E109 -> 0
A113: ='Org structure'!E110 -> 0
A114: ='Org structure'!E111 -> 0
A115: ='Org structure'!A12 -> Vote 11 - [NAME OF VOTE 11] | C115: =SUM(C116:C125) -> 0 | D115: =SUM(D116:D125) -> 0 | E115: 0 | F115: 0 | G115: 0 | H115: 0 | I115: 0 | J115: 0 | K115: 0
A116: ='Org structure'!E113 -> 11.1 - [Name of sub-vote]
A117: ='Org structure'!E114 -> 0
A118: ='Org structure'!E115 -> 0
A119: ='Org structure'!E116 -> 0
A120: ='Org structure'!E117 -> 0
A121: ='Org structure'!E118 -> 0
A122: ='Org structure'!E119 -> 0
A123: ='Org structure'!E120 -> 0
A124: ='Org structure'!E121 -> 0
A125: ='Org structure'!E122 -> 0
A126: ='Org structure'!A13 -> Vote 12 - [NAME OF VOTE 12] | C126: =SUM(C127:C136) -> 0 | D126: =SUM(D127:D136) -> 0 | E126: 0 | F126: 0 | G126: 0 | H126: 0 | I126: 0 | J126: 0 | K126: 0
A127: ='Org structure'!E124 -> 12.1 - [Name of sub-vote]
A128: ='Org structure'!E125 -> 0
A129: ='Org structure'!E126 -> 0
A130: ='Org structure'!E127 -> 0
A131: ='Org structure'!E128 -> 0
A132: ='Org structure'!E129 -> 0
A133: ='Org structure'!E130 -> 0
A134: ='Org structure'!E131 -> 0
A135: ='Org structure'!E132 -> 0
A136: ='Org structure'!E133 -> 0
A137: ='Org structure'!A14 -> Vote 13 - [NAME OF VOTE 13] | C137: =SUM(C138:C147) -> 0 | D137: =SUM(D138:D147) -> 0 | E137: 0 | F137: 0 | G137: 0 | H137: 0 | I137: 0 | J137: 0 | K137: 0
A138: ='Org structure'!E135 -> 13.1 - [Name of sub-vote]
A139: ='Org structure'!E136 -> 0
A140: ='Org structure'!E137 -> 0
A141: ='Org structure'!E138 -> 0
A142: ='Org structure'!E139 -> 0
A143: ='Org structure'!E140 -> 0
A144: ='Org structure'!E141 -> 0
A145: ='Org structure'!E142 -> 0
A146: ='Org structure'!E143 -> 0
A147: ='Org structure'!E144 -> 0
A148: ='Org structure'!A15 -> Vote 14 - [NAME OF VOTE 14] | C148: =SUM(C149:C158) -> 0 | D148: =SUM(D149:D158) -> 0 | E148: 0 | F148: 0 | G148: 0 | H148: 0 | I148: 0 | J148: 0 | K148: 0
A149: ='Org structure'!E146 -> 14.1 - [Name of sub-vote]
A150: ='Org structure'!E147 -> 0
A151: ='Org structure'!E148 -> 0
A152: ='Org structure'!E149 -> 0
A153: ='Org structure'!E150 -> 0
A154: ='Org structure'!E151 -> 0
A155: ='Org structure'!E152 -> 0
A156: ='Org structure'!E153 -> 0
A157: ='Org structure'!E154 -> 0
A158: ='Org structure'!E155 -> 0
A159: ='Org structure'!A16 -> Vote 15 - [NAME OF VOTE 15] | C159: =SUM(C160:C169) -> 0 | D159: =SUM(D160:D169) -> 0 | E159: 0 | F159: 0 | G159: 0 | H159: 0 | I159: 0 | J159: 0 | K159: 0
A160: ='Org structure'!E157 -> 15.1 - [Name of sub-vote]
A161: ='Org structure'!E158 -> 0
A162: ='Org structure'!E159 -> 0
A163: ='Org structure'!E160 -> 0
A164: ='Org structure'!E161 -> 0
A165: ='Org structure'!E162 -> 0
A166: ='Org structure'!E163 -> 0
A167: ='Org structure'!E164 -> 0
A168: ='Org structure'!E165 -> 0
A169: ='Org structure'!E166 -> 0
A170: Total Revenue by Vote | B170: 2 | C170: =C5+C16+C27+C38+C49+C60+C71+C82+C93+C104+C115+C126+C137+C148+C159 -> 2879694246 | D170: 3381354782 | E170: =E5+E16+E27+E38+E49+E60+E71+E82+E93+E104+E115+E126+E137+E148+E159 -> 3730478982 | F170: 3864398977 | G170: 3875175704 | H170: 3875175704 | I170: 4654228673 | J170: 4986762660 | K170: 5405755666 | L170: =SUM(L78:L81) -> 0 | M170: 0 | N170: 0 | O170: 0 | P170: 0 | Q170: 0 | R170: 0 | S170: 0 | T170: 0 | U170: 0 | V170: 0 | W170: 0
A172: Expenditure by Vote | B172: 1
A173: Vote 1 - Corporate Services | C173: =SUM(C174:C183) -> 17599145.45 | D173: 84249412.03 | E173: =SUM(E174:E183) -> 45800439.8 | F173: 263784721 | G173: 263784721 | H173: 263784721 | I173: 665551537 | J173: 703682108 | K173: 744330518
A174: 1.1 - Council and Committee Support | C174: 2631471.94 | D174: 145164.09 | E174: 17869410.36 | F174: 76138827 | G174: 76138827 | H174: 76138827 | I174: 437378018 | J174: 461412927 | K174: 486329224
A175: 1.2 - Enterprise Wide Risk Management & Audit and Compliance | C175: 0 | D175: 9008252 | E175: 0 | F175: 13352107 | G175: 13352107 | H175: 13352107 | I175: 668639 | J175: 702166 | K175: 740083
A176: 1.3 - Human Resources Management | C176: 3507723.35 | D176: 0 | E176: 1501651.26 | F176: 20220204 | G176: 20220204 | H176: 20220204 | I176: 19262160 | J176: 20223786 | K176: 21315870
A177: 1.4 - Legislative Compliance | C177: 447488 | D177: 11193224.52 | E177: 8952459.75 | F177: 70743195 | G177: 70743195 | H177: 70743195 | I177: 85213448 | J177: 88450196 | K177: 93226506
A178: 1.5 - Local Economic Development Management | C178: 7729652.98 | D178: 18182697.86 | E178: 11482217.52 | F178: 43964857 | G178: 43964857 | H178: 43964857 | I178: 87607430 | J178: 95389521 | K178: 103190134
A179: 1.6 - Management Information Services | C179: 2.910383046e-10 | D179: 41804170 | E179: 2272486.13 | F179: 39365531 | G179: 39365531 | H179: 39365531 | I179: 10338984 | J179: 10857619 | K179: 11443930
A180: 1.7 - Marketing and Public Relations Management | C180: 3282809.18 | D180: 3915903.56 | E180: 3722214.78 | F180: 0 | G180: 0 | H180: 0 | I180: 25082858 | J180: 26645893 | K180: 28084771
A181: =A13 -> 0
A182: =A14 -> 0
A183: =A15 -> 0
A184: Vote 2 - Financial Management Area | C184: =SUM(C185:C194) -> 414773285.7 | D184: =SUM(D185:D194) -> 571097155.9 | E184: =SUM(E185:E194) -> 576386328.2 | F184: =SUM(F185:F194) -> 481725097 | G184: 466342097 | H184: 466342097 | I184: 592671024.2 | J184: 640828630.9 | K184: 707968820.5
A185: 2.1 - Budget & Treasury Management | C185: 2680330.31 | D185: 3333772.84 | E185: 1656732.47 | F185: 180469217 | G185: 165086217 | H185: 165086217 | I185: 3267349 | J185: 4272482 | K185: 2276396
A186: 2.2 - Expenditure Management | C186: 3308002.45 | D186: 2662636.48 | E186: 8849929.66 | F186: 11417709 | G186: 11417709 | H186: 11417709 | I186: 12154947 | J186: 12273606 | K186: 12396381
A187: 2.3 - Financial Control and Cash Management | C187: 2698049.68 | D187: 41804170 | E187: 991105.33 | F187: 77388393 | G187: 77388393 | H187: 77388393 | I187: 4206606 | J187: 4434212 | K187: 4673659
A188: 2.4 - Revenue Management | C188: 375064286.2 | D188: 482516342.7 | E188: 557835936.7 | F188: 174199030 | G188: 174199030 | H188: 174199030 | I188: 522221586.2 | J188: 555870955.9 | K188: 624580655.5
A189: 2.5 - Supply Chain Management | C189: 31022617.11 | D189: 40780233.87 | E189: 7052624.06 | F189: 38250748 | G189: 38250748 | H189: 38250748 | I189: 50820536 | J189: 63977375 | K189: 64041729
A190: =A22 -> 0
A191: =A23 -> 0
A192: =A24 -> 0
A193: =A25 -> 0
A194: =A26 -> 0
A195: Vote 3 - Infrastructure Development, Service Delivery and Maintenance Management | C195: =SUM(C196:C205) -> 1783435506 | D195: 2020726538 | E195: =SUM(E196:E205) -> 2585355464 | F195: 2273477196 | G195: 2339128196 | H195: 2339128196 | I195: 2568279059 | J195: 2745379513 | K195: 2937498143
A196: 3.1 - Electricity distribution Management | C196: 919409896 | D196: 1039360585 | E196: 1321685411 | F196: 1214517937 | G196: 1214517937 | H196: 1214517937 | I196: 1272737620 | J196: 1400266979 | K196: 1540687296
A197: 3.2 - Human Settlement Development Management | C197: 9724505.06 | D197: 10461087.67 | E197: 36763296.12 | F197: 0 | G197: 0 | H197: 0 | I197: 593962 | J197: 623659 | K197: 657337
A198: 3.3 - Municipal Infrastructure Planning, Funding, Maintenance and Development Management | C198: 46161457.04 | D198: 46453498.42 | E198: 48399920.56 | F198: 103558625 | G198: 103558625 | H198: 103558625 | I198: 166347115 | J198: 169177675 | K198: 142320201
A199: 3.4 - Roads and Stormwater | C199: 215015357.1 | D199: 271501383.7 | E199: 419486542.4 | F199: 310033540 | G199: 310033540 | H199: 310033540 | I199: 344557131 | J199: 386913692 | K199: 384408712
A200: 3.5 - Waste Management | C200: 179144042.5 | D200: 188442962.5 | E200: 289206629.5 | F200: 151980683 | G200: 151980683 | H200: 151980683 | I200: 71762902.77 | J200: 77967601.94 | K200: 82580131.41
A201: 3.6 - Water Distribution and Sanitation Management | C201: 413980248.6 | D201: 464507020.8 | E201: 469813664.8 | F201: 493386411 | G201: 559037411 | H201: 559037411 | I201: 712280328.3 | J201: 710429906.1 | K201: 786844465.5
... 144 more rows

Sheet A4-FinPerf RE
A1: =muni&" - "&Approve4 -> KZN225 Msunduzi - Table A4 Budgeted Financial Performance (revenue and expenditure)
A2: =desc -> Description | B2: =head27 -> Ref | C2: =head1b -> 2011/12 | D2: =head1A -> 2012/13 | E2: =Head1 -> 2013/14 | F2: =Head2 -> Current Year 2014/15 | J2: =Head3 -> 2015/16 Medium Term Revenue & Expenditure Framework | M2: =Head4 -> LTFS
A3: R thousand | B3: 1 | C3: =Head5 -> Audited Outcome | D3: =Head5 -> Audited Outcome | E3: =Head5 -> Audited Outcome | F3: =Head6 -> Original Budget | G3: =Head7 -> Adjusted Budget | H3: =Head8 -> Full Year Forecast | I3: =Head5b -> Pre-audit outcome | J3: =Head9 -> Budget Year 2015/16 | K3: =Head10 -> Budget Year +1 2016/17 | L3: =Head11 -> Budget Year +2 2017/18 | M3: =Head12 -> Forecast 2018/19 | N3: =Head13 -> Forecast 2019/20 | O3: =Head14 -> Forecast 2020/21 | P3: =Head15 -> Forecast 2021/22 | Q3: =Head16 -> Forecast 2022/23 | R3: =Head17 -> Forecast 2023/24 | S3: =Head18 -> Forecast 2024/25 | T3: =Head19 -> Forecast 2025/26 | U3: =Head20 -> Forecast 2026/27 | V3: =Head21 -> Forecast 2027/28 | W3: =Head22 -> Forecast 2028/29 | X3: =Head23 -> Forecast 2029/30
A4: Revenue By Source
A5: Property rates | B5: 2 | C5: ='SA1'!C9 -> 505310156 | D5: ='SA1'!D9 -> 585863903 | E5: ='SA1'!E9 -> 602953620 | F5: ='SA1'!F9 -> 659051768 | G5: ='SA1'!G9 -> 659051768 | H5: ='SA1'!H9 -> 659051768 | I5: ='SA1'!I9 -> 659051768 | J5: ='SA1'!J9 -> 743112753 | K5: ='SA1'!K9 -> 784468391 | L5: ='SA1'!L9 -> 823691811
A6: Property rates - penalties & collection charges | C6: 31244472 | D6: 39595547 | E6: 22673588 | F6: 39231000 | G6: 39231000 | H6: 39231000 | I6: 39231000 | J6: 41348999 | K6: 43582000 | L6: 45935428
A7: Service charges - electricity revenue | B7: 2 | C7: ='SA1'!C14 -> 1212660157 | D7: ='SA1'!D14 -> 1401970761 | E7: ='SA1'!E14 -> 1486939403 | F7: ='SA1'!F14 -> 1628543000 | G7: ='SA1'!G14 -> 1628543000 | H7: ='SA1'!H14 -> 1628543000 | I7: ='SA1'!I14 -> 1628543000 | J7: ='SA1'!J14 -> 1865706091 | K7: ='SA1'!K14 -> 2087541572 | L7: ='SA1'!L14 -> 2335686749
A8: Service charges - water revenue | B8: 2 | C8: ='SA1'!C19 -> 288345314 | D8: ='SA1'!D19 -> 386419258 | E8: ='SA1'!E19 -> 380807209 | F8: ='SA1'!F19 -> 391288000 | G8: ='SA1'!G19 -> 391288000 | H8: ='SA1'!H19 -> 391288000 | I8: ='SA1'!I19 -> 391288000 | J8: ='SA1'!J19 -> 595442535.7 | K8: ='SA1'!K19 -> 651217279.7 | L8: ='SA1'!L19 -> 700571047.6
A9: Service charges - sanitation revenue | B9: 2 | C9: ='SA1'!C24 -> 107506830 | D9: ='SA1'!D24 -> 120089290 | E9: ='SA1'!E24 -> 126300618 | F9: ='SA1'!F24 -> 126582000 | G9: ='SA1'!G24 -> 126582000 | H9: ='SA1'!H24 -> 126582000 | I9: ='SA1'!I24 -> 126582000 | J9: ='SA1'!J24 -> 139470975.6 | K9: ='SA1'!K24 -> 146726448.4 | L9: ='SA1'!L24 -> 155244335
A10: Service charges - refuse revenue | B10: 2 | C10: ='SA1'!C30 -> 70091118 | D10: ='SA1'!D30 -> 73999200 | E10: ='SA1'!E30 -> 79454009 | F10: ='SA1'!F30 -> 87711630 | G10: ='SA1'!G30 -> 87711630 | H10: ='SA1'!H30 -> 87711630 | I10: ='SA1'!I30 -> 87711630 | J10: ='SA1'!J30 -> 93921629.77 | K10: ='SA1'!K30 -> 98723778.94 | L10: ='SA1'!L30 -> 104457142.4
A11: Service charges - other | C11: 0 | D11: 0 | E11: 0 | F11: 0 | G11: 0 | H11: 0 | I11: 0 | J11: 0 | K11: 0 | L11: 0
A12: Rental of facilities and equipment | C12: 17943780 | D12: 20896190 | E12: 21571598 | F12: 35023581 | G12: 35023581 | H12: 35023581 | I12: 35023581 | J12: =38329367+3000000 -> 41329367 | K12: =40292241+3000000 -> 43292241 | L12: =42468022.014+2000000 -> 44468022.01
A13: Interest earned - external investments | C13: 25906640 | D13: 34283812 | E13: 43302650 | F13: 32247000 | G13: 32247000 | H13: 32247000 | I13: 32247000 | J13: 33987999 | K13: 35824000 | L13: 37758496
A14: Interest earned - outstanding debtors | C14: 58253996 | D14: 82051046 | E14: 53055390 | F14: 1325280 | G14: 1325280 | H14: 1325280 | I14: 1325280 | J14: 62593298 | K14: 66365829 | L14: 69949583.77
A15: Dividends received | C15: 0 | D15: 0 | E15: 0 | F15: 0 | G15: 0 | H15: 0 | I15: 0 | J15: 0 | K15: 0 | L15: 0
A16: Fines | C16: 3813388 | D16: 8371286 | E16: 102750783 | F16: 14666923 | G16: 14666923 | H16: 14666923 | I16: 14666923 | J16: =15488270+2000000 -> 17488270 | K16: 16355614 | L16: 17238817.16
A17: Licences and permits | C17: 77690 | D17: 59002 | E17: 81004 | F17: 82560 | G17: 82560 | H17: 82560 | I17: 82560 | J17: 87183 | K17: 92065 | L17: 97036.51
A18: Agency services | C18: 373664 | D18: 732726 | E18: 669269 | F18: 3220484 | G18: 3220484 | H18: 3220484 | I18: 3220484 | J18: 632176 | K18: 667578 | L18: 703627.212
A19: Transfers recognised - operational | C19: 351598902 | D19: 395621840 | E19: 448121964 | F19: 415372000 | G19: =415372000-7868000 -> 407504000 | H19: =415372000-7868000 -> 407504000 | I19: =415372000-7868000 -> 407504000 | J19: 440652000 | K19: 463799000 | L19: 502985000
A20: Other revenue | B20: 2 | C20: ='SA1'!C45 -> 56557207 | D20: ='SA1'!D45 -> 60553055 | E20: ='SA1'!E45 -> 115512631 | F20: ='SA1'!F45 -> 136229751 | G20: ='SA1'!G45 -> 134224478 | H20: ='SA1'!H45 -> 134224478 | I20: ='SA1'!I45 -> 134224478 | J20: ='SA1'!J45 -> 79695396 | K20: ='SA1'!K45 -> 81734863 | L20: ='SA1'!L45 -> 86148570.86
A21: Gains on disposal of PPE | C21: 940864 | E21: 102597 | J21: 9700000
A22: Total Revenue (excluding capital transfers and contributions) | C22: =SUM(C5:C21) -> 2730624178 | D22: 3210506916 | E22: 3484296333 | F22: 3570574977 | G22: 3560701704 | H22: 3560701704 | I22: 3560701704 | J22: 4165168673 | K22: 4520390660 | L22: 4924935666 | M22: 0 | N22: 0 | O22: 0 | P22: 0 | Q22: 0 | R22: 0 | S22: 0 | T22: 0 | U22: 0 | V22: 0 | W22: 0 | X22: 0
A24: Expenditure By Type
A25: Employee related costs | B25: 2 | C25: ='SA1'!C63 -> 666197730 | D25: ='SA1'!D63 -> 684336568 | E25: ='SA1'!E63 -> 741537216 | F25: ='SA1'!F63 -> 855887122 | G25: ='SA1'!G63 -> 855887122 | H25: ='SA1'!H63 -> 855887122 | I25: ='SA1'!I63 -> 855887122 | J25: ='SA1'!J63 -> 956535758 | K25: ='SA1'!K63 -> 1009506318 | L25: ='SA1'!L63 -> 1073537754
A26: Remuneration of councillors | C26: 31426756 | D26: 33421534 | E26: 37099641 | F26: 39272241 | G26: 39272241 | H26: 39272241 | I26: 39272241 | J26: 42350433 | K26: 45658625 | L26: 48124191
A27: Debt impairment | B27: 3 | C27: 58209770 | D27: 217793936 | E27: 112679217 | F27: 144576827.6 | G27: 144576827.6 | H27: 144576827.6 | I27: 144576827.6 | J27: =224586000-100000000 -> 124586000 | K27: 134979000 | L27: 143888000
A28: Depreciation & asset impairment | B28: 2 | C28: ='SA1'!C79 -> 273673069 | D28: ='SA1'!D79 -> 237152630 | E28: ='SA1'!E79 -> 453332223 | F28: ='SA1'!F79 -> 259469334 | G28: ='SA1'!G79 -> 259469334 | H28: ='SA1'!H79 -> 259469334 | I28: ='SA1'!I79 -> 259469334 | J28: ='SA1'!J79 -> 485745588 | K28: ='SA1'!K79 -> 537857003 | L28: ='SA1'!L79 -> 595059306
A29: Finance charges | C29: 72134067 | D29: 70966061 | E29: 67174144 | F29: 60738178 | G29: 60738178 | H29: 60738178 | I29: 60738178 | J29: 69489091 | K29: 68312431 | L29: 61719330
A30: Bulk purchases | B30: 2 | C30: ='SA1'!C84 -> 1219817542 | D30: ='SA1'!D84 -> 1373240526 | E30: ='SA1'!E84 -> 1453402187 | F30: ='SA1'!F84 -> 1479522230 | G30: ='SA1'!G84 -> 1545172845 | H30: ='SA1'!H84 -> 1545172845 | I30: ='SA1'!I84 -> 1545172845 | J30: ='SA1'!J84 -> 1736811066 | K30: ='SA1'!K84 -> 1907233155 | L30: ='SA1'!L84 -> 2093955084
A31: Other materials | B31: 8 | C31: =11574546+268 -> 11574814 | D31: =15780487-320 -> 15780167 | E31: =5555+26395018 -> 26400573 | F31: 25197540 | G31: 25197540 | H31: 25197540 | I31: 25197540 | J31: =8773465-2000000+23000000 -> 29773465 | K31: 33492000 | L31: 35347000
A32: Contracted services | C32: ='SA1'!C123 -> 21090729 | D32: ='SA1'!D123 -> 17769190 | E32: ='SA1'!E123 -> 21066261 | F32: ='SA1'!F123 -> 93050931 | G32: ='SA1'!G123 -> 107595931 | H32: ='SA1'!H123 -> 107595931 | I32: ='SA1'!I123 -> 107595931 | J32: ='SA1'!J123 -> 18555560 | K32: ='SA1'!K123 -> 19483338 | L32: ='SA1'!L123 -> 20535438
A33: Transfers and grants | C33: ='SA1'!C89 -> 4143827 | D33: ='SA1'!D89 -> 4163848 | E33: ='SA1'!E89 -> 4428810 | F33: ='SA1'!F89 -> 5407870 | G33: ='SA1'!G89 -> 5407870 | H33: ='SA1'!H89 -> 5407870 | I33: ='SA1'!I89 -> 5407870 | J33: ='SA1'!J89 -> 134035335.2 | K33: ='SA1'!K89 -> 156186831.3 | L33: ='SA1'!L89 -> 181654770.8
A34: Other expenditure | B34: 4, 5 | C34: ='SA1'!C153 -> 381938349.1 | D34: ='SA1'!D153 -> 621142231.5 | E34: ='SA1'!E153 -> 681802957.5 | F34: ='SA1'!F153 -> 537132982.7 | G34: ='SA1'!G153 -> 513882438.7 | H34: ='SA1'!H153 -> 513882438.7 | I34: ='SA1'!I153 -> 513882438.7 | J34: ='SA1'!J153 -> 563816707 | K34: ='SA1'!K153 -> 602182247 | L34: ='SA1'!L153 -> 662425817.5
A35: Loss on disposal of PPE | C35: 0 | D35: =1777973+1341657+613184 -> 3732814 | E35: =395853+5438627+6456578 -> 12291058 | F35: 0 | G35: 0 | H35: 0 | I35: 0 | J35: 0 | K35: 0 | L35: 0
A36: Total Expenditure | C36: =SUM(C25:C35) -> 2740206653 | D36: =SUM(D25:D35) -> 3279499506 | E36: 3611214288 | F36: 3500255256 | G36: 3557200327 | H36: 3557200327 | I36: 3557200327 | J36: 4161699003 | K36: 4514890948 | L36: 4916246691 | M36: =SUM(M25:M35) -> 0 | N36: 0 | O36: 0 | P36: 0 | Q36: 0 | R36: 0 | S36: 0 | T36: 0 | U36: 0 | V36: 0 | W36: 0 | X36: 0
A38: Surplus/(Deficit) | C38: =C22-C36 -> -9582475.07 | D38: -68992589.52 | E38: -126917954.5 | F38: 70319721 | G38: 3501377 | H38: 3501377 | I38: 3501377 | J38: 3469670 | K38: 5499712 | L38: 8688974.944 | M38: =M22+M36 -> 0 | N38: 0 | O38: 0 | P38: 0 | Q38: 0 | R38: 0 | S38: 0 | T38: 0 | U38: 0 | V38: 0 | W38: 0 | X38: 0
A39: Transfers recognised - capital | C39: 149070068 | D39: 170847866 | E39: 246182649 | F39: 293824000 | G39: 314474000 | H39: 314474000 | I39: 314474000 | J39: 489060000 | K39: 466372000 | L39: 480820000
A40: Contributions recognised - capital | B40: 6 | C40: ='SA1'!C72 -> 0 | D40: ='SA1'!D72 -> 0 | E40: ='SA1'!E72 -> 0 | F40: ='SA1'!F72 -> 0 | G40: ='SA1'!G72 -> 0 | H40: ='SA1'!H72 -> 0 | I40: ='SA1'!I72 -> 0 | J40: ='SA1'!J72 -> 0 | K40: ='SA1'!K72 -> 0 | L40: ='SA1'!L72 -> 0
A41: Contributed assets | D41: 0
A42: Surplus/(Deficit) after capital transfers & contributions | C42: =SUM(C38:C41) -> 139487592.9 | D42: 101855276.5 | E42: 119264694.5 | F42: 364143721 | G42: 317975377 | H42: 317975377 | I42: 317975377 | J42: 492529670 | K42: 471871712 | L42: 489508974.9
A43: Taxation | D43: 0
A44: Surplus/(Deficit) after taxation | C44: =C42-C43 -> 139487592.9 | D44: 101855276.5 | E44: 119264694.5 | F44: 364143721 | G44: 317975377 | H44: 317975377 | I44: 317975377 | J44: 492529670 | K44: 471871712 | L44: 489508974.9
A45: Attributable to minorities
A46: Surplus/(Deficit) attributable to municipality | C46: =SUM(C44:C45) -> 139487592.9 | D46: 101855276.5 | E46: 119264694.5 | F46: 364143721 | G46: 317975377 | H46: 317975377 | I46: 317975377 | J46: 492529670 | K46: 471871712 | L46: 489508974.9
A47: Share of surplus/ (deficit) of associate | B47: 7
A48: =result -> Surplus/(Deficit) for the year | C48: =SUM(C46:C47) -> 139487592.9 | D48: 101855276.5 | E48: 119264694.5 | F48: 364143721 | G48: 317975377 | H48: 317975377 | I48: 317975377 | J48: 492529670 | K48: 471871712 | L48: 489508974.9 | M48: =M26+M47 -> 0 | N48: 0 | O48: 0 | P48: 0 | Q48: 0 | R48: 0 | S48: 0 | T48: 0 | U48: 0 | V48: 0 | W48: 0 | X48: 0
A49: =head27a -> References
A50: 1. Classifications are revenue sources and expenditure type
A51: 2. Detail to be provided in Table SA1
A52: 3. Previously described as 'bad or doubtful debts' - amounts shown should reflect the change in the provision for debt impairment
A53: 4. Expenditure type components previously shown under repairs and maintenance should be allocated back to the originating expenditure group/item; e.g. employee costs
A54: 5. Repairs & maintenance detailed in Table A9 and Table SA34c
A55: 6. Contributions are funds provided by external organisations to assist with infrastructure development; e.g. developer contributions (detail to be provided in Table SA1)
A56: 7. Equity method
A57: 8. All materials not part of 'bulk' e.g road making materials, pipe, cable etc.
A58: check balance | C58: =C46-'A3-FinPerf V'!C39 -> 8.106231689e-06 | D58: =D46-'A3-FinPerf V'!D39 -> -4.768371582e-07 | E58: =E46-'A3-FinPerf V'!E39 -> 0 | F58: =F46-'A3-FinPerf V'!F39 -> 0 | G58: =G46-'A3-FinPerf V'!G39 -> 0 | H58: =H46-'A3-FinPerf V'!H39 -> 0 | J58: =J46-'A3-FinPerf V'!I39 -> -4.768371582e-07 | K58: =K46-'A3-FinPerf V'!J39 -> -9.536743164e-07 | L58: =L46-'A3-FinPerf V'!K39 -> 0
A60: Total revenue | C60: =C22+SUM(C39:C41) -> 2879694246 | D60: 3381354782 | E60: 3730478982 | F60: 3864398977 | G60: 3875175704 | H60: 3875175704 | I60: 3875175704 | J60: 4654228673 | K60: 4986762660 | L60: 5405755666

Sheet A5-Capex
A1: =muni&" - "&Approve5 -> KZN225 Msunduzi - Table A5 Budgeted Capital Expenditure by vote, standard classification and funding
A2: =Vdesc -> Vote Description | B2: =head27 -> Ref | C2: =head1b -> 2011/12 | D2: =head1A -> 2012/13 | E2: =Head1 -> 2013/14 | F2: =Head2 -> Current Year 2014/15 | J2: =Head3 -> 2015/16 Medium Term Revenue & Expenditure Framework
A3: R thousand | B3: 1 | C3: =Head5 -> Audited Outcome | D3: =Head5 -> Audited Outcome | E3: =Head5 -> Audited Outcome | F3: =Head6 -> Original Budget | G3: =Head7 -> Adjusted Budget | H3: =Head8 -> Full Year Forecast | I3: =Head5b -> Pre-audit outcome | J3: =Head9 -> Budget Year 2015/16 | K3: =Head10 -> Budget Year +1 2016/17 | L3: =Head11 -> Budget Year +2 2017/18
A4: Capital expenditure - Vote
A5: Multi-year expenditure to be appropriated | B5: 2
A6: =A5A!A6 -> Vote 1 - Corporate Services | C6: =A5A!C6 -> 40040810.55 | D6: =A5A!D6 -> 38436100 | E6: =A5A!E6 -> 2500000 | F6: =A5A!F6 -> 25454200 | G6: =A5A!G6 -> 25454200 | H6: =A5A!H6 -> 25454200 | I6: =A5A!I6 -> 25454200 | J6: =A5A!J6 -> 28400000 | K6: =A5A!K6 -> 30000000 | L6: =A5A!L6 -> 36007000
A7: =A5A!A17 -> Vote 2 - Financial Management Area | C7: =A5A!C17 -> 34681.7 | D7: =A5A!D17 -> 7348943.89 | E7: =A5A!E17 -> 0 | F7: =A5A!F17 -> 24417136 | G7: =A5A!G17 -> 56217136 | H7: =A5A!H17 -> 56217136 | I7: =A5A!I17 -> 56217136 | J7: =A5A!J17 -> 25000000 | K7: =A5A!K17 -> 30000000 | L7: =A5A!L17 -> 5000000
A8: =A5A!A28 -> Vote 3 - Infrastructure Development, Service Delivery and Maintenance Management | C8: =A5A!C28 -> 195272529.6 | D8: =A5A!D28 -> 211354208.5 | E8: =A5A!E28 -> 187094000 | F8: =A5A!F28 -> 321922157 | G8: =A5A!G28 -> 348072157 | H8: =A5A!H28 -> 348072157 | I8: =A5A!I28 -> 348072157 | J8: =A5A!J28 -> 589310000 | K8: =A5A!K28 -> 507172000 | L8: =A5A!L28 -> 500820000
A9: =A5A!A39 -> Vote 4 - Sustainable Community Service Delivery Provision Management | C9: =A5A!C39 -> 15963264.2 | D9: =A5A!D39 -> 34633956.31 | E9: =A5A!E39 -> 0 | F9: =A5A!F39 -> 74304525 | G9: =A5A!G39 -> 74304525 | H9: =A5A!H39 -> 74304525 | I9: =A5A!I39 -> 74304525 | J9: =A5A!J39 -> 32200000 | K9: =A5A!K39 -> 26500000 | L9: =A5A!L39 -> 13000000
A10: =A5A!A50 -> Vote 5 - [NAME OF VOTE 5] | C10: =A5A!C50 -> 0 | D10: =A5A!D50 -> 0 | E10: =A5A!E50 -> 0 | F10: =A5A!F50 -> 0 | G10: =A5A!G50 -> 0 | H10: =A5A!H50 -> 0 | I10: =A5A!I50 -> 0 | J10: =A5A!J50 -> 0 | K10: =A5A!K50 -> 0 | L10: =A5A!L50 -> 0
A11: =A5A!A61 -> Vote 6 - [NAME OF VOTE 6] | C11: =A5A!C61 -> 0 | D11: =A5A!D61 -> 0 | E11: =A5A!E61 -> 0 | F11: =A5A!F61 -> 0 | G11: =A5A!G61 -> 0 | H11: =A5A!H61 -> 0 | I11: =A5A!I61 -> 0 | J11: =A5A!J61 -> 0 | K11: =A5A!K61 -> 0 | L11: =A5A!L61 -> 0
A12: =A5A!A72 -> Vote 7 - [NAME OF VOTE 7] | C12: =A5A!C72 -> 0 | D12: =A5A!D72 -> 0 | E12: =A5A!E72 -> 0 | F12: =A5A!F72 -> 0 | G12: =A5A!G72 -> 0 | H12: =A5A!H72 -> 0 | I12: =A5A!I72 -> 0 | J12: =A5A!J72 -> 0 | K12: =A5A!K72 -> 0 | L12: =A5A!L72 -> 0
A13: =A5A!A83 -> Vote 8 - [NAME OF VOTE 8] | C13: =A5A!C83 -> 0 | D13: =A5A!D83 -> 0 | E13: =A5A!E83 -> 0 | F13: =A5A!F83 -> 0 | G13: =A5A!G83 -> 0 | H13: =A5A!H83 -> 0 | I13: =A5A!I83 -> 0 | J13: =A5A!J83 -> 0 | K13: =A5A!K83 -> 0 | L13: =A5A!L83 -> 0
A14: =A5A!A94 -> Vote 9 - [NAME OF VOTE 9] | C14: =A5A!C94 -> 0 | D14: =A5A!D94 -> 0 | E14: =A5A!E94 -> 0 | F14: =A5A!F94 -> 0 | G14: =A5A!G94 -> 0 | H14: =A5A!H94 -> 0 | I14: =A5A!I94 -> 0 | J14: =A5A!J94 -> 0 | K14: =A5A!K94 -> 0 | L14: =A5A!L94 -> 0
A15: =A5A!A105 -> Vote 10 - [NAME OF VOTE 10] | C15: =A5A!C105 -> 0 | D15: =A5A!D105 -> 0 | E15: =A5A!E105 -> 0 | F15: =A5A!F105 -> 0 | G15: =A5A!G105 -> 0 | H15: =A5A!H105 -> 0 | I15: =A5A!I105 -> 0 | J15: =A5A!J105 -> 0 | K15: =A5A!K105 -> 0 | L15: =A5A!L105 -> 0
A16: =A5A!A116 -> Vote 11 - [NAME OF VOTE 11] | C16: =A5A!C116 -> 0 | D16: =A5A!D116 -> 0 | E16: =A5A!E116 -> 0 | F16: =A5A!F116 -> 0 | G16: =A5A!G116 -> 0 | H16: =A5A!H116 -> 0 | I16: =A5A!I116 -> 0 | J16: =A5A!J116 -> 0 | K16: =A5A!K116 -> 0 | L16: =A5A!L116 -> 0
A17: =A5A!A127 -> Vote 12 - [NAME OF VOTE 12] | C17: =A5A!C127 -> 0 | D17: =A5A!D127 -> 0 | E17: =A5A!E127 -> 0 | F17: =A5A!F127 -> 0 | G17: =A5A!G127 -> 0 | H17: =A5A!H127 -> 0 | I17: =A5A!I127 -> 0 | J17: =A5A!J127 -> 0 | K17: =A5A!K127 -> 0 | L17: =A5A!L127 -> 0
A18: =A5A!A138 -> Vote 13 - [NAME OF VOTE 13] | C18: =A5A!C138 -> 0 | D18: =A5A!D138 -> 0 | E18: =A5A!E138 -> 0 | F18: =A5A!F138 -> 0 | G18: =A5A!G138 -> 0 | H18: =A5A!H138 -> 0 | I18: =A5A!I138 -> 0 | J18: =A5A!J138 -> 0 | K18: =A5A!K138 -> 0 | L18: =A5A!L138 -> 0
A19: =A5A!A149 -> Vote 14 - [NAME OF VOTE 14] | C19: =A5A!C149 -> 0 | D19: =A5A!D149 -> 0 | E19: =A5A!E149 -> 0 | F19: =A5A!F149 -> 0 | G19: =A5A!G149 -> 0 | H19: =A5A!H149 -> 0 | I19: =A5A!I149 -> 0 | J19: =A5A!J149 -> 0 | K19: =A5A!K149 -> 0 | L19: =A5A!L149 -> 0
A20: =A5A!A160 -> Vote 15 - [NAME OF VOTE 15] | C20: =A5A!C160 -> 0 | D20: =A5A!D160 -> 0 | E20: =A5A!E160 -> 0 | F20: =A5A!F160 -> 0 | G20: =A5A!G160 -> 0 | H20: =A5A!H160 -> 0 | I20: =A5A!I160 -> 0 | J20: =A5A!J160 -> 0 | K20: =A5A!K160 -> 0 | L20: =A5A!L160 -> 0
A21: Capital multi-year expenditure sub-total | B21: 7 | C21: =SUM(C6:C20) -> 251311286.1 | D21: =SUM(D6:D20) -> 291773208.7 | E21: 189594000 | F21: 446098018 | G21: 504048018 | H21: =SUM(H6:H20) -> 504048018 | I21: 504048018 | J21: 674910000 | K21: 593672000 | L21: 554827000
A23: Single-year expenditure to be appropriated | B23: 2
A24: =A6 -> Vote 1 - Corporate Services | C24: =A5A!C175 -> 5150000 | D24: =A5A!D175 -> 3100000 | E24: =A5A!E175 -> 3100000 | F24: =A5A!F175 -> 3818000 | G24: =A5A!G175 -> 3818000 | H24: =A5A!H175 -> 3818000 | I24: =A5A!I175 -> 3818000 | J24: =A5A!J175 -> 4865000 | K24: =A5A!K175 -> 3750000 | L24: =A5A!L175 -> 7000000
A25: =A7 -> Vote 2 - Financial Management Area | C25: =A5A!C186 -> 3936554.883 | D25: =A5A!D186 -> 7000000 | E25: =A5A!E186 -> 7012000 | F25: =A5A!F186 -> 10479000 | G25: =A5A!G186 -> 13679000 | H25: =A5A!H186 -> 13679000 | I25: =A5A!I186 -> 13679000 | J25: =A5A!J186 -> 709500 | K25: =A5A!K186 -> 0 | L25: =A5A!L186 -> 0
A26: Vote 3 - Infrastructure Development, Service Delivery and Maintenance Management | C26: =A5A!C197 -> 82352278.87 | D26: =A5A!D197 -> 74251514.88 | E26: =A5A!E197 -> 135889655 | F26: =A5A!F197 -> 112440882 | G26: =A5A!G197 -> 158512886 | H26: =A5A!H197 -> 158512886 | I26: =A5A!I197 -> 158512886 | J26: =A5A!J197 -> 12505000 | K26: =A5A!K197 -> 16613000 | L26: =A5A!L197 -> 35650000
A27: Vote 4 - Sustainable Community Service Delivery Provision Management | C27: =A5A!C208 -> 16061251.73 | D27: =A5A!D208 -> 25750000 | E27: =A5A!E208 -> 28310000 | F27: =A5A!F208 -> 24918100 | G27: =A5A!G208 -> 24918100 | H27: =A5A!H208 -> 24918100 | I27: =A5A!I208 -> 24918100 | J27: =A5A!J208 -> 16070500 | K27: =A5A!K208 -> 22337000 | L27: =A5A!L208 -> 3343000
A28: Vote 5 - [NAME OF VOTE 5] | C28: =A5A!C219 -> 0 | D28: =A5A!D219 -> 0 | E28: =A5A!E219 -> 0 | F28: =A5A!F219 -> 0 | G28: =A5A!G219 -> 0 | H28: =A5A!H219 -> 0 | I28: =A5A!I219 -> 0 | J28: =A5A!J219 -> 0 | K28: =A5A!K219 -> 0 | L28: =A5A!L219 -> 0
A29: Vote 6 - [NAME OF VOTE 6] | C29: =A5A!C230 -> 0 | D29: =A5A!D230 -> 0 | E29: =A5A!E230 -> 0 | F29: =A5A!F230 -> 0 | G29: =A5A!G230 -> 0 | H29: =A5A!H230 -> 0 | I29: =A5A!I230 -> 0 | J29: =A5A!J230 -> 0 | K29: =A5A!K230 -> 0 | L29: =A5A!L230 -> 0
A30: Vote 7 - [NAME OF VOTE 7] | C30: =A5A!C241 -> 0 | D30: =A5A!D241 -> 0 | E30: =A5A!E241 -> 0 | F30: =A5A!F241 -> 0 | G30: =A5A!G241 -> 0 | H30: =A5A!H241 -> 0 | I30: =A5A!I241 -> 0 | J30: =A5A!J241 -> 0 | K30: =A5A!K241 -> 0 | L30: =A5A!L241 -> 0
A31: Vote 8 - [NAME OF VOTE 8] | C31: =A5A!C252 -> 0 | D31: =A5A!D252 -> 0 | E31: =A5A!E252 -> 0 | F31: =A5A!F252 -> 0 | G31: =A5A!G252 -> 0 | H31: =A5A!H252 -> 0 | I31: =A5A!I252 -> 0 | J31: =A5A!J252 -> 0 | K31: =A5A!K252 -> 0 | L31: =A5A!L252 -> 0
A32: Vote 9 - [NAME OF VOTE 9] | C32: =A5A!C263 -> 0 | D32: =A5A!D263 -> 0 | E32: =A5A!E263 -> 0 | F32: =A5A!F263 -> 0 | G32: =A5A!G263 -> 0 | H32: =A5A!H263 -> 0 | I32: =A5A!I263 -> 0 | J32: =A5A!J263 -> 0 | K32: =A5A!K263 -> 0 | L32: =A5A!L263 -> 0
A33: Vote 10 - [NAME OF VOTE 10] | C33: =A5A!C274 -> 0 | D33: =A5A!D274 -> 0 | E33: =A5A!E274 -> 0 | F33: =A5A!F274 -> 0 | G33: =A5A!G274 -> 0 | H33: =A5A!H274 -> 0 | I33: =A5A!I274 -> 0 | J33: =A5A!J274 -> 0 | K33: =A5A!K274 -> 0 | L33: =A5A!L274 -> 0
A34: Vote 11 - [NAME OF VOTE 11] | C34: =A5A!C285 -> 0 | D34: =A5A!D285 -> 0 | E34: =A5A!E285 -> 0 | F34: =A5A!F285 -> 0 | G34: =A5A!G285 -> 0 | H34: =A5A!H285 -> 0 | I34: =A5A!I285 -> 0 | J34: =A5A!J285 -> 0 | K34: =A5A!K285 -> 0 | L34: =A5A!L285 -> 0
A35: Vote 12 - [NAME OF VOTE 12] | C35: =A5A!C296 -> 0 | D35: =A5A!D296 -> 0 | E35: =A5A!E296 -> 0 | F35: =A5A!F296 -> 0 | G35: =A5A!G296 -> 0 | H35: =A5A!H296 -> 0 | I35: =A5A!I296 -> 0 | J35: =A5A!J296 -> 0 | K35: =A5A!K296 -> 0 | L35: =A5A!L296 -> 0
A36: Vote 13 - [NAME OF VOTE 13] | C36: =A5A!C307 -> 0 | D36: =A5A!D307 -> 0 | E36: =A5A!E307 -> 0 | F36: =A5A!F307 -> 0 | G36: =A5A!G307 -> 0 | H36: =A5A!H307 -> 0 | I36: =A5A!I307 -> 0 | J36: =A5A!J307 -> 0 | K36: =A5A!K307 -> 0 | L36: =A5A!L307 -> 0
A37: Vote 14 - [NAME OF VOTE 14] | C37: =A5A!C318 -> 0 | D37: =A5A!D318 -> 0 | E37: =A5A!E318 -> 0 | F37: =A5A!F318 -> 0 | G37: =A5A!G318 -> 0 | H37: =A5A!H318 -> 0 | I37: =A5A!I318 -> 0 | J37: =A5A!J318 -> 0 | K37: =A5A!K318 -> 0 | L37: =A5A!L318 -> 0
A38: =A20 -> Vote 15 - [NAME OF VOTE 15] | C38: =A5A!C329 -> 0 | D38: =A5A!D329 -> 0 | E38: =A5A!E329 -> 0 | F38: =A5A!F329 -> 0 | G38: =A5A!G329 -> 0 | H38: =A5A!H329 -> 0 | I38: =A5A!I329 -> 0 | J38: =A5A!J329 -> 0 | K38: =A5A!K329 -> 0 | L38: =A5A!L329 -> 0
A39: Capital single-year expenditure sub-total | C39: =SUM(C24:C38) -> 107500085.5 | D39: =SUM(D24:D38) -> 110101514.9 | E39: 174311655 | F39: 151655982 | G39: 200927986 | H39: 200927986 | I39: 200927986 | J39: 34150000 | K39: 42700000 | L39: 45993000
A40: Total Capital Expenditure - Vote | C40: =C39+C21 -> 358811371.6 | D40: =D39+D21 -> 401874723.6 | E40: 363905655 | F40: 597754000 | G40: 704976004 | H40: 704976004 | I40: 704976004 | J40: 709060000 | K40: 636372000 | L40: 600820000
A42: Capital Expenditure - Standard
A43: Governance and administration | C43: =SUM(C44:C46) -> 94276008.42 | D43: =SUM(D44:D46) -> 24283395.82 | E43: 17036881.76 | F43: 23899268 | G43: 58899268 | H43: 58899268 | I43: 58899268 | J43: 59384500 | K43: 60000000 | L43: 41007000
A44: Executive and council | C44: 0 | D44: 0 | E44: 16842946.31 | F44: 1961000 | G44: 1961000 | H44: 1961000 | I44: 1961000 | J44: 5800000 | K44: 0 | L44: 6007000
A45: Budget and treasury office | C45: =92895432.63+1380575.79 -> 94276008.42 | D45: =12456795.24+11826600.58 -> 24283395.82 | E45: 193935.45 | F45: =17938268+4000000 -> 21938268 | G45: 56938268 | H45: 56938268 | I45: 56938268 | J45: 53584500 | K45: =30000000+30000000 -> 60000000 | L45: 35000000
A46: Corporate services | C46: 0 | D46: 0 | E46: 0 | F46: 0 | J46: 0 | K46: 0 | L46: 0
A47: Community and public safety | C47: =SUM(C48:C52) -> 7233686.38 | D47: =SUM(D48:D52) -> 11496128 | E47: 21180205.05 | F47: 10655754 | G47: 10655754 | H47: 10655754 | I47: 10655754 | J47: 54598000 | K47: 48307000 | L47: 15613000
A48: Community and social services | C48: =332314.68+2723241.01 -> 3055555.69 | D48: =1760540.53+9735587.47 -> 11496128 | E48: =4961925.31+15089322.45 -> 20051247.76 | F48: 4127830 | G48: 4127830 | H48: 4127830 | I48: 4127830 | J48: 2500000 | K48: 3500000 | L48: 0
A49: Sport and recreation | C49: =1040082.24+757175 -> 1797257.24 | D49: 0 | E49: 202107.5 | F49: =5857924+150000 -> 6007924 | G49: =5857924+150000 -> 6007924 | H49: =5857924+150000 -> 6007924 | I49: =5857924+150000 -> 6007924 | J49: 34400000 | K49: 39300000 | L49: 12000000
A50: Public safety | C50: 389711.08 | D50: 0 | E50: 844601 | F50: 520000 | G50: 520000 | H50: 520000 | I50: 520000 | J50: 8353000 | K50: 3950000 | L50: 1930000
A51: Housing | C51: 1278851.47 | D51: 0 | E51: 11620.37 | F51: 0 | G51: 0 | H51: 0 | I51: 0 | J51: 7725000 | K51: 200000 | L51: 0
A52: Health | C52: =31732.9+680578 -> 712310.9 | D52: 0 | E52: 70628.42 | F52: 0 | G52: 0 | H52: 0 | I52: 0 | J52: 1620000 | K52: 1357000 | L52: 1683000
A53: Economic and environmental services | C53: =SUM(C54:C56) -> 82509670.57 | D53: =SUM(D54:D56) -> 91400813.83 | E53: 104017263 | F53: 350835832 | G53: 377985832 | H53: 377985832 | I53: 377985832 | J53: 339647000 | K53: 340368000 | L53: 365858000
A54: Planning and development | C54: =16114.44+11701508.77 -> 11717623.21 | D54: 0 | E54: =19267805.75+500000 -> 19767805.75 | F54: =188662000+35211000-50000000 -> 173873000 | G54: 201023000 | H54: 201023000 | I54: 201023000 | J54: 9590000 | K54: 4800000 | L54: 7050000
A55: Road transport | C55: =33456898.21+37335149.15 -> 70792047.36 | D55: =23712350.7+67688463.13 -> 91400813.83 | E55: =62558591.61+21335563.6 -> 83894155.21 | F55: =225171832+1791000-50000000 -> 176962832 | G55: =225171832+1791000-50000000 -> 176962832 | H55: =225171832+1791000-50000000 -> 176962832 | I55: =225171832+1791000-50000000 -> 176962832 | J55: 330057000 | K55: =365568000-30000000 -> 335568000 | L55: 358808000
A56: Environmental protection | E56: 355302
A57: Trading services | C57: =SUM(C58:C61) -> 110218360.9 | D57: =SUM(D58:D61) -> 123682747.6 | E57: 146737856.4 | F57: 179895648 | G57: 224967652 | H57: 224967652 | I57: 224967652 | J57: 254033000 | K57: 186967000 | L57: 177612000
A58: Electricity | C58: =26064587.54+6255458.03 -> 32320045.57 | D58: =33561368.61+38396030.74 -> 71957399.35 | E58: =16161578.76+51980562.44 -> 68142141.2 | F58: =107777000+31758000+5500000-118-50000000 -> 95034882 | G58: 140106886 | H58: 140106886 | I58: 140106886 | J58: 133000000 | K58: 85500000 | L58: 39405350
A59: Water | C59: =48570+24952206.35 -> 25000776.35 | D59: =793294.81+34133647.37 -> 34926942.18 | E59: =4023558.62+31135452.7 -> 35159011.32 | F59: =39743250+15171000+4277000 -> 59191250 | G59: =39743250+15171000+4277000 -> 59191250 | H59: =39743250+15171000+4277000 -> 59191250 | I59: =39743250+15171000+4277000 -> 59191250 | J59: 83133000 | K59: 59721000 | L59: 75241000
A60: Waste water management | C60: =14724351.07+38173187.9 -> 52897538.97 | D60: =858223.09+15940183.01 -> 16798406.1 | E60: =1715517.97+41721185.88 -> 43436703.85 | F60: 14128966 | G60: 14128966 | H60: 14128966 | I60: 14128966 | J60: 36900000 | K60: 32826350 | L60: 53600000
A61: Waste management | C61: 0 | D61: 0 | E61: 0 | F61: =11540550 -> 11540550 | G61: =11540550 -> 11540550 | H61: =11540550 -> 11540550 | I61: =11540550 -> 11540550 | J61: 1000000 | K61: 8919650 | L61: 9365650
A62: Other | C62: =64573630.9-107.02 -> 64573523.88 | D62: =148214075.04+2798255.3-747 -> 151011583.3 | E62: =70067990.45+4865618.67-191.26 -> 74933417.86 | F62: =32467890-392 -> 32467498 | G62: =32467890-392 -> 32467498 | H62: 32467498 | I62: 32467498 | J62: 1397500 | K62: 730000 | L62: 730000
A63: Total Capital Expenditure - Standard | B63: 3 | C63: =C43+C47+C53+C57+C62 -> 358811250.1 | D63: =D43+D47+D53+D57+D62 -> 401874668.6 | E63: 363905624 | F63: 597754000 | G63: 704976004 | H63: 704976004 | I63: 704976004 | J63: 709060000 | K63: 636372000 | L63: =L43+L47+L53+L57+L62 -> 600820000
A65: Funded by:
A66: National Government | C66: 124014406 | D66: 148694237 | E66: 198669836 | F66: 283897000 | G66: 302047000 | H66: 302047000 | I66: 302047000 | J66: 489060000 | K66: 466372000 | L66: 480820000
A67: Provincial Government | C67: 25055844.14 | D67: =22018821+135000 -> 22153821 | E67: =47378338+135000 -> 47513338 | F67: 9927000 | G67: 12427000 | H67: 12427000 | I67: 12427000 | J67: 0 | K67: 0 | L67: 0
A68: District Municipality | C68: 0 | D68: 0 | E68: 0 | F68: 0 | G68: 0 | H68: 0 | I68: 0 | J68: 0 | K68: 0 | L68: 0
A69: Other transfers and grants | C69: 0 | D69: 0 | E69: 0 | F69: 0 | G69: 0 | H69: 0 | I69: 0 | J69: 0 | K69: 0 | L69: 0
A70: Transfers recognised - capital | B70: 4 | C70: =SUM(C66:C69) -> 149070250.1 | D70: 170848058 | E70: 246183174 | F70: 293824000 | G70: 314474000 | H70: 314474000 | I70: 314474000 | J70: 489060000 | K70: 466372000 | L70: 480820000
A71: Public contributions & donations | B71: 5 | C71: 0 | D71: 0 | E71: 0 | F71: 0 | G71: 0 | H71: 0 | I71: 0 | J71: 0 | K71: 0 | L71: 0
A72: Borrowing | B72: 6 | C72: 0 | D72: 0 | E72: 0 | F72: =250000000-150000000 -> 100000000 | G72: =250000000-150000000 -> 100000000 | H72: =250000000-150000000 -> 100000000 | I72: =250000000-150000000 -> 100000000 | J72: 100000000 | K72: 50000000 | L72: 0
A73: Internally generated funds | C73: 209741000 | D73: =231161610.62-135000 -> 231026610.6 | E73: =117857450-135000 -> 117722450 | F73: =120000000+83930000 -> 203930000 | G73: 290502004 | H73: 290502004 | I73: 290502004 | J73: 120000000 | K73: 120000000 | L73: 120000000
A74: Total Capital Funding | B74: 7 | C74: =SUM(C70:C73) -> 358811250.1 | D74: 401874668.6 | E74: 363905624 | F74: 597754000 | G74: 704976004 | H74: 704976004 | I74: 704976004 | J74: 709060000 | K74: 636372000 | L74: 600820000
A75: =head27a -> References
A76: 1. Municipalities may choose to appropriate for capital expenditure for three years or for one year (if one year appropriation projected expenditure required for yr2 and yr3).
A77: 2. Include capital component of PPP unitary payment. Note that capital transfers are only appropriated to municipalities for the budget year
A78: 3. Capital expenditure by standard classification must reconcile to the appropriations by vote
A79: 4. Must reconcile to supporting table SA20 and to Budgeted Financial Performance (revenue and expenditure)
A80: 5. Must reconcile to Budgeted Financial Performance (revenue and expenditure)
A81: 6. Include finance leases and PPP capital funding component of unitary payment - total borrowing/repayments to reconcile to changes in Table SA17
A82: 7. Total Capital Funding must balance with Total Capital Expenditure
A83: 8. Include any capitalised interest (MFMA section 46) as part of relevant capital budget
A85: check balance | C85: =IF((C63-C74)=0,0,"Unbalanced") -> 0 | D85: =IF((D63-D74)=0,0,"Unbalanced") -> 0 | E85: 0 | F85: 0 | G85: 0 | H85: 0 | I85: 0 | J85: 0 | K85: 0 | L85: 0

Sheet A5A
A1: =muni&" - "&Approve5 -> KZN225 Msunduzi - Table A5 Budgeted Capital Expenditure by vote, standard classification and funding
A2: =Vdesc -> Vote Description | B2: =head27 -> Ref | C2: =head1b -> 2011/12 | D2: =head1A -> 2012/13 | E2: =Head1 -> 2013/14 | F2: =Head2 -> Current Year 2014/15 | J2: =Head3 -> 2015/16 Medium Term Revenue & Expenditure Framework | N2: ="Multi-year appropriation for "&Head9& " in the "&Head2A&" Annual Budget" -> Multi-year appropriation for Budget Year 2015/16 in the 2014/15 Annual Budget | R2: ="Multi-year appropriation for "&RIGHT(Head10,7)& " in the "&Head2A&" Annual Budget" -> Multi-year appropriation for 2016/17 in the 2014/15 Annual Budget | V2: New multi-year appropriations (funds for new and existing projects)
A3: R thousand | B3: 1 | C3: =Head5 -> Audited Outcome | D3: =Head5 -> Audited Outcome | E3: =Head5 -> Audited Outcome | F3: =Head6 -> Original Budget | G3: =Head7 -> Adjusted Budget | H3: =Head8 -> Full Year Forecast | I3: =Head5b -> Pre-audit outcome | J3: =Head9 -> Budget Year 2015/16 | K3: =Head10 -> Budget Year +1 2016/17 | L3: =Head11 -> Budget Year +2 2017/18 | N3: ="Appropriation for "&RIGHT(Head9,7) -> Appropriation for 2015/16 | O3: ="Adjustments in "&Head2A -> Adjustments in 2014/15 | P3: ="Downward adjustments for "&RIGHT(Head9,7) -> Downward adjustments for 2015/16 | Q3: Appropriation carried forward | R3: ="Appropriation for "&RIGHT(Head9,7) -> Appropriation for 2015/16 | S3: ="Adjustments in "&Head2A -> Adjustments in 2014/15 | T3: ="Downward adjustments for "&RIGHT(Head9,7) -> Downward adjustments for 2015/16 | U3: Appropriation carried forward | V3: =Head9 -> Budget Year 2015/16 | W3: =Head10 -> Budget Year +1 2016/17 | X3: =Head11 -> Budget Year +2 2017/18
A4: Capital expenditure - Municipal Vote
A5: Multi-year expenditure appropriation | B5: 2
A6: ='[5]Org structure'!A2 -> Vote 1 - Corporate Services | C6: =SUM(C7:C16) -> 40040810.55 | D6: =SUM(D7:D16) -> 38436100 | E6: 2500000 | F6: 25454200 | G6: 25454200 | H6: 25454200 | I6: =SUM(I7:I16) -> 25454200 | J6: 28400000 | K6: 30000000 | L6: 36007000 | N6: =SUM(N7:N16) -> 0 | O6: =SUM(O7:O16) -> 0 | P6: 0 | Q6: 0 | R6: 0 | S6: 0 | T6: 0 | U6: 0 | V6: =SUM(V7:V16) -> 28400000 | W6: =SUM(W7:W16) -> 30000000 | X6: =SUM(X7:X16) -> 36007000
A7: ='[5]Org structure'!E3 -> 1.1 - Council and Committee Support | C7: 27352000 | D7: 7030000 | F7: 15961200 | G7: 15961200 | H7: 15961200 | I7: 15961200 | J7: =Q7+V7 -> 0 | K7: =U7+W7 -> 0 | L7: =X7 -> 0 | Q7: =SUM(N7:P7) -> 0 | U7: =SUM(R7:T7) -> 0 | V7: 0 | W7: 0 | X7: 0
A8: ='[5]Org structure'!E4 -> 1.2 - Enterprise Wide Risk Management & Audit and Compliance | C8: 0 | J8: =Q8+V8 -> 0 | K8: =U8+W8 -> 0 | L8: =X8 -> 0 | Q8: =SUM(N8:P8) -> 0 | U8: =SUM(R8:T8) -> 0 | V8: 0 | W8: 0 | X8: 0
A9: ='[5]Org structure'!E5 -> 1.3 - Human Resources Management | C9: 0 | F9: 825000 | G9: 825000 | H9: 825000 | I9: 825000 | J9: =Q9+V9 -> 0 | K9: =U9+W9 -> 0 | L9: 0 | Q9: 0 | U9: 0 | V9: 0 | W9: 0 | X9: 0
A10: ='[5]Org structure'!E6 -> 1.4 - Legislative Compliance | C10: 12986.49 | F10: 185000 | G10: 185000 | H10: 185000 | I10: 185000 | J10: 0 | K10: 0 | L10: 0 | Q10: 0 | U10: 0 | V10: 0 | W10: 0 | X10: 0
A11: ='[5]Org structure'!E7 -> 1.5 - Local Economic Development Management | C11: 11701508.77 | D11: 31406100 | F11: 6532000 | G11: 6532000 | H11: 6532000 | I11: 6532000 | J11: 20000000 | K11: 30000000 | L11: =X11 -> 30000000 | Q11: 0 | U11: 0 | V11: 20000000 | W11: 30000000 | X11: 30000000
A12: ='[5]Org structure'!E8 -> 1.6 - Management Information Services | C12: 974315.29 | E12: 2500000 | F12: 1951000 | G12: 1951000 | H12: 1951000 | I12: 1951000 | J12: 3400000 | K12: 0 | L12: 0 | Q12: 0 | U12: 0 | V12: 3400000 | W12: 0 | X12: 0
A13: ='[5]Org structure'!E9 -> 1.7 - Marketing and Public Relations Management | C13: 0 | J13: 5000000 | K13: 0 | L13: 6007000 | Q13: 0 | U13: 0 | V13: 5000000 | W13: 0 | X13: 6007000
A14: ='Org structure'!E10 -> 0 | J14: 0 | K14: 0 | L14: 0 | Q14: 0 | U14: 0
A15: ='Org structure'!E11 -> 0 | J15: 0 | K15: 0 | L15: 0 | Q15: 0 | U15: 0
A16: ='Org structure'!E12 -> 0 | J16: 0 | K16: 0 | L16: 0 | Q16: 0 | U16: 0
A17: ='[5]Org structure'!A3 -> Vote 2 - Financial Management Area | C17: =SUM(C18:C27) -> 34681.7 | D17: =SUM(D18:D27) -> 7348943.89 | E17: 0 | F17: 24417136 | G17: 56217136 | H17: 56217136 | I17: =SUM(I18:I27) -> 56217136 | J17: 25000000 | K17: 30000000 | L17: 5000000 | N17: =SUM(N18:N27) -> 0 | O17: =SUM(O18:O27) -> 0 | P17: =SUM(P18:P27) -> 0 | Q17: =SUM(Q18:Q27) -> 0 | R17: 0 | S17: 0 | T17: 0 | U17: 0 | V17: 25000000 | W17: 30000000 | X17: 5000000
A18: ='[5]Org structure'!E14 -> 2.1 - Budget & Treasury Management | C18: 34681.7 | D18: 0 | F18: 21397536 | G18: 53197536 | H18: 53197536 | I18: 53197536 | J18: =Q18+V18 -> 0 | K18: =U18+W18 -> 0 | L18: =X18 -> 0 | Q18: =SUM(N18:P18) -> 0 | U18: 0 | V18: 0 | W18: 0 | X18: 0
A19: ='[5]Org structure'!E15 -> 2.2 - Expenditure Management | C19: 0 | F19: 152600 | G19: 152600 | H19: 152600 | I19: 152600 | J19: =Q19+V19 -> 0 | K19: =U19+W19 -> 0 | L19: 0 | Q19: 0 | U19: 0 | V19: 0 | W19: 0 | X19: 0
A20: ='[5]Org structure'!E16 -> 2.3 - Financial Control and Cash Management | C20: 0 | F20: 30000 | G20: 30000 | H20: 30000 | I20: 30000 | J20: 25000000 | K20: 30000000 | L20: 5000000 | Q20: 0 | U20: 0 | V20: 25000000 | W20: 30000000 | X20: 5000000
A21: ='[5]Org structure'!E17 -> 2.4 - Revenue Management | C21: 0 | D21: 7348943.89 | F21: 2687000 | G21: 2687000 | H21: 2687000 | I21: 2687000 | J21: 0 | K21: =U21+W21 -> 0 | L21: 0 | Q21: 0 | U21: 0 | V21: 0 | W21: 0 | X21: 0
A22: ='[5]Org structure'!E18 -> 2.5 - Supply Chain Management | C22: 0 | F22: 150000 | G22: 150000 | H22: 150000 | I22: 150000 | J22: 0 | K22: 0 | L22: 0 | Q22: 0 | U22: 0 | V22: 0 | W22: 0 | X22: 0
A23: ='Org structure'!E19 -> 0 | J23: 0 | K23: 0 | L23: 0 | Q23: 0 | U23: 0 | V23: 0 | W23: 0 | X23: 0
A24: ='Org structure'!E20 -> 0 | J24: 0 | K24: 0 | L24: 0 | Q24: 0 | U24: 0 | V24: 0 | W24: 0 | X24: 0
A25: ='Org structure'!E21 -> 0 | J25: 0 | K25: 0 | L25: 0 | Q25: 0 | U25: 0 | V25: 0 | W25: 0 | X25: 0
A26: ='Org structure'!E22 -> 0 | J26: 0 | K26: 0 | L26: 0 | Q26: 0 | U26: 0 | V26: 0 | W26: 0 | X26: 0
A27: ='Org structure'!E23 -> 0 | J27: 0 | K27: 0 | L27: 0 | Q27: 0 | U27: 0 | V27: 0 | W27: 0 | X27: 0
A28: ='[5]Org structure'!A4 -> Vote 3 - Infrastructure Development, Service Delivery and Maintenance Management | C28: =SUM(C29:C38) -> 195272529.6 | D28: =SUM(D29:D38) -> 211354208.5 | E28: 187094000 | F28: 321922157 | G28: 348072157 | H28: 348072157 | I28: =SUM(I29:I38) -> 348072157 | J28: 589310000 | K28: 507172000 | L28: 500820000 | N28: =SUM(N29:N38) -> 0 | O28: =SUM(O29:O38) -> 0 | P28: 0 | Q28: 0 | R28: 0 | S28: 0 | T28: 0 | U28: 0 | V28: 589310000 | W28: 507172000 | X28: 500820000
A29: ='[5]Org structure'!E25 -> 3.1 - Electricity distribution Management | C29: 26696477.65 | D29: 28031301.53 | E29: 43500000 | F29: 89534632.25 | G29: 88534632.25 | H29: 88534632.25 | I29: 88534632.25 | J29: =Q29+V29 -> 133000000 | K29: =U29+W29 -> 85500000 | L29: =X29 -> 39405350 | Q29: =SUM(N29:P29) -> 0 | U29: 0 | V29: 133000000 | W29: 85500000 | X29: 39405350
A30: ='[5]Org structure'!E26 -> 3.2 - Human Settlement Development Management | C30: 0 | D30: 0 | J30: 7500000 | K30: 0 | L30: 0 | Q30: 0 | U30: 0 | V30: 7500000 | W30: 0 | X30: 0
A31: ='[5]Org structure'!E27 -> 3.3 - Municipal Infrastructure Planning, Funding, Maintenance and Development Management | C31: 59434.44 | D31: 0 | F31: 35460000 | G31: 62610000 | H31: 62610000 | I31: 62610000 | J31: 8000000 | K31: 0 | L31: 0 | Q31: 0 | U31: =SUM(R31:T31) -> 0 | V31: 8000000 | W31: 0 | X31: 0
A32: ='[5]Org structure'!E28 -> 3.4 - Roads and Stormwater | C32: 84590527.77 | D32: 78747780 | E32: 78402000 | F32: 87718968.44 | G32: 87718968.44 | H32: 87718968.44 | I32: 87718968.44 | J32: 320677000 | K32: =U32+W32 -> 321305000 | L32: 324458000 | Q32: 0 | U32: 0 | V32: 320677000 | W32: =351305000-30000000 -> 321305000 | X32: 324458000
A33: ='[5]Org structure'!E29 -> 3.5 - Waste Management | C33: 20601677.49 | D33: 20205677 | E33: 8091000 | F33: 25224149.32 | G33: 25224149.32 | H33: 25224149.32 | I33: 25224149.32 | J33: =Q33+V33 -> 1000000 | K33: 8919650 | L33: 9365650 | Q33: 0 | U33: 0 | V33: 1000000 | W33: 8919650 | X33: 9365650
A34: ='[5]Org structure'!E30 -> 3.6 - Water Distribution and Sanitation Management | C34: =25000776.34+38323635.96 -> 63324412.3 | D34: 84369450 | E34: 57101000 | F34: 60550856.99 | G34: 60550856.99 | H34: 60550856.99 | I34: 60550856.99 | J34: 119133000 | K34: 91447350 | L34: 127591000 | Q34: 0 | U34: 0 | V34: 119133000 | W34: 91447350 | X34: 127591000
A35: ='Org structure'!E31 -> 0 | F35: 0 | G35: 0 | H35: 0 | I35: 0 | J35: 0 | K35: 0 | L35: 0 | Q35: 0 | U35: 0
A36: ='Org structure'!E32 -> 0 | J36: 0 | K36: 0 | L36: 0 | Q36: 0 | U36: 0
A37: ='Org structure'!E33 -> 0 | J37: 0 | K37: 0 | L37: 0 | Q37: 0 | U37: 0
A38: ='Org structure'!E34 -> 0 | F38: 23433550 | G38: 23433550 | H38: 23433550 | I38: 23433550 | J38: 0 | K38: 0 | L38: 0 | Q38: 0 | U38: 0
A39: ='[5]Org structure'!A5 -> Vote 4 - Sustainable Community Service Delivery Provision Management | C39: =SUM(C40:C49) -> 15963264.2 | D39: =SUM(D40:D49) -> 34633956.31 | E39: 0 | F39: 74304525 | G39: 74304525 | H39: 74304525 | I39: =SUM(I40:I49) -> 74304525 | J39: 32200000 | K39: 26500000 | L39: 13000000 | N39: =SUM(N40:N49) -> 0 | O39: =SUM(O40:O49) -> 0 | P39: 0 | Q39: =SUM(Q40:Q49) -> 0 | R39: 0 | S39: 0 | T39: 0 | U39: 0 | V39: 32200000 | W39: 26500000 | X39: 13000000
A40: ='[5]Org structure'!E36 -> 4.1 - Community Services Provision Management | C40: 3125412.45 | D40: 1590364.21 | F40: 59812225 | G40: 59812225 | H40: 59812225 | I40: 59812225 | J40: =Q40+V40 -> 28200000 | K40: =U40+W40 -> 22000000 | L40: =X40 -> 12000000 | Q40: =SUM(N40:P40) -> 0 | U40: 0 | V40: 28200000 | W40: 22000000 | X40: 12000000
A41: ='[5]Org structure'!E37 -> 4.2 - Public Safety, Enforcement and Disaster Management | C41: 217706.76 | D41: 228592.1 | F41: 4512000 | G41: 4512000 | H41: 4512000 | I41: 4512000 | J41: 1500000 | K41: 1000000 | L41: 1000000 | Q41: =SUM(N41:P41) -> 0 | U41: 0 | V41: 1500000 | W41: 1000000 | X41: 1000000
A42: ='[5]Org structure'!E38 -> 4.3 - Regional Community Services Provision Management | C42: 12620144.99 | D42: 32815000 | F42: 9980300 | G42: 9980300 | H42: 9980300 | I42: 9980300 | J42: 2500000 | K42: 3500000 | L42: 0 | Q42: =SUM(N42:P42) -> 0 | U42: 0 | V42: 2500000 | W42: 3500000 | X42: 0
A43: ='Org structure'!E39 -> 0 | J43: 0 | K43: 0 | L43: 0 | Q43: =SUM(N43:P43) -> 0 | U43: 0
A44: ='Org structure'!E40 -> 0 | J44: 0 | K44: 0 | L44: 0 | Q44: 0 | U44: 0
A45: ='Org structure'!E41 -> 0 | J45: 0 | K45: 0 | L45: 0 | Q45: 0 | U45: 0
A46: ='Org structure'!E42 -> 0 | J46: 0 | K46: 0 | L46: 0 | Q46: 0 | U46: 0
A47: ='Org structure'!E43 -> 0 | J47: 0 | K47: 0 | L47: 0 | Q47: 0 | U47: 0
A48: ='Org structure'!E44 -> 0 | J48: 0 | K48: 0 | L48: 0 | Q48: 0 | U48: 0
A49: ='Org structure'!E45 -> 0 | J49: 0 | K49: 0 | L49: 0 | Q49: 0 | U49: 0
A50: ='Org structure'!A6 -> Vote 5 - [NAME OF VOTE 5] | C50: =SUM(C51:C60) -> 0 | D50: =SUM(D51:D60) -> 0 | E50: 0 | F50: 0 | G50: 0 | H50: 0 | I50: =SUM(I51:I60) -> 0 | J50: 0 | K50: 0 | L50: 0 | N50: =SUM(N51:N60) -> 0 | O50: 0 | P50: 0 | Q50: 0 | R50: 0 | S50: 0 | T50: 0 | U50: 0 | V50: 0 | W50: 0 | X50: 0
A51: ='Org structure'!E47 -> 5.1 - [Name of sub-vote] | J51: =Q51+V51 -> 0 | K51: =U51+W51 -> 0 | L51: =X51 -> 0 | Q51: =SUM(N51:P51) -> 0 | U51: 0
A52: ='Org structure'!E48 -> 0 | J52: 0 | K52: 0 | L52: 0 | Q52: 0 | U52: 0
A53: ='Org structure'!E49 -> 0 | J53: 0 | K53: 0 | L53: 0 | Q53: 0 | U53: 0
A54: ='Org structure'!E50 -> 0 | J54: 0 | K54: 0 | L54: 0 | Q54: 0 | U54: 0
A55: ='Org structure'!E51 -> 0 | J55: 0 | K55: 0 | L55: 0 | Q55: 0 | U55: 0
A56: ='Org structure'!E52 -> 0 | J56: 0 | K56: 0 | L56: 0 | Q56: 0 | U56: 0
A57: ='Org structure'!E53 -> 0 | J57: 0 | K57: 0 | L57: 0 | Q57: 0 | U57: 0
A58: ='Org structure'!E54 -> 0 | J58: 0 | K58: 0 | L58: 0 | Q58: 0 | U58: 0
A59: ='Org structure'!E55 -> 0 | J59: 0 | K59: 0 | L59: 0 | Q59: 0 | U59: 0
A60: ='Org structure'!E56 -> 0 | J60: 0 | K60: 0 | L60: 0 | Q60: 0 | U60: 0
A61: ='Org structure'!A7 -> Vote 6 - [NAME OF VOTE 6] | C61: =SUM(C62:C71) -> 0 | D61: =SUM(D62:D71) -> 0 | E61: 0 | F61: 0 | G61: 0 | H61: 0 | I61: =SUM(I62:I71) -> 0 | J61: 0 | K61: 0 | L61: 0 | N61: =SUM(N62:N71) -> 0 | O61: 0 | P61: 0 | Q61: 0 | R61: 0 | S61: 0 | T61: 0 | U61: 0 | V61: 0 | W61: 0 | X61: 0
A62: ='Org structure'!E58 -> 6.1 - [Name of sub-vote] | J62: =Q62+V62 -> 0 | K62: =U62+W62 -> 0 | L62: =X62 -> 0 | Q62: =SUM(N62:P62) -> 0 | U62: 0
A63: ='Org structure'!E59 -> 0 | J63: 0 | K63: 0 | L63: 0 | Q63: 0 | U63: 0
A64: ='Org structure'!E60 -> 0 | J64: 0 | K64: 0 | L64: 0 | Q64: 0 | U64: 0
A65: ='Org structure'!E61 -> 0 | J65: 0 | K65: 0 | L65: 0 | Q65: 0 | U65: 0
A66: ='Org structure'!E62 -> 0 | J66: 0 | K66: 0 | L66: 0 | Q66: 0 | U66: 0
A67: ='Org structure'!E63 -> 0 | J67: 0 | K67: 0 | L67: 0 | Q67: 0 | U67: 0
A68: ='Org structure'!E64 -> 0 | J68: 0 | K68: 0 | L68: 0 | Q68: 0 | U68: 0
A69: ='Org structure'!E65 -> 0 | J69: 0 | K69: 0 | L69: 0 | Q69: 0 | U69: 0
A70: ='Org structure'!E66 -> 0 | J70: 0 | K70: 0 | L70: 0 | Q70: 0 | U70: 0
A71: ='Org structure'!E67 -> 0 | J71: 0 | K71: 0 | L71: 0 | Q71: 0 | U71: 0
A72: ='Org structure'!A8 -> Vote 7 - [NAME OF VOTE 7] | C72: =SUM(C73:C82) -> 0 | D72: 0 | E72: 0 | F72: 0 | G72: 0 | H72: 0 | I72: 0 | J72: 0 | K72: 0 | L72: 0 | N72: =SUM(N73:N82) -> 0 | O72: 0 | P72: 0 | Q72: 0 | R72: 0 | S72: 0 | T72: 0 | U72: 0 | V72: 0 | W72: 0 | X72: 0
A73: ='Org structure'!E69 -> 7.1 - [Name of sub-vote] | J73: =Q73+V73 -> 0 | K73: =U73+W73 -> 0 | L73: =X73 -> 0 | Q73: =SUM(N73:P73) -> 0 | U73: =SUM(R73:T73) -> 0
A74: ='Org structure'!E70 -> 0 | J74: 0 | K74: 0 | L74: 0 | Q74: 0 | U74: 0
A75: ='Org structure'!E71 -> 0 | J75: 0 | K75: 0 | L75: 0 | Q75: 0 | U75: 0
A76: ='Org structure'!E72 -> 0 | J76: 0 | K76: 0 | L76: 0 | Q76: 0 | U76: 0
A77: ='Org structure'!E73 -> 0 | J77: 0 | K77: 0 | L77: 0 | Q77: 0 | U77: 0
A78: ='Org structure'!E74 -> 0 | J78: 0 | K78: 0 | L78: 0 | Q78: 0 | U78: 0
A79: ='Org structure'!E75 -> 0 | J79: 0 | K79: 0 | L79: 0 | Q79: 0 | U79: 0
A80: ='Org structure'!E76 -> 0 | J80: 0 | K80: 0 | L80: 0 | Q80: 0 | U80: 0
A81: ='Org structure'!E77 -> 0 | J81: 0 | K81: 0 | L81: 0 | Q81: 0 | U81: 0
A82: ='Org structure'!E78 -> 0 | J82: 0 | K82: 0 | L82: 0 | Q82: 0 | U82: 0
A83: ='Org structure'!A9 -> Vote 8 - [NAME OF VOTE 8] | C83: =SUM(C84:C93) -> 0 | D83: 0 | E83: 0 | F83: 0 | G83: 0 | H83: 0 | I83: 0 | J83: 0 | K83: 0 | L83: 0 | N83: =SUM(N84:N93) -> 0 | O83: 0 | P83: 0 | Q83: 0 | R83: 0 | S83: 0 | T83: 0 | U83: 0 | V83: 0 | W83: 0 | X83: 0
A84: ='Org structure'!E80 -> 8.1 - [Name of sub-vote] | J84: =Q84+V84 -> 0 | K84: =U84+W84 -> 0 | L84: =X84 -> 0 | Q84: =SUM(N84:P84) -> 0 | U84: 0
A85: ='Org structure'!E81 -> 0 | J85: 0 | K85: 0 | L85: 0 | Q85: 0 | U85: 0
A86: ='Org structure'!E82 -> 0 | J86: 0 | K86: 0 | L86: 0 | Q86: 0 | U86: 0
A87: ='Org structure'!E83 -> 0 | J87: 0 | K87: 0 | L87: 0 | Q87: 0 | U87: 0
A88: ='Org structure'!E84 -> 0 | J88: 0 | K88: 0 | L88: 0 | Q88: 0 | U88: 0
A89: ='Org structure'!E85 -> 0 | J89: 0 | K89: 0 | L89: 0 | Q89: 0 | U89: 0
A90: ='Org structure'!E86 -> 0 | J90: 0 | K90: 0 | L90: 0 | Q90: 0 | U90: 0
A91: ='Org structure'!E87 -> 0 | J91: 0 | K91: 0 | L91: 0 | Q91: 0 | U91: 0
A92: ='Org structure'!E88 -> 0 | J92: 0 | K92: 0 | L92: 0 | Q92: 0 | U92: 0
A93: ='Org structure'!E89 -> 0 | J93: 0 | K93: 0 | L93: 0 | Q93: 0 | U93: 0
A94: ='Org structure'!A10 -> Vote 9 - [NAME OF VOTE 9] | C94: =SUM(C95:C104) -> 0 | D94: =SUM(D95:D104) -> 0 | E94: 0 | F94: 0 | G94: 0 | H94: 0 | I94: 0 | J94: 0 | K94: 0 | L94: 0 | N94: =SUM(N95:N104) -> 0 | O94: 0 | P94: 0 | Q94: 0 | R94: 0 | S94: 0 | T94: 0 | U94: 0 | V94: 0 | W94: 0 | X94: 0
A95: ='Org structure'!E91 -> 9.1 - [Name of sub-vote] | J95: =Q95+V95 -> 0 | K95: =U95+W95 -> 0 | L95: =X95 -> 0 | Q95: =SUM(N95:P95) -> 0 | U95: 0
A96: ='Org structure'!E92 -> 0 | J96: 0 | K96: 0 | L96: 0 | Q96: 0 | U96: 0
A97: ='Org structure'!E93 -> 0 | J97: 0 | K97: 0 | L97: 0 | Q97: 0 | U97: 0
A98: ='Org structure'!E94 -> 0 | J98: 0 | K98: 0 | L98: 0 | Q98: 0 | U98: 0
A99: ='Org structure'!E95 -> 0 | J99: 0 | K99: 0 | L99: 0 | Q99: 0 | U99: 0
A100: ='Org structure'!E96 -> 0 | J100: 0 | K100: 0 | L100: 0 | Q100: 0 | U100: 0
A101: ='Org structure'!E97 -> 0 | J101: 0 | K101: 0 | L101: 0 | Q101: 0 | U101: 0
A102: ='Org structure'!E98 -> 0 | J102: 0 | K102: 0 | L102: 0 | Q102: 0 | U102: 0
A103: ='Org structure'!E99 -> 0 | J103: 0 | K103: 0 | L103: 0 | Q103: 0 | U103: 0
A104: ='Org structure'!E100 -> 0 | J104: 0 | K104: 0 | L104: 0 | Q104: 0 | U104: 0
A105: ='Org structure'!A11 -> Vote 10 - [NAME OF VOTE 10] | C105: =SUM(C106:C115) -> 0 | D105: =SUM(D106:D115) -> 0 | E105: 0 | F105: 0 | G105: 0 | H105: 0 | I105: 0 | J105: 0 | K105: 0 | L105: 0 | N105: =SUM(N106:N115) -> 0 | O105: 0 | P105: 0 | Q105: 0 | R105: 0 | S105: 0 | T105: 0 | U105: 0 | V105: 0 | W105: 0 | X105: 0
A106: ='Org structure'!E102 -> 10.1 - [Name of sub-vote] | J106: =Q106+V106 -> 0 | K106: =U106+W106 -> 0 | L106: =X106 -> 0 | Q106: =SUM(N106:P106) -> 0 | U106: 0
A107: ='Org structure'!E103 -> 0 | J107: 0 | K107: 0 | L107: 0 | Q107: 0 | U107: 0
A108: ='Org structure'!E104 -> 0 | J108: 0 | K108: 0 | L108: 0 | Q108: 0 | U108: 0
A109: ='Org structure'!E105 -> 0 | J109: 0 | K109: 0 | L109: 0 | Q109: 0 | U109: 0
A110: ='Org structure'!E106 -> 0 | J110: 0 | K110: 0 | L110: 0 | Q110: 0 | U110: 0
A111: ='Org structure'!E107 -> 0 | J111: 0 | K111: 0 | L111: 0 | Q111: 0 | U111: 0
A112: ='Org structure'!E108 -> 0 | J112: 0 | K112: 0 | L112: 0 | Q112: 0 | U112: 0
A113: ='Org structure'!E109 -> 0 | J113: 0 | K113: 0 | L113: 0 | Q113: 0 | U113: 0
A114: ='Org structure'!E110 -> 0 | J114: 0 | K114: 0 | L114: 0 | Q114: 0 | U114: 0
A115: ='Org structure'!E111 -> 0 | J115: 0 | K115: 0 | L115: 0 | Q115: 0 | U115: 0
A116: ='Org structure'!A12 -> Vote 11 - [NAME OF VOTE 11] | C116: =SUM(C117:C126) -> 0 | D116: 0 | E116: 0 | F116: 0 | G116: 0 | H116: 0 | I116: 0 | J116: 0 | K116: 0 | L116: 0 | N116: =SUM(N117:N126) -> 0 | O116: 0 | P116: 0 | Q116: 0 | R116: 0 | S116: 0 | T116: 0 | U116: 0 | V116: 0 | W116: 0 | X116: 0
A117: ='Org structure'!E113 -> 11.1 - [Name of sub-vote] | J117: =Q117+V117 -> 0 | K117: =U117+W117 -> 0 | L117: =X117 -> 0 | Q117: =SUM(N117:P117) -> 0 | U117: 0
A118: ='Org structure'!E114 -> 0 | J118: 0 | K118: 0 | L118: 0 | Q118: 0 | U118: 0
A119: ='Org structure'!E115 -> 0 | J119: 0 | K119: 0 | L119: 0 | Q119: 0 | U119: 0
A120: ='Org structure'!E116 -> 0 | J120: 0 | K120: 0 | L120: 0 | Q120: 0 | U120: 0
A121: ='Org structure'!E117 -> 0 | J121: 0 | K121: 0 | L121: 0 | Q121: 0 | U121: 0
A122: ='Org structure'!E118 -> 0 | J122: 0 | K122: 0 | L122: 0 | Q122: 0 | U122: 0
A123: ='Org structure'!E119 -> 0 | J123: 0 | K123: 0 | L123: 0 | Q123: 0 | U123: 0
A124: ='Org structure'!E120 -> 0 | J124: 0 | K124: 0 | L124: 0 | Q124: 0 | U124: 0
A125: ='Org structure'!E121 -> 0 | J125: 0 | K125: 0 | L125: 0 | Q125: 0 | U125: 0
A126: ='Org structure'!E122 -> 0 | J126: 0 | K126: 0 | L126: 0 | Q126: 0 | U126: 0
A127: ='Org structure'!A13 -> Vote 12 - [NAME OF VOTE 12] | C127: =SUM(C128:C137) -> 0 | D127: 0 | E127: 0 | F127: 0 | G127: 0 | H127: 0 | I127: 0 | J127: 0 | K127: 0 | L127: 0 | N127: =SUM(N128:N137) -> 0 | O127: 0 | P127: 0 | Q127: 0 | R127: 0 | S127: 0 | T127: 0 | U127: 0 | V127: 0 | W127: 0 | X127: 0
A128: ='Org structure'!E124 -> 12.1 - [Name of sub-vote] | J128: =Q128+V128 -> 0 | K128: =U128+W128 -> 0 | L128: =X128 -> 0 | Q128: =SUM(N128:P128) -> 0 | U128: 0
A129: ='Org structure'!E125 -> 0 | J129: 0 | K129: 0 | L129: 0 | Q129: 0 | U129: 0
A130: ='Org structure'!E126 -> 0 | J130: 0 | K130: 0 | L130: 0 | Q130: 0 | U130: 0
A131: ='Org structure'!E127 -> 0 | J131: 0 | K131: 0 | L131: 0 | Q131: 0 | U131: 0
A132: ='Org structure'!E128 -> 0 | J132: 0 | K132: 0 | L132: 0 | Q132: 0 | U132: 0
A133: ='Org structure'!E129 -> 0 | J133: =Q133+V133 -> 0 | K133: 0 | L133: 0 | Q133: 0 | U133: 0
A134: ='Org structure'!E130 -> 0 | J134: 0 | K134: 0 | L134: 0 | Q134: 0 | U134: 0
A135: ='Org structure'!E131 -> 0 | J135: 0 | K135: 0 | L135: 0 | Q135: 0 | U135: 0
A136: ='Org structure'!E132 -> 0 | J136: 0 | K136: 0 | L136: 0 | Q136: 0 | U136: =SUM(R136:T136) -> 0
A137: ='Org structure'!E133 -> 0 | J137: 0 | K137: 0 | L137: 0 | Q137: 0 | U137: 0
A138: ='Org structure'!A14 -> Vote 13 - [NAME OF VOTE 13] | C138: =SUM(C139:C148) -> 0 | D138: 0 | E138: 0 | F138: 0 | G138: 0 | H138: 0 | I138: 0 | J138: 0 | K138: 0 | L138: 0 | N138: =SUM(N139:N148) -> 0 | O138: 0 | P138: 0 | Q138: 0 | R138: 0 | S138: 0 | T138: 0 | U138: 0 | V138: 0 | W138: 0 | X138: 0
A139: ='Org structure'!E135 -> 13.1 - [Name of sub-vote] | J139: =Q139+V139 -> 0 | K139: =U139+W139 -> 0 | L139: =X139 -> 0 | Q139: =SUM(N139:P139) -> 0 | U139: 0
A140: ='Org structure'!E136 -> 0 | J140: 0 | K140: 0 | L140: 0 | Q140: 0 | U140: 0
A141: ='Org structure'!E137 -> 0 | J141: 0 | K141: 0 | L141: 0 | Q141: 0 | U141: 0
A142: ='Org structure'!E138 -> 0 | J142: 0 | K142: 0 | L142: 0 | Q142: 0 | U142: 0
A143: ='Org structure'!E139 -> 0 | J143: 0 | K143: 0 | L143: 0 | Q143: 0 | U143: 0
A144: ='Org structure'!E140 -> 0 | J144: 0 | K144: 0 | L144: 0 | Q144: 0 | U144: 0
A145: ='Org structure'!E141 -> 0 | J145: 0 | K145: 0 | L145: 0 | Q145: 0 | U145: 0
A146: ='Org structure'!E142 -> 0 | J146: 0 | K146: 0 | L146: 0 | Q146: 0 | U146: 0
A147: ='Org structure'!E143 -> 0 | J147: 0 | K147: 0 | L147: 0 | Q147: 0 | U147: 0
A148: ='Org structure'!E144 -> 0 | J148: 0 | K148: 0 | L148: 0 | Q148: 0 | U148: 0
A149: ='Org structure'!A15 -> Vote 14 - [NAME OF VOTE 14] | C149: =SUM(C150:C159) -> 0 | D149: 0 | E149: 0 | F149: 0 | G149: 0 | H149: 0 | I149: 0 | J149: 0 | K149: 0 | L149: 0 | N149: =SUM(N150:N159) -> 0 | O149: 0 | P149: 0 | Q149: 0 | R149: 0 | S149: 0 | T149: 0 | U149: 0 | V149: 0 | W149: 0 | X149: 0
A150: ='Org structure'!E146 -> 14.1 - [Name of sub-vote] | J150: =Q150+V150 -> 0 | K150: =U150+W150 -> 0 | L150: =X150 -> 0 | Q150: =SUM(N150:P150) -> 0 | U150: 0
A151: ='Org structure'!E147 -> 0 | J151: 0 | K151: 0 | L151: 0 | Q151: 0 | U151: 0
A152: ='Org structure'!E148 -> 0 | J152: 0 | K152: 0 | L152: 0 | Q152: 0 | U152: 0
A153: ='Org structure'!E149 -> 0 | J153: 0 | K153: 0 | L153: 0 | Q153: 0 | U153: 0
A154: ='Org structure'!E150 -> 0 | J154: 0 | K154: 0 | L154: 0 | Q154: 0 | U154: 0
A155: ='Org structure'!E151 -> 0 | J155: 0 | K155: 0 | L155: 0 | Q155: 0 | U155: 0
A156: ='Org structure'!E152 -> 0 | J156: 0 | K156: 0 | L156: 0 | Q156: 0 | U156: 0
A157: ='Org structure'!E153 -> 0 | J157: 0 | K157: 0 | L157: 0 | Q157: 0 | U157: 0
A158: ='Org structure'!E154 -> 0 | J158: 0 | K158: 0 | L158: 0 | Q158: 0 | U158: 0
A159: ='Org structure'!E155 -> 0 | J159: 0 | K159: 0 | L159: 0 | Q159: 0 | U159: 0
A160: ='Org structure'!A16 -> Vote 15 - [NAME OF VOTE 15] | C160: =SUM(C161:C170) -> 0 | D160: 0 | E160: 0 | F160: 0 | G160: 0 | H160: 0 | I160: 0 | J160: 0 | K160: 0 | L160: 0 | N160: =SUM(N161:N170) -> 0 | O160: 0 | P160: 0 | Q160: 0 | R160: 0 | S160: 0 | T160: 0 | U160: 0 | V160: 0 | W160: 0 | X160: 0
A161: ='Org structure'!E157 -> 15.1 - [Name of sub-vote] | J161: =Q161+V161 -> 0 | K161: =U161+W161 -> 0 | L161: =X161 -> 0 | Q161: =SUM(N161:P161) -> 0 | U161: 0
A162: ='Org structure'!E158 -> 0 | J162: 0 | K162: 0 | L162: 0 | Q162: 0 | U162: 0
A163: ='Org structure'!E159 -> 0 | J163: 0 | K163: 0 | L163: 0 | Q163: 0 | U163: 0
A164: ='Org structure'!E160 -> 0 | J164: 0 | K164: 0 | L164: 0 | Q164: 0 | U164: 0
A165: ='Org structure'!E161 -> 0 | J165: 0 | K165: 0 | L165: 0 | Q165: 0 | U165: 0
A166: ='Org structure'!E162 -> 0 | J166: 0 | K166: 0 | L166: 0 | Q166: 0 | U166: 0
A167: ='Org structure'!E163 -> 0 | J167: 0 | K167: 0 | L167: 0 | Q167: 0 | U167: 0
A168: ='Org structure'!E164 -> 0 | J168: 0 | K168: 0 | L168: 0 | Q168: 0 | U168: 0
A169: ='Org structure'!E165 -> 0 | J169: 0 | K169: 0 | L169: 0 | Q169: 0 | U169: 0
A170: ='Org structure'!E166 -> 0 | J170: 0 | K170: 0 | L170: 0 | Q170: 0 | U170: 0
A171: Capital multi-year expenditure sub-total | C171: =C6+C17+C28+C39+C50+C61+C72+C83+C94+C105+C116+C127+C138+C149+C160 -> 251311286.1 | D171: =D6+D17+D28+D39+D50+D61+D72+D83+D94+D105+D116+D127+D138+D149+D160 -> 291773208.7 | E171: 189594000 | F171: 446098018 | G171: 504048018 | H171: 504048018 | I171: 504048018 | J171: 674910000 | K171: 593672000 | L171: 554827000 | N171: =N6+N17+N28+N39+N50+N61+N72+N83+N94+N105+N116+N127+N138+N149+N160 -> 0 | O171: 0 | P171: 0 | Q171: 0 | R171: 0 | S171: 0 | U171: 0 | V171: =V6+V17+V28+V39+V50+V61+V72+V83+V94+V105+V116+V127+V138+V149+V160 -> 674910000 | W171: =W6+W17+W28+W39+W50+W61+W72+W83+W94+W105+W116+W127+W138+W149+W160 -> 593672000 | X171: =X6+X17+X28+X39+X50+X61+X72+X83+X94+X105+X116+X127+X138+X149+X160 -> 554827000
A173: Capital expenditure - Municipal Vote
A174: Single-year expenditure appropriation | B174: 2
A175: =A6 -> Vote 1 - Corporate Services | C175: =SUM(C176:C185) -> 5150000 | D175: 3100000 | E175: 3100000 | F175: 3818000 | G175: 3818000 | H175: 3818000 | I175: 3818000 | J175: 4865000 | K175: 3750000 | L175: 7000000
A176: =A7 -> 1.1 - Council and Committee Support | C176: 4150000 | D176: 3100000 | E176: 3100000 | F176: 3818000 | G176: 3818000 | H176: 3818000 | I176: 3818000 | K176: 0 | L176: 0
A177: 1.2 - Enterprise Wide Risk Management & Audit and Compliance | C177: 0 | K177: 0 | L177: 0
A178: 1.3 - Human Resources Management | C178: 0 | K178: 0 | L178: 0
A179: 1.4 - Legislative Compliance | C179: 0 | J179: 250000 | K179: 0 | L179: 0
A180: 1.5 - Local Economic Development Management | C180: 1000000 | J180: 125000 | K180: 50000 | L180: 0
A181: 1.6 - Management Information Services | C181: 0 | J181: 2750000 | K181: 0 | L181: 0
A182: 1.7 - Marketing and Public Relations Management | C182: 0 | J182: 1740000 | K182: 3700000 | L182: 7000000
A183: 0
A184: 0
A185: 0
A186: Vote 2 - Financial Management Area | C186: =SUM(C187:C196) -> 3936554.883 | D186: 7000000 | E186: 7012000 | F186: 10479000 | G186: 13679000 | H186: 13679000 | I186: 13679000 | J186: =SUM(J187:J196) -> 709500 | K186: 0 | L186: 0
A187: 2.1 - Budget & Treasury Management
A188: 2.2 - Expenditure Management | J188: 90000 | K188: 0 | L188: 0
A189: 2.3 - Financial Control and Cash Management | C189: 3936554.883 | D189: 7000000 | E189: 7012000 | F189: 10479000 | G189: 10479000 | H189: 10479000 | I189: 10479000 | K189: 0 | L189: 0
A190: 2.4 - Revenue Management | J190: 519500 | K190: 0 | L190: 0
A191: 2.5 - Supply Chain Management | G191: 3200000 | H191: 3200000 | I191: 3200000 | J191: 100000 | K191: 0 | L191: 0
A192: 0
A193: 0
A194: 0
A195: 0
A196: 0
A197: Vote 3 - Infrastructure Development, Service Delivery and Maintenance Management | C197: =SUM(C198:C207) -> 82352278.87 | D197: 74251514.88 | E197: 135889655 | F197: 112440882 | G197: 158512886 | H197: 158512886 | I197: 158512886 | J197: =SUM(J198:J207) -> 12505000 | K197: 16613000 | L197: 35650000
A198: 3.1 - Electricity distribution Management | C198: 3986471.025 | D198: 9082960 | E198: 28000000 | F198: 20500000 | G198: 66572004 | H198: 66572004 | I198: 66572004
A199: 3.2 - Human Settlement Development Management | D199: 4500000 | E199: 2188000 | J199: 75000 | K199: 0 | L199: 0
A200: 3.3 - Municipal Infrastructure Planning, Funding, Maintenance and Development Management | C200: 4965000 | D200: 9179000 | E200: 20500000 | F200: 32000000 | G200: 32000000 | H200: 32000000 | I200: 32000000 | J200: 1700000 | K200: 50000 | L200: 50000
A201: 3.4 - Roads and Stormwater | C201: 33936554.88 | D201: 34436554.88 | E201: 49230000 | F201: 36000000 | G201: 36000000 | H201: 36000000 | I201: 36000000 | J201: 9830000 | K201: 15463000 | L201: 34350000
... 140 more rows

Sheet A6-FinPos
A1: =muni&" - "&Approve6 -> KZN225 Msunduzi - Table A6 Budgeted Financial Position
A2: =desc -> Description | B2: =head27 -> Ref | C2: =head1b -> 2011/12 | D2: =head1A -> 2012/13 | E2: =Head1 -> 2013/14 | F2: =Head2 -> Current Year 2014/15 | J2: =Head3 -> 2015/16 Medium Term Revenue & Expenditure Framework
A3: R thousand | C3: =Head5 -> Audited Outcome | D3: =Head5 -> Audited Outcome | E3: =Head5 -> Audited Outcome | F3: =Head6 -> Original Budget | G3: =Head7 -> Adjusted Budget | H3: =Head8 -> Full Year Forecast | I3: =Head5b -> Pre-audit outcome | J3: =Head9 -> Budget Year 2015/16 | K3: =Head10 -> Budget Year +1 2016/17 | L3: =Head11 -> Budget Year +2 2017/18
A4: ASSETS
A5: Current assets
A6: Cash | C6: 65767008 | D6: 43817779 | E6: 49971925 | F6: 320733304.2 | G6: 50000000 | H6: 50000000 | I6: 50000000 | J6: 45432519 | K6: 52241169.38 | L6: 54085992.77
A7: Call investment deposits | B7: 1 | C7: ='SA3'!C9 -> 561104238 | D7: ='SA3'!D9 -> 680151534 | E7: ='SA3'!E9 -> 784203172 | F7: ='SA3'!F9 -> 555595210 | G7: ='SA3'!G9 -> 980105274.6 | H7: ='SA3'!H9 -> 980105274.6 | I7: ='SA3'!I9 -> 980105274.6 | J7: ='SA3'!J9 -> 1085994066 | K7: ='SA3'!K9 -> 1109937162 | L7: ='SA3'!L9 -> 1118221500
A8: Consumer debtors | B8: 1 | C8: ='SA3'!C14 -> 442012187 | D8: ='SA3'!D14 -> 553773105 | E8: ='SA3'!E14 -> 667396506 | F8: ='SA3'!F14 -> 767953860 | G8: ='SA3'!G14 -> 767954000 | H8: ='SA3'!H14 -> 767954000 | I8: ='SA3'!I14 -> 767954000 | J8: ='SA3'!J14 -> 883146939 | K8: ='SA3'!K14 -> 971461632.9 | L8: ='SA3'!L14 -> 1068607796
A9: Other debtors | C9: 117858890 | D9: 321502839 | E9: 403194000 | F9: 156279478 | G9: 156279478 | H9: 156279478 | I9: 156279478 | J9: 376437620 | K9: 383966372 | L9: 391645699.9
A10: Current portion of long-term receivables | C10: 66033 | D10: 46081 | E10: 46081 | F10: 42690654.61 | G10: 42690654.61 | H10: 42690654.61 | I10: 42690654.61 | J10: 43081 | K10: 46873.3 | L10: 52610.77
A11: Inventory | B11: 2 | C11: 752178421 | D11: 755044846 | E11: 743239027 | F11: 762595450 | G11: 762595450 | H11: 762595450 | I11: 762595450 | J11: 741893006 | K11: 756730866.1 | L11: 771865483.4
A12: Total current assets | C12: =SUM(C6:C11) -> 1938986777 | D12: 2354336184 | E12: 2648050711 | F12: 2605847957 | G12: 2759624857 | H12: 2759624857 | I12: 2759624857 | J12: 3132947231 | K12: 3274384076 | L12: 3404479083
A14: Non current assets
A15: Long-term receivables | C15: 0 | D15: 8771407 | E15: 9587680 | F15: 8771407 | G15: 8771407 | H15: 8771407 | I15: 8771407 | J15: 9455112 | K15: 9644214.24 | L15: 9837098.52
A16: Investments | C16: 0 | D16: 0 | E16: 0 | F16: 46000 | G16: 46000 | H16: 46000 | I16: 46000 | J16: 0 | K16: 0 | L16: 0
A17: Investment property | C17: 325807355 | D17: 320520236 | E17: 356913816 | F17: 320520023 | G17: 320520000 | H17: 320520000 | I17: 320520000 | J17: 356913816 | K17: 364052092.3 | L17: 371333134.2
A18: Investment in Associate | C18: 0 | D18: 0 | E18: 0 | F18: 0 | G18: 0 | H18: 0 | I18: 0 | J18: 0 | K18: 0 | L18: 0
A19: Property, plant and equipment | B19: 3 | C19: ='SA3'!C26 -> 6417768392 | D19: ='SA3'!D26 -> 6183924667 | E19: ='SA3'!E26 -> 6054916230 | F19: ='SA3'!F26 -> 7283929997 | G19: ='SA3'!G26 -> 6750470233 | H19: ='SA3'!H26 -> 6750470233 | I19: ='SA3'!I26 -> 6750470233 | J19: ='SA3'!J26 -> 6948784645 | K19: ='SA3'!K26 -> 7017299642 | L19: ='SA3'!L26 -> 7018060336
A20: Agricultural | C20: 0 | D20: 0 | E20: 0 | F20: 0 | G20: 0 | H20: 0 | I20: 0 | J20: 0 | K20: 0 | L20: 0
A21: Biological | C21: 0 | D21: 37915260 | E21: 46520046 | F21: 648000 | G21: 648000 | H21: 648000 | I21: 648000 | J21: 46520046 | K21: 46520046 | L21: 46520046
A22: Intangible | C22: 3458562 | D22: 1898994 | E22: 2097543 | F22: 3959000 | G22: 3959000 | H22: 3959000 | I22: 3959000 | J22: 27283200 | K22: =(J22)+30000000 -> 57283200 | L22: =K22*0.8 -> 45826560
A23: Other non-current assets | C23: 8181275 | D23: 176969036 | E23: 177572480 | F23: 8859121 | G23: 8859121 | H23: 8859121 | I23: 8859121 | J23: 179008026 | K23: 182588186.5 | L23: =K23*1.1 -> 200847005.2
A24: Total non current assets | C24: =SUM(C15:C23) -> 6755215584 | D24: =SUM(D15:D23) -> 6729999600 | E24: =SUM(E15:E23) -> 6647607795 | F24: 7626733548 | G24: 7093273761 | H24: 7093273761 | I24: 7093273761 | J24: 7567964845 | K24: 7677387381 | L24: 7692424180
A25: TOTAL ASSETS | C25: =C12+C24 -> 8694202361 | D25: =D12+D24 -> 9084335784 | E25: =E12+E24 -> 9295658506 | F25: =F12+F24 -> 1.02325815e+10 | G25: 9852898618 | H25: 9852898618 | I25: 9852898618 | J25: 1.070091208e+10 | K25: 1.095177146e+10 | L25: 1.109690326e+10
A27: LIABILITIES
A28: Current liabilities
A29: Bank overdraft | B29: 1 | C29: 0 | D29: 0 | E29: 0 | F29: 0 | G29: 0 | H29: 0 | I29: 0 | J29: 0 | K29: 0 | L29: 0
A30: Borrowing | B30: 4 | C30: ='SA3'!C32 -> 45832278 | D30: ='SA3'!D32 -> 46663755 | E30: ='SA3'!E32 -> 43028659 | F30: ='SA3'!F32 -> 42690655 | G30: ='SA3'!G32 -> 42690655 | H30: ='SA3'!H32 -> 42690655 | I30: ='SA3'!I32 -> 42690655 | J30: ='SA3'!J32 -> 61750537.43 | K30: ='SA3'!K32 -> 73149184.42 | L30: ='SA3'!L32 -> 77414027.97
A31: Consumer deposits | C31: 71647692 | D31: 79589229 | E31: 85109070 | F31: 87547900 | G31: 87547900 | H31: 87547900 | I31: 87547900 | J31: 92797900 | K31: 98947900 | L31: 104197900
A32: Trade and other payables | B32: 4 | C32: ='SA3'!C38 -> 643081334 | D32: ='SA3'!D38 -> 722003913 | E32: ='SA3'!E38 -> 793830134 | F32: ='SA3'!F38 -> 948479210 | G32: ='SA3'!G38 -> 1290865554 | H32: ='SA3'!H38 -> 1290865554 | I32: ='SA3'!I38 -> 1290865554 | J32: ='SA3'!J38 -> 1217488814 | K32: ='SA3'!K38 -> 821324279.4 | L32: ='SA3'!L38 -> 452894059.6
A33: Provisions | C33: 311926 | D33: 4396719 | E33: 6876719 | F33: 3714231 | G33: 3714231 | H33: 3714231 | I33: 3714231 | J33: 6084404 | K33: 6206092.08 | L33: 6330213.92
A34: Total current liabilities | C34: =SUM(C29:C33) -> 760873230 | D34: 852653616 | E34: 928844582 | F34: 1082431996 | G34: 1424818340 | H34: 1424818340 | I34: 1424818340 | J34: 1378121655 | K34: 999627455.9 | L34: 640836201.5
A36: Non current liabilities
A37: Borrowing | C37: ='SA3'!C43 -> 577962501 | D37: ='SA3'!D43 -> 541325412 | E37: ='SA3'!E43 -> 497397875 | F37: ='SA3'!F43 -> 100000000 | G37: ='SA3'!G43 -> 100000000 | H37: ='SA3'!H43 -> 100000000 | I37: ='SA3'!I43 -> 100000000 | J37: ='SA3'!J43 -> 579760785.9 | K37: ='SA3'!K43 -> 548012834.2 | L37: ='SA3'!L43 -> 467808188.4
A38: Provisions | C38: ='SA3'!C50 -> 308122728 | D38: ='SA3'!D50 -> 535734347 | E38: ='SA3'!E50 -> 620850368 | F38: ='SA3'!F50 -> 768989819.8 | G38: ='SA3'!G50 -> 768989819.8 | H38: ='SA3'!H50 -> 768989819.8 | I38: ='SA3'!I50 -> 768989819.8 | J38: ='SA3'!J50 -> 681715364.8 | K38: ='SA3'!K50 -> 749886901.2 | L38: ='SA3'!L50 -> 823426183.8
A39: Total non current liabilities | C39: =SUM(C37:C38) -> 886085229 | D39: =SUM(D37:D38) -> 1077059759 | E39: =SUM(E37:E38) -> 1118248243 | F39: =SUM(F37:F38) -> 868989819.8 | G39: 868989819.8 | H39: 868989819.8 | I39: 868989819.8 | J39: 1261476151 | K39: =SUM(K37:K38) -> 1297899735 | L39: 1291234372
A40: TOTAL LIABILITIES | C40: =C34+C39 -> 1646958459 | D40: =D34+D39 -> 1929713375 | E40: =E34+E39 -> 2047092825 | F40: =F34+F39 -> 1951421816 | G40: 2293808160 | H40: 2293808160 | I40: 2293808160 | J40: 2639597806 | K40: =K34+K39 -> 2297527191 | L40: 1932070574
A42: NET ASSETS | B42: 5 | C42: =C25-C40 -> 7047243902 | D42: 7154622409 | E42: 7248565681 | F42: 8281159689 | G42: 7559090459 | H42: 7559090459 | I42: 7559090459 | J42: 8061314271 | K42: 8654244266 | L42: 9164832689
A44: COMMUNITY WEALTH/EQUITY
A45: Accumulated Surplus/(Deficit) | C45: 6991717998 | D45: 7104719442 | E45: 7197022695 | F45: =(((((8237939689.05267)+0)+0)+0)-0)+0 -> 8237939689 | G45: 7515870459 | H45: 7515870459 | I45: 7515870459 | J45: =((I45)+492529670)+-120000000 -> 7888400129 | K45: =(((J45)+471871712)+-20000000)+120000000 -> 8460271841 | L45: =((((K45)+489508974.944)+-20000000)-20000000)+40000000 -> 8949780816
A46: Reserves | B46: 4 | C46: ='SA3'!C69 -> 55525904 | D46: ='SA3'!D69 -> 49902967 | E46: ='SA3'!E69 -> 51542986 | F46: ='SA3'!F69 -> 43220000 | G46: ='SA3'!G69 -> 43220000 | H46: ='SA3'!H69 -> 43220000 | I46: ='SA3'!I69 -> 43220000 | J46: ='SA3'!J69 -> 172914142 | K46: ='SA3'!K69 -> 193972424.8 | L46: ='SA3'!L69 -> 215051873.3
A47: Minorities' interests
A48: TOTAL COMMUNITY WEALTH/EQUITY | B48: 5 | C48: =SUM(C45:C47) -> 7047243902 | D48: =SUM(D45:D47) -> 7154622409 | E48: 7248565681 | F48: 8281159689 | G48: 7559090459 | H48: 7559090459 | I48: 7559090459 | J48: 8061314271 | K48: 8654244266 | L48: 9164832689
A49: =head27a -> References
A50: 1. Detail to be provided in Table SA3
A51: 2. Include completed low cost housing to be transferred to beneficiaries within 12 months
A52: 3. Include 'Construction-work-in-progress' (disclosed separately in annual financial statements)
A53: 4. Detail to be provided in Table SA3. Includes reserves to be funded by statute.
A54: 5. Net assets must balance with Total Community Wealth/Equity
A55: check balance | C55: =IF((C42-C48)=0,0,"Unbalanced") -> 0 | D55: =IF((D42-D48)=0,0,"Unbalanced") -> 0 | E55: 0 | F55: Unbalanced | G55: 0 | H55: 0 | I55: 0 | J55: 0 | K55: 0 | L55: 0
A71: Test | C71: =IF(C25<>C40,"Unbalanced",0) -> Unbalanced | D71: =IF(D25<>D40,"Unbalanced",0) -> Unbalanced | E71: Unbalanced | F71: Unbalanced | G71: Unbalanced | H71: Unbalanced | I71: Unbalanced | J71: Unbalanced | K71: Unbalanced | L71: Unbalanced

Sheet A7-CFlow
A1: =muni&" - "&Approve7 -> KZN225 Msunduzi - Table A7 Budgeted Cash Flows
A2: =desc -> Description | B2: =head27 -> Ref | C2: =head1b -> 2011/12 | D2: =head1A -> 2012/13 | E2: =Head1 -> 2013/14 | F2: =Head2 -> Current Year 2014/15 | J2: =Head3 -> 2015/16 Medium Term Revenue & Expenditure Framework
A3: R thousand | C3: =Head5 -> Audited Outcome | D3: =Head5 -> Audited Outcome | E3: =Head5 -> Audited Outcome | F3: =Head6 -> Original Budget | G3: =Head7 -> Adjusted Budget | H3: =Head8 -> Full Year Forecast | I3: =Head5b -> Pre-audit outcome | J3: =Head9 -> Budget Year 2015/16 | K3: =Head10 -> Budget Year +1 2016/17 | L3: =Head11 -> Budget Year +2 2017/18
A4: CASH FLOW FROM OPERATING ACTIVITIES
A5: Receipts
A6: Property rates, penalties & collection charges | C6: 536554628 | D6: 625459450 | E6: 625627208 | F6: 677334510 | G6: 677334510 | H6: 677334510 | I6: 677334510 | J6: ='SA30'!N5+'SA30'!N6 -> 701467186.9 | K6: ='SA30'!O5+'SA30'!O6 -> 740451331.9 | L6: ='SA30'!P5+'SA30'!P6 -> 777611618
A7: Service charges | C7: 1678603419 | D7: 1982478509 | E7: 2073501239 | F7: 2167101250 | G7: 2167101250 | H7: 2167101250 | I7: 2167101250 | J7: ='SA30'!N7+'SA30'!N8+'SA30'!N9+'SA30'!N10+'SA30'!N11 -> 2349115517 | K7: ='SA30'!O7+'SA30'!O8+'SA30'!O9+'SA30'!O10+'SA30'!O11 -> 2539498311 | L7: ='SA30'!P7+'SA30'!P8+'SA30'!P9+'SA30'!P10+'SA30'!P11 -> 2801936686
A8: Other revenue | C8: 20556499 | D8: -140806000 | E8: 127907000 | F8: 171131000 | G8: 249675000 | H8: 249675000 | I8: 249675000 | J8: ='SA30'!N12+'SA30'!N16+'SA30'!N17+'SA30'!N18+'SA30'!N20 -> 84318358.92 | K8: ='SA30'!O12+'SA30'!O16+'SA30'!O17+'SA30'!O18+'SA30'!O20 -> 84000727.72 | L8: ='SA30'!P12+'SA30'!P16+'SA30'!P17+'SA30'!P18+'SA30'!P20 -> 88536767.02
A9: Government - operating | B9: 1 | C9: 351598903 | D9: 395621840 | E9: 448121964 | F9: 415372000 | G9: 330731000 | H9: 330731000 | I9: 330731000 | J9: ='SA30'!N19 -> 440652000 | K9: ='SA30'!O19 -> 463799000 | L9: ='SA30'!P19 -> 502985000
A10: Government - capital | B10: 1 | C10: 149070068 | D10: 170847866 | E10: 246182649 | F10: 293824000 | G10: 314474000 | H10: 314474000 | I10: 314474000 | J10: ='SA30'!N24 -> 489060000 | K10: ='SA30'!O24 -> 466372000 | L10: ='SA30'!P24 -> 480820000
A11: Interest | C11: 84160363 | D11: 116334858 | E11: 96358040 | F11: 32247000 | G11: 24507720 | H11: 24507720 | I11: 24507720 | J11: ='SA30'!N13+'SA30'!N14 -> 64837114.01 | K11: ='SA30'!O13+'SA30'!O14 -> 68543031.08 | L11: ='SA30'!P13+'SA30'!P14 -> 72244354.76
A12: Dividends | C12: 0 | D12: 0 | E12: 0 | F12: 0 | G12: 0 | H12: 0 | I12: 0 | J12: ='SA30'!N15 -> 0 | K12: ='SA30'!O15 -> 0 | L12: ='SA30'!P15 -> 0
A13: Payments
A14: Suppliers and employees | C14: -2269365538 | D14: =-1895267156-684336568 -> -2579603724 | E14: =-2273608352-741537217 -> -3015145569 | F14: =-3030063000-83930000 -> -3113993000 | G14: -2994206144 | H14: -2994206144 | I14: -2994206144 | J14: =-('SA30'!N36+'SA30'!N37+'SA30'!N39+'SA30'!N40+'SA30'!N41+'SA30'!N42+'SA30'!N45+'SA30'!N51) -> -3347842989 | K14: =-('SA30'!O36+'SA30'!O37+'SA30'!O39+'SA30'!O40+'SA30'!O41+'SA30'!O42+'SA30'!O45+'SA30'!O51) -> -3704405107 | L14: =-('SA30'!P36+'SA30'!P37+'SA30'!P39+'SA30'!P40+'SA30'!P41+'SA30'!P42+'SA30'!P45+'SA30'!P51) -> -4059596957
A15: Finance charges | C15: -72134067 | D15: -70966061 | E15: -67174144 | F15: -60738178 | G15: -60738178 | H15: -60738178 | I15: -60738178 | J15: =-('SA30'!N38) -> -69489090.91 | K15: =-('SA30'!O38) -> -68312431.27 | L15: =-('SA30'!P38) -> -61719330.52
A16: Transfers and Grants | B16: 1 | C16: 0 | D16: 0 | E16: 0 | F16: -5408000 | G16: -5407870 | H16: -5407870 | I16: -5407870 | J16: =-('SA30'!N43+'SA30'!N44) -> -5853603 | K16: =-('SA30'!O43+'SA30'!O44) -> -6599133 | L16: =-('SA30'!P43+'SA30'!P44) -> -6999343.05
A17: NET CASH FROM/(USED) OPERATING ACTIVITIES | C17: =SUM(C6:C12)+SUM(C14:C16) -> 479044275 | D17: 499366738 | E17: 535378387 | F17: 576870582 | G17: 703471288.2 | H17: 703471288.2 | I17: 703471288.2 | J17: 706264494.2 | K17: 583347730.8 | L17: 595818795
A19: CASH FLOWS FROM INVESTING ACTIVITIES
A20: Receipts
A21: Proceeds on disposal of PPE | C21: =1470864-65274-5255932 -> -3850342 | D21: =17824210-570180-645089 -> 16608941 | E21: =9191019-816273-1000813 -> 7373933 | F21: 0 | G21: 0 | H21: 0 | I21: 0 | J21: ='SA30'!N25+'SA30'!N26 -> 0 | K21: ='SA30'!O25+'SA30'!O26 -> 0 | L21: ='SA30'!P25+'SA30'!P26 -> 0
A22: Decrease (Increase) in non-current debtors | C22: 0 | D22: 0 | E22: 0 | F22: 0 | G22: 0 | H22: 0 | I22: 0 | J22: ='SA30'!N30 -> 0 | K22: ='SA30'!O30 -> 0 | L22: ='SA30'!P30 -> 0
A23: Decrease (increase) other non-current receivables | C23: 147809248 | D23: 10216225 | E23: -18993023 | F23: 0 | G23: 0 | H23: 0 | I23: 0 | J23: ='SA30'!N31 -> 0 | K23: ='SA30'!O31 -> 0 | L23: ='SA30'!P31 -> 0
A24: Decrease (increase) in non-current investments | C24: 0 | D24: 0 | E24: 0 | F24: 0 | G24: 0 | H24: 0 | I24: 0 | J24: ='SA30'!N32 -> 0 | K24: ='SA30'!O32 -> 0 | L24: ='SA30'!P32 -> 0
A25: Payments
A26: Capital assets | C26: -358811357 | D26: -401875416 | E26: =-184234581-737085-103444-8604786-12203000-166627706 -> -372510602 | F26: -364442000 | G26: -636543403.6 | H26: -636543403.6 | I26: -636543403.6 | J26: =-('SA30'!N49) -> -589505400 | K26: =-('SA30'!O49) -> -555584340 | L26: =-('SA30'!P49) -> -537676736.8
A27: NET CASH FROM/(USED) INVESTING ACTIVITIES | C27: =SUM(C21:C24)+C26 -> -214852451 | D27: =SUM(D21:D24)+D26 -> -375050250 | E27: -384129692 | F27: -364442000 | G27: -636543403.6 | H27: -636543403.6 | I27: -636543403.6 | J27: -589505400 | K27: -555584340 | L27: -537676736.8
A29: CASH FLOWS FROM FINANCING ACTIVITIES
A30: Receipts
A31: Short term loans | C31: 0 | D31: 0 | E31: 0 | F31: 0 | G31: 0 | H31: 0 | I31: 0 | J31: ='SA30'!N27 -> 0 | K31: ='SA30'!O27 -> 0 | L31: ='SA30'!P27 -> 0
A32: Borrowing long term/refinancing | C32: 112361377 | D32: 0 | E32: 0 | F32: 100000000 | G32: 100000000 | H32: 100000000 | I32: 100000000 | J32: ='SA30'!N28 -> 100000000 | K32: ='SA30'!O28 -> 50000000 | L32: ='SA30'!P28 -> 0
A33: Increase (decrease) in consumer deposits | C33: 1014338 | D33: 7941537 | E33: 5519841 | F33: 0 | G33: 0 | H33: 0 | I33: 0 | J33: ='SA30'!N29 -> 5250000 | K33: ='SA30'!O29 -> 6150000 | L33: ='SA30'!P29 -> 5250000
A34: Payments
A35: Repayment of borrowing | C35: -49779370 | D35: -35805612 | E35: -47562633 | F35: -42691000 | G35: -42691000 | H35: -42691000 | I35: -42691000 | J35: =-('SA30'!N50) -> -49849757.33 | K35: =-('SA30'!O50) -> -53627802.33 | L35: =-('SA30'!P50) -> -53757070.56
A36: NET CASH FROM/(USED) FINANCING ACTIVITIES | C36: =SUM(C31:C33)+C35 -> 63596345 | D36: =SUM(D31:D33)+D35 -> -27864075 | E36: -42042792 | F36: 57309000 | G36: 57309000 | H36: 57309000 | I36: 57309000 | J36: 55400242.67 | K36: 2522197.67 | L36: -48507070.56
A38: NET INCREASE/ (DECREASE) IN CASH HELD | C38: =C17+C27+C36 -> 327788169 | D38: =D17+D27+D36 -> 96452413 | E38: 109205903 | F38: 269737582 | G38: 124236884.6 | H38: 124236884.6 | I38: 124236884.6 | J38: 172159336.9 | K38: 30285588.49 | L38: 9634987.605
A39: Cash/cash equivalents at the year begin: | B39: 2 | C39: 293827145 | D39: 621615320 | E39: 718068292 | F39: 827274000 | G39: 827274000 | H39: 827274000 | I39: 827274000 | J39: ='SA30'!N55 -> 951510884.6 | K39: =J40 -> 1123670221 | L39: =K40 -> 1153955810
A40: Cash/cash equivalents at the year end: | B40: 2 | C40: =C38+C39 -> 621615314 | D40: =D38+D39 -> 718067733 | E40: =E38+E39 -> 827274195 | F40: =F38+F39 -> 1097011582 | G40: 951510884.6 | H40: 951510884.6 | I40: 951510884.6 | J40: 1123670221 | K40: 1153955810 | L40: 1163590798
A41: =head27a -> References
A42: 1. Local/District municipalities to include transfers from/to District/Local Municipalities
A43: 2. Cash equivalents includes investments with maturities of 3 months or less
A44: 3. The MTREF is populated directly from SA30.
A45: Total receipts | C45: =SUM(C6:C12)+SUM(C21:C23) -> 2964502786 | D45: 3176761689 | E45: 3606079010 | F45: 3757009760 | G45: 3763823480 | H45: 3763823480 | I45: 3763823480 | J45: 4129450177 | K45: 4362664402 | L45: 4724134425
A46: Total payments | C46: =SUM(C14:C16)+C26 -> -2700310962 | D46: =SUM(D14:D16)+D26 -> -3052445201 | E46: -3454830315 | F46: -3544581178 | G46: -3696895595 | H46: -3696895595 | I46: -3696895595 | J46: -4012691083 | K46: -4334901011 | L46: -4665992367
C47: =C45+C46 -> 264191824 | D47: =D45+D46 -> 124316488 | E47: 151248695 | F47: 212428582 | G47: 66927884.59 | H47: 66927884.59 | I47: 66927884.59 | J47: 116759094.2 | K47: 27763390.82 | L47: 58142058.16
A48: Borrowings & investments & c.deposits | C48: =C24+C32+C33 -> 113375715 | D48: =D24+D32+D33 -> 7941537 | E48: 5519841 | F48: 100000000 | G48: 100000000 | H48: 100000000 | I48: 100000000 | J48: 105250000 | K48: 56150000 | L48: 5250000
A49: =A35 -> Repayment of borrowing | C49: =C35 -> -49779370 | D49: =D35 -> -35805612 | E49: -47562633 | F49: -42691000 | G49: -42691000 | H49: -42691000 | I49: =I35 -> -42691000 | J49: -49849757.33 | K49: -53627802.33 | L49: -53757070.56
C50: =C47+C48+C49 -> 327788169 | D50: =D47+D48+D49 -> 96452413 | E50: 109205903 | F50: 269737582 | G50: 124236884.6 | H50: 124236884.6 | I50: 124236884.6 | J50: 172159336.9 | K50: 30285588.49 | L50: 9634987.605
C51: =C38-C50 -> 0 | D51: 0 | E51: 0 | F51: 0 | G51: -1.192092896e-07 | H51: -1.192092896e-07 | I51: -1.192092896e-07 | J51: 0 | K51: 4.768371582e-07 | L51: 3.576278687e-07

Sheet A8-ResRecon
A1: =muni&" - "&Approve8 -> KZN225 Msunduzi - Table A8 Cash backed reserves/accumulated surplus reconciliation
A2: =desc -> Description | B2: =head27 -> Ref | C2: =head1b -> 2011/12 | D2: =head1A -> 2012/13 | E2: =Head1 -> 2013/14 | F2: =Head2 -> Current Year 2014/15 | J2: =Head3 -> 2015/16 Medium Term Revenue & Expenditure Framework
A3: R thousand | C3: =Head5 -> Audited Outcome | D3: =Head5 -> Audited Outcome | E3: =Head5 -> Audited Outcome | F3: =Head6 -> Original Budget | G3: =Head7 -> Adjusted Budget | H3: =Head8 -> Full Year Forecast | I3: =Head5b -> Pre-audit outcome | J3: =Head9 -> Budget Year 2015/16 | K3: =Head10 -> Budget Year +1 2016/17 | L3: =Head11 -> Budget Year +2 2017/18
A4: Cash and investments available
A5: =LEFT('A7-CFlow'!A40,37) -> Cash/cash equivalents at the year end | B5: 1 | C5: ='A7-CFlow'!C40 -> 621615314 | D5: ='A7-CFlow'!D40 -> 718067733 | E5: ='A7-CFlow'!E40 -> 827274195 | F5: ='A7-CFlow'!F40 -> 1097011582 | G5: ='A7-CFlow'!G40 -> 951510884.6 | H5: ='A7-CFlow'!H40 -> 951510884.6 | I5: ='A7-CFlow'!I40 -> 951510884.6 | J5: ='A7-CFlow'!J40 -> 1123670221 | K5: ='A7-CFlow'!K40 -> 1153955810 | L5: ='A7-CFlow'!L40 -> 1163590798
A6: Other current investments > 90 days | C6: ='A6-FinPos'!C6+'A6-FinPos'!C7-'A6-FinPos'!C29-'A8-ResRecon'!C5 -> 5255932 | D6: ='A6-FinPos'!D6+'A6-FinPos'!D7-'A6-FinPos'!D29-'A8-ResRecon'!D5 -> 5901580 | E6: ='A6-FinPos'!E6+'A6-FinPos'!E7-'A6-FinPos'!E29-'A8-ResRecon'!E5 -> 6900902 | F6: ='A6-FinPos'!F6+'A6-FinPos'!F7-'A6-FinPos'!F29-'A8-ResRecon'!F5 -> -220683067.8 | G6: ='A6-FinPos'!G6+'A6-FinPos'!G7-'A6-FinPos'!G29-'A8-ResRecon'!G5 -> 78594390 | H6: ='A6-FinPos'!H6+'A6-FinPos'!H7-'A6-FinPos'!H29-'A8-ResRecon'!H5 -> 78594390 | I6: ='A6-FinPos'!I6+'A6-FinPos'!I7-'A6-FinPos'!I29-'A8-ResRecon'!I5 -> 78594390 | J6: ='A6-FinPos'!J6+'A6-FinPos'!J7-'A6-FinPos'!J29-'A8-ResRecon'!J5 -> 7756363.94 | K6: ='A6-FinPos'!K6+'A6-FinPos'!K7-'A6-FinPos'!K29-'A8-ResRecon'!K5 -> 8222521.413 | L6: ='A6-FinPos'!L6+'A6-FinPos'!L7-'A6-FinPos'!L29-'A8-ResRecon'!L5 -> 8716694.95
A7: ='A6-FinPos'!A14&" - "&'A6-FinPos'!A16 -> Non current assets - Investments | B7: 1 | C7: ='A6-FinPos'!C16 -> 0 | D7: ='A6-FinPos'!D16 -> 0 | E7: ='A6-FinPos'!E16 -> 0 | F7: ='A6-FinPos'!F16 -> 46000 | G7: ='A6-FinPos'!G16 -> 46000 | H7: ='A6-FinPos'!H16 -> 46000 | I7: ='A6-FinPos'!I16 -> 46000 | J7: ='A6-FinPos'!J16 -> 0 | K7: ='A6-FinPos'!K16 -> 0 | L7: ='A6-FinPos'!L16 -> 0
A8: Cash and investments available: | C8: =SUM(C5:C7) -> 626871246 | D8: =SUM(D5:D7) -> 723969313 | E8: 834175097 | F8: 876374514.2 | G8: 1030151275 | H8: 1030151275 | I8: 1030151275 | J8: 1131426585 | K8: 1162178331 | L8: 1172307493
A10: Application of cash and investments
A11: ='SA3'!A36 -> Unspent conditional transfers | C11: ='SA3'!C36 -> 149447649 | D11: ='SA3'!D36 -> 170460191 | E11: ='SA3'!E36 -> 291314078 | F11: ='SA3'!F36 -> 83930000 | G11: ='SA3'!G36 -> 135502004 | H11: ='SA3'!H36 -> 135502004 | I11: ='SA3'!I36 -> 135502004 | J11: ='SA3'!J36 -> 174788446.8 | K11: ='SA3'!K36 -> 104873068.1 | L11: ='SA3'!L36 -> 41949227.23
A12: Unspent borrowing | C12: ='SA17'!C67 -> 0 | D12: ='SA17'!D67 -> 0 | E12: ='SA17'!E67 -> 0 | F12: ='SA17'!F67 -> 0 | G12: ='SA17'!G67 -> 0 | H12: ='SA17'!H67 -> 0 | J12: ='SA17'!I67 -> 0 | K12: ='SA17'!J67 -> 0 | L12: ='SA17'!K67 -> 0
A13: Statutory requirements | B13: 2 | F13: 100000000 | G13: 60000000 | H13: 60000000 | I13: 60000000 | J13: 100629542 | K13: 72277732.84 | L13: 68958887.5
A14: Other working capital requirements | B14: 3 | C14: =-C32 -> -91176046 | D14: =-D32 -> -303379914 | E14: -567297134 | F14: =-F32 -> -115371790 | G14: 151382549.7 | H14: 151382549.7 | I14: 151382549.7 | J14: -138749175.1 | K14: -497905521.6 | L14: -887982055.1
A15: Other provisions | F15: -37304791 | G15: -37304791 | H15: -37304791 | I15: -37304791 | J15: 71966566.16 | K15: 78676470.46 | L15: 84598222.57
A16: Long term investments committed | B16: 4 | C16: =C52 -> 0 | D16: =D52 -> 0 | E16: 0 | F16: 0 | G16: 0 | H16: 0 | I16: 0 | J16: 0 | K16: 0 | L16: 0
A17: Reserves to be backed by cash/investments | B17: 5 | J17: 172914142 | K17: 193972424.8 | L17: 215051873.3
A18: ="Total "&A10&":" -> Total Application of cash and investments: | C18: =SUM(C11:C17) -> 58271603 | D18: =SUM(D11:D17) -> -132919723 | E18: -275983056 | F18: 31253419 | G18: 309579762.7 | H18: 309579762.7 | I18: 309579762.7 | J18: 381549521.9 | K18: -48105825.35 | L18: -477423844.5
A19: Surplus(shortfall) | C19: =C8-C18 -> 568599643 | D19: =D8-D18 -> 856889036 | E19: 1110158153 | F19: 845121095.2 | G19: 720571511.9 | H19: 720571511.9 | I19: 720571511.9 | J19: 749877063.6 | K19: 1210284157 | L19: 1649731337
A20: =head27a -> References
A21: 1. Must reconcile with Budgeted Cash Flows
A22: 2. For example: VAT, taxation
A23: 3. Council approval for policy required - include sufficient working capital (e.g. allowing for a % of current debtors > 90 days as uncollectable)
A24: 4. For example: sinking fund requirements for borrowing
A25: 5. Council approval required for each reserve created and basis of cash backing of reserves
A28: Other working capital requirements
A29: Debtors | C29: =IF(ISERROR(ROUND(C35*C36,-3)),0,(ROUND(C35*C36,-3))) -> 532150000 | D29: =IF(ISERROR(ROUND(D35*D36,-3)),0,(ROUND(D35*D36,-3))) -> 784385000 | E29: 1020360000 | F29: 900921000 | G29: 924981000 | H29: 924981000 | I29: 924981000 | J29: 1080820000 | K29: 1142079000 | L29: 1229968000
A31: Creditors due | C31: ='SA3'!C35 -> 440973954 | D31: ='SA3'!D35 -> 481005086 | E31: ='SA3'!E35 -> 453062866 | F31: ='SA3'!F35 -> 785549210 | G31: ='SA3'!G35 -> 1076363550 | H31: ='SA3'!H35 -> 1076363550 | I31: ='SA3'!I35 -> 1076363550 | J31: ='SA3'!J35 -> 942070824.9 | K31: ='SA3'!K35 -> 644173478.4 | L31: ='SA3'!L35 -> 341985944.9
A32: Total | C32: =C29-C31 -> 91176046 | D32: =D29-D31 -> 303379914 | E32: 567297134 | F32: 115371790 | G32: -151382549.7 | H32: -151382549.7 | I32: -151382549.7 | J32: 138749175.1 | K32: 497905521.6 | L32: 887982055.1
A34: Debtors collection assumptions
A35: Balance outstanding - debtors | C35: ='A6-FinPos'!C8+'A6-FinPos'!C9+'A6-FinPos'!C15 -> 559871077 | D35: ='A6-FinPos'!D8+'A6-FinPos'!D9+'A6-FinPos'!D15 -> 884047351 | E35: ='A6-FinPos'!E8+'A6-FinPos'!E9+'A6-FinPos'!E15 -> 1080178186 | F35: ='A6-FinPos'!F8+'A6-FinPos'!F9+'A6-FinPos'!F15 -> 933004745 | G35: ='A6-FinPos'!G8+'A6-FinPos'!G9+'A6-FinPos'!G15 -> 933004885 | H35: ='A6-FinPos'!H8+'A6-FinPos'!H9+'A6-FinPos'!H15 -> 933004885 | I35: ='A6-FinPos'!I8+'A6-FinPos'!I9+'A6-FinPos'!I15 -> 933004885 | J35: ='A6-FinPos'!J8+'A6-FinPos'!J9+'A6-FinPos'!J15 -> 1269039671 | K35: ='A6-FinPos'!K8+'A6-FinPos'!K9+'A6-FinPos'!K15 -> 1365072219 | L35: ='A6-FinPos'!L8+'A6-FinPos'!L9+'A6-FinPos'!L15 -> 1470090595
A36: Estimate of debtors collection rate | C36: =IF(ISERROR('SA10'!D10),0,('SA10'!D10)) -> 0.9504870646 | D36: =IF(ISERROR('SA10'!E10),0,('SA10'!E10)) -> 0.8872656396 | E36: =IF(ISERROR('SA10'!F10),0,('SA10'!F10)) -> 0.9446219644 | F36: =IF(ISERROR('SA10'!G10),0,('SA10'!G10)) -> 0.9656129584 | G36: =IF(ISERROR('SA10'!H10),0,('SA10'!H10)) -> 0.9914000744 | H36: =IF(ISERROR('SA10'!I10),0,('SA10'!I10)) -> 0.9914000744 | I36: =IF(ISERROR('SA10'!J10),0,('SA10'!J10)) -> 0.9914000744 | J36: =IF(ISERROR('SA10'!K10),0,('SA10'!K10)) -> 0.8516835041 | K36: =IF(ISERROR('SA10'!L10),0,('SA10'!L10)) -> 0.8366438092 | L36: =IF(ISERROR('SA10'!M10),0,('SA10'!M10)) -> 0.8366615623
K39: `
A40: =A16 -> Long term investments committed
A41: Balance (Insert description; eg sinking fund)
C52: =SUM(C41:C51) -> 0 | D52: =SUM(D41:D51) -> 0 | E52: 0 | F52: 0 | G52: 0 | H52: 0 | I52: 0 | J52: 0 | K52: 0 | L52: 0
A53: =A17 -> Reserves to be backed by cash/investments
A54: ='SA3'!A64 -> Housing Development Fund | C54: ='SA3'!C64 -> 55525904 | D54: ='SA3'!D64 -> 49902967 | E54: ='SA3'!E64 -> 51542986 | F54: ='SA3'!F64 -> 37000000 | G54: ='SA3'!G64 -> 37000000 | H54: ='SA3'!H64 -> 37000000 | I54: ='SA3'!I64 -> 37000000 | J54: ='SA3'!J64 -> 52685111 | K54: ='SA3'!K64 -> 53738813.22 | L54: ='SA3'!L64 -> 54813589.48
A55: ='SA3'!A65 -> Capital replacement | J55: 120000000 | K55: 140000000 | L55: 160000000
A56: ='SA3'!A66 -> Self-insurance
A57: Other (list)
C67: =SUM(C54:C65) -> 55525904 | D67: 49902967 | E67: 51542986 | F67: 37000000 | G67: 37000000 | H67: 37000000 | I67: 37000000 | J67: 172685111 | K67: 193738813.2 | L67: 214813589.5

Sheet A9-Asset
A1: =muni&" - "&Approve9 -> KZN225 Msunduzi - Table A9 Asset Management
A2: =desc -> Description | B2: =head27 -> Ref | C2: =head1b -> 2011/12 | D2: =head1A -> 2012/13 | E2: =Head1 -> 2013/14 | F2: =Head2 -> Current Year 2014/15 | I2: =Head3 -> 2015/16 Medium Term Revenue & Expenditure Framework
A3: R thousand | C3: =Head5 -> Audited Outcome | D3: =Head5 -> Audited Outcome | E3: =Head5 -> Audited Outcome | F3: =Head6 -> Original Budget | G3: =Head7 -> Adjusted Budget | H3: =Head8 -> Full Year Forecast | I3: =Head9 -> Budget Year 2015/16 | J3: =Head10 -> Budget Year +1 2016/17 | K3: =Head11 -> Budget Year +2 2017/18
A4: CAPITAL EXPENDITURE
A5: Total New Assets | B5: 1 | C5: =SUM(C11:C18) -> 107500502.8 | D5: =SUM(D11:D18) -> 110102409.7 | E5: =SUM(E11:E18) -> 174312147 | F5: 308309561 | G5: 388381565 | H5: 388381565 | I5: 72424330 | J5: 99588000 | K5: 86139350
A6: Infrastructure - Road transport | C6: =SA34a!C7 -> 43936554.88 | D6: =SA34a!D7 -> 45000000 | E6: =SA34a!E7 -> 4780000 | F6: =SA34a!F7 -> 108100000 | G6: =SA34a!G7 -> 108100000 | H6: =SA34a!H7 -> 108100000 | I6: =SA34a!I7 -> 2230000 | J6: =SA34a!J7 -> 4500000 | K6: =SA34a!K7 -> 1300000
A7: Infrastructure - Electricity | C7: =SA34a!C10 -> 3986471.025 | D7: =SA34a!D10 -> 4082960 | E7: =SA34a!E10 -> 131000000 | F7: =SA34a!F10 -> 63500000 | G7: =SA34a!G10 -> 108572004 | H7: =SA34a!H10 -> 108572004 | I7: =SA34a!I10 -> 18000000 | J7: =SA34a!J10 -> 20500000 | K7: =SA34a!K10 -> 24405350
A8: Infrastructure - Water | C8: =SA34a!C14 -> 24818780.11 | D8: =SA34a!D14 -> 25419449.67 | E8: =SA34a!E14 -> 6250000 | F8: =SA34a!F14 -> 24677000 | G8: =SA34a!G14 -> 24677000 | H8: =SA34a!H14 -> 24677000 | I8: =SA34a!I14 -> 25444830 | J8: =SA34a!J14 -> 28321000 | K8: =SA34a!K14 -> 38041000
A9: Infrastructure - Sanitation | C9: =SA34a!C18 -> 0 | D9: =SA34a!D18 -> 0 | E9: =SA34a!E18 -> 2000000 | F9: =SA34a!F18 -> 0 | G9: =SA34a!G18 -> 0 | H9: =SA34a!H18 -> 0 | I9: =SA34a!I18 -> 0 | J9: =SA34a!J18 -> 0 | K9: =SA34a!K18 -> 0
A10: Infrastructure - Other | C10: =SA34a!C21 -> 14645518.29 | D10: =SA34a!D21 -> 15000000 | E10: =SA34a!E21 -> 0 | F10: =SA34a!F21 -> 46890000 | G10: =SA34a!G21 -> 46890000 | H10: =SA34a!H21 -> 46890000 | I10: =SA34a!I21 -> 400000 | J10: =SA34a!J21 -> 500000 | K10: =SA34a!K21 -> 600000
A11: Infrastructure | C11: =SUM(C6:C10) -> 87387324.32 | D11: =SUM(D6:D10) -> 89502409.67 | E11: =SUM(E6:E10) -> 144030000 | F11: 243167000 | G11: 288239004 | H11: 288239004 | I11: 46074830 | J11: 53821000 | K11: 64346350
A12: =$A$42 -> Community | C12: =SA34a!C27 -> 20113178.46 | D12: =SA34a!D27 -> 20600000 | E12: =SA34a!E27 -> 0 | F12: =SA34a!F27 -> 41357225 | G12: =SA34a!G27 -> 41357225 | H12: =SA34a!H27 -> 41357225 | I12: =SA34a!I27 -> 10287500 | J12: =SA34a!J27 -> 23470000 | K12: =SA34a!K27 -> 12845000
A13: =$A$43 -> Heritage assets | C13: =SA34a!C43 -> 0 | D13: =SA34a!D43 -> 0 | E13: =SA34a!E43 -> 0 | F13: =SA34a!F43 -> 0 | G13: =SA34a!G43 -> 0 | H13: =SA34a!H43 -> 0 | I13: =SA34a!I43 -> 0 | J13: =SA34a!J43 -> 0 | K13: =SA34a!K43 -> 0
A14: =$A$44 -> Investment properties | C14: =SA34a!C47 -> 0 | D14: =SA34a!D47 -> 0 | E14: =SA34a!E47 -> 0 | F14: =SA34a!F47 -> 0 | G14: =SA34a!G47 -> 0 | H14: =SA34a!H47 -> 0 | I14: =SA34a!I47 -> 0 | J14: =SA34a!J47 -> 0 | K14: =SA34a!K47 -> 0
A15: =$A$45 -> Other assets | B15: 6 | C15: =SA34a!C51 -> 0 | D15: =SA34a!D51 -> 0 | E15: =SA34a!E51 -> 30282147 | F15: =SA34a!F51 -> 23785336 | G15: =SA34a!G51 -> 58785336 | H15: =SA34a!H51 -> 58785336 | I15: =SA34a!I51 -> 16062000 | J15: =SA34a!J51 -> 22297000 | K15: =SA34a!K51 -> 8948000
A16: Agricultural Assets | C16: =SA34a!C65 -> 0 | D16: =SA34a!D65 -> 0 | E16: =SA34a!E65 -> 0 | F16: =SA34a!F65 -> 0 | G16: =SA34a!G65 -> 0 | H16: =SA34a!H65 -> 0 | I16: =SA34a!I65 -> 0 | J16: =SA34a!J65 -> 0 | K16: =SA34a!K65 -> 0
A17: =SA34a!A69 -> Biological assets | C17: =SA34a!C69 -> 0 | D17: =SA34a!D69 -> 0 | E17: =SA34a!E69 -> 0 | F17: =SA34a!F69 -> 0 | G17: =SA34a!G69 -> 0 | H17: =SA34a!H69 -> 0 | I17: =SA34a!I69 -> 0 | J17: =SA34a!J69 -> 0 | K17: =SA34a!K69 -> 0
A18: =SA34a!A73 -> Intangibles | C18: =SA34a!C73 -> 0 | D18: =SA34a!D73 -> 0 | E18: =SA34a!E73 -> 0 | F18: =SA34a!F73 -> 0 | G18: =SA34a!G73 -> 0 | H18: =SA34a!H73 -> 0 | I18: =SA34a!I73 -> 0 | J18: =SA34a!J73 -> 0 | K18: =SA34a!K73 -> 0
A20: Total Renewal of Existing Assets | B20: 2 | C20: =SUM(C26:C33) -> 251310868.8 | D20: =SUM(D26:D33) -> 291772313.9 | E20: =SUM(E26:E33) -> 189593508 | F20: 289444439 | G20: 316594439 | H20: 316594439 | I20: 636635670 | J20: 536784000 | K20: 514680650
A21: Infrastructure - Road transport | C21: =SA34b!C7 -> 82776038.85 | D21: =SA34b!D7 -> 93747780 | E21: =SA34b!E7 -> 87881797 | F21: =SA34b!F7 -> 68683832 | G21: =SA34b!G7 -> 87833832 | H21: =SA34b!H7 -> 87833832 | I21: =SA34b!I7 -> 343277000 | J21: =SA34b!J7 -> 352268000 | K21: =SA34b!K7 -> 377508000
A22: Infrastructure - Electricity | C22: =SA34b!C10 -> 4856028.878 | D22: =SA34b!D10 -> 5000000 | E22: =SA34b!E10 -> 4500000 | F22: =SA34b!F10 -> 65256882 | G22: =SA34b!G10 -> 65256882 | H22: =SA34b!H10 -> 65256882 | I22: =SA34b!I10 -> 115000000 | J22: =SA34b!J10 -> 65000000 | K22: =SA34b!K10 -> 15000000
A23: Infrastructure - Water | C23: =SA34b!C14 -> 24134463.52 | D23: =SA34b!D14 -> 34100000 | E23: =SA34b!E14 -> 25925000 | F23: =SA34b!F14 -> 63730225 | G23: =SA34b!G14 -> 63730225 | H23: =SA34b!H14 -> 63730225 | I23: =SA34b!I14 -> 64688670 | J23: =SA34b!J14 -> 41400000 | K23: =SA34b!K14 -> 52200000
A24: Infrastructure - Sanitation | C24: =SA34b!C18 -> 25445591.32 | D24: =SA34b!D18 -> 46200000 | E24: =SA34b!E18 -> 34796555 | F24: =SA34b!F18 -> 31938000 | G24: =SA34b!G18 -> 31938000 | H24: =SA34b!H18 -> 31938000 | I24: =SA34b!I18 -> 29500000 | J24: =SA34b!J18 -> 22326350 | K24: =SA34b!K18 -> 38000000
A25: Infrastructure - Other | C25: =SA34b!C21 -> 28193885.46 | D25: =SA34b!D21 -> 27498591.32 | E25: =SA34b!E21 -> 8090850 | F25: =SA34b!F21 -> 6171000 | G25: =SA34b!G21 -> 6171000 | H25: =SA34b!H21 -> 6171000 | I25: =SA34b!I21 -> 1000000 | J25: =SA34b!J21 -> 8919650 | K25: =SA34b!K21 -> 9365650
A26: =$A$11 -> Infrastructure | C26: =SUM(C21:C25) -> 165406008 | D26: =SUM(D21:D25) -> 206546371.3 | E26: =SUM(E21:E25) -> 161194202 | F26: 235779939 | G26: 254929939 | H26: 254929939 | I26: 553465670 | J26: 489914000 | K26: 492073650
A27: =A12 -> Community | C27: =SA34b!C27 -> 25328796.11 | D27: =SA34b!D27 -> 35749306 | E27: =SA34b!E27 -> 13849306 | F27: =SA34b!F27 -> 52614500 | G27: =SA34b!G27 -> 52614500 | H27: =SA34b!H27 -> 52614500 | I27: =SA34b!I27 -> 31250000 | J27: =SA34b!J27 -> 16600000 | K27: =SA34b!K27 -> 11100000
A28: =A13 -> Heritage assets | C28: =SA34b!C43 -> 0 | D28: =SA34b!D43 -> 0 | E28: =SA34b!E43 -> 0 | F28: =SA34b!F43 -> 0 | G28: =SA34b!G43 -> 0 | H28: =SA34b!H43 -> 0 | I28: =SA34b!I43 -> 0 | J28: =SA34b!J43 -> 0 | K28: =SA34b!K43 -> 0
A29: =A14 -> Investment properties | C29: =SA34b!C47 -> 0 | D29: =SA34b!D47 -> 0 | E29: =SA34b!E47 -> 0 | F29: =SA34b!F47 -> 0 | G29: =SA34b!G47 -> 0 | H29: =SA34b!H47 -> 0 | I29: =SA34b!I47 -> 0 | J29: =SA34b!J47 -> 0 | K29: =SA34b!K47 -> 0
A30: =A15 -> Other assets | B30: 6 | C30: =SA34b!C51 -> 60576064.67 | D30: =SA34b!D51 -> 49476636.62 | E30: =SA34b!E51 -> 14550000 | F30: =SA34b!F51 -> 1050000 | G30: =SA34b!G51 -> 9050000 | H30: =SA34b!H51 -> 9050000 | I30: =SA34b!I51 -> 26920000 | J30: =SA34b!J51 -> 270000 | K30: =SA34b!K51 -> 6507000
A31: Agricultural Assets | C31: =SA34b!C65 -> 0 | D31: =SA34b!D65 -> 0 | E31: =SA34b!E65 -> 0 | F31: =SA34b!F65 -> 0 | G31: =SA34b!G65 -> 0 | H31: =SA34b!H65 -> 0 | I31: =SA34b!I65 -> 0 | J31: =SA34b!J65 -> 0 | K31: =SA34b!K65 -> 0
A32: =A17 -> Biological assets | C32: =SA34b!C69 -> 0 | D32: =SA34b!D69 -> 0 | E32: =SA34b!E69 -> 0 | F32: =SA34b!F69 -> 0 | G32: =SA34b!G69 -> 0 | H32: =SA34b!H69 -> 0 | I32: =SA34b!I69 -> 0 | J32: =SA34b!J69 -> 0 | K32: =SA34b!K69 -> 0
A33: =A18 -> Intangibles | C33: =SA34b!C73 -> 0 | D33: =SA34b!D73 -> 0 | E33: =SA34b!E73 -> 0 | F33: =SA34b!F73 -> 0 | G33: =SA34b!G73 -> 0 | H33: =SA34b!H73 -> 0 | I33: =SA34b!I73 -> 25000000 | J33: =SA34b!J73 -> 30000000 | K33: =SA34b!K73 -> 5000000
A35: Total Capital Expenditure | B35: 4
A36: Infrastructure - Road transport | C36: =C6+C21 -> 126712593.7 | D36: =D6+D21 -> 138747780 | E36: 92661797 | F36: 176783832 | G36: 195933832 | H36: 195933832 | I36: 345507000 | J36: 356768000 | K36: 378808000
A37: Infrastructure - Electricity | C37: =C7+C22 -> 8842499.903 | D37: =D7+D22 -> 9082960 | E37: 135500000 | F37: 128756882 | G37: 173828886 | H37: 173828886 | I37: 133000000 | J37: 85500000 | K37: 39405350
A38: Infrastructure - Water | C38: =C8+C23 -> 48953243.64 | D38: 59519449.67 | E38: 32175000 | F38: 88407225 | G38: 88407225 | H38: 88407225 | I38: 90133500 | J38: 69721000 | K38: 90241000
A39: Infrastructure - Sanitation | C39: =C9+C24 -> 25445591.32 | D39: =D9+D24 -> 46200000 | E39: =E9+E24 -> 36796555 | F39: 31938000 | G39: 31938000 | H39: 31938000 | I39: 29500000 | J39: 22326350 | K39: 38000000
A40: Infrastructure - Other | C40: =C10+C25 -> 42839403.75 | D40: 42498591.32 | E40: 8090850 | F40: 53061000 | G40: 53061000 | H40: 53061000 | I40: 1400000 | J40: 9419650 | K40: 9965650
A41: =$A$11 -> Infrastructure | C41: =SUM(C36:C40) -> 252793332.3 | D41: =SUM(D36:D40) -> 296048781 | E41: 305224202 | F41: 478946939 | G41: 543168943 | H41: 543168943 | I41: 599540500 | J41: 543735000 | K41: 556420000
A42: =SA34a!A27 -> Community | C42: =C12+C27 -> 45441974.57 | D42: =D12+D27 -> 56349306 | E42: 13849306 | F42: 93971725 | G42: 93971725 | H42: 93971725 | I42: 41537500 | J42: 40070000 | K42: 23945000
A43: =SA34a!A43 -> Heritage assets | C43: 0 | D43: =D13+D28 -> 0 | E43: 0 | F43: 0 | G43: 0 | H43: 0 | I43: 0 | J43: 0 | K43: 0
A44: =SA34a!A47 -> Investment properties | C44: 0 | D44: =D14+D29 -> 0 | E44: 0 | F44: 0 | G44: 0 | H44: 0 | I44: 0 | J44: 0 | K44: 0
A45: =SA34a!A51 -> Other assets | C45: 60576064.67 | D45: =D15+D30 -> 49476636.62 | E45: 44832147 | F45: 24835336 | G45: 67835336 | H45: 67835336 | I45: 42982000 | J45: 22567000 | K45: 15455000
A46: Agricultural Assets | C46: 0 | D46: =D16+D31 -> 0 | E46: 0 | F46: 0 | G46: 0 | H46: 0 | I46: 0 | J46: 0 | K46: 0
A47: =A32 -> Biological assets | C47: 0 | D47: =D17+D32 -> 0 | E47: 0 | F47: 0 | G47: 0 | H47: 0 | I47: 0 | J47: 0 | K47: 0
A48: =A33 -> Intangibles | C48: 0 | D48: =D18+D33 -> 0 | E48: 0 | F48: 0 | G48: 0 | H48: 0 | I48: 25000000 | J48: 30000000 | K48: 5000000
A49: TOTAL CAPITAL EXPENDITURE - Asset class | B49: 2 | C49: =SUM(C41:C48) -> 358811371.6 | D49: 401874723.6 | E49: 363905655 | F49: 597754000 | G49: 704976004 | H49: 704976004 | I49: 709060000 | J49: 636372000 | K49: 600820000
A51: ASSET REGISTER SUMMARY - PPE (WDV) | B51: 5
A52: Infrastructure - Road transport | C52: 1798046669 | D52: 1810376787 | E52: 1816830753 | F52: 1977545666 | G52: 1807600732 | H52: 1807600732 | I52: 1868236623 | J52: 2015209470 | K52: 2142160268
A53: Infrastructure - Electricity | C53: 1227562140 | D53: 1265234077 | E53: 1302587541 | F53: 1519411165 | G53: 1365114105 | H53: 1365114105 | I53: 1546767145 | J53: 1583638255 | K53: 1653320455
A54: Infrastructure - Water | C54: 909907278 | D54: 929583088 | E54: 941978611.4 | F54: 950807789.2 | G54: 854582634.8 | H54: 854582634.8 | I54: 878146229.6 | J54: 846649405.9 | K54: 787185964
A55: Infrastructure - Sanitation | C55: 571448819 | D55: 577251511 | E55: 604406318.6 | F55: 650935915.1 | G55: 587057481.7 | H55: 587057481.7 | I55: 612431454.4 | J55: 595559925.8 | K55: 558876005.2
A56: Infrastructure - Other | C56: 501919403 | D56: 497496415 | E56: 490689257.5 | F56: 516776485.1 | G56: 459662302.7 | H56: 459662302.7 | I56: 485489710.5 | J56: 467834473.7 | K56: 450627106.1
A57: =A41 -> Infrastructure | C57: =SUM(C52:C56) -> 5008884309 | D57: =SUM(D52:D56) -> 5079941878 | E57: 5156492482 | F57: 5615477020 | G57: 5074017256 | H57: 5074017256 | I57: 5391071163 | J57: 5508891531 | K57: 5592169798
A58: =A12 -> Community | C58: 468969684 | D58: 379498640 | E58: 365264755.6 | F58: 427607026.9 | G58: 427607026.9 | H58: 427607026.9 | I58: 361369927.2 | J58: 343557356.5 | K58: 307583528.7
A59: =A13 -> Heritage assets | C59: 115628754 | D59: 294949070 | E59: 177572480.7 | F59: 176705934.2 | G59: 176705934.2 | H59: 176705934.2 | I59: 177572480.7 | J59: 177572480.7 | K59: 177572480.7
A60: =A14 -> Investment properties | C60: ='A6-FinPos'!C17 -> 325807355 | D60: ='A6-FinPos'!D17 -> 320520236 | E60: ='A6-FinPos'!E17 -> 356913816 | F60: ='A6-FinPos'!F17 -> 320520023 | G60: ='A6-FinPos'!G17 -> 320520000 | H60: ='A6-FinPos'!H17 -> 320520000 | I60: ='A6-FinPos'!J17 -> 356913816 | J60: ='A6-FinPos'!K17 -> 364052092.3 | K60: ='A6-FinPos'!L17 -> 371333134.2
A61: =A15 -> Other assets | C61: 823365643 | D61: 770639765 | E61: 943315985.9 | F61: 592994213.1 | G61: 1080999137 | H61: 1080999137 | I61: 1018771074 | J61: 987278274 | K61: 940734528.8
A62: Agricultural Assets | C62: ='A6-FinPos'!C20 -> 0 | D62: ='A6-FinPos'!D20 -> 0 | E62: ='A6-FinPos'!E20 -> 0 | F62: ='A6-FinPos'!F20 -> 0 | G62: ='A6-FinPos'!G20 -> 0 | H62: ='A6-FinPos'!H20 -> 0 | I62: ='A6-FinPos'!J20 -> 0 | J62: ='A6-FinPos'!K20 -> 0 | K62: ='A6-FinPos'!L20 -> 0
A63: =A17 -> Biological assets | C63: ='A6-FinPos'!C21 -> 0 | D63: ='A6-FinPos'!D21 -> 37915260 | E63: ='A6-FinPos'!E21 -> 46520046 | F63: ='A6-FinPos'!F21 -> 648000 | G63: ='A6-FinPos'!G21 -> 648000 | H63: ='A6-FinPos'!H21 -> 648000 | I63: ='A6-FinPos'!J21 -> 46520046 | J63: ='A6-FinPos'!K21 -> 46520046 | K63: ='A6-FinPos'!L21 -> 46520046
A64: =A18 -> Intangibles | C64: ='A6-FinPos'!C22 -> 3458562 | D64: ='A6-FinPos'!D22 -> 1898994 | E64: ='A6-FinPos'!E22 -> 2097543 | F64: ='A6-FinPos'!F22 -> 3959000 | G64: ='A6-FinPos'!G22 -> 3959000 | H64: ='A6-FinPos'!H22 -> 3959000 | I64: ='A6-FinPos'!J22 -> 27283200 | J64: ='A6-FinPos'!K22 -> 57283200 | K64: ='A6-FinPos'!L22 -> 45826560
A65: TOTAL ASSET REGISTER SUMMARY - PPE (WDV) | B65: 5 | C65: =SUM(C57:C64) -> 6746114307 | D65: 6885363843 | E65: 7048177109 | F65: 7137911217 | G65: 7084456354 | H65: 7084456354 | I65: 7379501707 | J65: 7485154980 | K65: 7481740076
A67: EXPENDITURE OTHER ITEMS
A68: ='A4-FinPerf RE'!A28 -> Depreciation & asset impairment | C68: ='A4-FinPerf RE'!C28 -> 273673069 | D68: ='A4-FinPerf RE'!D28 -> 237152630 | E68: ='A4-FinPerf RE'!E28 -> 453332223 | F68: ='A4-FinPerf RE'!F28 -> 259469334 | G68: ='A4-FinPerf RE'!G28 -> 259469334 | H68: ='A4-FinPerf RE'!H28 -> 259469334 | I68: ='A4-FinPerf RE'!J28 -> 485745588 | J68: ='A4-FinPerf RE'!K28 -> 537857003 | K68: ='A4-FinPerf RE'!L28 -> 595059306
A69: Repairs and Maintenance by Asset Class | B69: 3 | C69: =SUM(C75:C79) -> 39509687 | D69: =SUM(D75:D79) -> 97782164 | E69: 139060223 | F69: 291357199.9 | G69: 217917063.9 | H69: 217917063.9 | I69: 202126421.9 | J69: 280975056.1 | K69: 361657200.1
A70: Infrastructure - Road transport | C70: =SA34c!C7 -> 3391976 | D70: =SA34c!D7 -> 5360722 | E70: =SA34c!E7 -> 7094451 | F70: =SA34c!F7 -> 63666552.59 | G70: =SA34c!G7 -> 26946552.59 | H70: =SA34c!H7 -> 26946552.59 | I70: =SA34c!I7 -> 29658382 | J70: =SA34c!J7 -> 51811289 | K70: =SA34c!K7 -> 85115019
A71: Infrastructure - Electricity | C71: =SA34c!C10 -> 13726149 | D71: =SA34c!D10 -> 24992252 | E71: =SA34c!E10 -> 48014208 | F71: =SA34c!F10 -> 73236384.35 | G71: =SA34c!G10 -> 70690167.35 | H71: =SA34c!H10 -> 70690167.35 | I71: =SA34c!I10 -> 48071058 | J71: =SA34c!J10 -> 48774198 | K71: =SA34c!K10 -> 11408426
A72: Infrastructure - Water | C72: =SA34c!C14 -> 1215926 | D72: =SA34c!D14 -> 746080 | E72: =SA34c!E14 -> 1553582 | F72: =SA34c!F14 -> 21848500.95 | G72: =SA34c!G14 -> 21848500.95 | H72: =SA34c!H14 -> 21848500.95 | I72: =SA34c!I14 -> 15713590 | J72: =SA34c!J14 -> 16499235 | K72: =SA34c!K14 -> 17390194
A73: Infrastructure - Sanitation | C73: =SA34c!C18 -> 0 | D73: =SA34c!D18 -> 0 | E73: =SA34c!E18 -> 502382 | F73: =SA34c!F18 -> 6591028.918 | G73: =SA34c!G18 -> 6591028.918 | H73: =SA34c!H18 -> 6591028.918 | I73: =SA34c!I18 -> 4806944 | J73: =SA34c!J18 -> 5047290 | K73: =SA34c!K18 -> 5319844
A74: Infrastructure - Other | C74: =SA34c!C21 -> 6862370 | D74: =SA34c!D21 -> 86265 | E74: =SA34c!E21 -> 0 | F74: =SA34c!F21 -> 0 | G74: =SA34c!G21 -> 0 | H74: =SA34c!H21 -> 0 | I74: =SA34c!I21 -> 8813835 | J74: =SA34c!J21 -> 9254525 | K74: =SA34c!K21 -> 9754269
A75: =$A$11 -> Infrastructure | C75: =SUM(C70:C74) -> 25196421 | D75: =SUM(D70:D74) -> 31185319 | E75: 57164623 | F75: 165342466.8 | G75: 126076249.8 | H75: 126076249.8 | I75: 107063809 | J75: 131386537 | K75: 128987752
A76: =A12 -> Community | C76: =SA34c!C27 -> 9015310 | D76: =SA34c!D27 -> 2073845 | E76: =SA34c!E27 -> 0 | F76: =SA34c!F27 -> 0 | G76: =SA34c!G27 -> 0 | H76: =SA34c!H27 -> 0 | I76: =SA34c!I27 -> 4581893 | J76: =SA34c!J27 -> 4810984 | K76: =SA34c!K27 -> 5070777
A77: =A13 -> Heritage assets | C77: =SA34c!C43 -> 0 | D77: =SA34c!D43 -> 55926000 | E77: =SA34c!E43 -> 42746000 | F77: =SA34c!F43 -> 0 | G77: =SA34c!G43 -> 0 | H77: =SA34c!H43 -> 0 | I77: =SA34c!I43 -> 0 | J77: =SA34c!J43 -> 0 | K77: =SA34c!K43 -> 0
A78: =A14 -> Investment properties | C78: =SA34c!C47 -> 0 | D78: =SA34c!D47 -> 0 | E78: =SA34c!E47 -> 0 | F78: =SA34c!F47 -> 0 | G78: =SA34c!G47 -> 0 | H78: =SA34c!H47 -> 0 | I78: =SA34c!I47 -> 0 | J78: =SA34c!J47 -> 0 | K78: =SA34c!K47 -> 0
A79: =A15 -> Other assets | B79: 6, 7 | C79: =SA34c!C51+SA34c!C65+SA34c!C69+SA34c!C73 -> 5297956 | D79: =SA34c!D51+SA34c!D65+SA34c!D69+SA34c!D73 -> 8597000 | E79: =SA34c!E51+SA34c!E65+SA34c!E69+SA34c!E73 -> 39149600 | F79: =SA34c!F51+SA34c!F65+SA34c!F69+SA34c!F73 -> 126014733.1 | G79: =SA34c!G51+SA34c!G65+SA34c!G69+SA34c!G73 -> 91840814.07 | H79: =SA34c!H51+SA34c!H65+SA34c!H69+SA34c!H73 -> 91840814.07 | I79: =SA34c!I51+SA34c!I65+SA34c!I69+SA34c!I73 -> 90480719.89 | J79: =SA34c!J51+SA34c!J65+SA34c!J69+SA34c!J73 -> 144777535.1 | K79: =SA34c!K51+SA34c!K65+SA34c!K69+SA34c!K73 -> 227598671.1
A80: TOTAL EXPENDITURE OTHER ITEMS | C80: =SUM(C68:C69) -> 313182756 | D80: 334934794 | E80: 592392446 | F80: 550826533.9 | G80: 477386397.9 | H80: 477386397.9 | I80: 687872009.9 | J80: 818832059.1 | K80: 956716506.1
A82: Renewal of Existing Assets as % of total capex | C82: =IF(ISERROR(C20/C49),0,(C20/C49)) -> 0.7003982836 | D82: =IF(ISERROR(D20/D49),0,(D20/D49)) -> 0.7260280301 | E82: 0.5209963225 | F82: 0.4842199952 | G82: 0.4490854117 | H82: 0.4490854117 | I82: 0.897858672 | J82: 0.8435066282 | K82: 0.8566303552
A83: Renewal of Existing Assets as % of deprecn" | C83: =IF(ISERROR(C20/C68),0,(C20/C68)) -> 0.9182886344 | D83: =IF(ISERROR(D20/D68),0,(D20/D68)) -> 1.230314477 | E83: 0.4182219979 | F83: 1.115524654 | G83: 1.220161297 | H83: 1.220161297 | I83: 1.310636032 | J83: 0.9980050404 | K83: 0.8649232855
A84: R&M as a % of PPE | C84: =IF(ISERROR(ROUND(C69/'A6-FinPos'!C19,3)),0,(ROUND(C69/'A6-FinPos'!C19,3))) -> 0.006 | D84: =IF(ISERROR(ROUND(D69/'A6-FinPos'!D19,3)),0,(ROUND(D69/'A6-FinPos'!D19,3))) -> 0.016 | E84: =IF(ISERROR(ROUND(E69/'A6-FinPos'!E19,3)),0,(ROUND(E69/'A6-FinPos'!E19,3))) -> 0.023 | F84: =IF(ISERROR(ROUND(F69/'A6-FinPos'!F19,3)),0,(ROUND(F69/'A6-FinPos'!F19,3))) -> 0.04 | G84: =IF(ISERROR(ROUND(G69/'A6-FinPos'!G19,3)),0,(ROUND(G69/'A6-FinPos'!G19,3))) -> 0.032 | H84: =IF(ISERROR(ROUND(H69/'A6-FinPos'!H19,3)),0,(ROUND(H69/'A6-FinPos'!H19,3))) -> 0.032 | I84: =IF(ISERROR(ROUND(I69/'A6-FinPos'!J19,3)),0,(ROUND(I69/'A6-FinPos'!J19,3))) -> 0.029 | J84: =IF(ISERROR(ROUND(J69/'A6-FinPos'!K19,3)),0,(ROUND(J69/'A6-FinPos'!K19,3))) -> 0.04 | K84: =IF(ISERROR(ROUND(K69/'A6-FinPos'!L19,3)),0,(ROUND(K69/'A6-FinPos'!L19,3))) -> 0.052
A85: Renewal and R&M as a % of PPE | C85: =IF(ISERROR(ROUND((C20+C69)/C65,2)),0,(ROUND((C20+C69)/C65,2))) -> 0.04 | D85: =IF(ISERROR(ROUND((D20+D69)/D65,2)),0,(ROUND((D20+D69)/D65,2))) -> 0.06 | E85: 0.05 | F85: 0.08 | G85: 0.08 | H85: 0.08 | I85: 0.11 | J85: 0.11 | K85: 0.12
A87: =head27a -> References
A88: 1. Detail of new assets provided in Table SA34a
A89: 2. Detail of renewal of existing assets provided in Table SA34b
A90: 3. Detail of Repairs and Maintenance by Asset Class provided in Table SA34c
A91: 4. Must reconcile to total capital expenditure on Budgeted Capital Expenditure
A92: 5. Must reconcile to 'Budgeted Financial Position' (written down value)
A93: 6. Donated/contributed and assets funded by finance leases to be allocated to the respective category
A94: 7. Including repairs and maintenance to agricultural, biological and intangible assets
A95: Check balance to A6 | C95: =C65-'A6-FinPos'!C17-'A6-FinPos'!C19-'A6-FinPos'!C21-'A6-FinPos'!C22 -> -920002 | D95: =D65-'A6-FinPos'!D17-'A6-FinPos'!D19-'A6-FinPos'!D21-'A6-FinPos'!D22 -> 341104686 | E95: =E65-'A6-FinPos'!E17-'A6-FinPos'!E19-'A6-FinPos'!E21-'A6-FinPos'!E22 -> 587729474 | F95: =F65-'A6-FinPos'!F17-'A6-FinPos'!F19-'A6-FinPos'!F21-'A6-FinPos'!F22 -> -471145802.9 | G95: =G65-'A6-FinPos'!G17-'A6-FinPos'!G19-'A6-FinPos'!G21-'A6-FinPos'!G22 -> 8859121 | H95: =H65-'A6-FinPos'!H17-'A6-FinPos'!H19-'A6-FinPos'!H21-'A6-FinPos'!H22 -> 8859121 | I95: =I65-'A6-FinPos'!J17-'A6-FinPos'!J19-'A6-FinPos'!J21-'A6-FinPos'!J22 -> 9.536743164e-07 | J95: =J65-'A6-FinPos'!K17-'A6-FinPos'!K19-'A6-FinPos'!K21-'A6-FinPos'!K22 -> -9.536743164e-07 | K95: =K65-'A6-FinPos'!L17-'A6-FinPos'!L19-'A6-FinPos'!L21-'A6-FinPos'!L22 -> 0

Sheet A10-SerDel
A1: =muni&" - "&Approve10 -> KZN225 Msunduzi - Table A10 Basic service delivery measurement
A2: =desc -> Description | B2: =head27 -> Ref | C2: =head1b -> 2011/12 | D2: =head1A -> 2012/13 | E2: =Head1 -> 2013/14 | F2: =Head2 -> Current Year 2014/15 | I2: =Head3 -> 2015/16 Medium Term Revenue & Expenditure Framework
C3: =Head5A -> Outcome | D3: =Head5A -> Outcome | E3: =Head5A -> Outcome | F3: =Head6 -> Original Budget | G3: =Head7 -> Adjusted Budget | H3: =Head8 -> Full Year Forecast | I3: =Head9 -> Budget Year 2015/16 | J3: =Head10 -> Budget Year +1 2016/17 | K3: =Head11 -> Budget Year +2 2017/18
A4: Household service targets | B4: 1
A5: Water:
A6: Piped water inside dwelling | C6: 80188 | D6: 80188 | E6: 80690 | F6: 81771 | G6: 81771 | H6: 81771 | I6: 100771 | J6: 104071 | K6: 109209
A7: Piped water inside yard (but not in dwelling) | C7: 63301 | D7: 63301 | E7: 63301.29 | F7: 65855 | G7: 65855 | H7: 65855 | I7: 65855 | J7: 67465 | K7: 67465
A8: Using public tap (at least min.service level) | B8: 2 | C8: 9348 | D8: 9348 | E8: 9348 | F8: 16266 | G8: 16266 | H8: 16266 | I8: 7463 | J8: 7463 | K8: 7624
A9: Other water supply (at least min.service level) | B9: 4 | C9: 0 | D9: 0 | E9: 0 | F9: 0 | G9: 0 | H9: 0 | I9: 0 | J9: 0 | K9: 0
A10: Minimum Service Level and Above sub-total | C10: =SUM(C6:C9) -> 152837 | D10: =SUM(D6:D9) -> 152837 | E10: 153339.29 | F10: 163892 | G10: 163892 | H10: 163892 | I10: 174089 | J10: 178999 | K10: 184298
A11: Using public tap (< min.service level) | B11: 3 | C11: 4760 | D11: 5395 | E11: 6395 | F11: 6659 | G11: 6659 | H11: 6659 | I11: 3395 | J11: 2785 | K11: 1536
A12: Other water supply (< min.service level) | B12: =B9 -> 4 | C12: 6396 | D12: 5761 | E12: 4259 | F12: 3759 | G12: 3759 | H12: 3759 | I12: 3009 | J12: 2009 | K12: 1259
A13: No water supply | C13: 0 | D13: 0 | E13: 0 | F13: 0 | G13: 0 | H13: 0 | I13: 0 | J13: 0 | K13: 0
A14: Below Minimum Service Level sub-total | C14: =SUM(C11:C13) -> 11156 | D14: =SUM(D11:D13) -> 11156 | E14: 10654 | F14: 10418 | G14: 10418 | H14: 10418 | I14: 6404 | J14: 4794 | K14: 2795
A15: Total number of households | B15: 5 | C15: =C10+C14 -> 163993 | D15: =D10+D14 -> 163993 | E15: 163993.29 | F15: 174310 | G15: 174310 | H15: 174310 | I15: 180493 | J15: 183793 | K15: 187093
A16: Sanitation/sewerage:
A17: Flush toilet (connected to sewerage) | C17: 84779 | D17: 84779 | E17: 84973 | F17: 85125 | G17: 85125 | H17: 85125 | I17: 99500.71 | J17: 103300.71 | K17: 104400.71
A18: Flush toilet (with septic tank) | C18: 8541 | D18: 8541 | E18: 8372 | F18: 8570 | G18: 8570 | H18: 8570 | I18: 8515 | J18: 8515 | K18: 8515
A19: Chemical toilet | C19: 5489 | D19: 5489 | E19: 7076 | F19: 7076 | G19: 7076 | H19: 7076 | I19: 5485 | J19: 4985 | K19: 4885
A20: Pit toilet (ventilated) | C20: 58047 | D20: 58047 | E20: 58695 | F20: 62115 | G20: 62115 | H20: 62115 | I20: 63615 | J20: 65715 | K20: 68715
A21: Other toilet provisions (> min.service level) | C21: 0 | D21: 0 | E21: 0 | F21: 0 | G21: 0 | H21: 0 | I21: 0 | J21: 0 | K21: 0
A22: =$A$10 -> Minimum Service Level and Above sub-total | C22: =SUM(C17:C21) -> 156856 | D22: =SUM(D17:D21) -> 156856 | E22: 159116 | F22: 162886 | G22: 162886 | H22: 162886 | I22: 177115.71 | J22: 182515.71 | K22: 186515.71
A23: Bucket toilet | C23: 1585 | D23: 1585 | E23: 0 | F23: 0 | G23: 0 | H23: 0 | I23: 0 | J23: 0 | K23: 0
A24: Other toilet provisions (< min.service level) | C24: 5552 | D24: 5552 | E24: 4877.29 | F24: 11424 | G24: 11424 | H24: 11424 | I24: 3377.29 | J24: 1277.29 | K24: 577.29
A25: No toilet provisions | C25: 0 | D25: 0 | E25: 0 | F25: 0 | G25: 0 | H25: 0 | I25: 0 | J25: 0 | K25: 0
A26: =$A$14 -> Below Minimum Service Level sub-total | C26: =SUM(C23:C25) -> 7137 | D26: =SUM(D23:D25) -> 7137 | E26: 4877.29 | F26: 11424 | G26: 11424 | H26: 11424 | I26: 3377.29 | J26: 1277.29 | K26: 577.29
A27: =$A$15 -> Total number of households | B27: =$B$15 -> 5 | C27: =C22+C26 -> 163993 | D27: =D22+D26 -> 163993 | E27: 163993.29 | F27: 174310 | G27: 174310 | H27: 174310 | I27: 180493 | J27: 183793 | K27: 187093
A28: Energy:
A29: Electricity (at least min.service level) | C29: 109326 | D29: 109326 | E29: 109326.29 | F29: 109326.29 | G29: 109326.29 | H29: 109326.29 | I29: 109326.29 | J29: 109326.29 | K29: 109326.29
A30: Electricity - prepaid (min.service level) | C30: 41548 | D30: 42000 | E30: 42000 | F30: 44000 | G30: 44000 | H30: 44000 | I30: 59766.41 | J30: 64206.44 | K30: 68532.467
A31: =$A$10 -> Minimum Service Level and Above sub-total | C31: =SUM(C29:C30) -> 150874 | D31: =SUM(D29:D30) -> 151326 | E31: 151326.29 | F31: 153326.29 | G31: 153326.29 | H31: 153326.29 | I31: 169092.7 | J31: 173532.73 | K31: 177858.757
A32: Electricity (< min.service level) | C32: 0 | D32: 0 | E32: 0 | F32: 8316.71 | G32: 8316.71 | H32: 8316.71 | I32: 0 | J32: 0 | K32: 0
A33: Electricity - prepaid (< min. service level) | C33: 0 | D33: 0 | E33: 0 | F33: 0 | G33: 0 | H33: 0 | I33: 0 | J33: 0 | K33: 0
A34: Other energy sources | C34: 13119 | D34: 12667 | E34: 12667 | F34: 12667 | G34: 12667 | H34: 12667 | I34: 11400.3 | J34: 10260.27 | K34: 9234.243
A35: =$A$14 -> Below Minimum Service Level sub-total | C35: =SUM(C32:C34) -> 13119 | D35: =SUM(D32:D34) -> 12667 | E35: 12667 | F35: 20983.71 | G35: 20983.71 | H35: 20983.71 | I35: 11400.3 | J35: 10260.27 | K35: 9234.243
A36: =$A$15 -> Total number of households | B36: =$B$15 -> 5 | C36: =C31+C35 -> 163993 | D36: =D31+D35 -> 163993 | E36: 163993.29 | F36: 174310 | G36: 174310 | H36: 174310 | I36: 180493 | J36: 183793 | K36: 187093
A37: Refuse:
A38: Removed at least once a week | C38: 70000 | D38: 70000 | E38: 89910 | F38: 110000 | G38: 57437 | H38: 57437 | I38: 136100 | J38: 145400 | K38: 164537
A39: =$A$10 -> Minimum Service Level and Above sub-total | C39: =SUM(C38) -> 70000 | D39: =SUM(D38) -> 70000 | E39: 89910 | F39: 110000 | G39: 57437 | H39: 57437 | I39: 136100 | J39: 145400 | K39: 164537
A40: Removed less frequently than once a week | C40: 38910 | D40: 38910 | E40: 29000 | F40: 19226.71 | G40: 71789.71 | H40: 71789.71 | I40: 28556 | J40: 24556 | K40: 22556
A41: Using communal refuse dump | C41: 0 | D41: 0 | E41: 0 | F41: 0 | G41: 0 | H41: 0 | I41: 0 | J41: 0 | K41: 0
A42: Using own refuse dump | C42: 19993 | D42: 19993 | E42: 19993.29 | F42: 19993.29 | G42: 19993.29 | H42: 19993.29 | I42: 15837 | J42: 13837
A43: Other rubbish disposal | C43: 35090 | D43: 35090 | E43: 25090 | F43: 25090 | G43: 25090 | H43: 25090 | I43: 0 | J43: 0 | K43: 0
A44: No rubbish disposal | C44: 0 | D44: 0 | E44: 0 | F44: 0 | G44: 0 | H44: 0 | I44: 0 | J44: 0 | K44: 0
A45: =$A$14 -> Below Minimum Service Level sub-total | C45: =SUM(C40:C44) -> 93993 | D45: 93993 | E45: 74083.29 | F45: 64310 | G45: 116873 | H45: 116873 | I45: 44393 | J45: 38393 | K45: 22556
A46: =$A$15 -> Total number of households | B46: =$B$15 -> 5 | C46: =C39+C45 -> 163993 | D46: =D39+D45 -> 163993 | E46: 163993.29 | F46: 174310 | G46: 174310 | H46: 174310 | I46: 180493 | J46: 183793 | K46: 187093
A48: Households receiving Free Basic Service | B48: 7
A49: Water (6 kilolitres per household per month) | C49: 20119 | D49: 20119 | E49: 21125 | F49: 21760 | G49: 4532 | H49: 4532 | I49: 21125 | J49: 23237.5 | K49: 25561.25
A50: Sanitation (free minimum level service) | C50: 2950 | D50: 2950 | E50: 2950 | F50: 3470 | G50: 3470 | H50: 3470 | I50: 2950 | J50: 3245 | K50: 3569.5
A51: Electricity/other energy (50kwh per household per month) | C51: 2284 | D51: 2284 | E51: 2284 | F51: 2284 | G51: 2284 | H51: 2284 | I51: 3076 | J51: 3383.6 | K51: 3721.96
A52: Refuse (removed at least once a week) | C52: 20119 | D52: 20119 | E52: 21125 | F52: 21760 | G52: 3591 | H52: 3591 | I52: 3225 | J52: 3547.5 | K52: 3902.25
A54: Cost of Free Basic Services provided (R'000) | B54: 8
A55: Water (6 kilolitres per household per month) | C55: 93951341.25 | D55: 99588421.73 | E55: 105563727 | F55: 111897550.7 | G55: 111897550.7 | H55: 111897550.7 | I55: 118611403.7 | J55: 138300896.7 | K55: 161258845.6
A56: Sanitation (free sanitation service) | C56: 3606844.944 | D56: 3823255.641 | E56: 4052650.979 | F56: 4295810.038 | G56: 4295810.038 | H56: 4295810.038 | I56: 4553558.64 | J56: 5309449.374 | K56: 6190817.97
A57: Electricity/other energy (50kwh per household per month) | C57: 1533763.522 | D57: 1625789.333 | E57: 1723336.693 | F57: 1826736.894 | G57: 1826736.894 | H57: 1826736.894 | I57: 1936341.108 | J57: 2385572.245 | K57: 3017748.89
A58: Refuse (removed once a week) | C58: 2439988.106 | D58: 2586387.392 | E58: 2741570.635 | F58: 2906064.874 | G58: 2906064.874 | H58: 2906064.874 | I58: 3080428.766 | J58: 3591779.941 | K58: 4188015.411
A59: Total cost of FBS provided (minimum social package) | C59: =SUM(C54:C58) -> 101531937.8 | D59: =SUM(D54:D58) -> 107623854.1 | E59: 114081285.3 | F59: 120926162.5 | G59: 120926162.5 | H59: 120926162.5 | I59: 128181732.2 | J59: 149587698.3 | K59: 174655427.8
A61: Highest level of free service provided
A62: Property rates (R value threshold) | C62: 150000 | D62: 150000 | E62: 150000 | F62: 100000 | G62: 100000 | H62: 100000 | I62: 100000 | J62: 100000 | K62: 100000
A63: Water (kilolitres per household per month) | C63: 6 | D63: 6 | E63: 6 | F63: 6 | G63: 6 | H63: 6 | I63: 6 | J63: 6 | K63: 6
A64: Sanitation (kilolitres per household per month) | C64: 0 | D64: 0 | E64: 0 | F64: 0 | G64: 0 | H64: 0 | I64: 0 | J64: 0 | K64: 0
A65: Sanitation (Rand per household per month) | C65: 117.71 | D65: 101.04 | E65: 115.14 | F65: 121.58 | G65: 121.58 | H65: 121.58 | I65: 128.63 | J65: 136.09 | K65: 143.09
A66: Electricity (kwh per household per month) | C66: 70 | D66: 70 | E66: 70 | F66: 70 | G66: 70 | H66: 70 | I66: 70 | J66: 70 | K66: 70
A67: Refuse (average litres per week) | C67: 200 | D67: 200 | E67: 200 | F67: 200 | G67: 200 | H67: 200 | I67: 200 | J67: 200 | K67: 200
A68: Revenue cost of free services provided (R'000) | B68: 9
A69: Property rates (R15 000 threshold rebate) | C69: 339475454.7 | D69: 359843982 | E69: 381434620.9 | F69: 404320698.2 | G69: 404320698.2 | H69: 404320698.2 | I69: 428579940.1 | J69: 454294736.5 | K69: 481552420.7
A70: Property rates (other exemptions, reductions and rebates) | C70: 9086792.705 | D70: 9632000.267 | E70: 10209920.28 | F70: 10822515.5 | G70: 10822515.5 | H70: 10822515.5 | I70: 11471866.43 | J70: 12160178.42 | K70: 12889789.12
A71: Water | C71: 93951341.25 | D71: 99588421.73 | E71: 105563727 | F71: 111897550.7 | G71: 111897550.7 | H71: 111897550.7 | I71: 118611403.7 | J71: 138300896.7 | K71: 161258845.6
A72: Sanitation | C72: 3606844.944 | D72: 3823255.641 | E72: 4052650.979 | F72: 4295810.038 | G72: 4295810.038 | H72: 4295810.038 | I72: 4553558.64 | J72: 5309449.374 | K72: 6190817.97
A73: Electricity/other energy | C73: 1911061.704 | D73: 2025725.406 | E73: 2147268.93 | F73: 2276105.066 | G73: 2412671.37 | H73: 2557431.652 | I73: 2710877.551 | J73: 3339801.143 | K73: 4224848.446
A74: Refuse | C74: 2439988.106 | D74: 2586387.392 | E74: 2741570.635 | F74: 2906064.874 | G74: 2906064.874 | H74: 2906064.874 | I74: 3080428.766 | J74: 3591779.941 | K74: 4188015.411
A75: Municipal Housing - rental rebates | C75: 0 | D75: 0 | E75: 0 | F75: 0 | G75: 0 | H75: 0 | I75: 0 | J75: 0 | K75: 0
A76: Housing - top structure subsidies | B76: 6 | C76: 0 | D76: 0 | E76: 0 | F76: 0 | G76: 0 | H76: 0 | I76: 0 | J76: 0 | K76: 0
A77: Other | C77: 0 | D77: 0 | E77: 0 | F77: 0 | G77: 0 | H77: 0 | I77: 0 | J77: 0 | K77: 0
A78: Total revenue cost of free services provided (total social package) | C78: =SUM(C69:C77) -> 450471483.4 | D78: 477499772.4 | E78: 506149758.8 | F78: 536518744.3 | G78: 536655310.6 | H78: 536800070.9 | I78: 569008075.1 | J78: =SUM(J69:J77) -> 616996842.1 | K78: =SUM(K69:K77) -> 670304737.2
A79: =head27a -> References
A80: 1. Include services provided by another entity; e.g. Eskom
A81: 2. Stand distance <= 200m from dwelling
A82: 3. Stand distance > 200m from dwelling
A83: 4. Borehole, spring, rain-water tank etc.
A84: 5. Must agree to total number of households in municipal area (informal settlements receiving services must be included)
A85: 6. Include value of subsidy provided by municipality above provincial subsidy level
A86: 7. Show number of households receiving at least these levels of services completely free (informal settlements must be included)
A87: 8. Must reflect the cost to the municipality of providing the Free Basic Service
A88: 9. Reflect the cost to the municipality in terms of 'revenue foregone' of providing free services (note this will not equal 'Revenue Foregone' on SA1)
A91: Check (no. of households)
A92: Water | C92: =C15-'SA9'!E76 -> 0 | D92: =D15-'SA9'!F76 -> 0 | E92: =E15-'SA9'!G76 -> 0 | F92: =F15-'SA9'!H76 -> 0 | G92: =G15-'SA9'!I76 -> 0 | H92: =H15-'SA9'!J76 -> 0 | I92: =I15-'SA9'!K76 -> 0 | J92: =J15-'SA9'!L76 -> 0 | K92: =K15-'SA9'!M76 -> 0
A93: Sanitation | C93: =C27-'SA9'!E88 -> 0 | D93: =D27-'SA9'!F88 -> 0 | E93: =E27-'SA9'!G88 -> 0 | F93: =F27-'SA9'!H88 -> 0 | G93: =G27-'SA9'!I88 -> 0 | H93: =H27-'SA9'!J88 -> 0 | I93: =I27-'SA9'!K88 -> 0 | J93: =J27-'SA9'!L88 -> 0 | K93: =K27-'SA9'!M88 -> 0
A94: Energy | C94: =C36-'SA9'!E97 -> 0 | D94: =D36-'SA9'!F97 -> 0 | E94: =E36-'SA9'!G97 -> 0 | F94: =F36-'SA9'!H97 -> 0 | G94: =G36-'SA9'!I97 -> 0 | H94: =H36-'SA9'!J97 -> 0 | I94: =I36-'SA9'!K97 -> 0 | J94: =J36-'SA9'!L97 -> 0 | K94: =K36-'SA9'!M97 -> 0
A95: Refuse | C95: =C46-'SA9'!E107 -> 0 | D95: =D46-'SA9'!F107 -> 0 | E95: =E46-'SA9'!G107 -> 0 | F95: =F46-'SA9'!H107 -> 0 | G95: =G46-'SA9'!I107 -> 0 | H95: =H46-'SA9'!J107 -> 0 | I95: =I46-'SA9'!K107 -> 0 | J95: =J46-'SA9'!L107 -> 0 | K95: =K46-'SA9'!M107 -> 0

Sheet SA1
A1: =muni&" - "&TableA1 -> KZN225 Msunduzi - Supporting Table SA1 Supportinging detail to 'Budgeted Financial Performance'
A2: =desc -> Description | B2: =head27 -> Ref | C2: =head1b -> 2011/12 | D2: =head1A -> 2012/13 | E2: =Head1 -> 2013/14 | F2: =Head2 -> Current Year 2014/15 | J2: =Head3 -> 2015/16 Medium Term Revenue & Expenditure Framework
C3: =Head5 -> Audited Outcome | D3: =Head5 -> Audited Outcome | E3: =Head5 -> Audited Outcome | F3: =Head6 -> Original Budget | G3: =Head7 -> Adjusted Budget | H3: =Head8 -> Full Year Forecast | I3: =Head5b -> Pre-audit outcome | J3: =Head9 -> Budget Year 2015/16 | K3: =Head10 -> Budget Year +1 2016/17 | L3: =Head11 -> Budget Year +2 2017/18
A4: R thousand
A5: REVENUE ITEMS:
A6: ='A4-FinPerf RE'!A5 -> Property rates | B6: 6
A7: Total Property Rates | C7: =505310156+C8 -> 878862096 | D7: =585863903+D8 -> 871523616 | E7: =602953620+E8 -> 970458375 | F7: =659051768+F8 -> 717293309 | G7: 717293309 | H7: 717293309 | I7: 717293309 | J7: 1183164560 | K7: 1250923306 | L7: 1318134021
A8: less Revenue Foregone | C8: 373551940 | D8: 285659713 | E8: =367504755 -> 367504755 | F8: 58241541 | G8: 58241541 | H8: 58241541 | I8: 58241541 | J8: 440051806.5 | K8: 466454914.9 | L8: 494442209.8
A9: Net Property Rates | C9: =C7-C8 -> 505310156 | D9: =D7-D8 -> 585863903 | E9: 602953620 | F9: 659051768 | G9: 659051768 | H9: 659051768 | I9: 659051768 | J9: 743112753 | K9: 784468391 | L9: 823691811
A11: ='A4-FinPerf RE'!A7 -> Service charges - electricity revenue | B11: 6
A12: ="Total "&A11 -> Total Service charges - electricity revenue | C12: =1212660157+C13 -> 1216308199 | D12: 1401970761 | E12: =1486939403+E13 -> 1493678741 | F12: =1628543000+F13 -> 1628586216 | G12: 1628586216 | H12: 1628586216 | I12: 1628586216 | J12: 1866480628 | K12: 2088495801 | L12: 2336893848
A13: =$A$8 -> less Revenue Foregone | C13: 3648042 | D13: 0 | E13: 6739338 | F13: 43215.8838 | G13: 43215.8838 | H13: 43215.8838 | I13: 43215.8838 | J13: 774536.4432 | K13: 954228.898 | L13: 1207099.556
A14: ="Net "& A11 -> Net Service charges - electricity revenue | C14: =C12-C13 -> 1212660157 | D14: 1401970761 | E14: 1486939403 | F14: 1628543000 | G14: 1628543000 | H14: 1628543000 | I14: 1628543000 | J14: 1865706091 | K14: 2087541572 | L14: 2335686749
A16: ='A4-FinPerf RE'!A8 -> Service charges - water revenue | B16: 6
A17: ="Total "&A16 -> Total Service charges - water revenue | C17: =288345314+C18 -> 345940919 | D17: =386419258+D18 -> 397402177 | E17: =380807209+E18 -> 398745547 | F17: =391288000+F18 -> 411581068 | G17: 411581068 | H17: 411581068 | I17: 411581068 | J17: 595442535.7 | K17: 651217279.7 | L17: 700571047.6
A18: =$A$8 -> less Revenue Foregone | C18: 57595605 | D18: 10982919 | E18: =17938338 -> 17938338 | F18: 20293068 | G18: 20293068 | H18: 20293068 | I18: 20293068 | J18: 0 | K18: 0 | L18: 0
A19: ="Net "& A16 -> Net Service charges - water revenue | C19: =C17-C18 -> 288345314 | D19: 386419258 | E19: 380807209 | F19: 391288000 | G19: 391288000 | H19: 391288000 | I19: 391288000 | J19: 595442535.7 | K19: 651217279.7 | L19: 700571047.6
A21: ='A4-FinPerf RE'!A9 -> Service charges - sanitation revenue
A22: ="Total "&A21 -> Total Service charges - sanitation revenue | C22: =107506830+C23 -> 110385999 | D22: =120089290+D23 -> 136656256 | E22: =126300618+E23 -> 133958700 | F22: =126582000+F23 -> 130350876 | G22: 130350876 | H22: 130350876 | I22: 130350876 | J22: 139470975.6 | K22: 146726448.4 | L22: 155244335
A23: =$A$8 -> less Revenue Foregone | C23: 2879169 | D23: 16566966 | E23: 7658082 | F23: 3768876 | G23: 3768876 | H23: 3768876 | I23: 3768876 | J23: 0 | K23: 0 | L23: 0
A24: ="Net "& A21 -> Net Service charges - sanitation revenue | C24: =C22-C23 -> 107506830 | D24: 120089290 | E24: 126300618 | F24: 126582000 | G24: 126582000 | H24: 126582000 | I24: 126582000 | J24: 139470975.6 | K24: 146726448.4 | L24: 155244335
A26: ='A4-FinPerf RE'!A10 -> Service charges - refuse revenue | B26: 6
A27: Total refuse removal revenue | C27: =70091118+C29 -> 70076749 | D27: =73999200+D29 -> 82518901 | E27: =79454009+E29 -> 82067085 | F27: =87711630+F29 -> 90223890 | G27: 90223890 | H27: 90223890 | I27: 90223890 | J27: 93921629.77 | K27: 98723778.94 | L27: 104457142.4
A28: Total landfill revenue
A29: =$A$8 -> less Revenue Foregone | C29: -14369 | D29: 8519701 | E29: 2613076 | F29: 2512260 | G29: 2512260 | H29: 2512260 | I29: 2512260 | J29: 0 | K29: 0 | L29: 0
A30: ="Net "& A26 -> Net Service charges - refuse revenue | C30: =SUM(C27:C28)-C29 -> 70091118 | D30: =SUM(D27:D28)-D29 -> 73999200 | E30: 79454009 | F30: 87711630 | G30: 87711630 | H30: 87711630 | I30: 87711630 | J30: 93921629.77 | K30: 98723778.94 | L30: 104457142.4
A32: Other Revenue by source
A33: Airport | C33: 3460651 | D33: 4426387 | E33: 6220341 | F33: 4415000 | G33: 4415000 | H33: 4415000 | I33: 4415000 | J33: 4856499 | K33: 5342149 | L33: 5630625.046
A34: Forestry | C34: 12870697 | D34: 11383272 | E34: 15090433 | F34: 13292665 | G34: 13292665 | H34: 13292665 | I34: 13292665 | J34: 14037055 | K34: 14823130 | L34: 15623579.02
A35: Market | C35: 17174918 | D35: 17502924 | E35: 20675511 | F35: 18624502 | G35: 18624502 | H35: 18624502 | I35: 18624502 | J35: =17797052+4000000 -> 21797052 | K35: 20782311 | L35: 21904555.79
A36: Burials & Crematoriums | C36: 1258041 | D36: 1715003 | E36: 2165405 | F36: 1185541 | G36: 1185541 | H36: 1185541 | I36: 1185541 | J36: 1245000 | K36: 1307000 | L36: 1377578
A37: Buildings | C37: 1953498 | D37: 1657842 | E37: 1585448 | F37: 1694410 | G37: 1694410 | H37: 1694410 | I37: 1694410 | J37: 1788000 | K37: 1877000 | L37: 1978358
A38: Reconnections | C38: 12601583 | D38: 5945833 | E38: 8908749 | F38: 11578218 | G38: 11578218 | H38: 11578218 | I38: 11578218 | J38: 12215000 | K38: 12826000 | L38: 13518604
A39: Training Levy Recoveries | C39: 3146805 | D39: 4791555 | E39: 1496739 | F39: 3692500 | G39: 3692500 | H39: 3692500 | I39: 3692500 | J39: 3896000 | K39: 4090000 | L39: 4310860
A40: Dornations | E40: 0 | F40: 0 | G40: 0 | H40: 0 | I40: 0 | J40: 0 | K40: 0 | L40: 0
A41: Rates Certificates | E41: 0 | F41: 0 | G41: 0 | H41: 0 | I41: 0 | J41: 0 | K41: 0 | L41: 0
A42: Discount Received | E42: 0 | F42: 0 | G42: 0 | H42: 0 | I42: 0 | J42: 0 | K42: 0 | L42: 0
A43: Other Revenue | C43: 476355 | D43: 827033 | E43: 40049052 | F43: 74520712 | G43: 72515439 | H43: 72515439 | I43: 72515439 | J43: 13841850 | K43: 14342220 | L43: 15116725
A44: Sundry Income | B44: 3 | C44: 3614659 | D44: 12303206 | E44: 19320953 | F44: 7226203 | G44: 7226203 | H44: 7226203 | I44: 7226203 | J44: 6018940 | K44: 6345053 | L44: 6687686
A45: Total 'Other' Revenue | B45: 1 | C45: =SUM(C33:C44) -> 56557207 | D45: =SUM(D33:D44) -> 60553055 | E45: 115512631 | F45: 136229751 | G45: 134224478 | H45: 134224478 | I45: 134224478 | J45: 79695396 | K45: 81734863 | L45: 86148570.86
A47: EXPENDITURE ITEMS:
A48: ='A4-FinPerf RE'!A25 -> Employee related costs
A49: Basic Salaries and Wages | B49: 2 | C49: 459796642 | D49: 464624205 | E49: 496690332 | F49: 602807592 | G49: 602807592 | H49: 602807592 | I49: 602807592 | J49: 663532680 | K49: 700576977 | L49: 748237557
A50: Pension and UIF Contributions | C50: 7736615 | D50: 8103815 | E50: 9379165 | F50: 155222033 | G50: 155222033 | H50: 155222033 | I50: 155222033 | J50: 11760874 | K50: 12407722 | L50: 13065331
A51: Medical Aid Contributions | C51: 118976579 | D51: 133641222 | E51: 143280320 | J51: 172561623 | K51: 182052513 | L51: 191701296
A52: Overtime | C52: 27336905 | D52: 25655745 | E52: 30262675 | F52: 30221857 | G52: 30221857 | H52: 30221857 | I52: 30221857 | J52: 39205534 | K52: 41360194 | L52: 43549885
A53: Performance Bonus
A54: Motor Vehicle Allowance | C54: 32352063 | D54: 32276629 | E54: 36189433 | F54: 37095288 | G54: 37095288 | H54: 37095288 | I54: 37095288 | J54: 42820075 | K54: 44987916 | L54: 47372276
A55: Cellphone Allowance
A56: Housing Allowances | C56: 3754274 | D56: 3219304 | E56: 2972302 | F56: 3285844 | G56: 3285844 | H56: 3285844 | I56: 3285844 | J56: 3166884 | K56: 3341063 | L56: 3518139
A57: Other benefits and allowances | F57: 8574463 | G57: 8574463 | H57: 8574463 | I57: 8574463
A58: Payments in lieu of leave
A59: Long service awards | C59: 16244652 | D59: 16815648 | E59: 22762989 | F59: 18680045 | G59: 18680045 | H59: 18680045 | I59: 18680045 | J59: 23488088 | K59: 24779933 | L59: 26093270
A60: Post-retirement benefit obligations | B60: 4
A61: sub-total | B61: 5 | C61: =SUM(C49:C60) -> 666197730 | D61: =SUM(D49:D60) -> 684336568 | E61: 741537216 | F61: 855887122 | G61: 855887122 | H61: 855887122 | I61: 855887122 | J61: 956535758 | K61: 1009506318 | L61: 1073537754
A62: Less: Employees costs capitalised to PPE
A63: ="Total "&A48 -> Total Employee related costs | B63: 1 | C63: =C61-C62 -> 666197730 | D63: =D61-D62 -> 684336568 | E63: 741537216 | F63: 855887122 | G63: 855887122 | H63: 855887122 | I63: 855887122 | J63: 956535758 | K63: 1009506318 | L63: 1073537754
A65: Contributions recognised - capital
A66: List contributions by contract
A72: ="Total "&A65 -> Total Contributions recognised - capital | C72: =SUM(C66:C71) -> 0 | D72: 0 | E72: 0 | F72: 0 | G72: 0 | H72: 0 | I72: 0 | J72: 0 | K72: 0 | L72: 0
A74: ='A4-FinPerf RE'!A28 -> Depreciation & asset impairment
A75: Depreciation of Property, Plant & Equipment | C75: 273087278 | D75: 229011118 | E75: 452670172 | F75: 259469334 | G75: 259469334 | H75: 259469334 | I75: 259469334 | J75: 485745588 | K75: 537857003 | L75: 595059306
A76: Lease amortisation | C76: 0
A77: Capital asset impairment | C77: 585791 | D77: 8141512 | E77: 662051
A78: Depreciation resulting from revaluation of PPE | B78: 10 | D78: 0
A79: ="Total "&LEFT(A74,35) -> Total Depreciation & asset impairment | B79: 1 | C79: =SUM(C75:C77)-C78 -> 273673069 | D79: =SUM(D75:D77)-D78 -> 237152630 | E79: 453332223 | F79: 259469334 | G79: 259469334 | H79: 259469334 | I79: 259469334 | J79: =SUM(J75:J77)-J78 -> 485745588 | K79: 537857003 | L79: 595059306
A81: ='A4-FinPerf RE'!A30 -> Bulk purchases
A82: Electricity Bulk Purchases | C82: 919409896 | D82: 1039360585 | E82: 1081219121 | F82: =1134643765.76+117 -> 1134643883 | G82: =1134643765.76+117 -> 1134643883 | H82: =1134643765.76+117 -> 1134643883 | I82: =1134643765.76+117 -> 1134643883 | J82: 1270801279 | K82: 1397881407 | L82: 1537669547
A83: Water Bulk Purchases | C83: 300407646 | D83: 333879941 | E83: 372183066 | F83: 344878347 | G83: 410528962 | H83: 410528962 | I83: 410528962 | J83: 466009787 | K83: 509351748 | L83: 556285537
A84: Total bulk purchases | B84: 1 | C84: =SUM(C82:C83) -> 1219817542 | D84: =SUM(D82:D83) -> 1373240526 | E84: 1453402187 | F84: 1479522230 | G84: 1545172845 | H84: 1545172845 | I84: 1545172845 | J84: 1736811066 | K84: 1907233155 | L84: 2093955084
A86: Transfers and grants
A87: Cash transfers and grants | C87: ='SA21'!C34 -> 4143827 | D87: ='SA21'!D34 -> 4163848 | E87: ='SA21'!E34 -> 4428810 | F87: ='SA21'!F34 -> 5407870 | G87: ='SA21'!G34 -> 5407870 | H87: ='SA21'!H34 -> 5407870 | I87: ='SA21'!I34 -> 5407870 | J87: ='SA21'!J34 -> 5853603 | K87: ='SA21'!K34 -> 6599133 | L87: ='SA21'!L34 -> 6999343
A88: Non-cash transfers and grants | C88: ='SA21'!C65 -> 0 | D88: ='SA21'!D65 -> 0 | E88: ='SA21'!E65 -> 0 | F88: ='SA21'!F65 -> 0 | G88: ='SA21'!G65 -> 0 | H88: ='SA21'!H65 -> 0 | I88: ='SA21'!I65 -> 0 | J88: ='SA21'!J65 -> 128181732.2 | K88: ='SA21'!K65 -> 149587698.3 | L88: ='SA21'!L65 -> 174655427.8
A89: Total transfers and grants | B89: 1 | C89: =SUM(C87:C88) -> 4143827 | D89: =SUM(D87:D88) -> 4163848 | E89: 4428810 | F89: 5407870 | G89: 5407870 | H89: 5407870 | I89: 5407870 | J89: 134035335.2 | K89: 156186831.3 | L89: 181654770.8
A91: ='A4-FinPerf RE'!A32 -> Contracted services
A92: Security Contract | C92: 21090729 | D92: 17769190 | E92: 21066261 | F92: 17677809 | G92: 26177809 | H92: 26177809 | I92: 26177809 | J92: 18555560 | K92: 19483338 | L92: 20535438
A93: External Cashiers | F93: 6107000 | G93: 6107000 | H93: 6107000 | I93: 6107000
A94: External Services | E94: 0 | F94: =50254468+19011654 -> 69266122 | G94: 75311122 | H94: 75311122 | I94: 75311122
A117: sub-total | B117: 1 | C117: =SUM(C92:C116) -> 21090729 | D117: 17769190 | E117: 21066261 | F117: 93050931 | G117: 107595931 | H117: 107595931 | I117: 107595931 | J117: 18555560 | K117: 19483338 | L117: 20535438
A118: Allocations to organs of state:
A119: Electricity
A120: Water
A121: Sanitation
A122: Other
A123: Total contracted services | C123: =SUM(C117:C122) -> 21090729 | D123: =SUM(D117:D122) -> 17769190 | E123: 21066261 | F123: 93050931 | G123: 107595931 | H123: 107595931 | I123: 107595931 | J123: 18555560 | K123: 19483338 | L123: 20535438
A125: Other Expenditure By Type
A126: Collection costs | C126: 7601.25 | D126: 10079.5 | E126: 2550 | G126: 21000 | H126: 21000 | I126: 21000 | J126: 3412384 | K126: 3583002 | L126: 3776484
A127: Contributions to 'other' provisions
A128: Consultant fees | C128: 3301612.54 | D128: 2580691.23 | E128: 6073003.73 | F128: 6866998 | G128: 16367390 | H128: 16367390 | I128: 16367390 | J128: 3450124 | K128: 3624229 | L128: 3819937.366
A129: Audit fees | C129: 4034202.32 | D129: 4341039.29 | E129: 3549982.83 | F129: 4922565 | G129: 4922565 | H129: 4922565 | I129: 4922565 | J129: 5414822 | K129: 5956304 | L129: 6277944.416
A130: General expenses | B130: 3 | C130: =81990608.459991-11574546 -> 70416062.46 | D130: =208164510.17-15780487 -> 192384023.2 | E130: =305865979.920005-26395018 -> 279470961.9 | F130: -135926135.3 | G130: -162681277.3 | H130: -162681277.3 | I130: -162681277.3 | J130: =394249+117900000-1000000-50000-20000-8000000-100000-1000000-1000000-1200000-500000-23000000 -> 82424249 | K130: 111962000 | L130: 114391000
A131: Conditional Grant Expenditure | C131: 35563903.01 | D131: 87412312.64 | E131: 55628590.76 | F131: 152346856 | G131: 152346856 | H131: 152346856 | I131: 152346856 | J131: 6562000 | K131: 2582000 | L131: 2733000
A132: Rep.& Mtnce Related Expenditure | C132: 39509685.4 | D132: 139059871.7 | E132: 68018308.96 | F132: 271420891 | G132: 237066658 | H132: 237066658 | I132: 237066658 | J132: =350975614-150000000 -> 200975614 | K132: =211975805-42073000 -> 169902805 | L132: =286743661.76-76335000 -> 210408661.8
A133: Other | C133: 138533992.1 | D133: 46092903.42 | E133: 162501249.9 | F133: 63817619 | G133: 73152119 | H133: 73152119 | I133: 73152119 | J133: 80522366 | K133: 94276095 | L133: 99367004.13
A134: External Services | C134: 41476466.41 | D134: 30494468.19 | E134: 47380022.06 | F134: 30774264 | G134: 36819188 | H134: 36819188 | I134: 36819188 | J134: =55778226-1000000 -> 54778226 | K134: 48705983 | L134: 51336106.08
A135: Petrol & Lubricants | C135: 18222310.61 | D135: 28436322.69 | E135: 20144377.85 | F135: 26871045 | G135: 32011045 | H135: 32011045 | I135: 32011045 | J135: =24908141-3000000 -> 21908141 | K135: 26153549 | L135: 27565840.65
A136: Insurance | C136: 12220943.63 | D136: 10916556.53 | E136: 10931175.56 | F136: 14210431 | G136: 14210431 | H136: 14210431 | I136: 14210431 | J136: =15631469-1000000 -> 14631469 | K136: 17194626 | L136: 18123135.8
A137: Forestry | C137: 0 | D137: 12126737.04 | E137: 0 | F137: 12838801 | G137: 12838801 | H137: 12838801 | I137: 12838801 | J137: =13557774-1000000 -> 12557774 | K137: 14317010 | L137: 15090128.54
A138: Plant Hire | C138: 0 | D138: 3662888.2 | E138: 0 | F138: 2216835 | G138: 2153382 | H138: 2153382 | I138: 2153382 | J138: =10222815-5000000 -> 5222815 | K138: 11191453 | L138: 11795791.46
A139: Marketing & Promotion | C139: 1847783.93 | D139: 8629111.7 | E139: 1969102.17 | F139: 15920000 | G139: 15920000 | H139: 15920000 | I139: 15920000 | J139: 7526752 | K139: 7903089 | L139: 8329855.806
A140: Govt Training Levy | C140: 5244850.65 | D140: 6208147.87 | E140: 5581371.21 | F140: 6956883 | G140: 6956883 | H140: 6956883 | I140: 6956883 | J140: =7297770-2000000 -> 5297770 | K140: 7662658 | L140: 8076441.532
A141: Ward Committee Expenses | C141: 79642.62 | D141: 0 | E141: 265683.72 | F141: 5986008 | G141: 4486008 | H141: 4486008 | I141: 4486008 | J141: =7194684-3000000 -> 4194684 | K141: 7563829 | L141: 7972275.766
A142: Telephones | C142: 5003289.99 | D142: 7424857.07 | E142: 5654852.62 | F142: 7639875 | G142: 7639875 | H142: 7639875 | I142: 7639875 | J142: 7190766 | K142: 7545296 | L142: 7952741.984
A143: Ward Committee Costs | C143: 0 | D143: 6769801.42 | E143: 265683.72 | F143: 4369972 | G143: 4369972 | H143: 4369972 | I143: 4369972 | J143: =7172413-2000000 -> 5172413 | K143: 7531033 | L143: 7937708.782
A144: Small Medium & Micro Enterprises (Smme) | C144: 58500 | D144: 902103.74 | E144: 349381 | F144: 3950000 | G144: 3450000 | H144: 3450000 | I144: 3450000 | J144: =7115250-3200000 -> 3915250 | K144: 6923512 | L144: 7297381.648
A145: Kwanalogo Subscriptions | C145: 3719788 | D145: 6185049.15 | E145: 4000000 | F145: 6517122 | G145: 15989540 | H145: 15989540 | I145: 15989540 | J145: =6836460-2000000 -> 4836460 | K145: 7178283 | L145: 7565910.282
A146: Mayoral Projects | C146: 2697714.19 | D146: 5169167.93 | E146: 3498364.84 | F146: 6485352 | G146: 6485352 | H146: 6485352 | I146: 6485352 | J146: =6800685-400000 -> 6400685 | K146: 7140719 | L146: 7526317.826
A147: Special Projects | C147: 0 | D147: 4075432.28 | E147: 0 | F147: 6168980 | G147: 6130480 | H147: 6130480 | I147: 6130480 | J147: =6518878-1500000 -> 5018878 | K147: 6844822 | L147: 7214442.388
A148: Software Licences | C148: 0 | D148: 3121399.34 | E148: 3163203.67 | F148: 4773105 | G148: 4720655 | H148: 4720655 | I148: 4720655 | J148: =5774330-1000000 -> 4774330 | K148: 6063046 | L148: 6390450.484
A149: IDP Expenses | C149: 0 | D149: 4144017.13 | E149: 212241.47 | F149: 5000000 | G149: 5500000 | H149: 5500000 | I149: 5500000 | J149: =5000400-1000000 -> 4000400 | K149: 5000400 | L149: 5270421.6
A150: Personnel - Training | C150: 0 | D150: 4439021.54 | E150: 3142849.5 | F150: 4861888 | G150: 4861888 | H150: 4861888 | I150: 4861888 | J150: 4998417 | K150: 5248338 | L150: 5531748.252
A151: Bank Charges | C151: 0 | D151: 3743335.2 | E151: 0 | F151: 4739985 | G151: 4739985 | H151: 4739985 | I151: 4739985 | J151: 4992879 | K151: 5259276 | L151: 5543276.904
A152: Consolidated Billing Costs | C152: 0 | D152: 2812893.57 | E152: 0 | F152: 3403643 | G152: 3403643 | H152: 3403643 | I152: 3403643 | J152: =4637039-1000000 -> 3637039 | K152: 4868890 | L152: 5131810.06
A153: Total 'Other' Expenditure | B153: 1 | C153: =SUM(C126:C152) -> 381938349.1 | D153: =SUM(D126:D152) -> 621142231.5 | E153: 681802957.5 | F153: 537132982.7 | G153: 513882438.7 | H153: 513882438.7 | I153: 513882438.7 | J153: 563816707 | K153: 602182247 | L153: 662425817.5
A155: Repairs and Maintenance by Expenditure Item | B155: 8
A156: Employee related costs | F156: 94848275 | G156: 94848275 | H156: 94848275 | I156: 94848275 | J156: 89276720 | K156: 94518267 | L156: 99622253.03
A157: Other materials | F157: 25197540 | G157: 25197540 | H157: 25197540 | I157: 25197540 | J157: 29774095 | K157: 33492355 | L157: 35347052.17
A158: Contracted Services | F158: 19011654 | G158: 19011654 | H158: 19011654 | I158: 19011654 | J158: 18555560 | K158: 19483338 | L158: 20535438.25
A159: Other Expenditure | C159: 39509685 | D159: 97782623 | E159: 139059872 | F159: 152299730 | G159: 78859594 | H159: 78859594 | I159: 95579594 | J159: =350975614-150000000-136456000 -> 64519614 | K159: =280974572-147493000 -> 133481572 | L159: =487986030-281834000 -> 206152030
A160: Total Repairs and Maintenance Expenditure | B160: 9 | C160: =SUM(C156:C159) -> 39509685 | D160: =SUM(D156:D159) -> 97782623 | E160: 139059872 | F160: 291357199 | G160: 217917063 | H160: 217917063 | I160: 234637063 | J160: 202125989 | K160: 280975532 | L160: 361656773.5
A162: check | C162: =C160-SA34c!C77 -> -2 | D162: =D160-SA34c!D77 -> 459 | E162: =E160-SA34c!E77 -> -351 | F162: =F160-SA34c!F77 -> -0.8799999952 | G162: =G160-SA34c!G77 -> -0.8832821548 | H162: =H160-SA34c!H77 -> -0.8832821548 | J162: =J160-SA34c!I77 -> -432.89 | K162: =K160-SA34c!J77 -> 475.86 | L162: =L160-SA34c!K77 -> -426.6799999
A165: =head27a -> References
A166: 1. Must reconcile with 'Budgeted Financial Performance (Revenue and Expenditure)
A167: 2. Must reconcile to supporting documentation on staff salaries
A168: 3. Insert other categories where revenue or expenditure is of a material nature (list separate items until 'General expenses' is not > 10% of Total Expenditure)
A169: 4. Expenditure to meet any 'unfunded obligations'
A170: 5 This sub-total must agree with the total on SA22, but excluding councillor and board member items
A171: 6. Include a note for each revenue item that is affected by 'revenue foregone'
A172: 7. Special consideration may have to be given to including 'goodwill arising' or 'joint venture' budgets where circumstances require this (include separately under relevant notes)
A173: 8. Repairs and Maintenance is not a GRAP item. However to facilitate transparency, municipalities must provide a breakdown of the amounts included in the relevant GRAP items that will be spent on Repairs and Maintenance.
A174: 9. Must reconcile with Repairs and Maintenance by Asset Class (Total Repairs and Maintenance) on Table SA34c.
A175: 10. Only applicable to municipalities that have adopted the 'revaluation method' in GRAP 17. The aim is to prevent overstating 'depreciation and asset impairment'

Sheet SA2
A1: =muni&" - "&TableA2 -> KZN225 Msunduzi - Supporting Table SA2 Matrix Financial Performance Budget (revenue source/expenditure type and dept.)
A2: =desc -> Description | B2: =head27 -> Ref | C2: ='A3-FinPerf V'!A5 -> Vote 1 - Corporate Services | D2: ='A3-FinPerf V'!A6 -> Vote 2 - Financial Management Area | E2: ='A3-FinPerf V'!A7 -> Vote 3 - Infrastructure Development, Service Delivery and Maintenance Management | F2: ='A3-FinPerf V'!A8 -> Vote 4 - Sustainable Community Service Delivery Provision Management | G2: ='A3-FinPerf V'!A9 -> Vote 5 - [NAME OF VOTE 5] | H2: ='A3-FinPerf V'!A10 -> Vote 6 - [NAME OF VOTE 6] | I2: ='A3-FinPerf V'!A11 -> Vote 7 - [NAME OF VOTE 7] | J2: ='A3-FinPerf V'!A12 -> Vote 8 - [NAME OF VOTE 8] | K2: ='A3-FinPerf V'!A13 -> Vote 9 - [NAME OF VOTE 9] | L2: ='A3-FinPerf V'!A14 -> Vote 10 - [NAME OF VOTE 10] | M2: ='A3-FinPerf V'!A15 -> Vote 11 - [NAME OF VOTE 11] | N2: ='A3-FinPerf V'!A16 -> Vote 12 - [NAME OF VOTE 12] | O2: ='A3-FinPerf V'!A17 -> Vote 13 - [NAME OF VOTE 13] | P2: ='A3-FinPerf V'!A18 -> Vote 14 - [NAME OF VOTE 14] | Q2: ='A3-FinPerf V'!A19 -> Vote 15 - [NAME OF VOTE 15] | R2: Total
A3: R thousand | B3: 1 | C3: R'000 | D3: R'000 | E3: R'000 | F3: R'000 | G3: R'000 | H3: R'000 | Q3: R'000 | R3: R'000
A4: ='A4-FinPerf RE'!A4 -> Revenue By Source
A5: ='A4-FinPerf RE'!A5 -> Property rates | C5: 0 | D5: 743112753 | E5: 0 | F5: 0 | R5: =SUM(C5:Q5) -> 743112753
A6: ='A4-FinPerf RE'!A6 -> Property rates - penalties & collection charges | C6: 0 | D6: 41348999 | F6: 0 | R6: =SUM(C6:Q6) -> 41348999
A7: ='A4-FinPerf RE'!A7 -> Service charges - electricity revenue | C7: 0 | D7: 0 | E7: 1865706094 | F7: 0 | R7: 1865706094
A8: ='A4-FinPerf RE'!A8 -> Service charges - water revenue | C8: 0 | D8: 0 | E8: 595442535.7 | F8: 0 | R8: 595442535.7
A9: ='A4-FinPerf RE'!A9 -> Service charges - sanitation revenue | C9: 0 | D9: 0 | E9: 139470975.6 | F9: 0 | R9: 139470975.6
A10: ='A4-FinPerf RE'!A10 -> Service charges - refuse revenue | C10: 0 | D10: 0 | E10: 93921629.77 | F10: 0 | R10: 93921629.77
A11: ='A4-FinPerf RE'!A11 -> Service charges - other | C11: 0 | D11: 0 | E11: 0 | F11: 0 | R11: 0
A12: ='A4-FinPerf RE'!A12 -> Rental of facilities and equipment | C12: 0 | D12: 41329367 | E12: 0 | F12: 0 | R12: 41329367
A13: ='A4-FinPerf RE'!A13 -> Interest earned - external investments | C13: 0 | D13: 33987999 | E13: 0 | F13: 0 | R13: 33987999
A14: ='A4-FinPerf RE'!A14 -> Interest earned - outstanding debtors | C14: 0 | D14: 62593295 | E14: 0 | F14: 0 | R14: 62593295
A15: ='A4-FinPerf RE'!A15 -> Dividends received | C15: 0 | D15: 0 | E15: 0 | F15: 0 | R15: 0
A16: ='A4-FinPerf RE'!A16 -> Fines | C16: 0 | D16: 17488270 | E16: 0 | F16: 0 | R16: 17488270
A17: ='A4-FinPerf RE'!A17 -> Licences and permits | C17: 0 | D17: 87183 | E17: 0 | F17: 0 | R17: 87183
A18: ='A4-FinPerf RE'!A18 -> Agency services | C18: 0 | D18: 632176 | E18: 0 | F18: 0 | R18: 632176
A19: ='A4-FinPerf RE'!A20 -> Other revenue | C19: 0 | D19: 79695396 | E19: 0 | F19: 0 | R19: 79695396
